Workbook

Sheet Notes
A1: UltimateStrengthIndex.xlsm; Traders Tip spreadsheet created for the November 2024 Issue
A2: Coded beginning 2024-July-05 by Ronald McAllister (rpmac_xltt@sprynet.com)
A4: This Workbook demonstrates an EXCEL version of the ideas presented
A5: by John F. Ehlers in an article titled "Ultimate Strength Index (USI)",
A6: which originally appeared in the November 2024 issue of
A7: "Technical Analysis of Stocks and Commodities" magazine.
A10: 2024September05 - Commented out code looking for LongName
A11: Never used the resulting LongNameStr anywhere in the rest of my code so do not really need it anyway.
A12: It turns out that LongName is not available for symbols like "NQ=F" and crashed the data retrieval.
A13: This problem was pointed out by G. Pitcher to whom I am great full for educating me as to the existence of
A14: symbols which incorporate an "=".
A16: 2024July05 - This is the second T-Tip spreadsheet that has been adjusted for the April 15, 2024 problem.
A17: This spreadsheet also includes the "April 15 Repairs" tab (described below under June 12 tag) which, if you have not already done so,
A18: will allow you to repair older spreadsheets that were broken by this "Tax Day" problem.
A21: 2024June12 - This, the August 2024 T-Tip spreadsheet, is the first T-Tip that has been "adjusted" to correct the April 15, 2024 data retrieval failure caused by Yahoo Finance changes
A22: to their Stock Summary web page. These changes took effect on, or slightly before, April 15, 2024.
A24: It took a while to sus out what changed and how to reliably locate the information I use in these T-Tips.
A26: The result is a complete re-write of my data retrieval code as it applies to the information I need from the Stock Summary web page.
A27: No simple description of the necessary VBA code changes would be sufficient for those of you might wish to restore older T-Tips to service.
A29: So I have included in this T-Tip spreadsheet the capability to "FIX" older T-Tips spreadsheets by replacing the appropriate section of their VBA code
A30: using the fully functional code contained in this August 2024 T-Tip spreadsheet as my Template.
A31: See tab "April 15 Repairs" for step by step instructions.
A33: Things discovered along the way
A34: It turns out that there is a plethora of interesting information buried in the Summary Sheet HTML but not shown on the web page you and I see.
A35: I pulled out and incorporated a couple of them by way of this April 15 fix:
A36: InputPriceData tab
A37: First Trade Date - the first date and time the current symbol was traded
A38: Market State - Will show correct Time Zone time and Time Zone code for the market where the current symbol is traded.
A39: Example: Retrieving symbol "^HIS" at 10:am EDT will display "HANG SENG INDEX (^HSI) -HKSE (Daily) At Close: 4:08 PM HKT"
A40: CalculationAndCharts tab
A41: Cell "A2" and the price chart title will now include market state, market time, and TimeZone Code.
A42: Follow tab
A43: Entries on the Follow Tab will also show Times and time zones for the market where traded
A45: 2024Feb04 - Added "TallChart" Check Box and supporting functionality that allows the user to expand the charting area to use all of the vertical area that is "visible" on the worksheet.
A46: I found this to be a useful toggle when the number of user selected indicator subcharts scrunches them so tightly into the normal vertical space that much of the visual detail is lost.
A47: Note: "Visible" vertical space is sensitive to the level of "zoom" you choose for the worksheet (Slider at the bottom right of the sheet display)
A49: Just a note:
A50: November 2023 was the first T-Tip built using EXCEL 365. Specifically:
A51: Microsoft® Excel® for Microsoft 365 MSO (Version 2308 Build 16.0.16731.20052) 64-bit (plus any more recent updates to MSO as they happen)
A52: All previous T-Tip spreadsheets were built using EXCEL 2010.

Sheet InputPriceData
A1: E-Mini S&P 500 Dec 24 (ES=F) -CME (Daily)
B2: First trade was: | C2: 2000-09-18 | M2: To retrieve data for symbols traded on non US Exchanges, | IJ2: 241.79
A3: Request Online Yahoo History for: | F3: Market State == > | G3: As Of: | H3: 16:59:00 | I3: EDT | M3: you will need to append the dot-suffix for the exchange to the symbol.
A4: Symbol | B4: ES=F | D4: Valid | I4: =OFFSET(I4,-2,0,1,1) -> 0 | M4: The following links provide a description of how to use the exchange suffix
A5: From | B5: 2020-09-01 | D5: Data | M5: along with a list of suffixes for the major world exchanges. | AD5: Trailing 12 Div return (Cur Close)
A6: To | B6: =NOW() -> 2024-09-23T11:40:32.550 | D6: Types | E6: =VLOOKUP(B7,D7:E10,2,FALSE) -> d | M6: https://help.yahoo.com/kb/finance/SLN2310.html
A7: Data Type | B7: Daily | D7: Daily | E7: d | M7: And
A8: Crumb | D8: Weekly | E8: w | M8: https://www.stockmarketeye.com/users-guide/ticker-symbols-and-data-providers/data-providers.html
A9: Available Data | D9: Monthly | E9: m
A10: Bar Count: | B10: 1021 | M10: You may search on “exchange suffixes” for additional discussions | AD10: =OFFSET(AC15,1,0,1,1)/OFFSET(N15,1,0,1,1) -> 0
A11: From: | B11: =IF(B10<=0,"",OFFSET(B15,B10,IF(HistReqDataType="v",1,0),1,1)) -> 2020-09-01T04:00:00 | W11: Trailing 12 Month Dividend Returns
A12: To: | B12: =IF(B10<=0,"",IF(HistReqDataType="v",OFFSET(B15,2,1,1,1),OFFSET(B15,1,0,1,1))) -> 2024-09-20T20:59:58 | W12: Raw Close price on Dividend date | X12: Div Year and Month | Y12: Looking for year ago Div Year and Month | Z12: Year ago Div Date we found | AA12: row offset to year ago div Date | AB12: Same month flag | AC12: Trailing 12 Div Total | AD12: Trailing 12 Div return
Q13: Split History | S13: 0 | T13: Running | U13: Dividend History
B14: Raw Data Values | H14: Adjusted | I14: Price Adjust | J14: Vol Adjust | K14: Adjusted Values | P14: Last | Q14: Effective | R14: Shares | T14: Vol Adjust | V14: 0
A15: RelRow | B15: Date | C15: Open | D15: High | E15: Low | F15: Close | G15: Volume | H15: Close | I15: Factor | J15: Factor | K15: Open | L15: High | M15: Low | N15: Close | O15: Volume | P15: Trade | Q15: 45558 | R15: New | S15: Old | T15: 1 | U15: Date | V15: $ / Share
A16: 1 | B16: 2024-09-20T20:59:58 | C16: 5776 | D16: 5776.75 | E16: 5733.5 | F16: 5758.25 | G16: 1447611 | H16: 5758.25 | I16: =IF(F16=0,1,H16/F16) -> 1 | J16: =INDEX(OFFSET($T$15,0,0,$S$13+1,1),MATCH(B16,OFFSET($Q$15,0,0,$S$13+1,1),-1)) -> 1 | K16: =ROUND($I16*C16,2) -> 5776 | L16: =ROUND($I16*D16,2) -> 5776.75 | M16: 5733.5 | N16: 5758.25 | O16: =G16*J16 -> 1447611
A17: 2 | B17: 2024-09-19T04:00:00 | C17: 5631.5 | D17: 5737.5 | E17: 5631.5 | F17: 5717.75 | G17: 461433 | H17: 5717.75 | I17: =IF(F17=0,1,H17/F17) -> 1 | J17: =INDEX(OFFSET($T$15,0,0,$S$13+1,1),MATCH(B17,OFFSET($Q$15,0,0,$S$13+1,1),-1)) -> 1 | K17: =ROUND($I17*C17,2) -> 5631.5 | L17: =ROUND($I17*D17,2) -> 5737.5 | M17: =ROUND($I17*E17,2) -> 5631.5 | N17: =ROUND($I17*F17,2) -> 5717.75 | O17: =G17*J17 -> 461433
A18: 3 | B18: 2024-09-18T04:00:00 | C18: 5639.5 | D18: 5696.25 | E18: 5613.75 | F18: 5620.75 | G18: 605651 | H18: 5620.75 | I18: 1 | J18: 1 | K18: 5639.5 | L18: 5696.25 | M18: 5613.75 | N18: 5620.75 | O18: 605651
A19: 4 | B19: 2024-09-17T04:00:00 | C19: 5633.25 | D19: 5675.5 | E19: 5617 | F19: 5639 | G19: 1056184 | H19: 5639 | I19: 1 | J19: 1 | K19: 5633.25 | L19: 5675.5 | M19: 5617 | N19: 5639 | O19: 1056184
A20: 5 | B20: 2024-09-16T04:00:00 | C20: 5622.75 | D20: 5641.5 | E20: 5609.25 | F20: 5638 | G20: 1588010 | H20: 5638 | I20: 1 | J20: 1 | K20: 5622.75 | L20: 5641.5 | M20: 5609.25 | N20: 5638 | O20: 1588010
A21: 6 | B21: 2024-09-13T04:00:00 | C21: 5598.5 | D21: 5641.5 | E21: 5597.25 | F21: 5629.75 | G21: 1706322 | H21: 5629.75 | I21: 1 | J21: 1 | K21: 5598.5 | L21: 5641.5 | M21: 5597.25 | N21: 5629.75 | O21: 1706322
A22: 7 | B22: 2024-09-12T04:00:00 | C22: 5558 | D22: 5607 | E22: 5540.25 | F22: 5602.25 | G22: 1726434 | H22: 5602.25 | I22: 1 | J22: 1 | K22: 5558 | L22: 5607 | M22: 5540.25 | N22: 5602.25 | O22: 1726434
A23: 8 | B23: 2024-09-11T04:00:00 | C23: 5499.25 | D23: 5567.5 | E23: 5412 | F23: 5561.25 | G23: 2309139 | H23: 5561.25 | I23: 1 | J23: 1 | K23: 5499.25 | L23: 5567.5 | M23: 5412 | N23: 5561.25 | O23: 2309139
A24: 9 | B24: 2024-09-10T04:00:00 | C24: 5488.25 | D24: 5506 | E24: 5448.25 | F24: 5504 | G24: 1525620 | H24: 5504 | I24: 1 | J24: 1 | K24: 5488.25 | L24: 5506 | M24: 5448.25 | N24: 5504 | O24: 1525620
A25: 10 | B25: 2024-09-09T04:00:00 | C25: 5410 | D25: 5493 | E25: 5405.25 | F25: 5479.5 | G25: 2377532 | H25: 5479.5 | I25: 1 | J25: 1 | K25: 5410 | L25: 5493 | M25: 5405.25 | N25: 5479.5 | O25: 2377532
A26: 11 | B26: 2024-09-06T04:00:00 | C26: 5513 | D26: 5532.5 | E26: 5394 | F26: 5419.5 | G26: 2377532 | H26: 5419.5 | I26: 1 | J26: 1 | K26: 5513 | L26: 5532.5 | M26: 5394 | N26: 5419.5 | O26: 2377532
A27: 12 | B27: 2024-09-05T04:00:00 | C27: 5527.5 | D27: 5557.25 | E27: 5490 | F27: 5512.25 | G27: 1737210 | H27: 5512.25 | I27: 1 | J27: 1 | K27: 5527.5 | L27: 5557.25 | M27: 5490 | N27: 5512.25 | O27: 1737210
A28: 13 | B28: 2024-09-04T04:00:00 | C28: 5538.5 | D28: 5565 | E28: 5506.75 | F28: 5530 | G28: 1749591 | H28: 5530 | I28: 1 | J28: 1 | K28: 5538.5 | L28: 5565 | M28: 5506.75 | N28: 5530 | O28: 1749591
A29: 14 | B29: 2024-09-03T04:00:00 | C29: 5656.25 | D29: 5669.75 | E29: 5516.75 | F29: 5541.75 | G29: 1910577 | H29: 5541.75 | I29: 1 | J29: 1 | K29: 5656.25 | L29: 5669.75 | M29: 5516.75 | N29: 5541.75 | O29: 1910577
A30: 15 | B30: 2024-08-30T04:00:00 | C30: 5618.5 | D30: 5665 | E30: 5594.25 | F30: 5661 | G30: 1558874 | H30: 5661 | I30: 1 | J30: 1 | K30: 5618.5 | L30: 5665 | M30: 5594.25 | N30: 5661 | O30: 1558874
A31: 16 | B31: 2024-08-29T04:00:00 | C31: 5580.5 | D31: 5663.75 | E31: 5561.25 | F31: 5610 | G31: 1571688 | H31: 5610 | I31: 1 | J31: 1 | K31: 5580.5 | L31: 5663.75 | M31: 5561.25 | N31: 5610 | O31: 1571688
A32: 17 | B32: 2024-08-28T04:00:00 | C32: 5643.75 | D32: 5650.5 | E32: 5576 | F32: 5610.25 | G32: 1381099 | H32: 5610.25 | I32: 1 | J32: 1 | K32: 5643.75 | L32: 5650.5 | M32: 5576 | N32: 5610.25 | O32: 1381099
A33: 18 | B33: 2024-08-27T04:00:00 | C33: 5630 | D33: 5649.5 | E33: 5611.5 | F33: 5644.75 | G33: 1027658 | H33: 5644.75 | I33: 1 | J33: 1 | K33: 5630 | L33: 5649.5 | M33: 5611.5 | N33: 5644.75 | O33: 1027658
A34: 19 | B34: 2024-08-26T04:00:00 | C34: 5650.5 | D34: 5669 | E34: 5619.75 | F34: 5637 | G34: 1090361 | H34: 5637 | I34: 1 | J34: 1 | K34: 5650.5 | L34: 5669 | M34: 5619.75 | N34: 5637 | O34: 1090361
A35: 20 | B35: 2024-08-23T04:00:00 | C35: 5597.75 | D35: 5662.25 | E35: 5597.75 | F35: 5652.5 | G35: 1415472 | H35: 5652.5 | I35: 1 | J35: 1 | K35: 5597.75 | L35: 5662.25 | M35: 5597.75 | N35: 5652.5 | O35: 1415472
A36: 21 | B36: 2024-08-22T04:00:00 | C36: 5642 | D36: 5665.25 | E36: 5582.75 | F36: 5594 | G36: 1409474 | H36: 5594 | I36: 1 | J36: 1 | K36: 5642 | L36: 5665.25 | M36: 5582.75 | N36: 5594 | O36: 1409474
A37: 22 | B37: 2024-08-21T04:00:00 | C37: 5619.5 | D37: 5655.25 | E37: 5613.5 | F37: 5641.5 | G37: 1086814 | H37: 5641.5 | I37: 1 | J37: 1 | K37: 5619.5 | L37: 5655.25 | M37: 5613.5 | N37: 5641.5 | O37: 1086814
A38: 23 | B38: 2024-08-20T04:00:00 | C38: 5629.5 | D38: 5643.75 | E38: 5607.75 | F38: 5619.75 | G38: 1020393 | H38: 5619.75 | I38: 1 | J38: 1 | K38: 5629.5 | L38: 5643.75 | M38: 5607.75 | N38: 5619.75 | O38: 1020393
A39: 24 | B39: 2024-08-19T04:00:00 | C39: 5584 | D39: 5631.75 | E39: 5565.25 | F39: 5630 | G39: 1010612 | H39: 5630 | I39: 1 | J39: 1 | K39: 5584 | L39: 5631.75 | M39: 5565.25 | N39: 5630 | O39: 1010612
A40: 25 | B40: 2024-08-16T04:00:00 | C40: 5568.5 | D40: 5586.25 | E40: 5536.5 | F40: 5578.25 | G40: 1183498 | H40: 5578.25 | I40: 1 | J40: 1 | K40: 5568.5 | L40: 5586.25 | M40: 5536.5 | N40: 5578.25 | O40: 1183498
A41: 26 | B41: 2024-08-15T04:00:00 | C41: 5481.25 | D41: 5571.75 | E41: 5471.75 | F41: 5567.5 | G41: 1440377 | H41: 5567.5 | I41: 1 | J41: 1 | K41: 5481.25 | L41: 5571.75 | M41: 5471.75 | N41: 5567.5 | O41: 1440377
A42: 27 | B42: 2024-08-14T04:00:00 | C42: 5457.5 | D42: 5487.75 | E42: 5438.75 | F42: 5477 | G42: 1301826 | H42: 5477 | I42: 1 | J42: 1 | K42: 5457.5 | L42: 5487.75 | M42: 5438.75 | N42: 5477 | O42: 1301826
A43: 28 | B43: 2024-08-13T04:00:00 | C43: 5372.5 | D43: 5461.25 | E43: 5367.5 | F43: 5459 | G43: 1271171 | H43: 5459 | I43: 1 | J43: 1 | K43: 5372.5 | L43: 5461.25 | M43: 5367.5 | N43: 5459 | O43: 1271171
A44: 29 | B44: 2024-08-12T04:00:00 | C44: 5364.25 | D44: 5396.75 | E44: 5347.75 | F44: 5369.75 | G44: 1219995 | H44: 5369.75 | I44: 1 | J44: 1 | K44: 5364.25 | L44: 5396.75 | M44: 5347.75 | N44: 5369.75 | O44: 1219995
A45: 30 | B45: 2024-08-09T04:00:00 | C45: 5348.25 | D45: 5385.25 | E45: 5319.5 | F45: 5370.25 | G45: 1412017 | H45: 5370.25 | I45: 1 | J45: 1 | K45: 5348.25 | L45: 5385.25 | M45: 5319.5 | N45: 5370.25 | O45: 1412017
A46: 31 | B46: 2024-08-08T04:00:00 | C46: 5208.25 | D46: 5361 | E46: 5182 | F46: 5348.25 | G46: 1912347 | H46: 5348.25 | I46: 1 | J46: 1 | K46: 5208.25 | L46: 5361 | M46: 5182 | N46: 5348.25 | O46: 1912347
A47: 32 | B47: 2024-08-07T04:00:00 | C47: 5241.5 | D47: 5359.25 | E47: 5196.75 | F47: 5227.5 | G47: 2247229 | H47: 5227.5 | I47: 1 | J47: 1 | K47: 5241.5 | L47: 5359.25 | M47: 5196.75 | N47: 5227.5 | O47: 2247229
A48: 33 | B48: 2024-08-06T04:00:00 | C48: 5250 | D48: 5342 | E48: 5221.75 | F48: 5266.25 | G48: 2172067 | H48: 5266.25 | I48: 1 | J48: 1 | K48: 5250 | L48: 5342 | M48: 5221.75 | N48: 5266.25 | O48: 2172067
A49: 34 | B49: 2024-08-05T04:00:00 | C49: 5330 | D49: 5345.5 | E49: 5120 | F49: 5217.5 | G49: 3436090 | H49: 5217.5 | I49: 1 | J49: 1 | K49: 5330 | L49: 5345.5 | M49: 5120 | N49: 5217.5 | O49: 3436090
A50: 35 | B50: 2024-08-02T04:00:00 | C50: 5464.25 | D50: 5473.25 | E50: 5331.75 | F50: 5376 | G50: 3239738 | H50: 5376 | I50: 1 | J50: 1 | K50: 5464.25 | L50: 5473.25 | M50: 5331.75 | N50: 5376 | O50: 3239738
A51: 36 | B51: 2024-08-01T04:00:00 | C51: 5574.75 | D51: 5600.75 | E51: 5444.75 | F51: 5480.25 | G51: 2751690 | H51: 5480.25 | I51: 1 | J51: 1 | K51: 5574.75 | L51: 5600.75 | M51: 5444.75 | N51: 5480.25 | O51: 2751690
A52: 37 | B52: 2024-07-31T04:00:00 | C52: 5454.75 | D52: 5588.5 | E52: 5451.5 | F52: 5558 | G52: 2156505 | H52: 5558 | I52: 1 | J52: 1 | K52: 5454.75 | L52: 5588.5 | M52: 5451.5 | N52: 5558 | O52: 2156505
A53: 38 | B53: 2024-07-30T04:00:00 | C53: 5504.5 | D53: 5527.5 | E53: 5433 | F53: 5472.5 | G53: 2053956 | H53: 5472.5 | I53: 1 | J53: 1 | K53: 5504.5 | L53: 5527.5 | M53: 5433 | N53: 5472.5 | O53: 2053956
A54: 39 | B54: 2024-07-29T04:00:00 | C54: 5496.5 | D54: 5534.5 | E54: 5481 | F54: 5503 | G54: 1697647 | H54: 5503 | I54: 1 | J54: 1 | K54: 5496.5 | L54: 5534.5 | M54: 5481 | N54: 5503 | O54: 1697647
A55: 40 | B55: 2024-07-26T04:00:00 | C55: 5446 | D55: 5528.25 | E55: 5445.25 | F55: 5499 | G55: 1977698 | H55: 5499 | I55: 1 | J55: 1 | K55: 5446 | L55: 5528.25 | M55: 5445.25 | N55: 5499 | O55: 1977698
A56: 41 | B56: 2024-07-25T04:00:00 | C56: 5482.5 | D56: 5533.25 | E56: 5432.5 | F56: 5441.25 | G56: 2888086 | H56: 5441.25 | I56: 1 | J56: 1 | K56: 5482.5 | L56: 5533.25 | M56: 5432.5 | N56: 5441.25 | O56: 2888086
A57: 42 | B57: 2024-07-24T04:00:00 | C57: 5585 | D57: 5585 | E57: 5462 | F57: 5472 | G57: 2178690 | H57: 5472 | I57: 1 | J57: 1 | K57: 5585 | L57: 5585 | M57: 5462 | N57: 5472 | O57: 2178690
A58: 43 | B58: 2024-07-23T04:00:00 | C58: 5607.75 | D58: 5629.75 | E58: 5587.75 | F58: 5599.25 | G58: 1385653 | H58: 5599.25 | I58: 1 | J58: 1 | K58: 5607.75 | L58: 5629.75 | M58: 5587.75 | N58: 5599.25 | O58: 1385653
A59: 44 | B59: 2024-07-22T04:00:00 | C59: 5564.5 | D59: 5616 | E59: 5553.5 | F59: 5610.75 | G59: 1671918 | H59: 5610.75 | I59: 1 | J59: 1 | K59: 5564.5 | L59: 5616 | M59: 5553.5 | N59: 5610.75 | O59: 1671918
A60: 45 | B60: 2024-07-19T04:00:00 | C60: 5602.5 | D60: 5607.5 | E60: 5542 | F60: 5553.75 | G60: 2106581 | H60: 5553.75 | I60: 1 | J60: 1 | K60: 5602.5 | L60: 5607.5 | M60: 5542 | N60: 5553.75 | O60: 2106581
A61: 46 | B61: 2024-07-18T04:00:00 | C61: 5644 | D61: 5664 | E61: 5570.25 | F61: 5594.5 | G61: 2528379 | H61: 5594.5 | I61: 1 | J61: 1 | K61: 5644 | L61: 5664 | M61: 5570.25 | N61: 5594.5 | O61: 2528379
A62: 47 | B62: 2024-07-17T04:00:00 | C62: 5715 | D62: 5717.75 | E62: 5631.75 | F62: 5639 | G62: 2059862 | H62: 5639 | I62: 1 | J62: 1 | K62: 5715 | L62: 5717.75 | M62: 5631.75 | N62: 5639 | O62: 2059862
A63: 48 | B63: 2024-07-16T04:00:00 | C63: 5688.75 | D63: 5721.25 | E63: 5673 | F63: 5717.25 | G63: 1485113 | H63: 5717.25 | I63: 1 | J63: 1 | K63: 5688.75 | L63: 5721.25 | M63: 5673 | N63: 5717.25 | O63: 1485113
A64: 49 | B64: 2024-07-15T04:00:00 | C64: 5681 | D64: 5718.75 | E64: 5665.5 | F64: 5683 | G64: 1701349 | H64: 5683 | I64: 1 | J64: 1 | K64: 5681 | L64: 5718.75 | M64: 5665.5 | N64: 5683 | O64: 1701349
A65: 50 | B65: 2024-07-12T04:00:00 | C65: 5638.5 | D65: 5708.25 | E65: 5621.25 | F65: 5664.75 | G65: 1684437 | H65: 5664.75 | I65: 1 | J65: 1 | K65: 5638.5 | L65: 5708.25 | M65: 5621.25 | N65: 5664.75 | O65: 1684437
A66: 51 | B66: 2024-07-11T04:00:00 | C66: 5684.25 | D66: 5707.75 | E66: 5630 | F66: 5639.75 | G66: 1970766 | H66: 5639.75 | I66: 1 | J66: 1 | K66: 5684.25 | L66: 5707.75 | M66: 5630 | N66: 5639.75 | O66: 1970766
A67: 52 | B67: 2024-07-10T04:00:00 | C67: 5631.75 | D67: 5690.5 | E67: 5630.75 | F67: 5688 | G67: 1200224 | H67: 5688 | I67: 1 | J67: 1 | K67: 5631.75 | L67: 5690.5 | M67: 5630.75 | N67: 5688 | O67: 1200224
A68: 53 | B68: 2024-07-09T04:00:00 | C68: 5627.75 | D68: 5645.75 | E68: 5626.25 | F68: 5631.25 | G68: 1063568 | H68: 5631.25 | I68: 1 | J68: 1 | K68: 5627.75 | L68: 5645.75 | M68: 5626.25 | N68: 5631.25 | O68: 1063568
A69: 54 | B69: 2024-07-08T04:00:00 | C69: 5612 | D69: 5637.5 | E69: 5610.75 | F69: 5625.25 | G69: 981186 | H69: 5625.25 | I69: 1 | J69: 1 | K69: 5612 | L69: 5637.5 | M69: 5610.75 | N69: 5625.25 | O69: 981186
A70: 55 | B70: 2024-07-05T04:00:00 | C70: 5591 | D70: 5626 | E70: 5585 | F70: 5621.5 | G70: 1233173 | H70: 5621.5 | I70: 1 | J70: 1 | K70: 5591 | L70: 5626 | M70: 5585 | N70: 5621.5 | O70: 1233173
A71: 56 | B71: 2024-07-03T13:30:00 | C71: 5563.75 | D71: 5595.75 | E71: 5559.75 | F71: 5590.25 | G71: 808966 | H71: 5590.25 | I71: 1 | J71: 1 | K71: 5563.75 | L71: 5595.75 | M71: 5559.75 | N71: 5590.25 | O71: 808966
A72: 57 | B72: 2024-07-02T04:00:00 | C72: 5533.5 | D72: 5569.75 | E72: 5502.75 | F72: 5568.75 | G72: 1315097 | H72: 5568.75 | I72: 1 | J72: 1 | K72: 5533.5 | L72: 5569.75 | M72: 5502.75 | N72: 5568.75 | O72: 1315097
A73: 58 | B73: 2024-07-01T04:00:00 | C73: 5534.25 | D73: 5541 | E73: 5504.5 | F73: 5533.75 | G73: 1432355 | H73: 5533.75 | I73: 1 | J73: 1 | K73: 5534.25 | L73: 5541 | M73: 5504.5 | N73: 5533.75 | O73: 1432355
A74: 59 | B74: 2024-06-28T04:00:00 | C74: 5548.25 | D74: 5585 | E74: 5510.75 | F74: 5521.5 | G74: 1855777 | H74: 5521.5 | I74: 1 | J74: 1 | K74: 5548.25 | L74: 5585 | M74: 5510.75 | N74: 5521.5 | O74: 1855777
A75: 60 | B75: 2024-06-27T04:00:00 | C75: 5533 | D75: 5555 | E75: 5515.75 | F75: 5546 | G75: 1257121 | H75: 5546 | I75: 1 | J75: 1 | K75: 5533 | L75: 5555 | M75: 5515.75 | N75: 5546 | O75: 1257121
A76: 61 | B76: 2024-06-26T04:00:00 | C76: 5535 | D76: 5551.75 | E76: 5516.25 | F76: 5543.5 | G76: 1197372 | H76: 5543.5 | I76: 1 | J76: 1 | K76: 5535 | L76: 5551.75 | M76: 5516.25 | N76: 5543.5 | O76: 1197372
A77: 62 | B77: 2024-06-25T04:00:00 | C77: 5516 | D77: 5539.75 | E77: 5511 | F77: 5537 | G77: 1141183 | H77: 5537 | I77: 1 | J77: 1 | K77: 5516 | L77: 5539.75 | M77: 5511 | N77: 5537 | O77: 1141183
A78: 63 | B78: 2024-06-24T04:00:00 | C78: 5538.5 | D78: 5558.5 | E78: 5510.25 | F78: 5517 | G78: 1410359 | H78: 5517 | I78: 1 | J78: 1 | K78: 5538.5 | L78: 5558.5 | M78: 5510.25 | N78: 5517 | O78: 1410359
A79: 64 | B79: 2024-06-21T04:00:00 | C79: 5477 | D79: 5483.75 | E79: 5460.5 | F79: 5471.89 | G79: 1392213 | H79: 5471.89 | I79: 1 | J79: 1 | K79: 5477 | L79: 5483.75 | M79: 5460.5 | N79: 5471.89 | O79: 1392213
A80: 65 | B80: 2024-06-20T04:00:00 | C80: 5492.75 | D80: 5518.5 | E80: 5458.5 | F80: 5476.75 | G80: 571332 | H80: 5476.75 | I80: 1 | J80: 1 | K80: 5492.75 | L80: 5518.5 | M80: 5458.5 | N80: 5476.75 | O80: 571332
A81: 66 | B81: 2024-06-18T04:00:00 | C81: 5480.25 | D81: 5494 | E81: 5473.5 | F81: 5491 | G81: 820053 | H81: 5491 | I81: =IF(F81=0,1,H81/F81) -> 1 | J81: =INDEX(OFFSET($T$15,0,0,$S$13+1,1),MATCH(B81,OFFSET($Q$15,0,0,$S$13+1,1),-1)) -> 1 | K81: =ROUND($I81*C81,2) -> 5480.25 | L81: =ROUND($I81*D81,2) -> 5494 | M81: =ROUND($I81*E81,2) -> 5473.5 | N81: =ROUND($I81*F81,2) -> 5491 | O81: =G81*J81 -> 820053
A82: 67 | B82: 2024-06-17T04:00:00 | C82: 5435.5 | D82: 5494 | E82: 5424.75 | F82: 5478.5 | G82: 1589643 | H82: 5478.5 | I82: 1 | J82: 1 | K82: 5435.5 | L82: 5494 | M82: 5424.75 | N82: 5478.5 | O82: 1589643
A83: 68 | B83: 2024-06-14T04:00:00 | C83: 5436 | D83: 5443 | E83: 5397.75 | F83: 5437.5 | G83: 1789793 | H83: 5437.5 | I83: 1 | J83: 1 | K83: 5436 | L83: 5443 | M83: 5397.75 | N83: 5437.5 | O83: 1789793
A84: 69 | B84: 2024-06-13T04:00:00 | C84: 5436.25 | D84: 5452.75 | E84: 5408.5 | F84: 5438.5 | G84: 1682858 | H84: 5438.5 | I84: 1 | J84: 1 | K84: 5436.25 | L84: 5452.75 | M84: 5408.5 | N84: 5438.5 | O84: 1682858
A85: 70 | B85: 2024-06-12T04:00:00 | C85: 5384.5 | D85: 5454.5 | E85: 5380 | F85: 5427.5 | G85: 1899786 | H85: 5427.5 | I85: 1 | J85: 1 | K85: 5384.5 | L85: 5454.5 | M85: 5380 | N85: 5427.5 | O85: 1899786
A86: 71 | B86: 2024-06-11T04:00:00 | C86: 5369.75 | D86: 5386.25 | E86: 5334.5 | F86: 5384 | G86: 1413433 | H86: 5384 | I86: 1 | J86: 1 | K86: 5369.75 | L86: 5386.25 | M86: 5334.5 | N86: 5384 | O86: 1413433
A87: 72 | B87: 2024-06-10T04:00:00 | C87: 5351.5 | D87: 5375.75 | E87: 5338.25 | F87: 5371.25 | G87: 1185881 | H87: 5371.25 | I87: 1 | J87: 1 | K87: 5351.5 | L87: 5375.75 | M87: 5338.25 | N87: 5371.25 | O87: 1185881
A88: 73 | B88: 2024-06-07T04:00:00 | C88: 5362 | D88: 5385.5 | E88: 5329 | F88: 5355.75 | G88: 1591439 | H88: 5355.75 | I88: 1 | J88: 1 | K88: 5362 | L88: 5385.5 | M88: 5329 | N88: 5355.75 | O88: 1591439
A89: 74 | B89: 2024-06-06T04:00:00 | C89: 5367.75 | D89: 5373.25 | E89: 5345.25 | F89: 5364 | G89: 1228240 | H89: 5364 | I89: 1 | J89: 1 | K89: 5367.75 | L89: 5373.25 | M89: 5345.25 | N89: 5364 | O89: 1228240
A90: 75 | B90: 2024-06-05T04:00:00 | C90: 5305 | D90: 5368.25 | E90: 5302.5 | F90: 5366 | G90: 1450596 | H90: 5366 | I90: 1 | J90: 1 | K90: 5305 | L90: 5368.25 | M90: 5302.5 | N90: 5366 | O90: 1450596
A91: 76 | B91: 2024-06-04T04:00:00 | C91: 5300.25 | D91: 5312.25 | E91: 5262 | F91: 5304 | G91: 1679093 | H91: 5304 | I91: 1 | J91: 1 | K91: 5300.25 | L91: 5312.25 | M91: 5262 | N91: 5304 | O91: 1679093
A92: 77 | B92: 2024-06-03T04:00:00 | C92: 5299.5 | D92: 5313.25 | E92: 5246.75 | F92: 5297.25 | G92: 1785532 | H92: 5297.25 | I92: 1 | J92: 1 | K92: 5299.5 | L92: 5313.25 | M92: 5246.75 | N92: 5297.25 | O92: 1785532
A93: 78 | B93: 2024-05-31T04:00:00 | C93: 5250.5 | D93: 5307 | E93: 5205.5 | F93: 5295.5 | G93: 2452894 | H93: 5295.5 | I93: 1 | J93: 1 | K93: 5250.5 | L93: 5307 | M93: 5205.5 | N93: 5295.5 | O93: 2452894
A94: 79 | B94: 2024-05-30T04:00:00 | C94: 5270.5 | D94: 5277 | E94: 5238.25 | F94: 5253 | G94: 1495148 | H94: 5253 | I94: 1 | J94: 1 | K94: 5270.5 | L94: 5277 | M94: 5238.25 | N94: 5253 | O94: 1495148
A95: 80 | B95: 2024-05-29T04:00:00 | C95: 5323.75 | D95: 5324 | E95: 5268.25 | F95: 5284 | G95: 1445855 | H95: 5284 | I95: 1 | J95: 1 | K95: 5323.75 | L95: 5324 | M95: 5268.25 | N95: 5284 | O95: 1445855
A96: 81 | B96: 2024-05-28T04:00:00 | C96: 5321.75 | D96: 5339 | E96: 5296.75 | F96: 5324.75 | G96: 1387872 | H96: 5324.75 | I96: 1 | J96: 1 | K96: 5321.75 | L96: 5339 | M96: 5296.75 | N96: 5324.75 | O96: 1387872
A97: 82 | B97: 2024-05-24T04:00:00 | C97: 5285.75 | D97: 5329.25 | E97: 5285.75 | F97: 5321.5 | G97: 1264244 | H97: 5321.5 | I97: 1 | J97: 1 | K97: 5285.75 | L97: 5329.25 | M97: 5285.75 | N97: 5321.5 | O97: 1264244
A98: 83 | B98: 2024-05-23T04:00:00 | C98: 5339 | D98: 5368.25 | E98: 5273.5 | F98: 5285.25 | G98: 2012153 | H98: 5285.25 | I98: 1 | J98: 1 | K98: 5339 | L98: 5368.25 | M98: 5273.5 | N98: 5285.25 | O98: 2012153
A99: 84 | B99: 2024-05-22T04:00:00 | C99: 5343.5 | D99: 5349.25 | E99: 5306.75 | F99: 5328 | G99: 1257477 | H99: 5328 | I99: 1 | J99: 1 | K99: 5343.5 | L99: 5349.25 | M99: 5306.75 | N99: 5328 | O99: 1257477
A100: 85 | B100: 2024-05-21T04:00:00 | C100: 5331.75 | D100: 5347.5 | E100: 5322.5 | F100: 5345.25 | G100: 1011849 | H100: 5345.25 | I100: 1 | J100: 1 | K100: 5331.75 | L100: 5347.5 | M100: 5322.5 | N100: 5345.25 | O100: 1011849
A101: 86 | B101: 2024-05-20T04:00:00 | C101: 5329.25 | D101: 5348.25 | E101: 5323.75 | F101: 5331.75 | G101: 1031456 | H101: 5331.75 | I101: 1 | J101: 1 | K101: 5329.25 | L101: 5348.25 | M101: 5323.75 | N101: 5331.75 | O101: 1031456
A102: 87 | B102: 2024-05-17T04:00:00 | C102: 5318.25 | D102: 5328.75 | E102: 5305.75 | F102: 5327.25 | G102: 1052765 | H102: 5327.25 | I102: 1 | J102: 1 | K102: 5318.25 | L102: 5328.75 | M102: 5305.75 | N102: 5327.25 | O102: 1052765
A103: 88 | B103: 2024-05-16T04:00:00 | C103: 5331.5 | D103: 5349 | E103: 5315.5 | F103: 5320.25 | G103: 1207843 | H103: 5320.25 | I103: 1 | J103: 1 | K103: 5331.5 | L103: 5349 | M103: 5315.5 | N103: 5320.25 | O103: 1207843
A104: 89 | B104: 2024-05-15T04:00:00 | C104: 5268.5 | D104: 5337.25 | E104: 5266.25 | F104: 5333 | G104: 1391029 | H104: 5333 | I104: 1 | J104: 1 | K104: 5268.5 | L104: 5337.25 | M104: 5266.25 | N104: 5333 | O104: 1391029
A105: 90 | B105: 2024-05-14T04:00:00 | C105: 5241.75 | D105: 5274.25 | E105: 5216.75 | F105: 5269.5 | G105: 1252615 | H105: 5269.5 | I105: 1 | J105: 1 | K105: 5241.75 | L105: 5274.25 | M105: 5216.75 | N105: 5269.5 | O105: 1252615
A106: 91 | B106: 2024-05-13T04:00:00 | C106: 5240.5 | D106: 5264 | E106: 5233.25 | F106: 5245.5 | G106: 922763 | H106: 5245.5 | I106: 1 | J106: 1 | K106: 5240.5 | L106: 5264 | M106: 5233.25 | N106: 5245.5 | O106: 922763
A107: 92 | B107: 2024-05-10T04:00:00 | C107: 5240.75 | D107: 5264 | E107: 5232.75 | F107: 5246.25 | G107: 1112925 | H107: 5246.25 | I107: 1 | J107: 1 | K107: 5240.75 | L107: 5264 | M107: 5232.75 | N107: 5246.25 | O107: 1112925
A108: 93 | B108: 2024-05-09T04:00:00 | C108: 5209.25 | D108: 5244.75 | E108: 5195 | F108: 5239 | G108: 1094931 | H108: 5239 | I108: 1 | J108: 1 | K108: 5209.25 | L108: 5244.75 | M108: 5195 | N108: 5239 | O108: 1094931
A109: 94 | B109: 2024-05-08T04:00:00 | C109: 5211.75 | D109: 5218 | E109: 5188.75 | F109: 5212.75 | G109: 1013418 | H109: 5212.75 | I109: 1 | J109: 1 | K109: 5211.75 | L109: 5218 | M109: 5188.75 | N109: 5212.75 | O109: 1013418
A110: 95 | B110: 2024-05-07T04:00:00 | C110: 5204.75 | D110: 5226.75 | E110: 5202.25 | F110: 5213.75 | G110: 1106457 | H110: 5213.75 | I110: 1 | J110: 1 | K110: 5204.75 | L110: 5226.75 | M110: 5202.25 | N110: 5213.75 | O110: 1106457
A111: 96 | B111: 2024-05-06T04:00:00 | C111: 5166.75 | D111: 5207.75 | E111: 5155.75 | F111: 5206.5 | G111: 1019307 | H111: 5206.5 | I111: 1 | J111: 1 | K111: 5166.75 | L111: 5207.75 | M111: 5155.75 | N111: 5206.5 | O111: 1019307
A112: 97 | B112: 2024-05-03T04:00:00 | C112: 5110.25 | D112: 5166.75 | E112: 5099.25 | F112: 5154.75 | G112: 1604172 | H112: 5154.75 | I112: 1 | J112: 1 | K112: 5110.25 | L112: 5166.75 | M112: 5099.25 | N112: 5154.75 | O112: 1604172
A113: 98 | B113: 2024-05-02T04:00:00 | C113: 5057 | D113: 5113 | E113: 5036.25 | F113: 5091.5 | G113: 1573131 | H113: 5091.5 | I113: 1 | J113: 1 | K113: 5057 | L113: 5113 | M113: 5036.25 | N113: 5091.5 | O113: 1573131
A114: 99 | B114: 2024-05-01T04:00:00 | C114: 5050 | D114: 5126.75 | E114: 5037.75 | F114: 5046.5 | G114: 1955160 | H114: 5046.5 | I114: 1 | J114: 1 | K114: 5050 | L114: 5126.75 | M114: 5037.75 | N114: 5046.5 | O114: 1955160
A115: 100 | B115: 2024-04-30T04:00:00 | C115: 5148.5 | D115: 5148.5 | E115: 5051 | F115: 5067 | G115: 1675335 | H115: 5067 | I115: 1 | J115: 1 | K115: 5148.5 | L115: 5148.5 | M115: 5051 | N115: 5067 | O115: 1675335
A116: 101 | B116: 2024-04-29T04:00:00 | C116: 5140.25 | D116: 5154.25 | E116: 5118.75 | F116: 5147 | G116: 1163440 | H116: 5147 | I116: 1 | J116: 1 | K116: 5140.25 | L116: 5154.25 | M116: 5118.75 | N116: 5147 | O116: 1163440
A117: 102 | B117: 2024-04-26T04:00:00 | C117: 5132 | D117: 5146.5 | E117: 5104.5 | F117: 5131.5 | G117: 1455855 | H117: 5131.5 | I117: 1 | J117: 1 | K117: 5132 | L117: 5146.5 | M117: 5104.5 | N117: 5131.5 | O117: 1455855
A118: 103 | B118: 2024-04-25T04:00:00 | C118: 5070 | D118: 5132.75 | E118: 5022.25 | F118: 5082.25 | G118: 1887635 | H118: 5082.25 | I118: 1 | J118: 1 | K118: 5070 | L118: 5132.75 | M118: 5022.25 | N118: 5082.25 | O118: 1887635
A119: 104 | B119: 2024-04-24T04:00:00 | C119: 5115.25 | D119: 5128.75 | E119: 5072.25 | F119: 5107.5 | G119: 1512469 | H119: 5107.5 | I119: 1 | J119: 1 | K119: 5115.25 | L119: 5128.75 | M119: 5072.25 | N119: 5107.5 | O119: 1512469
A120: 105 | B120: 2024-04-23T04:00:00 | C120: 5051 | D120: 5113.5 | E120: 5037.75 | F120: 5106.5 | G120: 1357493 | H120: 5106.5 | I120: 1 | J120: 1 | K120: 5051 | L120: 5113.5 | M120: 5037.75 | N120: 5106.5 | O120: 1357493
A121: 106 | B121: 2024-04-22T04:00:00 | C121: 5014.25 | D121: 5076.75 | E121: 5006 | F121: 5047.5 | G121: 1584393 | H121: 5047.5 | I121: 1 | J121: 1 | K121: 5014.25 | L121: 5076.75 | M121: 5006 | N121: 5047.5 | O121: 1584393
A122: 107 | B122: 2024-04-19T04:00:00 | C122: 5047.25 | D122: 5058 | E122: 4963.5 | F122: 5003.75 | G122: 2357143 | H122: 5003.75 | I122: 1 | J122: 1 | K122: 5047.25 | L122: 5058 | M122: 4963.5 | N122: 5003.75 | O122: 2357143
A123: 108 | B123: 2024-04-18T04:00:00 | C123: 5063 | D123: 5095.25 | E123: 5038.5 | F123: 5049 | G123: 1701401 | H123: 5049 | I123: 1 | J123: 1 | K123: 5063 | L123: 5095.25 | M123: 5038.5 | N123: 5049 | O123: 1701401
A124: 109 | B124: 2024-04-17T04:00:00 | C124: 5096.25 | D124: 5120.5 | E124: 5047 | F124: 5062.25 | G124: 1928645 | H124: 5062.25 | I124: 1 | J124: 1 | K124: 5096.25 | L124: 5120.5 | M124: 5047 | N124: 5062.25 | O124: 1928645
A125: 110 | B125: 2024-04-16T04:00:00 | C125: 5101.25 | D125: 5123.25 | E125: 5078.75 | F125: 5092.5 | G125: 2098015 | H125: 5092.5 | I125: 1 | J125: 1 | K125: 5101.25 | L125: 5123.25 | M125: 5078.75 | N125: 5092.5 | O125: 2098015
A126: 111 | B126: 2024-04-15T04:00:00 | C126: 5166.5 | D126: 5213.25 | E126: 5094 | F126: 5104 | G126: 2226105 | H126: 5104 | I126: 1 | J126: 1 | K126: 5166.5 | L126: 5213.25 | M126: 5094 | N126: 5104 | O126: 2226105
A127: 112 | B127: 2024-04-12T04:00:00 | C127: 5244 | D127: 5248.75 | E127: 5150 | F127: 5167.5 | G127: 2005106 | H127: 5167.5 | I127: 1 | J127: 1 | K127: 5244 | L127: 5248.75 | M127: 5150 | N127: 5167.5 | O127: 2005106
A128: 113 | B128: 2024-04-11T04:00:00 | C128: 5202 | D128: 5257.5 | E128: 5173.5 | F128: 5243.25 | G128: 1762470 | H128: 5243.25 | I128: 1 | J128: 1 | K128: 5202 | L128: 5257.5 | M128: 5173.5 | N128: 5243.25 | O128: 1762470
A129: 114 | B129: 2024-04-10T04:00:00 | C129: 5264.25 | D129: 5285 | E129: 5176.5 | F129: 5207.75 | G129: 2369864 | H129: 5207.75 | I129: 1 | J129: 1 | K129: 5264.25 | L129: 5285 | M129: 5176.5 | N129: 5207.75 | O129: 2369864
A130: 115 | B130: 2024-04-09T04:00:00 | C130: 5258 | D130: 5274.25 | E130: 5208.25 | F130: 5260.25 | G130: 1651973 | H130: 5260.25 | I130: 1 | J130: 1 | K130: 5258 | L130: 5274.25 | M130: 5208.25 | N130: 5260.25 | O130: 1651973
A131: 116 | B131: 2024-04-08T04:00:00 | C131: 5263.25 | D131: 5269.25 | E131: 5236.5 | F131: 5253.25 | G131: 1167648 | H131: 5253.25 | I131: 1 | J131: 1 | K131: 5263.25 | L131: 5269.25 | M131: 5236.5 | N131: 5253.25 | O131: 1167648
A132: 117 | B132: 2024-04-05T04:00:00 | C132: 5199.75 | D132: 5272.5 | E132: 5191.5 | F132: 5253 | G132: 1908306 | H132: 5253 | I132: 1 | J132: 1 | K132: 5199.75 | L132: 5272.5 | M132: 5191.5 | N132: 5253 | O132: 1908306
A133: 118 | B133: 2024-04-04T04:00:00 | C133: 5270.75 | D133: 5308.5 | E133: 5192.5 | F133: 5197.25 | G133: 1941274 | H133: 5197.25 | I133: 1 | J133: 1 | K133: 5270.75 | L133: 5308.5 | M133: 5192.5 | N133: 5197.25 | O133: 1941274
A134: 119 | B134: 2024-04-03T04:00:00 | C134: 5262.5 | D134: 5280.75 | E134: 5244.5 | F134: 5266.5 | G134: 1402981 | H134: 5266.5 | I134: 1 | J134: 1 | K134: 5262.5 | L134: 5280.75 | M134: 5244.5 | N134: 5266.5 | O134: 1402981
A135: 120 | B135: 2024-04-02T04:00:00 | C135: 5294.5 | D135: 5296 | E135: 5235 | F135: 5260.5 | G135: 1426691 | H135: 5260.5 | I135: 1 | J135: 1 | K135: 5294.5 | L135: 5296 | M135: 5235 | N135: 5260.5 | O135: 1426691
A136: 121 | B136: 2024-04-01T04:00:00 | C136: 5314.25 | D136: 5333.5 | E136: 5282.25 | F136: 5295.25 | G136: 1125234 | H136: 5295.25 | I136: 1 | J136: 1 | K136: 5314.25 | L136: 5333.5 | M136: 5282.25 | N136: 5295.25 | O136: 1125234
A137: 122 | B137: 2024-03-28T04:00:00 | C137: 5308 | D137: 5321 | E137: 5301 | F137: 5308.5 | G137: 1317836 | H137: 5308.5 | I137: 1 | J137: 1 | K137: 5308 | L137: 5321 | M137: 5301 | N137: 5308.5 | O137: 1317836
A138: 123 | B138: 2024-03-27T04:00:00 | C138: 5273.25 | D138: 5313.75 | E138: 5270.75 | F138: 5308.25 | G138: 1487671 | H138: 5308.25 | I138: 1 | J138: 1 | K138: 5273.25 | L138: 5313.75 | M138: 5270.75 | N138: 5308.25 | O138: 1487671
A139: 124 | B139: 2024-03-26T04:00:00 | C139: 5280.75 | D139: 5300.5 | E139: 5263 | F139: 5265.25 | G139: 1092706 | H139: 5265.25 | I139: 1 | J139: 1 | K139: 5280.75 | L139: 5300.5 | M139: 5263 | N139: 5265.25 | O139: 1092706
A140: 125 | B140: 2024-03-25T04:00:00 | C140: 5290.5 | D140: 5295 | E140: 5272.5 | F140: 5278.25 | G140: 920608 | H140: 5278.25 | I140: 1 | J140: 1 | K140: 5290.5 | L140: 5295 | M140: 5272.5 | N140: 5278.25 | O140: 920608
A141: 126 | B141: 2024-03-22T04:00:00 | C141: 5306.75 | D141: 5311.75 | E141: 5287.75 | F141: 5293.25 | G141: 1162606 | H141: 5293.25 | I141: 1 | J141: 1 | K141: 5306.75 | L141: 5311.75 | M141: 5287.75 | N141: 5293.25 | O141: 1162606
A142: 127 | B142: 2024-03-21T04:00:00 | C142: 5294.75 | D142: 5322.75 | E142: 5293.5 | F142: 5302.5 | G142: 1326994 | H142: 5302.5 | I142: 1 | J142: 1 | K142: 5294.75 | L142: 5322.75 | M142: 5293.5 | N142: 5302.5 | O142: 1326994
A143: 128 | B143: 2024-03-20T04:00:00 | C143: 5239.75 | D143: 5297.75 | E143: 5233 | F143: 5286.75 | G143: 1404974 | H143: 5286.75 | I143: 1 | J143: 1 | K143: 5239.75 | L143: 5297.75 | M143: 5233 | N143: 5286.75 | O143: 1404974
A144: 129 | B144: 2024-03-19T04:00:00 | C144: 5215.25 | D144: 5244.75 | E144: 5186 | F144: 5241.75 | G144: 1440289 | H144: 5241.75 | I144: 1 | J144: 1 | K144: 5215.25 | L144: 5244.75 | M144: 5186 | N144: 5241.75 | O144: 1440289
A145: 130 | B145: 2024-03-18T04:00:00 | C145: 5185.75 | D145: 5240.25 | E145: 5181.75 | F145: 5214.75 | G145: 1377276 | H145: 5214.75 | I145: =IF(F145=0,1,H145/F145) -> 1 | J145: =INDEX(OFFSET($T$15,0,0,$S$13+1,1),MATCH(B145,OFFSET($Q$15,0,0,$S$13+1,1),-1)) -> 1 | K145: =ROUND($I145*C145,2) -> 5185.75 | L145: =ROUND($I145*D145,2) -> 5240.25 | M145: =ROUND($I145*E145,2) -> 5181.75 | N145: =ROUND($I145*F145,2) -> 5214.75 | O145: =G145*J145 -> 1377276
A146: 131 | B146: 2024-03-15T04:00:00 | C146: 5152.25 | D146: 5167 | E146: 5101.67 | F146: 5101.67 | G146: 1927775 | H146: 5101.67 | I146: 1 | J146: 1 | K146: 5152.25 | L146: 5167 | M146: 5101.67 | N146: 5101.67 | O146: 1927775
A147: 132 | B147: 2024-03-14T04:00:00 | C147: 5171.5 | D147: 5189.5 | E147: 5124.25 | F147: 5153.75 | G147: 476074 | H147: 5153.75 | I147: 1 | J147: 1 | K147: 5171.5 | L147: 5189.5 | M147: 5124.25 | N147: 5153.75 | O147: 476074
A148: 133 | B148: 2024-03-13T04:00:00 | C148: 5176 | D148: 5183.75 | E148: 5153 | F148: 5168 | G148: 540170 | H148: 5168 | I148: 1 | J148: 1 | K148: 5176 | L148: 5183.75 | M148: 5153 | N148: 5168 | O148: 540170
A149: 134 | B149: 2024-03-12T04:00:00 | C149: 5129 | D149: 5183 | E149: 5112.75 | F149: 5177.25 | G149: 1211911 | H149: 5177.25 | I149: 1 | J149: 1 | K149: 5129 | L149: 5183 | M149: 5112.75 | N149: 5177.25 | O149: 1211911
A150: 135 | B150: 2024-03-11T04:00:00 | C150: 5132.5 | D150: 5133.25 | E150: 5094.75 | F150: 5123 | G150: 1840000 | H150: 5123 | I150: 1 | J150: 1 | K150: 5132.5 | L150: 5133.25 | M150: 5094.75 | N150: 5123 | O150: 1840000
A151: 136 | B151: 2024-03-08T05:00:00 | C151: 5159.25 | D151: 5193 | E151: 5121.75 | F151: 5129 | G151: 2786680 | H151: 5129 | I151: 1 | J151: 1 | K151: 5159.25 | L151: 5193 | M151: 5121.75 | N151: 5129 | O151: 2786680
A152: 137 | B152: 2024-03-07T05:00:00 | C152: 5114.25 | D152: 5170.5 | E152: 5086.5 | F152: 5161.75 | G152: 1791666 | H152: 5161.75 | I152: 1 | J152: 1 | K152: 5114.25 | L152: 5170.5 | M152: 5086.5 | N152: 5161.75 | O152: 1791666
A153: 138 | B153: 2024-03-06T05:00:00 | C153: 5091 | D153: 5134.5 | E153: 5083.75 | F153: 5111.75 | G153: 1996223 | H153: 5111.75 | I153: 1 | J153: 1 | K153: 5091 | L153: 5134.5 | M153: 5083.75 | N153: 5111.75 | O153: 1996223
A154: 139 | B154: 2024-03-05T05:00:00 | C154: 5133.75 | D154: 5135.5 | E154: 5063 | F154: 5085.75 | G154: 1885769 | H154: 5085.75 | I154: 1 | J154: 1 | K154: 5133.75 | L154: 5135.5 | M154: 5063 | N154: 5085.75 | O154: 1885769
A155: 140 | B155: 2024-03-04T05:00:00 | C155: 5142 | D155: 5157.75 | E155: 5132 | F155: 5138.25 | G155: 1208040 | H155: 5138.25 | I155: 1 | J155: 1 | K155: 5142 | L155: 5157.75 | M155: 5132 | N155: 5138.25 | O155: 1208040
A156: 141 | B156: 2024-03-01T05:00:00 | C156: 5101.5 | D156: 5149.25 | E156: 5089.25 | F156: 5146 | G156: 1597331 | H156: 5146 | I156: 1 | J156: 1 | K156: 5101.5 | L156: 5149.25 | M156: 5089.25 | N156: 5146 | O156: 1597331
A157: 142 | B157: 2024-02-29T05:00:00 | C157: 5072 | D157: 5114.5 | E157: 5060 | F157: 5103.75 | G157: 1790702 | H157: 5103.75 | I157: 1 | J157: 1 | K157: 5072 | L157: 5114.5 | M157: 5060 | N157: 5103.75 | O157: 1790702
A158: 143 | B158: 2024-02-28T05:00:00 | C158: 5090.75 | D158: 5091.25 | E158: 5063.25 | F158: 5081 | G158: 1201011 | H158: 5081 | I158: 1 | J158: 1 | K158: 5090.75 | L158: 5091.25 | M158: 5063.25 | N158: 5081 | O158: 1201011
A159: 144 | B159: 2024-02-27T05:00:00 | C159: 5077.5 | D159: 5093 | E159: 5067 | F159: 5090 | G159: 1026819 | H159: 5090 | I159: 1 | J159: 1 | K159: 5077.5 | L159: 5093 | M159: 5067 | N159: 5090 | O159: 1026819
A160: 145 | B160: 2024-02-26T05:00:00 | C160: 5095 | D160: 5108 | E160: 5076.25 | F160: 5080.25 | G160: 1094682 | H160: 5080.25 | I160: 1 | J160: 1 | K160: 5095 | L160: 5108 | M160: 5076.25 | N160: 5080.25 | O160: 1094682
A161: 146 | B161: 2024-02-23T05:00:00 | C161: 5094.25 | D161: 5123.5 | E161: 5092 | F161: 5101.5 | G161: 1340050 | H161: 5101.5 | I161: 1 | J161: 1 | K161: 5094.25 | L161: 5123.5 | M161: 5092 | N161: 5101.5 | O161: 1340050
A162: 147 | B162: 2024-02-22T05:00:00 | C162: 5016 | D162: 5107.75 | E162: 5015.25 | F162: 5097.75 | G162: 1738869 | H162: 5097.75 | I162: 1 | J162: 1 | K162: 5016 | L162: 5107.75 | M162: 5015.25 | N162: 5097.75 | O162: 1738869
A163: 148 | B163: 2024-02-21T05:00:00 | C163: 4990 | D163: 5020.5 | E163: 4959 | F163: 4996.25 | G163: 1485687 | H163: 4996.25 | I163: 1 | J163: 1 | K163: 4990 | L163: 5020.5 | M163: 4959 | N163: 4996.25 | O163: 1485687
A164: 149 | B164: 2024-02-20T05:00:00 | C164: 5016.5 | D164: 5029.5 | E164: 4968.25 | F164: 4991.5 | G164: 1609827 | H164: 4991.5 | I164: 1 | J164: 1 | K164: 5016.5 | L164: 5029.5 | M164: 4968.25 | N164: 4991.5 | O164: 1609827
A165: 150 | B165: 2024-02-16T05:00:00 | C165: 5049.5 | D165: 5059.25 | E165: 5012.75 | F165: 5019.75 | G165: 1527729 | H165: 5019.75 | I165: 1 | J165: 1 | K165: 5049.5 | L165: 5059.25 | M165: 5012.75 | N165: 5019.75 | O165: 1527729
A166: 151 | B166: 2024-02-15T05:00:00 | C166: 5017.5 | D166: 5051.75 | E166: 5011 | F166: 5046.5 | G166: 1361757 | H166: 5046.5 | I166: 1 | J166: 1 | K166: 5017.5 | L166: 5051.75 | M166: 5011 | N166: 5046.5 | O166: 1361757
A167: 152 | B167: 2024-02-14T05:00:00 | C167: 4974.25 | D167: 5022.5 | E167: 4968.75 | F167: 5018 | G167: 1632071 | H167: 5018 | I167: 1 | J167: 1 | K167: 4974.25 | L167: 5022.5 | M167: 4968.75 | N167: 5018 | O167: 1632071
A168: 153 | B168: 2024-02-13T05:00:00 | C168: 5034 | D168: 5040 | E168: 4936.5 | F168: 4971.25 | G168: 2112726 | H168: 4971.25 | I168: 1 | J168: 1 | K168: 5034 | L168: 5040 | M168: 4936.5 | N168: 4971.25 | O168: 2112726
A169: 154 | B169: 2024-02-12T05:00:00 | C169: 5042.5 | D169: 5066.5 | E169: 5031.5 | F169: 5041.25 | G169: 1141487 | H169: 5041.25 | I169: 1 | J169: 1 | K169: 5042.5 | L169: 5066.5 | M169: 5031.5 | N169: 5041.25 | O169: 1141487
A170: 155 | B170: 2024-02-09T05:00:00 | C170: 5014.5 | D170: 5048.5 | E170: 5013 | F170: 5044 | G170: 1212336 | H170: 5044 | I170: 1 | J170: 1 | K170: 5014.5 | L170: 5048.5 | M170: 5013 | N170: 5044 | O170: 1212336
A171: 156 | B171: 2024-02-08T05:00:00 | C171: 5015.75 | D171: 5020 | E171: 5003.75 | F171: 5017.75 | G171: 997431 | H171: 5017.75 | I171: 1 | J171: 1 | K171: 5015.75 | L171: 5020 | M171: 5003.75 | N171: 5017.75 | O171: 997431
A172: 157 | B172: 2024-02-07T05:00:00 | C172: 4971.5 | D172: 5020 | E172: 4970 | F172: 5015.25 | G172: 1336172 | H172: 5015.25 | I172: 1 | J172: 1 | K172: 4971.5 | L172: 5020 | M172: 4970 | N172: 5015.25 | O172: 1336172
A173: 158 | B173: 2024-02-06T05:00:00 | C173: 4959.5 | D173: 4978.25 | E173: 4954.5 | F173: 4974.75 | G173: 1267419 | H173: 4974.75 | I173: 1 | J173: 1 | K173: 4959.5 | L173: 4978.25 | M173: 4954.5 | N173: 4974.75 | O173: 1267419
A174: 159 | B174: 2024-02-05T05:00:00 | C174: 4976 | D174: 4980.75 | E174: 4937.75 | F174: 4962 | G174: 1504676 | H174: 4962 | I174: 1 | J174: 1 | K174: 4976 | L174: 4980.75 | M174: 4937.75 | N174: 4962 | O174: 1504676
A175: 160 | B175: 2024-02-02T05:00:00 | C175: 4952.75 | D175: 4997.75 | E175: 4925.75 | F175: 4980.25 | G175: 1957796 | H175: 4980.25 | I175: 1 | J175: 1 | K175: 4952.75 | L175: 4997.75 | M175: 4925.75 | N175: 4980.25 | O175: 1957796
A176: 161 | B176: 2024-02-01T05:00:00 | C176: 4874.5 | D176: 4963.75 | E176: 4872.5 | F176: 4928.5 | G176: 1835510 | H176: 4928.5 | I176: 1 | J176: 1 | K176: 4874.5 | L176: 4963.75 | M176: 4872.5 | N176: 4928.5 | O176: 1835510
A177: 162 | B177: 2024-01-31T05:00:00 | C177: 4930.25 | D177: 4938 | E177: 4866 | F177: 4870.5 | G177: 2285993 | H177: 4870.5 | I177: 1 | J177: 1 | K177: 4930.25 | L177: 4938 | M177: 4866 | N177: 4870.5 | O177: 2285993
A178: 163 | B178: 2024-01-30T05:00:00 | C178: 4950.25 | D178: 4957.25 | E178: 4933 | F178: 4951 | G178: 1157425 | H178: 4951 | I178: 1 | J178: 1 | K178: 4950.25 | L178: 4957.25 | M178: 4933 | N178: 4951 | O178: 1157425
A179: 164 | B179: 2024-01-29T05:00:00 | C179: 4908.75 | D179: 4956 | E179: 4901.75 | F179: 4954.5 | G179: 1197989 | H179: 4954.5 | I179: 1 | J179: 1 | K179: 4908.75 | L179: 4956 | M179: 4901.75 | N179: 4954.5 | O179: 1197989
A180: 165 | B180: 2024-01-26T05:00:00 | C180: 4919.25 | D180: 4934.25 | E180: 4898.5 | F180: 4916.25 | G180: 1363612 | H180: 4916.25 | I180: 1 | J180: 1 | K180: 4919.25 | L180: 4934.25 | M180: 4898.5 | N180: 4916.25 | O180: 1363612
A181: 166 | B181: 2024-01-25T05:00:00 | C181: 4899.5 | D181: 4926.5 | E181: 4893.25 | F181: 4923.25 | G181: 1532026 | H181: 4923.25 | I181: 1 | J181: 1 | K181: 4899.5 | L181: 4926.5 | M181: 4893.25 | N181: 4923.25 | O181: 1532026
A182: 167 | B182: 2024-01-24T05:00:00 | C182: 4900.25 | D182: 4933.25 | E182: 4889 | F182: 4898 | G182: 1586824 | H182: 4898 | I182: 1 | J182: 1 | K182: 4900.25 | L182: 4933.25 | M182: 4889 | N182: 4898 | O182: 1586824
A183: 168 | B183: 2024-01-23T05:00:00 | C183: 4881.75 | D183: 4902 | E183: 4874.25 | F183: 4895 | G183: 1130749 | H183: 4895 | I183: 1 | J183: 1 | K183: 4881.75 | L183: 4902 | M183: 4874.25 | N183: 4895 | O183: 1130749
A184: 169 | B184: 2024-01-22T05:00:00 | C184: 4872.5 | D184: 4898.25 | E184: 4872.5 | F184: 4881 | G184: 1356050 | H184: 4881 | I184: 1 | J184: 1 | K184: 4872.5 | L184: 4898.25 | M184: 4872.5 | N184: 4881 | O184: 1356050
A185: 170 | B185: 2024-01-19T05:00:00 | C185: 4811.25 | D185: 4874.25 | E185: 4808.5 | F185: 4869.5 | G185: 1876757 | H185: 4869.5 | I185: 1 | J185: 1 | K185: 4811.25 | L185: 4874.25 | M185: 4808.5 | N185: 4869.5 | O185: 1876757
A186: 171 | B186: 2024-01-18T05:00:00 | C186: 4768 | D186: 4817 | E186: 4763.5 | F186: 4811.25 | G186: 1746936 | H186: 4811.25 | I186: 1 | J186: 1 | K186: 4768 | L186: 4817 | M186: 4763.5 | N186: 4811.25 | O186: 1746936
A187: 172 | B187: 2024-01-17T05:00:00 | C187: 4799.75 | D187: 4800.75 | E187: 4746.25 | F187: 4771.25 | G187: 1663328 | H187: 4771.25 | I187: 1 | J187: 1 | K187: 4799.75 | L187: 4800.75 | M187: 4746.25 | N187: 4771.25 | O187: 1663328
A188: 173 | B188: 2024-01-16T05:00:00 | C188: 4812 | D188: 4823 | E188: 4779.5 | F188: 4798.5 | G188: 1905532 | H188: 4798.5 | I188: 1 | J188: 1 | K188: 4812 | L188: 4823 | M188: 4779.5 | N188: 4798.5 | O188: 1905532
A189: 174 | B189: 2024-01-12T05:00:00 | C189: 4811.25 | D189: 4836.5 | E189: 4791.5 | F189: 4816.5 | G189: 1519899 | H189: 4816.5 | I189: 1 | J189: 1 | K189: 4811.25 | L189: 4836.5 | M189: 4791.5 | N189: 4816.5 | O189: 1519899
A190: 175 | B190: 2024-01-11T05:00:00 | C190: 4820.5 | D190: 4838 | E190: 4772.75 | F190: 4815.5 | G190: 1795564 | H190: 4815.5 | I190: 1 | J190: 1 | K190: 4820.5 | L190: 4838 | M190: 4772.75 | N190: 4815.5 | O190: 1795564
A191: 176 | B191: 2024-01-10T05:00:00 | C191: 4790.75 | D191: 4828.5 | E191: 4786 | F191: 4820.25 | G191: 1377780 | H191: 4820.25 | I191: 1 | J191: 1 | K191: 4790.75 | L191: 4828.5 | M191: 4786 | N191: 4820.25 | O191: 1377780
A192: 177 | B192: 2024-01-09T05:00:00 | C192: 4797.75 | D192: 4804 | E192: 4767.5 | F192: 4792.75 | G192: 1369103 | H192: 4792.75 | I192: 1 | J192: 1 | K192: 4797.75 | L192: 4804 | M192: 4767.5 | N192: 4792.75 | O192: 1369103
A193: 178 | B193: 2024-01-08T05:00:00 | C193: 4735.75 | D193: 4803.25 | E193: 4715.25 | F193: 4801.25 | G193: 1417728 | H193: 4801.25 | I193: 1 | J193: 1 | K193: 4735.75 | L193: 4803.25 | M193: 4715.25 | N193: 4801.25 | O193: 1417728
A194: 179 | B194: 2024-01-05T05:00:00 | C194: 4732.75 | D194: 4760.25 | E194: 4702 | F194: 4734.75 | G194: 1767245 | H194: 4734.75 | I194: 1 | J194: 1 | K194: 4732.75 | L194: 4760.25 | M194: 4702 | N194: 4734.75 | O194: 1767245
A195: 180 | B195: 2024-01-04T05:00:00 | C195: 4750 | D195: 4766.5 | E195: 4727 | F195: 4729.5 | G195: 1395366 | H195: 4729.5 | I195: 1 | J195: 1 | K195: 4750 | L195: 4766.5 | M195: 4727 | N195: 4729.5 | O195: 1395366
A196: 181 | B196: 2024-01-03T05:00:00 | C196: 4790.75 | D196: 4790.75 | E196: 4741 | F196: 4746.5 | G196: 1707174 | H196: 4746.5 | I196: 1 | J196: 1 | K196: 4790.75 | L196: 4790.75 | M196: 4741 | N196: 4746.5 | O196: 1707174
A197: 182 | B197: 2024-01-02T05:00:00 | C197: 4818 | D197: 4828 | E197: 4765.5 | F197: 4787.25 | G197: 1678142 | H197: 4787.25 | I197: 1 | J197: 1 | K197: 4818 | L197: 4828 | M197: 4765.5 | N197: 4787.25 | O197: 1678142
A198: 183 | B198: 2023-12-29T05:00:00 | C198: 4834.75 | D198: 4841 | E198: 4796.75 | F198: 4820 | G198: 1281733 | H198: 4820 | I198: 1 | J198: 1 | K198: 4834.75 | L198: 4841 | M198: 4796.75 | N198: 4820 | O198: 1281733
A199: 184 | B199: 2023-12-28T05:00:00 | C199: 4834.5 | D199: 4841.5 | E199: 4828 | F199: 4832.25 | G199: 927035 | H199: 4832.25 | I199: 1 | J199: 1 | K199: 4834.5 | L199: 4841.5 | M199: 4828 | N199: 4832.25 | O199: 927035
A200: 185 | B200: 2023-12-27T05:00:00 | C200: 4827.75 | D200: 4836.5 | E200: 4816.5 | F200: 4833.5 | G200: 1042284 | H200: 4833.5 | I200: 1 | J200: 1 | K200: 4827.75 | L200: 4836.5 | M200: 4816.5 | N200: 4833.5 | O200: 1042284
... 836 more rows

Sheet CalculationsAndCharts
A1: UltimateStrengthIndex.xlsm
A2: =InputPriceData!A1 & CHAR(13) & InputPriceData!G3 & UPPER(TEXT(InputPriceData!B16,"yyyy mmm dd")) & ", " & TEXT(InputPriceData!H3,"hh:mm am/pm ") & InputPriceData!I3 -> E-Mini S&P 500 Dec 24 (ES=F) -CME (Daily) As Of: 2024 SEP 20, 04:59 PM EDT
H3: ="Subtracting HiPass(" & $A$18 & ") from HiPass(" & $A$17 & ") to arive at Trend(" & $A$17 & ", " & $A$18 & ")" -> Subtracting HiPass(28) from HiPass(112) to arive at Trend(112, 28)
A4: User Charting Controls | E4: Click to Shift Chart One Bar:
A5: Data Control | C5: FALSE
A6: =InputPriceData!$B$10 -> 1021 | B6: Available Input Data Rows | E6: Earliest: | F6: =OFFSET(InputPriceData!B15,CalculationsAndCharts!A6,0,1,1) -> 2020-09-01T04:00:00
A7: =MAX(A33:A56896) -> 1250 | B7: Available Calculation Rows | E7: Latest: | F7: =OFFSET(InputPriceData!B15,1,0,1,1) -> 2024-09-20T20:59:58
A8: =MIN(AvailableInputRows-DataPanRows,A7) -> 972 | B8: Logically Available for Calc / Plot | E8: $ Change: | F8: =G33-G34 -> 25
A10: Historical Price Windowing Specifications | F10: Click to Shift
A11: 49 | B11: Input Data Offset (Pan) | F11: Points to Plot
A12: 234 | B12: Data Points to Plot (Zoom)
B13: First: | C13: =OFFSET(B32,A12,0,1,1) -> 2023-08-09T04:00:00
B14: ="Last: " & IF(OFFSET(InputPriceData!P15,1+A11,0,1,1)="","",TEXT(OFFSET(InputPriceData!P15,1+A11,0,1,1),"H:MM AM/PM")) -> Last: | C14: =B33 -> 2024-07-12T04:00:00
A15: User Controls
A16: Ultimate Smoothers | C16: Lag
A17: 112 | B17: Length1 | C17: 2
A18: 28 | B18: Length2 | C18: 2
A25: Help! I would like to plot data
A26: From | B26: 2023-08-09T04:00:00 | C26: =OFFSET(InputPriceData!$A$15,MATCH(B26,OFFSET(InputPriceData!B15,1,0,InputPriceData!$B$10,1),0),0,1,1)-C27 -> 234 | E26: 47
A27: To | B27: 2024-07-12T04:00:00 | C27: =OFFSET(InputPriceData!$A$15,MATCH(B27,OFFSET(InputPriceData!$B$15,1,0,InputPriceData!$B$10,1),0),0,1,1)-1 -> 49 | E27: =$A$12-$E$26+1 -> 188
H28: Value @ Cursor => | I28: =OFFSET(A32,$E$27,0,1,1)&"(RR)" -> 188(RR) | J28: =OFFSET($B$32,E27,0,1,1) -> 2023-10-13T04:00:00 | K28: =TEXT(OFFSET(D32,$E$27,0,1,1),"#,##0.00")&"(o)" -> 4,380.75(o) | L28: =TEXT(OFFSET(E32,$E$27,0,1,1),"#,##0.00")&"(h)" -> 4,407.75(h) | M28: =TEXT(OFFSET(F32,$E$27,0,1,1),"#,##0.00")&"(l)" -> 4,340.75(l) | N28: =TEXT(OFFSET(G32,$E$27,0,1,1),"#,##0.00")&"(c)" -> 4,357.25(c) | O28: =TEXT(OFFSET(C32,$E$27,0,1,1),"#,##0.00,,""M""")&"(v)" -> 2.16M(v)
E29: Cursor ==> | BE29: Work Area For Chart Cursors
B30: =LogicallyAvailableRows -> 972 | C30: <== Calculation Rel Row Limits ==> | H30: =B30-1 -> 971 | J30: =H30-3 -> 968 | N30: =J30-2 -> 966 | Q30: =N30-C17 -> 964
A31: Rel Row | H31: Deltas | L31: ="Ultimate Smoother for Length 1 = "&$A$17 -> Ultimate Smoother for Length 1 = 112 | R31: ="Ultimate Smoother for Length 2 = "&$A$18 -> Ultimate Smoother for Length 2 = 28 | BC31: Used To Color Vol Bars
B32: Date | C32: Volume | D32: Open | E32: High | F32: Low | G32: Close | H32: UP | I32: Down | J32: Avg(Up,4) | K32: Avg(Down,4) | L32: ="Coeffients for USmooth "&$A$17 -> Coeffients for USmooth 112 | N32: ="US_UP("&$A$17&")" -> US_UP(112) | O32: ="US_DN("&$A$17&")" -> US_DN(112) | P32: ="USI("&$A$17&")" -> USI(112) | Q32: ="Lag("&$C$17&")" -> Lag(2) | R32: ="Coeffients for USmooth "&$A$18 -> Coeffients for USmooth 28 | T32: ="US_UP("&$A$18&")" -> US_UP(28) | U32: ="US_DN("&$A$18&")" -> US_DN(28) | V32: ="USI("&$A$18&")" -> USI(28) | W32: ="Lag("&$C$18&")" -> Lag(2) | BC32: Up Vol | BD32: Dn Vol | BE32: Volume Cursor | BF32: =MAX(OFFSET(C33,0,0,A12,1)) -> 2786680 | BG32: Price Chart Cursor | BI32: Indicator01Cursor | BK32: Indicator02Cursor | BM32: Indicator03Cursor | BO32: Indicator04Cursor | BQ32: Indicator05Cursor | BS32: Indicator06Cursor | BU32: Indicator07Cursor | BW32: Indicator08Cursor
A33: 1 | B33: =IF($A33>$A$8,"",OFFSET(InputPriceData!$B$15,$A33+$A$11,0,1,1)) -> 2024-07-12T04:00:00 | C33: =IF($A33>$A$8,"",OFFSET(InputPriceData!$G$15,CalculationsAndCharts!$A33+$A$11,IF($C$5,8,0),1,1)) -> 1684437 | D33: =IF(A33>$A$8,"",OFFSET(InputPriceData!$C$15,CalculationsAndCharts!$A33+$A$11,IF($C$5,8,0),1,1)) -> 5638.5 | E33: =IF(A33>$A$8,"",OFFSET(InputPriceData!$D$15,CalculationsAndCharts!$A33+$A$11,IF($C$5,8,0),1,1)) -> 5708.25 | F33: =IF(A33>$A$8,"",OFFSET(InputPriceData!$E$15,CalculationsAndCharts!$A33+$A$11,IF($C$5,8,0),1,1)) -> 5621.25 | G33: =IF(A33>$A$8,"",OFFSET(InputPriceData!$F$15,CalculationsAndCharts!$A33+$A$11,IF($C$5,8,0),1,1)) -> 5664.75 | H33: =IF($A33>$H$30,NA(),IF($G33>$G34,$G33-$G34,0)) -> 25 | I33: =IF($A33>$H$30,NA(),IF(G33<G34,G34-G33,0)) -> 0 | J33: =IF($A33>$J$30,NA(),AVERAGE(H33:H36)) -> 21.9375 | K33: =IF($A33>$J$30,NA(),AVERAGE(I33:I36)) -> 12.0625 | L33: a1 | M33: =EXP(-1.414*PI()/$A$17) -> 0.9611136572 | N33: =IF($A33>$J$30,NA(),IF($A33>$N$30,0,(1-M$35)*$J33+(2*M$35-M$36)*$J34-(M$35+M$37)*$J35+M$36*N34+M$37*N35)) -> 16.63269983 | O33: =IF($A33>$J$30,NA(),IF($A33>$N$30,0,(1-M$35)*$K33+(2*M$35-M$36)*$K34-(M$35+M$37)*$K35+M$36*O34+M$37*O35)) -> 1.657584796 | P33: =IF($A33>$N$30,NA(),(N33-O33)/(N33+O33)) -> 0.8187469654 | Q33: =IF($A33>$N$30,NA(),OFFSET(P33,$C$17,0,1,1)) -> 0.8928198418 | R33: a2 | S33: =EXP(-1.414*PI()/$A$18) -> 0.8532945939 | T33: =IF($A33>$J$30,NA(),IF($A33>$N$30,0,(1-S$35)*$J33+(2*S$35-S$36)*$J34-(S$35+S$37)*$J35+S$36*T34+S$37*T35)) -> 20.08545654 | U33: =IF($A33>$J$30,NA(),IF($A33>$N$30,0,(1-S$35)*$K33+(2*S$35-S$36)*$K34-(S$35+S$37)*$K35+S$36*U34+S$37*U35)) -> 5.463141559 | V33: =IF($A33>$N$30,NA(),(T33-U33)/(T33+U33)) -> 0.5723333595 | W33: =IF($A33>$N$30,NA(),OFFSET(V33,$C$18,0,1,1)) -> 0.839366246 | BC33: =IF(G33>=G34,C33,NA()) -> 1684437 | BD33: =IF(G33<G34,C33,NA()) ->  | BE33: =$E$27 -> 188 | BF33: 0 | BG33: =$E$27 -> 188 | BH33: 4102.425 | BI33: =$E$27 -> 188 | BJ33: -0.4578867423 | BK33: =$E$27 -> 188 | BL33: -1.4 | BM33: =$E$27 -> 188 | BO33: =$E$27 -> 188 | BP33: -1 | BQ33: 188 | BS33: 188 | BT33: 0 | BU33: 188 | BV33: 0 | BW33: 188
A34: 2 | B34: =IF($A34>$A$8,"",OFFSET(InputPriceData!$B$15,$A34+$A$11,0,1,1)) -> 2024-07-11T04:00:00 | C34: =IF($A34>$A$8,"",OFFSET(InputPriceData!$G$15,CalculationsAndCharts!$A34+$A$11,IF($C$5,8,0),1,1)) -> 1970766 | D34: =IF(A34>$A$8,"",OFFSET(InputPriceData!$C$15,CalculationsAndCharts!$A34+$A$11,IF($C$5,8,0),1,1)) -> 5684.25 | E34: =IF(A34>$A$8,"",OFFSET(InputPriceData!$D$15,CalculationsAndCharts!$A34+$A$11,IF($C$5,8,0),1,1)) -> 5707.75 | F34: =IF(A34>$A$8,"",OFFSET(InputPriceData!$E$15,CalculationsAndCharts!$A34+$A$11,IF($C$5,8,0),1,1)) -> 5630 | G34: =IF(A34>$A$8,"",OFFSET(InputPriceData!$F$15,CalculationsAndCharts!$A34+$A$11,IF($C$5,8,0),1,1)) -> 5639.75 | H34: =IF($A34>$H$30,NA(),IF($G34>$G35,$G34-$G35,0)) -> 0 | I34: =IF($A34>$H$30,NA(),IF(G34<G35,G35-G34,0)) -> 48.25 | J34: =IF($A34>$J$30,NA(),AVERAGE(H34:H37)) -> 16.625 | K34: 12.0625 | L34: b1 | M34: =2*M33*COS(RADIANS(1.414*180/$A$17)) -> 1.920715563 | N34: =IF($A34>$J$30,NA(),IF($A34>$N$30,0,(1-$M$35)*J34+(2*$M$35-$M$36)*J35-($M$35+$M$37)*J36+$M$36*N35+$M$37*N36)) -> 16.3891527 | O34: 1.045939576 | P34: =IF($A34>$N$30,NA(),(N34-O34)/(N34+O34)) -> 0.8800190375 | Q34: =IF($A34>$N$30,NA(),OFFSET(P34,$C$17,0,1,1)) -> 0.8510929824 | R34: b2 | S34: =2*S33*COS(RADIANS(1.414*180/$A$18)) -> 1.685156809 | T34: 19.74041597 | U34: 2.747961232 | V34: 0.7556105354 | W34: 0.7574049661 | BC34: =IF(G34>=G35,C34,NA()) ->  | BD34: =IF(G34<G35,C34,NA()) -> 1970766 | BE34: =$E$27 -> 188 | BF34: =CEILING(BF32,10^INT(LOG10(BF32))/8) -> 2875000 | BG34: =$E$27 -> 188 | BH34: 5728.075 | BI34: =$E$27 -> 188 | BJ34: 0.8954083943 | BK34: =$E$27 -> 188 | BL34: 1.4 | BM34: 188 | BN34: 0 | BO34: 188 | BP34: 1.129295984 | BQ34: 188 | BR34: 0 | BS34: 188 | BT34: 0 | BU34: 188 | BV34: 0 | BW34: 188 | BX34: 0
A35: 3 | B35: =IF(A35>$A$8,"",OFFSET(InputPriceData!B$15,$A35+$A$11,0,1,1)) -> 2024-07-10T04:00:00 | C35: =IF(A35>$A$8,"",OFFSET(InputPriceData!G$15,CalculationsAndCharts!$A35+$A$11,IF($C$5,8,0),1,1)) -> 1200224 | D35: =IF(A35>$A$8,"",OFFSET(InputPriceData!C$15,CalculationsAndCharts!$A35+$A$11,IF($C$5,8,0),1,1)) -> 5631.75 | E35: =IF(A35>$A$8,"",OFFSET(InputPriceData!D$15,CalculationsAndCharts!$A35+$A$11,IF($C$5,8,0),1,1)) -> 5690.5 | F35: =IF(A35>$A$8,"",OFFSET(InputPriceData!E$15,CalculationsAndCharts!$A35+$A$11,IF($C$5,8,0),1,1)) -> 5630.75 | G35: =IF(A35>$A$8,"",OFFSET(InputPriceData!$F$15,CalculationsAndCharts!$A35+$A$11,IF($C$5,8,0),1,1)) -> 5688 | H35: 56.75 | I35: 0 | J35: =IF($A35>$J$30,NA(),AVERAGE(H35:H38)) -> 24.4375 | K35: 0 | L35: c1 | M35: =(1+M36-M37)/4 -> 0.9611137563 | N35: =IF($A35>$J$30,NA(),IF($A35>$N$30,0,(1-$M$35)*J35+(2*$M$35-$M$36)*J36-($M$35+$M$37)*J37+$M$36*N36+$M$37*N37)) -> 16.03381716 | O35: 0.907908414 | P35: 0.8928198418 | Q35: 0.8073814691 | R35: c1 | S35: =(1+S36-S37)/4 -> 0.8533171183 | T35: 18.80954556 | U35: 1.642657041 | V35: 0.839366246 | W35: 0.6611221473 | BC35: 1200224
A36: 4 | B36: =IF(A36>$A$8,"",OFFSET(InputPriceData!B$15,$A36+$A$11,0,1,1)) -> 2024-07-09T04:00:00 | C36: =IF(A36>$A$8,"",OFFSET(InputPriceData!G$15,CalculationsAndCharts!$A36+$A$11,IF($C$5,8,0),1,1)) -> 1063568 | D36: =IF(A36>$A$8,"",OFFSET(InputPriceData!C$15,CalculationsAndCharts!$A36+$A$11,IF($C$5,8,0),1,1)) -> 5627.75 | E36: =IF(A36>$A$8,"",OFFSET(InputPriceData!D$15,CalculationsAndCharts!$A36+$A$11,IF($C$5,8,0),1,1)) -> 5645.75 | F36: =IF(A36>$A$8,"",OFFSET(InputPriceData!E$15,CalculationsAndCharts!$A36+$A$11,IF($C$5,8,0),1,1)) -> 5626.25 | G36: =IF(A36>$A$8,"",OFFSET(InputPriceData!F$15,CalculationsAndCharts!$A36+$A$11,IF($C$5,8,0),1,1)) -> 5631.25 | H36: 6 | I36: 0 | J36: =IF($A36>$J$30,NA(),AVERAGE(H36:H39)) -> 15.625 | K36: 0 | L36: c2 | M36: =M34 -> 1.920715563 | N36: =IF($A36>$J$30,NA(),IF($A36>$N$30,0,(1-$M$35)*J36+(2*$M$35-$M$36)*J37-($M$35+$M$37)*J38+$M$36*N37+$M$37*N38)) -> 15.70432874 | O36: 1.263299455 | P36: 0.8510929824 | Q36: 0.7559822662 | R36: c2 | S36: =S34 -> 1.685156809 | T36: 17.80460437 | U36: 2.457776485 | V36: 0.7574049661 | W36: 0.5082009418 | BC36: 1063568
A37: 5 | B37: =IF(A37>$A$8,"",OFFSET(InputPriceData!B$15,$A37+$A$11,0,1,1)) -> 2024-07-08T04:00:00 | C37: =IF(A37>$A$8,"",OFFSET(InputPriceData!G$15,CalculationsAndCharts!$A37+$A$11,IF($C$5,8,0),1,1)) -> 981186 | D37: =IF(A37>$A$8,"",OFFSET(InputPriceData!C$15,CalculationsAndCharts!$A37+$A$11,IF($C$5,8,0),1,1)) -> 5612 | E37: =IF(A37>$A$8,"",OFFSET(InputPriceData!D$15,CalculationsAndCharts!$A37+$A$11,IF($C$5,8,0),1,1)) -> 5637.5 | F37: =IF(A37>$A$8,"",OFFSET(InputPriceData!E$15,CalculationsAndCharts!$A37+$A$11,IF($C$5,8,0),1,1)) -> 5610.75 | G37: =IF(A37>$A$8,"",OFFSET(InputPriceData!F$15,CalculationsAndCharts!$A37+$A$11,IF($C$5,8,0),1,1)) -> 5625.25 | H37: 3.75 | I37: 0 | J37: =IF($A37>$J$30,NA(),AVERAGE(H37:H40)) -> 22.875 | K37: 0 | L37: c3 | M37: =-M33*M33 -> -0.9237394621 | N37: =IF($A37>$J$30,NA(),IF($A37>$N$30,0,(1-$M$35)*J37+(2*$M$35-$M$36)*J38-($M$35+$M$37)*J39+$M$36*N38+$M$37*N39)) -> 15.42502171 | O37: 1.643894813 | P37: 0.8073814691 | Q37: 0.7294014571 | R37: c3 | S37: =-S33*S33 -> -0.7281116639 | T37: 16.82444919 | U37: 3.432278128 | V37: 0.6611221473 | W37: 0.4179402802 | BC37: 981186
A38: 6 | B38: =IF(A38>$A$8,"",OFFSET(InputPriceData!B$15,$A38+$A$11,0,1,1)) -> 2024-07-05T04:00:00 | C38: =IF(A38>$A$8,"",OFFSET(InputPriceData!G$15,CalculationsAndCharts!$A38+$A$11,IF($C$5,8,0),1,1)) -> 1233173 | D38: =IF(A38>$A$8,"",OFFSET(InputPriceData!C$15,CalculationsAndCharts!$A38+$A$11,IF($C$5,8,0),1,1)) -> 5591 | E38: =IF(A38>$A$8,"",OFFSET(InputPriceData!D$15,CalculationsAndCharts!$A38+$A$11,IF($C$5,8,0),1,1)) -> 5626 | F38: =IF(A38>$A$8,"",OFFSET(InputPriceData!E$15,CalculationsAndCharts!$A38+$A$11,IF($C$5,8,0),1,1)) -> 5585 | G38: =IF(A38>$A$8,"",OFFSET(InputPriceData!F$15,CalculationsAndCharts!$A38+$A$11,IF($C$5,8,0),1,1)) -> 5621.5 | H38: 31.25 | I38: 0 | J38: =IF($A38>$J$30,NA(),AVERAGE(H38:H41)) -> 25 | K38: 0 | N38: =IF($A38>$J$30,NA(),IF($A38>$N$30,0,(1-$M$35)*J38+(2*$M$35-$M$36)*J39-($M$35+$M$37)*J40+$M$36*N39+$M$37*N40)) -> 14.75586693 | O38: 2.050529369 | P38: 0.7559822662 | Q38: 0.7344797905 | T38: 14.00926679 | U38: 4.568187185 | V38: 0.5082009418 | W38: 0.4780722043 | BC38: 1233173
A39: 7 | B39: =IF(A39>$A$8,"",OFFSET(InputPriceData!B$15,$A39+$A$11,0,1,1)) -> 2024-07-03T13:30:00 | C39: =IF(A39>$A$8,"",OFFSET(InputPriceData!G$15,CalculationsAndCharts!$A39+$A$11,IF($C$5,8,0),1,1)) -> 808966 | D39: =IF(A39>$A$8,"",OFFSET(InputPriceData!C$15,CalculationsAndCharts!$A39+$A$11,IF($C$5,8,0),1,1)) -> 5563.75 | E39: =IF(A39>$A$8,"",OFFSET(InputPriceData!D$15,CalculationsAndCharts!$A39+$A$11,IF($C$5,8,0),1,1)) -> 5595.75 | F39: =IF(A39>$A$8,"",OFFSET(InputPriceData!E$15,CalculationsAndCharts!$A39+$A$11,IF($C$5,8,0),1,1)) -> 5559.75 | G39: =IF(A39>$A$8,"",OFFSET(InputPriceData!F$15,CalculationsAndCharts!$A39+$A$11,IF($C$5,8,0),1,1)) -> 5590.25 | H39: 21.5 | I39: 0 | J39: =IF($A39>$J$30,NA(),AVERAGE(H39:H42)) -> 17.1875 | K39: 6.125 | N39: =IF($A39>$J$30,NA(),IF($A39>$N$30,0,(1-$M$35)*J39+(2*$M$35-$M$36)*J40-($M$35+$M$37)*J41+$M$36*N40+$M$37*N41)) -> 14.29164062 | O39: 2.236205544 | P39: 0.7294014571 | Q39: 0.7460478695 | T39: 11.70658351 | U39: 4.805513189 | V39: 0.4179402802 | W39: 0.6263740398 | BC39: 808966
A40: 8 | B40: =IF(A40>$A$8,"",OFFSET(InputPriceData!B$15,$A40+$A$11,0,1,1)) -> 2024-07-02T04:00:00 | C40: =IF(A40>$A$8,"",OFFSET(InputPriceData!G$15,CalculationsAndCharts!$A40+$A$11,IF($C$5,8,0),1,1)) -> 1315097 | D40: =IF(A40>$A$8,"",OFFSET(InputPriceData!C$15,CalculationsAndCharts!$A40+$A$11,IF($C$5,8,0),1,1)) -> 5533.5 | E40: =IF(A40>$A$8,"",OFFSET(InputPriceData!D$15,CalculationsAndCharts!$A40+$A$11,IF($C$5,8,0),1,1)) -> 5569.75 | F40: =IF(A40>$A$8,"",OFFSET(InputPriceData!E$15,CalculationsAndCharts!$A40+$A$11,IF($C$5,8,0),1,1)) -> 5502.75 | G40: =IF(A40>$A$8,"",OFFSET(InputPriceData!F$15,CalculationsAndCharts!$A40+$A$11,IF($C$5,8,0),1,1)) -> 5568.75 | H40: 35 | I40: 0 | J40: =IF($A40>$J$30,NA(),AVERAGE(H40:H43)) -> 12.4375 | K40: 6.125 | N40: =IF($A40>$J$30,NA(),IF($A40>$N$30,0,(1-$M$35)*J40+(2*$M$35-$M$36)*J41-($M$35+$M$37)*J42+$M$36*N41+$M$37*N42)) -> 14.31963245 | O40: 2.192099227 | P40: 0.7344797905 | Q40: 0.7591734426 | T40: 11.25807347 | U40: 3.975381889 | V40: 0.4780722043 | W40: 0.7997980448 | BC40: =IF(G40>=G41,C40,NA()) -> 1315097 | BD40: =IF(G40<G41,C40,NA()) -> 
A41: 9 | B41: =IF(A41>$A$8,"",OFFSET(InputPriceData!B$15,$A41+$A$11,0,1,1)) -> 2024-07-01T04:00:00 | C41: =IF(A41>$A$8,"",OFFSET(InputPriceData!G$15,CalculationsAndCharts!$A41+$A$11,IF($C$5,8,0),1,1)) -> 1432355 | D41: =IF(A41>$A$8,"",OFFSET(InputPriceData!C$15,CalculationsAndCharts!$A41+$A$11,IF($C$5,8,0),1,1)) -> 5534.25 | E41: =IF(A41>$A$8,"",OFFSET(InputPriceData!D$15,CalculationsAndCharts!$A41+$A$11,IF($C$5,8,0),1,1)) -> 5541 | F41: =IF(A41>$A$8,"",OFFSET(InputPriceData!E$15,CalculationsAndCharts!$A41+$A$11,IF($C$5,8,0),1,1)) -> 5504.5 | G41: =IF(A41>$A$8,"",OFFSET(InputPriceData!F$15,CalculationsAndCharts!$A41+$A$11,IF($C$5,8,0),1,1)) -> 5533.75 | H41: 12.25 | I41: 0 | J41: =IF($A41>$J$30,NA(),AVERAGE(H41:H44)) -> 5.3125 | K41: 6.125 | N41: =IF($A41>$J$30,NA(),IF($A41>$N$30,0,(1-$M$35)*J41+(2*$M$35-$M$36)*J42-($M$35+$M$37)*J43+$M$36*N42+$M$37*N43)) -> 14.83200847 | O41: 2.157226166 | P41: 0.7460478695 | Q41: 0.7397271021 | T41: 12.89379045 | U41: 2.962082965 | V41: 0.6263740398 | W41: 0.8460885066 | BC41: 1432355
A42: 10 | B42: =IF(A42>$A$8,"",OFFSET(InputPriceData!B$15,$A42+$A$11,0,1,1)) -> 2024-06-28T04:00:00 | C42: =IF(A42>$A$8,"",OFFSET(InputPriceData!G$15,CalculationsAndCharts!$A42+$A$11,IF($C$5,8,0),1,1)) -> 1855777 | D42: =IF(A42>$A$8,"",OFFSET(InputPriceData!C$15,CalculationsAndCharts!$A42+$A$11,IF($C$5,8,0),1,1)) -> 5548.25 | E42: =IF(A42>$A$8,"",OFFSET(InputPriceData!D$15,CalculationsAndCharts!$A42+$A$11,IF($C$5,8,0),1,1)) -> 5585 | F42: =IF(A42>$A$8,"",OFFSET(InputPriceData!E$15,CalculationsAndCharts!$A42+$A$11,IF($C$5,8,0),1,1)) -> 5510.75 | G42: =IF(A42>$A$8,"",OFFSET(InputPriceData!F$15,CalculationsAndCharts!$A42+$A$11,IF($C$5,8,0),1,1)) -> 5521.5 | H42: 0 | I42: 24.5 | J42: =IF($A42>$J$30,NA(),AVERAGE(H42:H45)) -> 7.25 | K42: 6.125 | N42: =IF($A42>$J$30,NA(),IF($A42>$N$30,0,(1-$M$35)*J42+(2*$M$35-$M$36)*J43-($M$35+$M$37)*J44+$M$36*N43+$M$37*N44)) -> 15.57706897 | O42: 2.132462783 | P42: 0.7591734426 | Q42: 0.6943829311 | T42: 15.79525985 | U42: 1.756998188 | V42: 0.7997980448 | W42: 0.7947625846 | BD42: 1855777
A43: 11 | B43: =IF(A43>$A$8,"",OFFSET(InputPriceData!B$15,$A43+$A$11,0,1,1)) -> 2024-06-27T04:00:00 | C43: =IF(A43>$A$8,"",OFFSET(InputPriceData!G$15,CalculationsAndCharts!$A43+$A$11,IF($C$5,8,0),1,1)) -> 1257121 | D43: =IF(A43>$A$8,"",OFFSET(InputPriceData!C$15,CalculationsAndCharts!$A43+$A$11,IF($C$5,8,0),1,1)) -> 5533 | E43: =IF(A43>$A$8,"",OFFSET(InputPriceData!D$15,CalculationsAndCharts!$A43+$A$11,IF($C$5,8,0),1,1)) -> 5555 | F43: =IF(A43>$A$8,"",OFFSET(InputPriceData!E$15,CalculationsAndCharts!$A43+$A$11,IF($C$5,8,0),1,1)) -> 5515.75 | G43: =IF(A43>$A$8,"",OFFSET(InputPriceData!F$15,CalculationsAndCharts!$A43+$A$11,IF($C$5,8,0),1,1)) -> 5546 | H43: 2.5 | I43: 0 | J43: =IF($A43>$J$30,NA(),AVERAGE(H43:H46)) -> 18.5275 | K43: 0 | N43: =IF($A43>$J$30,NA(),IF($A43>$N$30,0,(1-$M$35)*J43+(2*$M$35-$M$36)*J44-($M$35+$M$37)*J45+$M$36*N44+$M$37*N45)) -> 15.81853271 | O43: 2.366540904 | P43: 0.7397271021 | Q43: 0.6663790741 | T43: 16.9464657 | U43: 1.412855253 | V43: 0.8460885066 | W43: 0.8179936111 | BC43: 1257121
A44: 12 | B44: =IF(A44>$A$8,"",OFFSET(InputPriceData!B$15,$A44+$A$11,0,1,1)) -> 2024-06-26T04:00:00 | C44: =IF(A44>$A$8,"",OFFSET(InputPriceData!G$15,CalculationsAndCharts!$A44+$A$11,IF($C$5,8,0),1,1)) -> 1197372 | D44: =IF(A44>$A$8,"",OFFSET(InputPriceData!C$15,CalculationsAndCharts!$A44+$A$11,IF($C$5,8,0),1,1)) -> 5535 | E44: =IF(A44>$A$8,"",OFFSET(InputPriceData!D$15,CalculationsAndCharts!$A44+$A$11,IF($C$5,8,0),1,1)) -> 5551.75 | F44: =IF(A44>$A$8,"",OFFSET(InputPriceData!E$15,CalculationsAndCharts!$A44+$A$11,IF($C$5,8,0),1,1)) -> 5516.25 | G44: =IF(A44>$A$8,"",OFFSET(InputPriceData!F$15,CalculationsAndCharts!$A44+$A$11,IF($C$5,8,0),1,1)) -> 5543.5 | H44: 6.5 | I44: 0 | J44: =IF($A44>$J$30,NA(),AVERAGE(H44:H47)) -> 17.9025 | K44: 1.215 | N44: =IF($A44>$J$30,NA(),IF($A44>$N$30,0,(1-$M$35)*J44+(2*$M$35-$M$36)*J45-($M$35+$M$37)*J46+$M$36*N45+$M$37*N46)) -> 15.63934225 | O44: 2.820879419 | P44: 0.6943829311 | Q44: 0.6520784939 | T44: 16.45637076 | U44: 1.881843888 | V44: 0.7947625846 | W44: 0.9138685264 | BC44: 1197372
A45: 13 | B45: =IF(A45>$A$8,"",OFFSET(InputPriceData!B$15,$A45+$A$11,0,1,1)) -> 2024-06-25T04:00:00 | C45: =IF(A45>$A$8,"",OFFSET(InputPriceData!G$15,CalculationsAndCharts!$A45+$A$11,IF($C$5,8,0),1,1)) -> 1141183 | D45: =IF(A45>$A$8,"",OFFSET(InputPriceData!C$15,CalculationsAndCharts!$A45+$A$11,IF($C$5,8,0),1,1)) -> 5516 | E45: =IF(A45>$A$8,"",OFFSET(InputPriceData!D$15,CalculationsAndCharts!$A45+$A$11,IF($C$5,8,0),1,1)) -> 5539.75 | F45: =IF(A45>$A$8,"",OFFSET(InputPriceData!E$15,CalculationsAndCharts!$A45+$A$11,IF($C$5,8,0),1,1)) -> 5511 | G45: =IF(A45>$A$8,"",OFFSET(InputPriceData!F$15,CalculationsAndCharts!$A45+$A$11,IF($C$5,8,0),1,1)) -> 5537 | H45: 20 | I45: 0 | J45: =IF($A45>$J$30,NA(),AVERAGE(H45:H48)) -> 16.2775 | K45: 4.7775 | N45: =IF($A45>$J$30,NA(),IF($A45>$N$30,0,(1-$M$35)*J45+(2*$M$35-$M$36)*J46-($M$35+$M$37)*J47+$M$36*N46+$M$37*N47)) -> 15.54482451 | O45: 3.112184273 | P45: 0.6663790741 | Q45: 0.63874592 | T45: 16.27392484 | U45: 1.629245711 | V45: 0.8179936111 | W45: 1.025152901 | BC45: =IF(G45>=G46,C45,NA()) -> 1141183 | BD45: =IF(G45<G46,C45,NA()) -> 
A46: 14 | B46: =IF(A46>$A$8,"",OFFSET(InputPriceData!B$15,$A46+$A$11,0,1,1)) -> 2024-06-24T04:00:00 | C46: =IF(A46>$A$8,"",OFFSET(InputPriceData!G$15,CalculationsAndCharts!$A46+$A$11,IF($C$5,8,0),1,1)) -> 1410359 | D46: =IF(A46>$A$8,"",OFFSET(InputPriceData!C$15,CalculationsAndCharts!$A46+$A$11,IF($C$5,8,0),1,1)) -> 5538.5 | E46: =IF(A46>$A$8,"",OFFSET(InputPriceData!D$15,CalculationsAndCharts!$A46+$A$11,IF($C$5,8,0),1,1)) -> 5558.5 | F46: =IF(A46>$A$8,"",OFFSET(InputPriceData!E$15,CalculationsAndCharts!$A46+$A$11,IF($C$5,8,0),1,1)) -> 5510.25 | G46: =IF(A46>$A$8,"",OFFSET(InputPriceData!F$15,CalculationsAndCharts!$A46+$A$11,IF($C$5,8,0),1,1)) -> 5517 | H46: 45.11 | I46: 0 | J46: =IF($A46>$J$30,NA(),AVERAGE(H46:H49)) -> 14.4025 | K46: 4.7775 | N46: =IF($A46>$J$30,NA(),IF($A46>$N$30,0,(1-$M$35)*J46+(2*$M$35-$M$36)*J47-($M$35+$M$37)*J48+$M$36*N47+$M$37*N48)) -> 15.58917115 | O46: 3.283020709 | P46: 0.6520784939 | Q46: 0.6219571786 | T46: 16.67335198 | U46: 0.7503652188 | V46: 0.9138685264 | W46: 1.12219768 | BC46: 1410359
A47: 15 | B47: =IF(A47>$A$8,"",OFFSET(InputPriceData!B$15,$A47+$A$11,0,1,1)) -> 2024-06-21T04:00:00 | C47: =IF(A47>$A$8,"",OFFSET(InputPriceData!G$15,CalculationsAndCharts!$A47+$A$11,IF($C$5,8,0),1,1)) -> 1392213 | D47: =IF(A47>$A$8,"",OFFSET(InputPriceData!C$15,CalculationsAndCharts!$A47+$A$11,IF($C$5,8,0),1,1)) -> 5477 | E47: =IF(A47>$A$8,"",OFFSET(InputPriceData!D$15,CalculationsAndCharts!$A47+$A$11,IF($C$5,8,0),1,1)) -> 5483.75 | F47: =IF(A47>$A$8,"",OFFSET(InputPriceData!E$15,CalculationsAndCharts!$A47+$A$11,IF($C$5,8,0),1,1)) -> 5460.5 | G47: =IF(A47>$A$8,"",OFFSET(InputPriceData!F$15,CalculationsAndCharts!$A47+$A$11,IF($C$5,8,0),1,1)) -> 5471.89 | H47: 0 | I47: 4.86 | J47: =IF($A47>$J$30,NA(),AVERAGE(H47:H50)) -> 13.375 | K47: 4.7775 | N47: =IF($A47>$J$30,NA(),IF($A47>$N$30,0,(1-$M$35)*J47+(2*$M$35-$M$36)*J48-($M$35+$M$37)*J49+$M$36*N48+$M$37*N49)) -> 15.75379773 | O47: 3.472853012 | P47: 0.63874592 | Q47: 0.5876514479 | T47: 17.64238196 | U47: -0.2191227555 | V47: 1.025152901 | W47: 1.127203418 | BD47: 1392213
A48: 16 | B48: =IF(A48>$A$8,"",OFFSET(InputPriceData!B$15,$A48+$A$11,0,1,1)) -> 2024-06-20T04:00:00 | C48: =IF(A48>$A$8,"",OFFSET(InputPriceData!G$15,CalculationsAndCharts!$A48+$A$11,IF($C$5,8,0),1,1)) -> 571332 | D48: =IF(A48>$A$8,"",OFFSET(InputPriceData!C$15,CalculationsAndCharts!$A48+$A$11,IF($C$5,8,0),1,1)) -> 5492.75 | E48: =IF(A48>$A$8,"",OFFSET(InputPriceData!D$15,CalculationsAndCharts!$A48+$A$11,IF($C$5,8,0),1,1)) -> 5518.5 | F48: =IF(A48>$A$8,"",OFFSET(InputPriceData!E$15,CalculationsAndCharts!$A48+$A$11,IF($C$5,8,0),1,1)) -> 5458.5 | G48: =IF(A48>$A$8,"",OFFSET(InputPriceData!F$15,CalculationsAndCharts!$A48+$A$11,IF($C$5,8,0),1,1)) -> 5476.75 | H48: 0 | I48: 14.25 | J48: =IF($A48>$J$30,NA(),AVERAGE(H48:H51)) -> 13.375 | K48: 3.8125 | N48: =IF($A48>$J$30,NA(),IF($A48>$N$30,0,(1-$M$35)*J48+(2*$M$35-$M$36)*J49-($M$35+$M$37)*J50+$M$36*N49+$M$37*N50)) -> 15.96748238 | O48: 3.721671675 | P48: 0.6219571786 | Q48: 0.5329328981 | T48: 18.92850593 | U48: -1.089917082 | V48: 1.12219768 | W48: 1.056381901 | BD48: 571332
A49: 17 | B49: =IF(A49>$A$8,"",OFFSET(InputPriceData!B$15,$A49+$A$11,0,1,1)) -> 2024-06-18T04:00:00 | C49: =IF(A49>$A$8,"",OFFSET(InputPriceData!G$15,CalculationsAndCharts!$A49+$A$11,IF($C$5,8,0),1,1)) -> 820053 | D49: =IF(A49>$A$8,"",OFFSET(InputPriceData!C$15,CalculationsAndCharts!$A49+$A$11,IF($C$5,8,0),1,1)) -> 5480.25 | E49: =IF(A49>$A$8,"",OFFSET(InputPriceData!D$15,CalculationsAndCharts!$A49+$A$11,IF($C$5,8,0),1,1)) -> 5494 | F49: =IF(A49>$A$8,"",OFFSET(InputPriceData!E$15,CalculationsAndCharts!$A49+$A$11,IF($C$5,8,0),1,1)) -> 5473.5 | G49: =IF(A49>$A$8,"",OFFSET(InputPriceData!F$15,CalculationsAndCharts!$A49+$A$11,IF($C$5,8,0),1,1)) -> 5491 | H49: 12.5 | I49: 0 | J49: =IF($A49>$J$30,NA(),AVERAGE(H49:H52)) -> 16.125 | K49: 0.25 | N49: =IF($A49>$J$30,NA(),IF($A49>$N$30,0,(1-$M$35)*J49+(2*$M$35-$M$36)*J50-($M$35+$M$37)*J51+$M$36*N50+$M$37*N51)) -> 16.07905706 | O49: 4.176090355 | P49: 0.5876514479 | Q49: 0.4762900163 | T49: 19.8943728 | U49: -1.189652196 | V49: 1.127203418 | W49: 0.9526424392 | BC49: 820053
A50: 18 | B50: =IF(A50>$A$8,"",OFFSET(InputPriceData!B$15,$A50+$A$11,0,1,1)) -> 2024-06-17T04:00:00 | C50: =IF(A50>$A$8,"",OFFSET(InputPriceData!G$15,CalculationsAndCharts!$A50+$A$11,IF($C$5,8,0),1,1)) -> 1589643 | D50: =IF(A50>$A$8,"",OFFSET(InputPriceData!C$15,CalculationsAndCharts!$A50+$A$11,IF($C$5,8,0),1,1)) -> 5435.5 | E50: =IF(A50>$A$8,"",OFFSET(InputPriceData!D$15,CalculationsAndCharts!$A50+$A$11,IF($C$5,8,0),1,1)) -> 5494 | F50: =IF(A50>$A$8,"",OFFSET(InputPriceData!E$15,CalculationsAndCharts!$A50+$A$11,IF($C$5,8,0),1,1)) -> 5424.75 | G50: =IF(A50>$A$8,"",OFFSET(InputPriceData!F$15,CalculationsAndCharts!$A50+$A$11,IF($C$5,8,0),1,1)) -> 5478.5 | H50: 41 | I50: 0 | J50: =IF($A50>$J$30,NA(),AVERAGE(H50:H53)) -> 23.875 | K50: 0.25 | N50: =IF($A50>$J$30,NA(),IF($A50>$N$30,0,(1-$M$35)*J50+(2*$M$35-$M$36)*J51-($M$35+$M$37)*J52+$M$36*N51+$M$37*N52)) -> 15.77066454 | O50: 4.805140912 | P50: 0.5329328981 | Q50: 0.4213042227 | T50: 19.11184697 | U50: -0.5240088247 | V50: 1.056381901 | W50: 0.8107767867 | BC50: 1589643
A51: 19 | B51: =IF(A51>$A$8,"",OFFSET(InputPriceData!B$15,$A51+$A$11,0,1,1)) -> 2024-06-14T04:00:00 | C51: =IF(A51>$A$8,"",OFFSET(InputPriceData!G$15,CalculationsAndCharts!$A51+$A$11,IF($C$5,8,0),1,1)) -> 1789793 | D51: =IF(A51>$A$8,"",OFFSET(InputPriceData!C$15,CalculationsAndCharts!$A51+$A$11,IF($C$5,8,0),1,1)) -> 5436 | E51: =IF(A51>$A$8,"",OFFSET(InputPriceData!D$15,CalculationsAndCharts!$A51+$A$11,IF($C$5,8,0),1,1)) -> 5443 | F51: =IF(A51>$A$8,"",OFFSET(InputPriceData!E$15,CalculationsAndCharts!$A51+$A$11,IF($C$5,8,0),1,1)) -> 5397.75 | G51: =IF(A51>$A$8,"",OFFSET(InputPriceData!F$15,CalculationsAndCharts!$A51+$A$11,IF($C$5,8,0),1,1)) -> 5437.5 | H51: 0 | I51: 1 | J51: =IF($A51>$J$30,NA(),AVERAGE(H51:H54)) -> 16.8125 | K51: 0.25 | N51: =IF($A51>$J$30,NA(),IF($A51>$N$30,0,(1-$M$35)*J51+(2*$M$35-$M$36)*J52-($M$35+$M$37)*J53+$M$36*N52+$M$37*N53)) -> 15.42284108 | O51: 5.471212132 | P51: 0.4762900163 | Q51: 0.3693617391 | T51: 17.97128827 | U51: 0.4358587929 | V51: 0.9526424392 | W51: 0.660280118 | BD51: 1789793
A52: 20 | B52: =IF(A52>$A$8,"",OFFSET(InputPriceData!B$15,$A52+$A$11,0,1,1)) -> 2024-06-13T04:00:00 | C52: =IF(A52>$A$8,"",OFFSET(InputPriceData!G$15,CalculationsAndCharts!$A52+$A$11,IF($C$5,8,0),1,1)) -> 1682858 | D52: =IF(A52>$A$8,"",OFFSET(InputPriceData!C$15,CalculationsAndCharts!$A52+$A$11,IF($C$5,8,0),1,1)) -> 5436.25 | E52: =IF(A52>$A$8,"",OFFSET(InputPriceData!D$15,CalculationsAndCharts!$A52+$A$11,IF($C$5,8,0),1,1)) -> 5452.75 | F52: =IF(A52>$A$8,"",OFFSET(InputPriceData!E$15,CalculationsAndCharts!$A52+$A$11,IF($C$5,8,0),1,1)) -> 5408.5 | G52: =IF(A52>$A$8,"",OFFSET(InputPriceData!F$15,CalculationsAndCharts!$A52+$A$11,IF($C$5,8,0),1,1)) -> 5438.5 | H52: 11 | I52: 0 | J52: =IF($A52>$J$30,NA(),AVERAGE(H52:H55)) -> 20.6875 | K52: 0 | N52: =IF($A52>$J$30,NA(),IF($A52>$N$30,0,(1-$M$35)*J52+(2*$M$35-$M$36)*J53-($M$35+$M$37)*J54+$M$36*N53+$M$37*N54)) -> 15.19137692 | O52: 6.18529484 | P52: 0.4213042227 | Q52: 0.3394560482 | T52: 17.09290985 | U52: 1.78618113 | V52: 0.8107767867 | W52: 0.5617525214 | BC52: 1682858
A53: 21 | B53: =IF(A53>$A$8,"",OFFSET(InputPriceData!B$15,$A53+$A$11,0,1,1)) -> 2024-06-12T04:00:00 | C53: =IF(A53>$A$8,"",OFFSET(InputPriceData!G$15,CalculationsAndCharts!$A53+$A$11,IF($C$5,8,0),1,1)) -> 1899786 | D53: =IF(A53>$A$8,"",OFFSET(InputPriceData!C$15,CalculationsAndCharts!$A53+$A$11,IF($C$5,8,0),1,1)) -> 5384.5 | E53: =IF(A53>$A$8,"",OFFSET(InputPriceData!D$15,CalculationsAndCharts!$A53+$A$11,IF($C$5,8,0),1,1)) -> 5454.5 | F53: =IF(A53>$A$8,"",OFFSET(InputPriceData!E$15,CalculationsAndCharts!$A53+$A$11,IF($C$5,8,0),1,1)) -> 5380 | G53: =IF(A53>$A$8,"",OFFSET(InputPriceData!F$15,CalculationsAndCharts!$A53+$A$11,IF($C$5,8,0),1,1)) -> 5427.5 | H53: 43.5 | I53: 0 | J53: =IF($A53>$J$30,NA(),AVERAGE(H53:H56)) -> 17.9375 | K53: 2.0625 | N53: =IF($A53>$J$30,NA(),IF($A53>$N$30,0,(1-$M$35)*J53+(2*$M$35-$M$36)*J54-($M$35+$M$37)*J55+$M$36*N54+$M$37*N55)) -> 14.90693598 | O53: 6.865157623 | P53: 0.3693617391 | Q53: 0.3096759415 | T53: 15.79083692 | U53: 3.231057938 | V53: 0.660280118 | W53: 0.4579099391 | BC53: 1899786
A54: 22 | B54: =IF(A54>$A$8,"",OFFSET(InputPriceData!B$15,$A54+$A$11,0,1,1)) -> 2024-06-11T04:00:00 | C54: =IF(A54>$A$8,"",OFFSET(InputPriceData!G$15,CalculationsAndCharts!$A54+$A$11,IF($C$5,8,0),1,1)) -> 1413433 | D54: =IF(A54>$A$8,"",OFFSET(InputPriceData!C$15,CalculationsAndCharts!$A54+$A$11,IF($C$5,8,0),1,1)) -> 5369.75 | E54: =IF(A54>$A$8,"",OFFSET(InputPriceData!D$15,CalculationsAndCharts!$A54+$A$11,IF($C$5,8,0),1,1)) -> 5386.25 | F54: =IF(A54>$A$8,"",OFFSET(InputPriceData!E$15,CalculationsAndCharts!$A54+$A$11,IF($C$5,8,0),1,1)) -> 5334.5 | G54: =IF(A54>$A$8,"",OFFSET(InputPriceData!F$15,CalculationsAndCharts!$A54+$A$11,IF($C$5,8,0),1,1)) -> 5384 | H54: 12.75 | I54: 0 | J54: =IF($A54>$J$30,NA(),AVERAGE(H54:H57)) -> 7.0625 | K54: 2.5625 | N54: =IF($A54>$J$30,NA(),IF($A54>$N$30,0,(1-$M$35)*J54+(2*$M$35-$M$36)*J55-($M$35+$M$37)*J56+$M$36*N55+$M$37*N56)) -> 15.16469892 | O54: 7.478371662 | P54: 0.3394560482 | Q54: 0.2681863196 | T54: 16.55325282 | U54: 4.645051768 | V54: 0.5617525214 | W54: 0.3036966444 | BC54: 1413433
A55: 23 | B55: =IF(A55>$A$8,"",OFFSET(InputPriceData!B$15,$A55+$A$11,0,1,1)) -> 2024-06-10T04:00:00 | C55: =IF(A55>$A$8,"",OFFSET(InputPriceData!G$15,CalculationsAndCharts!$A55+$A$11,IF($C$5,8,0),1,1)) -> 1185881 | D55: =IF(A55>$A$8,"",OFFSET(InputPriceData!C$15,CalculationsAndCharts!$A55+$A$11,IF($C$5,8,0),1,1)) -> 5351.5 | E55: =IF(A55>$A$8,"",OFFSET(InputPriceData!D$15,CalculationsAndCharts!$A55+$A$11,IF($C$5,8,0),1,1)) -> 5375.75 | F55: =IF(A55>$A$8,"",OFFSET(InputPriceData!E$15,CalculationsAndCharts!$A55+$A$11,IF($C$5,8,0),1,1)) -> 5338.25 | G55: =IF(A55>$A$8,"",OFFSET(InputPriceData!F$15,CalculationsAndCharts!$A55+$A$11,IF($C$5,8,0),1,1)) -> 5371.25 | H55: 15.5 | I55: 0 | J55: =IF($A55>$J$30,NA(),AVERAGE(H55:H58)) -> 19.375 | K55: 2.5625 | N55: =IF($A55>$J$30,NA(),IF($A55>$N$30,0,(1-$M$35)*J55+(2*$M$35-$M$36)*J56-($M$35+$M$37)*J57+$M$36*N56+$M$37*N57)) -> 15.37685789 | O55: 8.105069818 | P55: 0.3096759415 | Q55: 0.2244856038 | T55: 17.11405441 | U55: 6.363464949 | V55: 0.4579099391 | W55: 0.1250014271 | BC55: 1185881
A56: 24 | B56: =IF(A56>$A$8,"",OFFSET(InputPriceData!B$15,$A56+$A$11,0,1,1)) -> 2024-06-07T04:00:00 | C56: =IF(A56>$A$8,"",OFFSET(InputPriceData!G$15,CalculationsAndCharts!$A56+$A$11,IF($C$5,8,0),1,1)) -> 1591439 | D56: =IF(A56>$A$8,"",OFFSET(InputPriceData!C$15,CalculationsAndCharts!$A56+$A$11,IF($C$5,8,0),1,1)) -> 5362 | E56: =IF(A56>$A$8,"",OFFSET(InputPriceData!D$15,CalculationsAndCharts!$A56+$A$11,IF($C$5,8,0),1,1)) -> 5385.5 | F56: =IF(A56>$A$8,"",OFFSET(InputPriceData!E$15,CalculationsAndCharts!$A56+$A$11,IF($C$5,8,0),1,1)) -> 5329 | G56: =IF(A56>$A$8,"",OFFSET(InputPriceData!F$15,CalculationsAndCharts!$A56+$A$11,IF($C$5,8,0),1,1)) -> 5355.75 | H56: 0 | I56: 8.25 | J56: =IF($A56>$J$30,NA(),AVERAGE(H56:H59)) -> 17.1875 | K56: 2.5625 | N56: =IF($A56>$J$30,NA(),IF($A56>$N$30,0,(1-$M$35)*J56+(2*$M$35-$M$36)*J57-($M$35+$M$37)*J58+$M$36*N57+$M$37*N58)) -> 15.18981201 | O56: 8.765362045 | P56: 0.2681863196 | Q56: 0.1616123552 | T56: 15.91337886 | U56: 8.49932317 | V56: 0.3036966444 | W56: -0.1511753699 | BD56: 1591439
A57: 25 | B57: =IF(A57>$A$8,"",OFFSET(InputPriceData!B$15,$A57+$A$11,0,1,1)) -> 2024-06-06T04:00:00 | C57: =IF(A57>$A$8,"",OFFSET(InputPriceData!G$15,CalculationsAndCharts!$A57+$A$11,IF($C$5,8,0),1,1)) -> 1228240 | D57: =IF(A57>$A$8,"",OFFSET(InputPriceData!C$15,CalculationsAndCharts!$A57+$A$11,IF($C$5,8,0),1,1)) -> 5367.75 | E57: =IF(A57>$A$8,"",OFFSET(InputPriceData!D$15,CalculationsAndCharts!$A57+$A$11,IF($C$5,8,0),1,1)) -> 5373.25 | F57: =IF(A57>$A$8,"",OFFSET(InputPriceData!E$15,CalculationsAndCharts!$A57+$A$11,IF($C$5,8,0),1,1)) -> 5345.25 | G57: =IF(A57>$A$8,"",OFFSET(InputPriceData!F$15,CalculationsAndCharts!$A57+$A$11,IF($C$5,8,0),1,1)) -> 5364 | H57: 0 | I57: 2 | J57: =IF($A57>$J$30,NA(),AVERAGE(H57:H60)) -> 17.625 | K57: 0.5 | N57: =IF($A57>$J$30,NA(),IF($A57>$N$30,0,(1-$M$35)*J57+(2*$M$35-$M$36)*J58-($M$35+$M$37)*J59+$M$36*N58+$M$37*N59)) -> 15.06824887 | O57: 9.543308544 | P57: 0.2244856038 | Q57: 0.1177419513 | T57: 14.70497293 | U57: 11.43716801 | V57: 0.1250014271 | W57: -0.3889916647 | BD57: 1228240
A58: 26 | B58: =IF(A58>$A$8,"",OFFSET(InputPriceData!B$15,$A58+$A$11,0,1,1)) -> 2024-06-05T04:00:00 | C58: =IF(A58>$A$8,"",OFFSET(InputPriceData!G$15,CalculationsAndCharts!$A58+$A$11,IF($C$5,8,0),1,1)) -> 1450596 | D58: =IF(A58>$A$8,"",OFFSET(InputPriceData!C$15,CalculationsAndCharts!$A58+$A$11,IF($C$5,8,0),1,1)) -> 5305 | E58: =IF(A58>$A$8,"",OFFSET(InputPriceData!D$15,CalculationsAndCharts!$A58+$A$11,IF($C$5,8,0),1,1)) -> 5368.25 | F58: =IF(A58>$A$8,"",OFFSET(InputPriceData!E$15,CalculationsAndCharts!$A58+$A$11,IF($C$5,8,0),1,1)) -> 5302.5 | G58: =IF(A58>$A$8,"",OFFSET(InputPriceData!F$15,CalculationsAndCharts!$A58+$A$11,IF($C$5,8,0),1,1)) -> 5366 | H58: 62 | I58: 0 | J58: =IF($A58>$J$30,NA(),AVERAGE(H58:H61)) -> 28.25 | K58: 0 | N58: =IF($A58>$J$30,NA(),IF($A58>$N$30,0,(1-$M$35)*J58+(2*$M$35-$M$36)*J59-($M$35+$M$37)*J60+$M$36*N59+$M$37*N60)) -> 14.49671717 | O58: 10.46292983 | P58: 0.1616123552 | Q58: 0.1288938221 | T58: 11.30239278 | U58: 15.32829719 | V58: -0.1511753699 | W58: -0.4330596542 | BC58: 1450596
A59: 27 | B59: =IF(A59>$A$8,"",OFFSET(InputPriceData!B$15,$A59+$A$11,0,1,1)) -> 2024-06-04T04:00:00 | C59: =IF(A59>$A$8,"",OFFSET(InputPriceData!G$15,CalculationsAndCharts!$A59+$A$11,IF($C$5,8,0),1,1)) -> 1679093 | D59: =IF(A59>$A$8,"",OFFSET(InputPriceData!C$15,CalculationsAndCharts!$A59+$A$11,IF($C$5,8,0),1,1)) -> 5300.25 | E59: =IF(A59>$A$8,"",OFFSET(InputPriceData!D$15,CalculationsAndCharts!$A59+$A$11,IF($C$5,8,0),1,1)) -> 5312.25 | F59: =IF(A59>$A$8,"",OFFSET(InputPriceData!E$15,CalculationsAndCharts!$A59+$A$11,IF($C$5,8,0),1,1)) -> 5262 | G59: =IF(A59>$A$8,"",OFFSET(InputPriceData!F$15,CalculationsAndCharts!$A59+$A$11,IF($C$5,8,0),1,1)) -> 5304 | H59: 6.75 | I59: 0 | J59: =IF($A59>$J$30,NA(),AVERAGE(H59:H62)) -> 12.75 | K59: 7.75 | N59: =IF($A59>$J$30,NA(),IF($A59>$N$30,0,(1-$M$35)*J59+(2*$M$35-$M$36)*J60-($M$35+$M$37)*J61+$M$36*N60+$M$37*N61)) -> 14.10287457 | O59: 11.13170584 | P59: 0.1177419513 | Q59: 0.1604667239 | T59: 8.153948207 | U59: 18.53618918 | V59: -0.3889916647 | W59: -0.4217596922 | BC59: 1679093
A60: 28 | B60: =IF(A60>$A$8,"",OFFSET(InputPriceData!B$15,$A60+$A$11,0,1,1)) -> 2024-06-03T04:00:00 | C60: =IF(A60>$A$8,"",OFFSET(InputPriceData!G$15,CalculationsAndCharts!$A60+$A$11,IF($C$5,8,0),1,1)) -> 1785532 | D60: =IF(A60>$A$8,"",OFFSET(InputPriceData!C$15,CalculationsAndCharts!$A60+$A$11,IF($C$5,8,0),1,1)) -> 5299.5 | E60: =IF(A60>$A$8,"",OFFSET(InputPriceData!D$15,CalculationsAndCharts!$A60+$A$11,IF($C$5,8,0),1,1)) -> 5313.25 | F60: =IF(A60>$A$8,"",OFFSET(InputPriceData!E$15,CalculationsAndCharts!$A60+$A$11,IF($C$5,8,0),1,1)) -> 5246.75 | G60: =IF(A60>$A$8,"",OFFSET(InputPriceData!F$15,CalculationsAndCharts!$A60+$A$11,IF($C$5,8,0),1,1)) -> 5297.25 | H60: 1.75 | I60: 0 | J60: =IF($A60>$J$30,NA(),AVERAGE(H60:H63)) -> 11.0625 | K60: 17.9375 | N60: =IF($A60>$J$30,NA(),IF($A60>$N$30,0,(1-$M$35)*J60+(2*$M$35-$M$36)*J61-($M$35+$M$37)*J62+$M$36*N61+$M$37*N62)) -> 14.39286148 | O60: 11.10619113 | P60: 0.1288938221 | Q60: 0.1948982573 | T60: 7.513726397 | U60: 18.99250641 | V60: -0.4330596542 | W60: -0.3758557509 | BC60: 1785532
A61: 29 | B61: =IF(A61>$A$8,"",OFFSET(InputPriceData!B$15,$A61+$A$11,0,1,1)) -> 2024-05-31T04:00:00 | C61: =IF(A61>$A$8,"",OFFSET(InputPriceData!G$15,CalculationsAndCharts!$A61+$A$11,IF($C$5,8,0),1,1)) -> 2452894 | D61: =IF(A61>$A$8,"",OFFSET(InputPriceData!C$15,CalculationsAndCharts!$A61+$A$11,IF($C$5,8,0),1,1)) -> 5250.5 | E61: =IF(A61>$A$8,"",OFFSET(InputPriceData!D$15,CalculationsAndCharts!$A61+$A$11,IF($C$5,8,0),1,1)) -> 5307 | F61: =IF(A61>$A$8,"",OFFSET(InputPriceData!E$15,CalculationsAndCharts!$A61+$A$11,IF($C$5,8,0),1,1)) -> 5205.5 | G61: =IF(A61>$A$8,"",OFFSET(InputPriceData!F$15,CalculationsAndCharts!$A61+$A$11,IF($C$5,8,0),1,1)) -> 5295.5 | H61: 42.5 | I61: 0 | J61: =IF($A61>$J$30,NA(),AVERAGE(H61:H64)) -> 11.4375 | K61: 17.9375 | N61: =IF($A61>$J$30,NA(),IF($A61>$N$30,0,(1-$M$35)*J61+(2*$M$35-$M$36)*J62-($M$35+$M$37)*J63+$M$36*N62+$M$37*N63)) -> 14.75175207 | O61: 10.67207399 | P61: 0.1604667239 | Q61: 0.2382569763 | T61: 7.119268442 | U61: 17.50464084 | V61: -0.4217596922 | W61: -0.2521189739 | BC61: 2452894
A62: 30 | B62: =IF(A62>$A$8,"",OFFSET(InputPriceData!B$15,$A62+$A$11,0,1,1)) -> 2024-05-30T04:00:00 | C62: =IF(A62>$A$8,"",OFFSET(InputPriceData!G$15,CalculationsAndCharts!$A62+$A$11,IF($C$5,8,0),1,1)) -> 1495148 | D62: =IF(A62>$A$8,"",OFFSET(InputPriceData!C$15,CalculationsAndCharts!$A62+$A$11,IF($C$5,8,0),1,1)) -> 5270.5 | E62: =IF(A62>$A$8,"",OFFSET(InputPriceData!D$15,CalculationsAndCharts!$A62+$A$11,IF($C$5,8,0),1,1)) -> 5277 | F62: =IF(A62>$A$8,"",OFFSET(InputPriceData!E$15,CalculationsAndCharts!$A62+$A$11,IF($C$5,8,0),1,1)) -> 5238.25 | G62: =IF(A62>$A$8,"",OFFSET(InputPriceData!F$15,CalculationsAndCharts!$A62+$A$11,IF($C$5,8,0),1,1)) -> 5253 | H62: 0 | I62: 31 | J62: =IF($A62>$J$30,NA(),AVERAGE(H62:H65)) -> 9.875 | K62: 17.9375 | N62: =IF($A62>$J$30,NA(),IF($A62>$N$30,0,(1-$M$35)*J62+(2*$M$35-$M$36)*J63-($M$35+$M$37)*J64+$M$36*N63+$M$37*N64)) -> 15.17685421 | O62: 10.22590141 | P62: 0.1948982573 | Q62: 0.2772896994 | T62: 7.025407147 | U62: 15.48671936 | V62: -0.3758557509 | W62: -0.05660561486 | BD62: 1495148
A63: 31 | B63: =IF(A63>$A$8,"",OFFSET(InputPriceData!B$15,$A63+$A$11,0,1,1)) -> 2024-05-29T04:00:00 | C63: =IF(A63>$A$8,"",OFFSET(InputPriceData!G$15,CalculationsAndCharts!$A63+$A$11,IF($C$5,8,0),1,1)) -> 1445855 | D63: =IF(A63>$A$8,"",OFFSET(InputPriceData!C$15,CalculationsAndCharts!$A63+$A$11,IF($C$5,8,0),1,1)) -> 5323.75 | E63: =IF(A63>$A$8,"",OFFSET(InputPriceData!D$15,CalculationsAndCharts!$A63+$A$11,IF($C$5,8,0),1,1)) -> 5324 | F63: =IF(A63>$A$8,"",OFFSET(InputPriceData!E$15,CalculationsAndCharts!$A63+$A$11,IF($C$5,8,0),1,1)) -> 5268.25 | G63: =IF(A63>$A$8,"",OFFSET(InputPriceData!F$15,CalculationsAndCharts!$A63+$A$11,IF($C$5,8,0),1,1)) -> 5284 | H63: 0 | I63: 40.75 | J63: =IF($A63>$J$30,NA(),AVERAGE(H63:H66)) -> 9.875 | K63: 20.875 | N63: =IF($A63>$J$30,NA(),IF($A63>$N$30,0,(1-$M$35)*J63+(2*$M$35-$M$36)*J64-($M$35+$M$37)*J65+$M$36*N64+$M$37*N65)) -> 15.68547125 | O63: 9.649288093 | P63: 0.2382569763 | Q63: 0.3023051806 | T63: 7.379383835 | U63: 12.35472782 | V63: -0.2521189739 | W63: 0.1859027371 | BD63: 1445855
A64: 32 | B64: =IF(A64>$A$8,"",OFFSET(InputPriceData!B$15,$A64+$A$11,0,1,1)) -> 2024-05-28T04:00:00 | C64: =IF(A64>$A$8,"",OFFSET(InputPriceData!G$15,CalculationsAndCharts!$A64+$A$11,IF($C$5,8,0),1,1)) -> 1387872 | D64: =IF(A64>$A$8,"",OFFSET(InputPriceData!C$15,CalculationsAndCharts!$A64+$A$11,IF($C$5,8,0),1,1)) -> 5321.75 | E64: =IF(A64>$A$8,"",OFFSET(InputPriceData!D$15,CalculationsAndCharts!$A64+$A$11,IF($C$5,8,0),1,1)) -> 5339 | F64: =IF(A64>$A$8,"",OFFSET(InputPriceData!E$15,CalculationsAndCharts!$A64+$A$11,IF($C$5,8,0),1,1)) -> 5296.75 | G64: =IF(A64>$A$8,"",OFFSET(InputPriceData!F$15,CalculationsAndCharts!$A64+$A$11,IF($C$5,8,0),1,1)) -> 5324.75 | H64: 3.25 | I64: 0 | J64: =IF($A64>$J$30,NA(),AVERAGE(H64:H67)) -> 9.875 | K64: 15 | N64: =IF($A64>$J$30,NA(),IF($A64>$N$30,0,(1-$M$35)*J64+(2*$M$35-$M$36)*J65-($M$35+$M$37)*J66+$M$36*N65+$M$37*N66)) -> 16.21705702 | O64: 9.17586211 | P64: 0.2772896994 | Q64: 0.3330636735 | T64: 8.012769538 | U64: 8.974335037 | V64: -0.05660561486 | W64: 0.6569956202 | BC64: 1387872
A65: 33 | B65: =IF(A65>$A$8,"",OFFSET(InputPriceData!B$15,$A65+$A$11,0,1,1)) -> 2024-05-24T04:00:00 | C65: =IF(A65>$A$8,"",OFFSET(InputPriceData!G$15,CalculationsAndCharts!$A65+$A$11,IF($C$5,8,0),1,1)) -> 1264244 | D65: =IF(A65>$A$8,"",OFFSET(InputPriceData!C$15,CalculationsAndCharts!$A65+$A$11,IF($C$5,8,0),1,1)) -> 5285.75 | E65: =IF(A65>$A$8,"",OFFSET(InputPriceData!D$15,CalculationsAndCharts!$A65+$A$11,IF($C$5,8,0),1,1)) -> 5329.25 | F65: =IF(A65>$A$8,"",OFFSET(InputPriceData!E$15,CalculationsAndCharts!$A65+$A$11,IF($C$5,8,0),1,1)) -> 5285.75 | G65: =IF(A65>$A$8,"",OFFSET(InputPriceData!F$15,CalculationsAndCharts!$A65+$A$11,IF($C$5,8,0),1,1)) -> 5321.5 | H65: 36.25 | I65: 0 | J65: =IF($A65>$J$30,NA(),AVERAGE(H65:H68)) -> 12.4375 | K65: 15 | N65: =IF($A65>$J$30,NA(),IF($A65>$N$30,0,(1-$M$35)*J65+(2*$M$35-$M$36)*J66-($M$35+$M$37)*J67+$M$36*N66+$M$37*N67)) -> 16.6680894 | O65: 8.929734596 | P65: 0.3023051806 | Q65: 0.3476241674 | T65: 8.551888172 | U65: 5.870691191 | V65: 0.1859027371 | W65: 1.05530232 | BC65: 1264244
A66: 34 | B66: =IF(A66>$A$8,"",OFFSET(InputPriceData!B$15,$A66+$A$11,0,1,1)) -> 2024-05-23T04:00:00 | C66: =IF(A66>$A$8,"",OFFSET(InputPriceData!G$15,CalculationsAndCharts!$A66+$A$11,IF($C$5,8,0),1,1)) -> 2012153 | D66: =IF(A66>$A$8,"",OFFSET(InputPriceData!C$15,CalculationsAndCharts!$A66+$A$11,IF($C$5,8,0),1,1)) -> 5339 | E66: =IF(A66>$A$8,"",OFFSET(InputPriceData!D$15,CalculationsAndCharts!$A66+$A$11,IF($C$5,8,0),1,1)) -> 5368.25 | F66: =IF(A66>$A$8,"",OFFSET(InputPriceData!E$15,CalculationsAndCharts!$A66+$A$11,IF($C$5,8,0),1,1)) -> 5273.5 | G66: =IF(A66>$A$8,"",OFFSET(InputPriceData!F$15,CalculationsAndCharts!$A66+$A$11,IF($C$5,8,0),1,1)) -> 5285.25 | H66: 0 | I66: 42.75 | J66: =IF($A66>$J$30,NA(),AVERAGE(H66:H69)) -> 4.5 | K66: 15 | N66: =IF($A66>$J$30,NA(),IF($A66>$N$30,0,(1-$M$35)*J66+(2*$M$35-$M$36)*J67-($M$35+$M$37)*J68+$M$36*N67+$M$37*N68)) -> 17.35578544 | O66: 8.683158961 | P66: 0.3330636735 | Q66: 0.3368294808 | T66: 10.37024654 | U66: 2.146680376 | V66: 0.6569956202 | W66: 1.14597938 | BD66: 2012153
A67: 35 | B67: =IF(A67>$A$8,"",OFFSET(InputPriceData!B$15,$A67+$A$11,0,1,1)) -> 2024-05-22T04:00:00 | C67: =IF(A67>$A$8,"",OFFSET(InputPriceData!G$15,CalculationsAndCharts!$A67+$A$11,IF($C$5,8,0),1,1)) -> 1257477 | D67: =IF(A67>$A$8,"",OFFSET(InputPriceData!C$15,CalculationsAndCharts!$A67+$A$11,IF($C$5,8,0),1,1)) -> 5343.5 | E67: =IF(A67>$A$8,"",OFFSET(InputPriceData!D$15,CalculationsAndCharts!$A67+$A$11,IF($C$5,8,0),1,1)) -> 5349.25 | F67: =IF(A67>$A$8,"",OFFSET(InputPriceData!E$15,CalculationsAndCharts!$A67+$A$11,IF($C$5,8,0),1,1)) -> 5306.75 | G67: =IF(A67>$A$8,"",OFFSET(InputPriceData!F$15,CalculationsAndCharts!$A67+$A$11,IF($C$5,8,0),1,1)) -> 5328 | H67: 0 | I67: 17.25 | J67: =IF($A67>$J$30,NA(),AVERAGE(H67:H70)) -> 6.25 | K67: 4.3125 | N67: =IF($A67>$J$30,NA(),IF($A67>$N$30,0,(1-$M$35)*J67+(2*$M$35-$M$36)*J68-($M$35+$M$37)*J69+$M$36*N68+$M$37*N69)) -> 18.32150794 | O67: 8.869319268 | P67: 0.3476241674 | Q67: 0.3129595413 | T67: 13.81942711 | U67: -0.3718413482 | V67: 1.05530232 | W67: 1.202553574 | BD67: 1257477
A68: 36 | B68: =IF(A68>$A$8,"",OFFSET(InputPriceData!B$15,$A68+$A$11,0,1,1)) -> 2024-05-21T04:00:00 | C68: =IF(A68>$A$8,"",OFFSET(InputPriceData!G$15,CalculationsAndCharts!$A68+$A$11,IF($C$5,8,0),1,1)) -> 1011849 | D68: =IF(A68>$A$8,"",OFFSET(InputPriceData!C$15,CalculationsAndCharts!$A68+$A$11,IF($C$5,8,0),1,1)) -> 5331.75 | E68: =IF(A68>$A$8,"",OFFSET(InputPriceData!D$15,CalculationsAndCharts!$A68+$A$11,IF($C$5,8,0),1,1)) -> 5347.5 | F68: =IF(A68>$A$8,"",OFFSET(InputPriceData!E$15,CalculationsAndCharts!$A68+$A$11,IF($C$5,8,0),1,1)) -> 5322.5 | G68: =IF(A68>$A$8,"",OFFSET(InputPriceData!F$15,CalculationsAndCharts!$A68+$A$11,IF($C$5,8,0),1,1)) -> 5345.25 | H68: 13.5 | I68: 0 | J68: =IF($A68>$J$30,NA(),AVERAGE(H68:H71)) -> 6.25 | K68: 3.1875 | N68: =IF($A68>$J$30,NA(),IF($A68>$N$30,0,(1-$M$35)*J68+(2*$M$35-$M$36)*J69-($M$35+$M$37)*J70+$M$36*N69+$M$37*N70)) -> 19.25377141 | O68: 9.551355473 | P68: 0.3368294808 | Q68: 0.2733322824 | T68: 17.75747951 | U68: -1.207945365 | V68: 1.14597938 | W68: 1.276512552 | BC68: 1011849
A69: 37 | B69: =IF(A69>$A$8,"",OFFSET(InputPriceData!B$15,$A69+$A$11,0,1,1)) -> 2024-05-20T04:00:00 | C69: =IF(A69>$A$8,"",OFFSET(InputPriceData!G$15,CalculationsAndCharts!$A69+$A$11,IF($C$5,8,0),1,1)) -> 1031456 | D69: =IF(A69>$A$8,"",OFFSET(InputPriceData!C$15,CalculationsAndCharts!$A69+$A$11,IF($C$5,8,0),1,1)) -> 5329.25 | E69: =IF(A69>$A$8,"",OFFSET(InputPriceData!D$15,CalculationsAndCharts!$A69+$A$11,IF($C$5,8,0),1,1)) -> 5348.25 | F69: =IF(A69>$A$8,"",OFFSET(InputPriceData!E$15,CalculationsAndCharts!$A69+$A$11,IF($C$5,8,0),1,1)) -> 5323.75 | G69: =IF(A69>$A$8,"",OFFSET(InputPriceData!F$15,CalculationsAndCharts!$A69+$A$11,IF($C$5,8,0),1,1)) -> 5331.75 | H69: 4.5 | I69: 0 | J69: =IF($A69>$J$30,NA(),AVERAGE(H69:H72)) -> 18.75 | K69: 3.1875 | N69: =IF($A69>$J$30,NA(),IF($A69>$N$30,0,(1-$M$35)*J69+(2*$M$35-$M$36)*J70-($M$35+$M$37)*J71+$M$36*N70+$M$37*N71)) -> 19.71468351 | O69: 10.31622436 | P69: 0.3129595413 | Q69: 0.2304278495 | T69: 20.33769104 | U69: -1.870316374 | V69: 1.202553574 | W69: 1.354183361 | BC69: 1031456
A70: 38 | B70: =IF(A70>$A$8,"",OFFSET(InputPriceData!B$15,$A70+$A$11,0,1,1)) -> 2024-05-17T04:00:00 | C70: =IF(A70>$A$8,"",OFFSET(InputPriceData!G$15,CalculationsAndCharts!$A70+$A$11,IF($C$5,8,0),1,1)) -> 1052765 | D70: =IF(A70>$A$8,"",OFFSET(InputPriceData!C$15,CalculationsAndCharts!$A70+$A$11,IF($C$5,8,0),1,1)) -> 5318.25 | E70: =IF(A70>$A$8,"",OFFSET(InputPriceData!D$15,CalculationsAndCharts!$A70+$A$11,IF($C$5,8,0),1,1)) -> 5328.75 | F70: =IF(A70>$A$8,"",OFFSET(InputPriceData!E$15,CalculationsAndCharts!$A70+$A$11,IF($C$5,8,0),1,1)) -> 5305.75 | G70: =IF(A70>$A$8,"",OFFSET(InputPriceData!F$15,CalculationsAndCharts!$A70+$A$11,IF($C$5,8,0),1,1)) -> 5327.25 | H70: 7 | I70: 0 | J70: =IF($A70>$J$30,NA(),AVERAGE(H70:H73)) -> 23.625 | K70: 3.1875 | N70: =IF($A70>$J$30,NA(),IF($A70>$N$30,0,(1-$M$35)*J70+(2*$M$35-$M$36)*J71-($M$35+$M$37)*J72+$M$36*N71+$M$37*N72)) -> 19.48704061 | O70: 11.12090184 | P70: 0.2733322824 | Q70: 0.1821839446 | T70: 20.43122049 | U70: -2.481641893 | V70: 1.276512552 | W70: 1.340708317 | BC70: 1052765
A71: 39 | B71: =IF(A71>$A$8,"",OFFSET(InputPriceData!B$15,$A71+$A$11,0,1,1)) -> 2024-05-16T04:00:00 | C71: =IF(A71>$A$8,"",OFFSET(InputPriceData!G$15,CalculationsAndCharts!$A71+$A$11,IF($C$5,8,0),1,1)) -> 1207843 | D71: =IF(A71>$A$8,"",OFFSET(InputPriceData!C$15,CalculationsAndCharts!$A71+$A$11,IF($C$5,8,0),1,1)) -> 5331.5 | E71: =IF(A71>$A$8,"",OFFSET(InputPriceData!D$15,CalculationsAndCharts!$A71+$A$11,IF($C$5,8,0),1,1)) -> 5349 | F71: =IF(A71>$A$8,"",OFFSET(InputPriceData!E$15,CalculationsAndCharts!$A71+$A$11,IF($C$5,8,0),1,1)) -> 5315.5 | G71: =IF(A71>$A$8,"",OFFSET(InputPriceData!F$15,CalculationsAndCharts!$A71+$A$11,IF($C$5,8,0),1,1)) -> 5320.25 | H71: 0 | I71: 12.75 | J71: =IF($A71>$J$30,NA(),AVERAGE(H71:H74)) -> 21.875 | K71: 3.375 | N71: =IF($A71>$J$30,NA(),IF($A71>$N$30,0,(1-$M$35)*J71+(2*$M$35-$M$36)*J72-($M$35+$M$37)*J73+$M$36*N72+$M$37*N73)) -> 19.11973407 | O71: 11.95845402 | P71: 0.2304278495 | Q71: 0.1372117589 | T71: 20.06691961 | U71: -3.019038002 | V71: 1.354183361 | W71: 1.195321471 | BD71: 1207843
A72: 40 | B72: =IF(A72>$A$8,"",OFFSET(InputPriceData!B$15,$A72+$A$11,0,1,1)) -> 2024-05-15T04:00:00 | C72: =IF(A72>$A$8,"",OFFSET(InputPriceData!G$15,CalculationsAndCharts!$A72+$A$11,IF($C$5,8,0),1,1)) -> 1391029 | D72: =IF(A72>$A$8,"",OFFSET(InputPriceData!C$15,CalculationsAndCharts!$A72+$A$11,IF($C$5,8,0),1,1)) -> 5268.5 | E72: =IF(A72>$A$8,"",OFFSET(InputPriceData!D$15,CalculationsAndCharts!$A72+$A$11,IF($C$5,8,0),1,1)) -> 5337.25 | F72: =IF(A72>$A$8,"",OFFSET(InputPriceData!E$15,CalculationsAndCharts!$A72+$A$11,IF($C$5,8,0),1,1)) -> 5266.25 | G72: =IF(A72>$A$8,"",OFFSET(InputPriceData!F$15,CalculationsAndCharts!$A72+$A$11,IF($C$5,8,0),1,1)) -> 5333 | H72: 63.5 | I72: 0 | J72: =IF($A72>$J$30,NA(),AVERAGE(H72:H75)) -> 23.6875 | K72: 0.1875 | N72: =IF($A72>$J$30,NA(),IF($A72>$N$30,0,(1-$M$35)*J72+(2*$M$35-$M$36)*J73-($M$35+$M$37)*J74+$M$36*N73+$M$37*N74)) -> 18.73145913 | O72: 12.95812558 | P72: 0.1821839446 | Q72: 0.1098457553 | T72: 19.71412359 | U72: -2.869544158 | V72: 1.340708317 | W72: 1.029163382 | BC72: 1391029
A73: 41 | B73: =IF(A73>$A$8,"",OFFSET(InputPriceData!B$15,$A73+$A$11,0,1,1)) -> 2024-05-14T04:00:00 | C73: =IF(A73>$A$8,"",OFFSET(InputPriceData!G$15,CalculationsAndCharts!$A73+$A$11,IF($C$5,8,0),1,1)) -> 1252615 | D73: =IF(A73>$A$8,"",OFFSET(InputPriceData!C$15,CalculationsAndCharts!$A73+$A$11,IF($C$5,8,0),1,1)) -> 5241.75 | E73: =IF(A73>$A$8,"",OFFSET(InputPriceData!D$15,CalculationsAndCharts!$A73+$A$11,IF($C$5,8,0),1,1)) -> 5274.25 | F73: =IF(A73>$A$8,"",OFFSET(InputPriceData!E$15,CalculationsAndCharts!$A73+$A$11,IF($C$5,8,0),1,1)) -> 5216.75 | G73: =IF(A73>$A$8,"",OFFSET(InputPriceData!F$15,CalculationsAndCharts!$A73+$A$11,IF($C$5,8,0),1,1)) -> 5269.5 | H73: 24 | I73: 0 | J73: =IF($A73>$J$30,NA(),AVERAGE(H73:H76)) -> 14.375 | K73: 0.1875 | N73: =IF($A73>$J$30,NA(),IF($A73>$N$30,0,(1-$M$35)*J73+(2*$M$35-$M$36)*J74-($M$35+$M$37)*J75+$M$36*N74+$M$37*N75)) -> 18.62783513 | O73: 14.13270394 | P73: 0.1372117589 | Q73: 0.08830847649 | T73: 20.70022627 | U73: -1.841734203 | V73: 1.195321471 | W73: 0.8911534435 | BC73: 1252615
A74: 42 | B74: =IF(A74>$A$8,"",OFFSET(InputPriceData!B$15,$A74+$A$11,0,1,1)) -> 2024-05-13T04:00:00 | C74: =IF(A74>$A$8,"",OFFSET(InputPriceData!G$15,CalculationsAndCharts!$A74+$A$11,IF($C$5,8,0),1,1)) -> 922763 | D74: =IF(A74>$A$8,"",OFFSET(InputPriceData!C$15,CalculationsAndCharts!$A74+$A$11,IF($C$5,8,0),1,1)) -> 5240.5 | E74: =IF(A74>$A$8,"",OFFSET(InputPriceData!D$15,CalculationsAndCharts!$A74+$A$11,IF($C$5,8,0),1,1)) -> 5264 | F74: =IF(A74>$A$8,"",OFFSET(InputPriceData!E$15,CalculationsAndCharts!$A74+$A$11,IF($C$5,8,0),1,1)) -> 5233.25 | G74: =IF(A74>$A$8,"",OFFSET(InputPriceData!F$15,CalculationsAndCharts!$A74+$A$11,IF($C$5,8,0),1,1)) -> 5245.5 | H74: 0 | I74: 0.75 | J74: =IF($A74>$J$30,NA(),AVERAGE(H74:H77)) -> 8.375 | K74: 0.4375 | N74: =IF($A74>$J$30,NA(),IF($A74>$N$30,0,(1-$M$35)*J74+(2*$M$35-$M$36)*J75-($M$35+$M$37)*J76+$M$36*N75+$M$37*N76)) -> 19.13651728 | O74: 15.34848604 | P74: 0.1098457553 | Q74: 0.05503684914 | T74: 24.58921844 | U74: -0.3533992312 | V74: 1.029163382 | W74: 0.7635265036 | BD74: 922763
A75: 43 | B75: =IF(A75>$A$8,"",OFFSET(InputPriceData!B$15,$A75+$A$11,0,1,1)) -> 2024-05-10T04:00:00 | C75: =IF(A75>$A$8,"",OFFSET(InputPriceData!G$15,CalculationsAndCharts!$A75+$A$11,IF($C$5,8,0),1,1)) -> 1112925 | D75: =IF(A75>$A$8,"",OFFSET(InputPriceData!C$15,CalculationsAndCharts!$A75+$A$11,IF($C$5,8,0),1,1)) -> 5240.75 | E75: =IF(A75>$A$8,"",OFFSET(InputPriceData!D$15,CalculationsAndCharts!$A75+$A$11,IF($C$5,8,0),1,1)) -> 5264 | F75: =IF(A75>$A$8,"",OFFSET(InputPriceData!E$15,CalculationsAndCharts!$A75+$A$11,IF($C$5,8,0),1,1)) -> 5232.75 | G75: =IF(A75>$A$8,"",OFFSET(InputPriceData!F$15,CalculationsAndCharts!$A75+$A$11,IF($C$5,8,0),1,1)) -> 5246.25 | H75: 7.25 | I75: 0 | J75: =IF($A75>$J$30,NA(),AVERAGE(H75:H78)) -> 10.1875 | K75: 0.25 | N75: =IF($A75>$J$30,NA(),IF($A75>$N$30,0,(1-$M$35)*J75+(2*$M$35-$M$36)*J76-($M$35+$M$37)*J77+$M$36*N76+$M$37*N77)) -> 19.83121203 | O75: 16.61288899 | P75: 0.08830847649 | Q75: 0.002235677625 | T75: 29.87092916 | U75: 1.719240599 | V75: 0.8911534435 | W75: 0.6181994603 | BC75: 1112925
A76: 44 | B76: =IF(A76>$A$8,"",OFFSET(InputPriceData!B$15,$A76+$A$11,0,1,1)) -> 2024-05-09T04:00:00 | C76: =IF(A76>$A$8,"",OFFSET(InputPriceData!G$15,CalculationsAndCharts!$A76+$A$11,IF($C$5,8,0),1,1)) -> 1094931 | D76: =IF(A76>$A$8,"",OFFSET(InputPriceData!C$15,CalculationsAndCharts!$A76+$A$11,IF($C$5,8,0),1,1)) -> 5209.25 | E76: =IF(A76>$A$8,"",OFFSET(InputPriceData!D$15,CalculationsAndCharts!$A76+$A$11,IF($C$5,8,0),1,1)) -> 5244.75 | F76: =IF(A76>$A$8,"",OFFSET(InputPriceData!E$15,CalculationsAndCharts!$A76+$A$11,IF($C$5,8,0),1,1)) -> 5195 | G76: =IF(A76>$A$8,"",OFFSET(InputPriceData!F$15,CalculationsAndCharts!$A76+$A$11,IF($C$5,8,0),1,1)) -> 5239 | H76: 26.25 | I76: 0 | J76: =IF($A76>$J$30,NA(),AVERAGE(H76:H79)) -> 21.3125 | K76: 0.25 | N76: =IF($A76>$J$30,NA(),IF($A76>$N$30,0,(1-$M$35)*J76+(2*$M$35-$M$36)*J77-($M$35+$M$37)*J78+$M$36*N77+$M$37*N78)) -> 20.02527411 | O76: 17.93600492 | P76: 0.05503684914 | Q76: -0.07339988334 | T76: 33.6855068 | U76: 4.516932155 | V76: 0.7635265036 | W76: 0.4249828831 | BC76: 1094931
A77: 45 | B77: =IF(A77>$A$8,"",OFFSET(InputPriceData!B$15,$A77+$A$11,0,1,1)) -> 2024-05-08T04:00:00 | C77: =IF(A77>$A$8,"",OFFSET(InputPriceData!G$15,CalculationsAndCharts!$A77+$A$11,IF($C$5,8,0),1,1)) -> 1013418 | D77: =IF(A77>$A$8,"",OFFSET(InputPriceData!C$15,CalculationsAndCharts!$A77+$A$11,IF($C$5,8,0),1,1)) -> 5211.75 | E77: =IF(A77>$A$8,"",OFFSET(InputPriceData!D$15,CalculationsAndCharts!$A77+$A$11,IF($C$5,8,0),1,1)) -> 5218 | F77: =IF(A77>$A$8,"",OFFSET(InputPriceData!E$15,CalculationsAndCharts!$A77+$A$11,IF($C$5,8,0),1,1)) -> 5188.75 | G77: =IF(A77>$A$8,"",OFFSET(InputPriceData!F$15,CalculationsAndCharts!$A77+$A$11,IF($C$5,8,0),1,1)) -> 5212.75 | H77: 0 | I77: 1 | J77: =IF($A77>$J$30,NA(),AVERAGE(H77:H80)) -> 30.5625 | K77: 0.25 | N77: =IF($A77>$J$30,NA(),IF($A77>$N$30,0,(1-$M$35)*J77+(2*$M$35-$M$36)*J78-($M$35+$M$37)*J79+$M$36*N78+$M$37*N79)) -> 19.39699397 | O77: 19.31045659 | P77: 0.002235677625 | Q77: -0.1594185093 | T77: 34.36273729 | U77: 8.107598578 | V77: 0.6181994603 | W77: 0.1968947641 | BD77: 1013418
A78: 46 | B78: =IF(A78>$A$8,"",OFFSET(InputPriceData!B$15,$A78+$A$11,0,1,1)) -> 2024-05-07T04:00:00 | C78: =IF(A78>$A$8,"",OFFSET(InputPriceData!G$15,CalculationsAndCharts!$A78+$A$11,IF($C$5,8,0),1,1)) -> 1106457 | D78: =IF(A78>$A$8,"",OFFSET(InputPriceData!C$15,CalculationsAndCharts!$A78+$A$11,IF($C$5,8,0),1,1)) -> 5204.75 | E78: =IF(A78>$A$8,"",OFFSET(InputPriceData!D$15,CalculationsAndCharts!$A78+$A$11,IF($C$5,8,0),1,1)) -> 5226.75 | F78: =IF(A78>$A$8,"",OFFSET(InputPriceData!E$15,CalculationsAndCharts!$A78+$A$11,IF($C$5,8,0),1,1)) -> 5202.25 | G78: =IF(A78>$A$8,"",OFFSET(InputPriceData!F$15,CalculationsAndCharts!$A78+$A$11,IF($C$5,8,0),1,1)) -> 5213.75 | H78: 7.25 | I78: 0 | J78: =IF($A78>$J$30,NA(),AVERAGE(H78:H81)) -> 41.8125 | K78: 0 | N78: =IF($A78>$J$30,NA(),IF($A78>$N$30,0,(1-$M$35)*J78+(2*$M$35-$M$36)*J79-($M$35+$M$37)*J80+$M$36*N79+$M$37*N80)) -> 17.90883048 | O78: 20.7460977 | P78: -0.07339988334 | Q78: -0.2110248508 | T78: 31.27064815 | U78: 12.61850802 | V78: 0.4249828831 | W78: 0.0768883458 | BC78: 1106457
A79: 47 | B79: =IF(A79>$A$8,"",OFFSET(InputPriceData!B$15,$A79+$A$11,0,1,1)) -> 2024-05-06T04:00:00 | C79: =IF(A79>$A$8,"",OFFSET(InputPriceData!G$15,CalculationsAndCharts!$A79+$A$11,IF($C$5,8,0),1,1)) -> 1019307 | D79: =IF(A79>$A$8,"",OFFSET(InputPriceData!C$15,CalculationsAndCharts!$A79+$A$11,IF($C$5,8,0),1,1)) -> 5166.75 | E79: =IF(A79>$A$8,"",OFFSET(InputPriceData!D$15,CalculationsAndCharts!$A79+$A$11,IF($C$5,8,0),1,1)) -> 5207.75 | F79: =IF(A79>$A$8,"",OFFSET(InputPriceData!E$15,CalculationsAndCharts!$A79+$A$11,IF($C$5,8,0),1,1)) -> 5155.75 | G79: =IF(A79>$A$8,"",OFFSET(InputPriceData!F$15,CalculationsAndCharts!$A79+$A$11,IF($C$5,8,0),1,1)) -> 5206.5 | H79: 51.75 | I79: 0 | J79: =IF($A79>$J$30,NA(),AVERAGE(H79:H82)) -> 40 | K79: 5.125 | N79: =IF($A79>$J$30,NA(),IF($A79>$N$30,0,(1-$M$35)*J79+(2*$M$35-$M$36)*J80-($M$35+$M$37)*J81+$M$36*N80+$M$37*N81)) -> 15.97580649 | O79: 22.03551464 | P79: -0.1594185093 | Q79: -0.2158205636 | T79: 25.69112902 | U79: 17.23850822 | V79: 0.1968947641 | W79: 0.1158548542 | BC79: 1019307
A80: 48 | B80: =IF(A80>$A$8,"",OFFSET(InputPriceData!B$15,$A80+$A$11,0,1,1)) -> 2024-05-03T04:00:00 | C80: =IF(A80>$A$8,"",OFFSET(InputPriceData!G$15,CalculationsAndCharts!$A80+$A$11,IF($C$5,8,0),1,1)) -> 1604172 | D80: =IF(A80>$A$8,"",OFFSET(InputPriceData!C$15,CalculationsAndCharts!$A80+$A$11,IF($C$5,8,0),1,1)) -> 5110.25 | E80: =IF(A80>$A$8,"",OFFSET(InputPriceData!D$15,CalculationsAndCharts!$A80+$A$11,IF($C$5,8,0),1,1)) -> 5166.75 | F80: =IF(A80>$A$8,"",OFFSET(InputPriceData!E$15,CalculationsAndCharts!$A80+$A$11,IF($C$5,8,0),1,1)) -> 5099.25 | G80: =IF(A80>$A$8,"",OFFSET(InputPriceData!F$15,CalculationsAndCharts!$A80+$A$11,IF($C$5,8,0),1,1)) -> 5154.75 | H80: 63.25 | I80: 0 | J80: =IF($A80>$J$30,NA(),AVERAGE(H80:H83)) -> 27.0625 | K80: 25.125 | N80: =IF($A80>$J$30,NA(),IF($A80>$N$30,0,(1-$M$35)*J80+(2*$M$35-$M$36)*J81-($M$35+$M$37)*J82+$M$36*N81+$M$37*N82)) -> 14.56159169 | O80: 22.35108346 | P80: -0.2110248508 | Q80: -0.2055725669 | T80: 21.46214118 | U80: 18.3974065 | V80: 0.0768883458 | W80: 0.2069537899 | BC80: 1604172
A81: 49 | B81: =IF(A81>$A$8,"",OFFSET(InputPriceData!B$15,$A81+$A$11,0,1,1)) -> 2024-05-02T04:00:00 | C81: =IF(A81>$A$8,"",OFFSET(InputPriceData!G$15,CalculationsAndCharts!$A81+$A$11,IF($C$5,8,0),1,1)) -> 1573131 | D81: =IF(A81>$A$8,"",OFFSET(InputPriceData!C$15,CalculationsAndCharts!$A81+$A$11,IF($C$5,8,0),1,1)) -> 5057 | E81: =IF(A81>$A$8,"",OFFSET(InputPriceData!D$15,CalculationsAndCharts!$A81+$A$11,IF($C$5,8,0),1,1)) -> 5113 | F81: =IF(A81>$A$8,"",OFFSET(InputPriceData!E$15,CalculationsAndCharts!$A81+$A$11,IF($C$5,8,0),1,1)) -> 5036.25 | G81: =IF(A81>$A$8,"",OFFSET(InputPriceData!F$15,CalculationsAndCharts!$A81+$A$11,IF($C$5,8,0),1,1)) -> 5091.5 | H81: 45 | I81: 0 | J81: =IF($A81>$J$30,NA(),AVERAGE(H81:H84)) -> 15.125 | K81: 25.125 | N81: =IF($A81>$J$30,NA(),IF($A81>$N$30,0,(1-$M$35)*J81+(2*$M$35-$M$36)*J82-($M$35+$M$37)*J83+$M$36*N82+$M$37*N83)) -> 14.09915947 | O81: 21.85985402 | P81: -0.2158205636 | Q81: -0.194578878 | T81: 20.64348195 | U81: 16.35681763 | V81: 0.1158548542 | W81: 0.3171817163 | BC81: 1573131
A82: 50 | B82: =IF(A82>$A$8,"",OFFSET(InputPriceData!B$15,$A82+$A$11,0,1,1)) -> 2024-05-01T04:00:00 | C82: =IF(A82>$A$8,"",OFFSET(InputPriceData!G$15,CalculationsAndCharts!$A82+$A$11,IF($C$5,8,0),1,1)) -> 1955160 | D82: =IF(A82>$A$8,"",OFFSET(InputPriceData!C$15,CalculationsAndCharts!$A82+$A$11,IF($C$5,8,0),1,1)) -> 5050 | E82: =IF(A82>$A$8,"",OFFSET(InputPriceData!D$15,CalculationsAndCharts!$A82+$A$11,IF($C$5,8,0),1,1)) -> 5126.75 | F82: =IF(A82>$A$8,"",OFFSET(InputPriceData!E$15,CalculationsAndCharts!$A82+$A$11,IF($C$5,8,0),1,1)) -> 5037.75 | G82: =IF(A82>$A$8,"",OFFSET(InputPriceData!F$15,CalculationsAndCharts!$A82+$A$11,IF($C$5,8,0),1,1)) -> 5046.5 | H82: 0 | I82: 20.5 | J82: =IF($A82>$J$30,NA(),AVERAGE(H82:H85)) -> 16.1875 | K82: 25.125 | N82: =IF($A82>$J$30,NA(),IF($A82>$N$30,0,(1-$M$35)*J82+(2*$M$35-$M$36)*J83-($M$35+$M$37)*J84+$M$36*N83+$M$37*N84)) -> 14.0614477 | O82: 21.33875908 | P82: -0.2055725669 | Q82: -0.2005718885 | T82: 21.41574162 | U82: 14.07151862 | V82: 0.2069537899 | W82: 0.3094199626 | BD82: 1955160
A83: 51 | B83: =IF(A83>$A$8,"",OFFSET(InputPriceData!B$15,$A83+$A$11,0,1,1)) -> 2024-04-30T04:00:00 | C83: =IF(A83>$A$8,"",OFFSET(InputPriceData!G$15,CalculationsAndCharts!$A83+$A$11,IF($C$5,8,0),1,1)) -> 1675335 | D83: =IF(A83>$A$8,"",OFFSET(InputPriceData!C$15,CalculationsAndCharts!$A83+$A$11,IF($C$5,8,0),1,1)) -> 5148.5 | E83: =IF(A83>$A$8,"",OFFSET(InputPriceData!D$15,CalculationsAndCharts!$A83+$A$11,IF($C$5,8,0),1,1)) -> 5148.5 | F83: =IF(A83>$A$8,"",OFFSET(InputPriceData!E$15,CalculationsAndCharts!$A83+$A$11,IF($C$5,8,0),1,1)) -> 5051 | G83: =IF(A83>$A$8,"",OFFSET(InputPriceData!F$15,CalculationsAndCharts!$A83+$A$11,IF($C$5,8,0),1,1)) -> 5067 | H83: 0 | I83: 80 | J83: =IF($A83>$J$30,NA(),AVERAGE(H83:H86)) -> 16.1875 | K83: 26.3125 | N83: =IF($A83>$J$30,NA(),IF($A83>$N$30,0,(1-$M$35)*J83+(2*$M$35-$M$36)*J84-($M$35+$M$37)*J85+$M$36*N84+$M$37*N85)) -> 13.98285473 | O83: 20.73899288 | P83: -0.194578878 | Q83: -0.2401404126 | T83: 21.95388814 | U83: 11.38075031 | V83: 0.3171817163 | W83: 0.1239691252 | BD83: 1675335
A84: 52 | B84: =IF(A84>$A$8,"",OFFSET(InputPriceData!B$15,$A84+$A$11,0,1,1)) -> 2024-04-29T04:00:00 | C84: =IF(A84>$A$8,"",OFFSET(InputPriceData!G$15,CalculationsAndCharts!$A84+$A$11,IF($C$5,8,0),1,1)) -> 1163440 | D84: =IF(A84>$A$8,"",OFFSET(InputPriceData!C$15,CalculationsAndCharts!$A84+$A$11,IF($C$5,8,0),1,1)) -> 5140.25 | E84: =IF(A84>$A$8,"",OFFSET(InputPriceData!D$15,CalculationsAndCharts!$A84+$A$11,IF($C$5,8,0),1,1)) -> 5154.25 | F84: =IF(A84>$A$8,"",OFFSET(InputPriceData!E$15,CalculationsAndCharts!$A84+$A$11,IF($C$5,8,0),1,1)) -> 5118.75 | G84: =IF(A84>$A$8,"",OFFSET(InputPriceData!F$15,CalculationsAndCharts!$A84+$A$11,IF($C$5,8,0),1,1)) -> 5147 | H84: 15.5 | I84: 0 | J84: =IF($A84>$J$30,NA(),AVERAGE(H84:H87)) -> 16.4375 | K84: 6.3125 | N84: =IF($A84>$J$30,NA(),IF($A84>$N$30,0,(1-$M$35)*J84+(2*$M$35-$M$36)*J85-($M$35+$M$37)*J86+$M$36*N85+$M$37*N86)) -> 13.89487547 | O84: 20.86716321 | P84: -0.2005718885 | Q84: -0.2939401424 | T84: 22.3098099 | U84: 11.76605657 | V84: 0.3094199626 | W84: -0.1247617319 | BC84: 1163440
A85: 53 | B85: =IF(A85>$A$8,"",OFFSET(InputPriceData!B$15,$A85+$A$11,0,1,1)) -> 2024-04-26T04:00:00 | C85: =IF(A85>$A$8,"",OFFSET(InputPriceData!G$15,CalculationsAndCharts!$A85+$A$11,IF($C$5,8,0),1,1)) -> 1455855 | D85: =IF(A85>$A$8,"",OFFSET(InputPriceData!C$15,CalculationsAndCharts!$A85+$A$11,IF($C$5,8,0),1,1)) -> 5132 | E85: =IF(A85>$A$8,"",OFFSET(InputPriceData!D$15,CalculationsAndCharts!$A85+$A$11,IF($C$5,8,0),1,1)) -> 5146.5 | F85: =IF(A85>$A$8,"",OFFSET(InputPriceData!E$15,CalculationsAndCharts!$A85+$A$11,IF($C$5,8,0),1,1)) -> 5104.5 | G85: =IF(A85>$A$8,"",OFFSET(InputPriceData!F$15,CalculationsAndCharts!$A85+$A$11,IF($C$5,8,0),1,1)) -> 5131.5 | H85: 49.25 | I85: 0 | J85: =IF($A85>$J$30,NA(),AVERAGE(H85:H88)) -> 27.3125 | K85: 6.3125 | N85: =IF($A85>$J$30,NA(),IF($A85>$N$30,0,(1-$M$35)*J85+(2*$M$35-$M$36)*J86-($M$35+$M$37)*J87+$M$36*N86+$M$37*N87)) -> 13.35743211 | O85: 21.80020051 | P85: -0.2401404126 | Q85: -0.3434334555 | T85: 20.5317825 | U85: 16.00264187 | V85: 0.1239691252 | W85: -0.3844269256 | BC85: 1455855
A86: 54 | B86: =IF(A86>$A$8,"",OFFSET(InputPriceData!B$15,$A86+$A$11,0,1,1)) -> 2024-04-25T04:00:00 | C86: =IF(A86>$A$8,"",OFFSET(InputPriceData!G$15,CalculationsAndCharts!$A86+$A$11,IF($C$5,8,0),1,1)) -> 1887635 | D86: =IF(A86>$A$8,"",OFFSET(InputPriceData!C$15,CalculationsAndCharts!$A86+$A$11,IF($C$5,8,0),1,1)) -> 5070 | E86: =IF(A86>$A$8,"",OFFSET(InputPriceData!D$15,CalculationsAndCharts!$A86+$A$11,IF($C$5,8,0),1,1)) -> 5132.75 | F86: =IF(A86>$A$8,"",OFFSET(InputPriceData!E$15,CalculationsAndCharts!$A86+$A$11,IF($C$5,8,0),1,1)) -> 5022.25 | G86: =IF(A86>$A$8,"",OFFSET(InputPriceData!F$15,CalculationsAndCharts!$A86+$A$11,IF($C$5,8,0),1,1)) -> 5082.25 | H86: 0 | I86: 25.25 | J86: =IF($A86>$J$30,NA(),AVERAGE(H86:H89)) -> 25.9375 | K86: 6.3125 | N86: =IF($A86>$J$30,NA(),IF($A86>$N$30,0,(1-$M$35)*J86+(2*$M$35-$M$36)*J87-($M$35+$M$37)*J88+$M$36*N87+$M$37*N88)) -> 12.41913411 | O86: 22.75956632 | P86: -0.2939401424 | Q86: -0.3884130232 | T86: 16.53544285 | U86: 21.249566 | V86: -0.1247617319 | W86: -0.6663210311 | BD86: 1887635
A87: 55 | B87: =IF(A87>$A$8,"",OFFSET(InputPriceData!B$15,$A87+$A$11,0,1,1)) -> 2024-04-24T04:00:00 | C87: =IF(A87>$A$8,"",OFFSET(InputPriceData!G$15,CalculationsAndCharts!$A87+$A$11,IF($C$5,8,0),1,1)) -> 1512469 | D87: =IF(A87>$A$8,"",OFFSET(InputPriceData!C$15,CalculationsAndCharts!$A87+$A$11,IF($C$5,8,0),1,1)) -> 5115.25 | E87: =IF(A87>$A$8,"",OFFSET(InputPriceData!D$15,CalculationsAndCharts!$A87+$A$11,IF($C$5,8,0),1,1)) -> 5128.75 | F87: =IF(A87>$A$8,"",OFFSET(InputPriceData!E$15,CalculationsAndCharts!$A87+$A$11,IF($C$5,8,0),1,1)) -> 5072.25 | G87: =IF(A87>$A$8,"",OFFSET(InputPriceData!F$15,CalculationsAndCharts!$A87+$A$11,IF($C$5,8,0),1,1)) -> 5107.5 | H87: 1 | I87: 0 | J87: =IF($A87>$J$30,NA(),AVERAGE(H87:H90)) -> 25.9375 | K87: 11.3125 | N87: =IF($A87>$J$30,NA(),IF($A87>$N$30,0,(1-$M$35)*J87+(2*$M$35-$M$36)*J88-($M$35+$M$37)*J89+$M$36*N88+$M$37*N89)) -> 11.50550935 | O87: 23.54199482 | P87: -0.3434334555 | Q87: -0.4031130064 | T87: 11.87848314 | U87: 26.71476805 | V87: -0.3844269256 | W87: -0.8691401458 | BC87: 1512469
A88: 56 | B88: =IF(A88>$A$8,"",OFFSET(InputPriceData!B$15,$A88+$A$11,0,1,1)) -> 2024-04-23T04:00:00 | C88: =IF(A88>$A$8,"",OFFSET(InputPriceData!G$15,CalculationsAndCharts!$A88+$A$11,IF($C$5,8,0),1,1)) -> 1357493 | D88: =IF(A88>$A$8,"",OFFSET(InputPriceData!C$15,CalculationsAndCharts!$A88+$A$11,IF($C$5,8,0),1,1)) -> 5051 | E88: =IF(A88>$A$8,"",OFFSET(InputPriceData!D$15,CalculationsAndCharts!$A88+$A$11,IF($C$5,8,0),1,1)) -> 5113.5 | F88: =IF(A88>$A$8,"",OFFSET(InputPriceData!E$15,CalculationsAndCharts!$A88+$A$11,IF($C$5,8,0),1,1)) -> 5037.75 | G88: =IF(A88>$A$8,"",OFFSET(InputPriceData!F$15,CalculationsAndCharts!$A88+$A$11,IF($C$5,8,0),1,1)) -> 5106.5 | H88: 59 | I88: 0 | J88: =IF($A88>$J$30,NA(),AVERAGE(H88:H91)) -> 25.6875 | K88: 14.625 | N88: =IF($A88>$J$30,NA(),IF($A88>$N$30,0,(1-$M$35)*J88+(2*$M$35-$M$36)*J89-($M$35+$M$37)*J90+$M$36*N89+$M$37*N90)) -> 10.57381775 | O88: 24.00447822 | P88: -0.3884130232 | Q88: -0.3681142814 | T88: 6.354941197 | U88: 31.73521005 | V88: -0.6663210311 | W88: -0.8750699066 | BC88: 1357493
A89: 57 | B89: =IF(A89>$A$8,"",OFFSET(InputPriceData!B$15,$A89+$A$11,0,1,1)) -> 2024-04-22T04:00:00 | C89: =IF(A89>$A$8,"",OFFSET(InputPriceData!G$15,CalculationsAndCharts!$A89+$A$11,IF($C$5,8,0),1,1)) -> 1584393 | D89: =IF(A89>$A$8,"",OFFSET(InputPriceData!C$15,CalculationsAndCharts!$A89+$A$11,IF($C$5,8,0),1,1)) -> 5014.25 | E89: =IF(A89>$A$8,"",OFFSET(InputPriceData!D$15,CalculationsAndCharts!$A89+$A$11,IF($C$5,8,0),1,1)) -> 5076.75 | F89: =IF(A89>$A$8,"",OFFSET(InputPriceData!E$15,CalculationsAndCharts!$A89+$A$11,IF($C$5,8,0),1,1)) -> 5006 | G89: =IF(A89>$A$8,"",OFFSET(InputPriceData!F$15,CalculationsAndCharts!$A89+$A$11,IF($C$5,8,0),1,1)) -> 5047.5 | H89: 43.75 | I89: 0 | J89: =IF($A89>$J$30,NA(),AVERAGE(H89:H92)) -> 10.9375 | K89: 22.1875 | N89: =IF($A89>$J$30,NA(),IF($A89>$N$30,0,(1-$M$35)*J89+(2*$M$35-$M$36)*J90-($M$35+$M$37)*J91+$M$36*N90+$M$37*N91)) -> 10.22199023 | O89: 24.02901655 | P89: -0.4031130064 | Q89: -0.3088990806 | T89: 2.496105173 | U89: 35.65318344 | V89: -0.8691401458 | W89: -0.7891020976 | BC89: 1584393
A90: 58 | B90: =IF(A90>$A$8,"",OFFSET(InputPriceData!B$15,$A90+$A$11,0,1,1)) -> 2024-04-19T04:00:00 | C90: =IF(A90>$A$8,"",OFFSET(InputPriceData!G$15,CalculationsAndCharts!$A90+$A$11,IF($C$5,8,0),1,1)) -> 2357143 | D90: =IF(A90>$A$8,"",OFFSET(InputPriceData!C$15,CalculationsAndCharts!$A90+$A$11,IF($C$5,8,0),1,1)) -> 5047.25 | E90: =IF(A90>$A$8,"",OFFSET(InputPriceData!D$15,CalculationsAndCharts!$A90+$A$11,IF($C$5,8,0),1,1)) -> 5058 | F90: =IF(A90>$A$8,"",OFFSET(InputPriceData!E$15,CalculationsAndCharts!$A90+$A$11,IF($C$5,8,0),1,1)) -> 4963.5 | G90: =IF(A90>$A$8,"",OFFSET(InputPriceData!F$15,CalculationsAndCharts!$A90+$A$11,IF($C$5,8,0),1,1)) -> 5003.75 | H90: 0 | I90: 45.25 | J90: =IF($A90>$J$30,NA(),AVERAGE(H90:H93)) -> 0 | K90: 25.0625 | N90: =IF($A90>$J$30,NA(),IF($A90>$N$30,0,(1-$M$35)*J90+(2*$M$35-$M$36)*J91-($M$35+$M$37)*J92+$M$36*N91+$M$37*N92)) -> 10.90691231 | O90: 23.61487538 | P90: -0.3681142814 | Q90: -0.2302967238 | T90: 2.546605707 | U90: 38.22188552 | V90: -0.8750699066 | W90: -0.6724657491 | BD90: 2357143
A91: 59 | B91: =IF(A91>$A$8,"",OFFSET(InputPriceData!B$15,$A91+$A$11,0,1,1)) -> 2024-04-18T04:00:00 | C91: =IF(A91>$A$8,"",OFFSET(InputPriceData!G$15,CalculationsAndCharts!$A91+$A$11,IF($C$5,8,0),1,1)) -> 1701401 | D91: =IF(A91>$A$8,"",OFFSET(InputPriceData!C$15,CalculationsAndCharts!$A91+$A$11,IF($C$5,8,0),1,1)) -> 5063 | E91: =IF(A91>$A$8,"",OFFSET(InputPriceData!D$15,CalculationsAndCharts!$A91+$A$11,IF($C$5,8,0),1,1)) -> 5095.25 | F91: =IF(A91>$A$8,"",OFFSET(InputPriceData!E$15,CalculationsAndCharts!$A91+$A$11,IF($C$5,8,0),1,1)) -> 5038.5 | G91: =IF(A91>$A$8,"",OFFSET(InputPriceData!F$15,CalculationsAndCharts!$A91+$A$11,IF($C$5,8,0),1,1)) -> 5049 | H91: 0 | I91: 13.25 | J91: =IF($A91>$J$30,NA(),AVERAGE(H91:H94)) -> 0 | K91: 29.625 | N91: =IF($A91>$J$30,NA(),IF($A91>$N$30,0,(1-$M$35)*J91+(2*$M$35-$M$36)*J92-($M$35+$M$37)*J93+$M$36*N92+$M$37*N93)) -> 12.07310583 | O91: 22.86565778 | P91: -0.3088990806 | Q91: -0.1499394689 | T91: 4.66915854 | U91: 39.60969381 | V91: -0.7891020976 | W91: -0.5702180342 | BD91: 1701401
A92: 60 | B92: =IF(A92>$A$8,"",OFFSET(InputPriceData!B$15,$A92+$A$11,0,1,1)) -> 2024-04-17T04:00:00 | C92: =IF(A92>$A$8,"",OFFSET(InputPriceData!G$15,CalculationsAndCharts!$A92+$A$11,IF($C$5,8,0),1,1)) -> 1928645 | D92: =IF(A92>$A$8,"",OFFSET(InputPriceData!C$15,CalculationsAndCharts!$A92+$A$11,IF($C$5,8,0),1,1)) -> 5096.25 | E92: =IF(A92>$A$8,"",OFFSET(InputPriceData!D$15,CalculationsAndCharts!$A92+$A$11,IF($C$5,8,0),1,1)) -> 5120.5 | F92: =IF(A92>$A$8,"",OFFSET(InputPriceData!E$15,CalculationsAndCharts!$A92+$A$11,IF($C$5,8,0),1,1)) -> 5047 | G92: =IF(A92>$A$8,"",OFFSET(InputPriceData!F$15,CalculationsAndCharts!$A92+$A$11,IF($C$5,8,0),1,1)) -> 5062.25 | H92: 0 | I92: 30.25 | J92: =IF($A92>$J$30,NA(),AVERAGE(H92:H95)) -> 0 | K92: 45.25 | N92: =IF($A92>$J$30,NA(),IF($A92>$N$30,0,(1-$M$35)*J92+(2*$M$35-$M$36)*J93-($M$35+$M$37)*J94+$M$36*N93+$M$37*N94)) -> 13.29605419 | O92: 21.25246496 | P92: -0.2302967238 | Q92: -0.06869862977 | T92: 7.308849539 | U92: 37.32067863 | V92: -0.6724657491 | W92: -0.4752499322 | BD92: 1928645
A93: 61 | B93: =IF(A93>$A$8,"",OFFSET(InputPriceData!B$15,$A93+$A$11,0,1,1)) -> 2024-04-16T04:00:00 | C93: =IF(A93>$A$8,"",OFFSET(InputPriceData!G$15,CalculationsAndCharts!$A93+$A$11,IF($C$5,8,0),1,1)) -> 2098015 | D93: =IF(A93>$A$8,"",OFFSET(InputPriceData!C$15,CalculationsAndCharts!$A93+$A$11,IF($C$5,8,0),1,1)) -> 5101.25 | E93: =IF(A93>$A$8,"",OFFSET(InputPriceData!D$15,CalculationsAndCharts!$A93+$A$11,IF($C$5,8,0),1,1)) -> 5123.25 | F93: =IF(A93>$A$8,"",OFFSET(InputPriceData!E$15,CalculationsAndCharts!$A93+$A$11,IF($C$5,8,0),1,1)) -> 5078.75 | G93: =IF(A93>$A$8,"",OFFSET(InputPriceData!F$15,CalculationsAndCharts!$A93+$A$11,IF($C$5,8,0),1,1)) -> 5092.5 | H93: 0 | I93: 11.5 | J93: =IF($A93>$J$30,NA(),AVERAGE(H93:H96)) -> 8.875 | K93: 37.6875 | N93: =IF($A93>$J$30,NA(),IF($A93>$N$30,0,(1-$M$35)*J93+(2*$M$35-$M$36)*J94-($M$35+$M$37)*J95+$M$36*N94+$M$37*N95)) -> 14.21735896 | O93: 19.23286827 | P93: -0.1499394689 | Q93: 0.01559927646 | T93: 8.976920635 | U93: 32.79738052 | V93: -0.5702180342 | W93: -0.3433913608 | BD93: 2098015
A94: 62 | B94: =IF(A94>$A$8,"",OFFSET(InputPriceData!B$15,$A94+$A$11,0,1,1)) -> 2024-04-15T04:00:00 | C94: =IF(A94>$A$8,"",OFFSET(InputPriceData!G$15,CalculationsAndCharts!$A94+$A$11,IF($C$5,8,0),1,1)) -> 2226105 | D94: =IF(A94>$A$8,"",OFFSET(InputPriceData!C$15,CalculationsAndCharts!$A94+$A$11,IF($C$5,8,0),1,1)) -> 5166.5 | E94: =IF(A94>$A$8,"",OFFSET(InputPriceData!D$15,CalculationsAndCharts!$A94+$A$11,IF($C$5,8,0),1,1)) -> 5213.25 | F94: =IF(A94>$A$8,"",OFFSET(InputPriceData!E$15,CalculationsAndCharts!$A94+$A$11,IF($C$5,8,0),1,1)) -> 5094 | G94: =IF(A94>$A$8,"",OFFSET(InputPriceData!F$15,CalculationsAndCharts!$A94+$A$11,IF($C$5,8,0),1,1)) -> 5104 | H94: 0 | I94: 63.5 | J94: =IF($A94>$J$30,NA(),AVERAGE(H94:H97)) -> 8.875 | K94: 47.9375 | N94: =IF($A94>$J$30,NA(),IF($A94>$N$30,0,(1-$M$35)*J94+(2*$M$35-$M$36)*J95-($M$35+$M$37)*J96+$M$36*N95+$M$37*N96)) -> 14.82362797 | O94: 17.01059551 | P94: -0.06869862977 | Q94: 0.05888712329 | T94: 9.473935793 | U94: 26.63443798 | V94: -0.4752499322 | W94: -0.2933690573 | BD94: 2226105
A95: 63 | B95: =IF(A95>$A$8,"",OFFSET(InputPriceData!B$15,$A95+$A$11,0,1,1)) -> 2024-04-12T04:00:00 | C95: =IF(A95>$A$8,"",OFFSET(InputPriceData!G$15,CalculationsAndCharts!$A95+$A$11,IF($C$5,8,0),1,1)) -> 2005106 | D95: =IF(A95>$A$8,"",OFFSET(InputPriceData!C$15,CalculationsAndCharts!$A95+$A$11,IF($C$5,8,0),1,1)) -> 5244 | E95: =IF(A95>$A$8,"",OFFSET(InputPriceData!D$15,CalculationsAndCharts!$A95+$A$11,IF($C$5,8,0),1,1)) -> 5248.75 | F95: =IF(A95>$A$8,"",OFFSET(InputPriceData!E$15,CalculationsAndCharts!$A95+$A$11,IF($C$5,8,0),1,1)) -> 5150 | G95: =IF(A95>$A$8,"",OFFSET(InputPriceData!F$15,CalculationsAndCharts!$A95+$A$11,IF($C$5,8,0),1,1)) -> 5167.5 | H95: 0 | I95: 75.75 | J95: =IF($A95>$J$30,NA(),AVERAGE(H95:H98)) -> 10.625 | K95: 32.0625 | N95: =IF($A95>$J$30,NA(),IF($A95>$N$30,0,(1-$M$35)*J95+(2*$M$35-$M$36)*J96-($M$35+$M$37)*J97+$M$36*N96+$M$37*N97)) -> 15.38967064 | O95: 14.91690991 | P95: 0.01559927646 | Q95: 0.07102266652 | T95: 9.820281588 | U95: 20.09184872 | V95: -0.3433913608 | W95: -0.3462752936 | BD95: 2005106
A96: 64 | B96: =IF(A96>$A$8,"",OFFSET(InputPriceData!B$15,$A96+$A$11,0,1,1)) -> 2024-04-11T04:00:00 | C96: =IF(A96>$A$8,"",OFFSET(InputPriceData!G$15,CalculationsAndCharts!$A96+$A$11,IF($C$5,8,0),1,1)) -> 1762470 | D96: =IF(A96>$A$8,"",OFFSET(InputPriceData!C$15,CalculationsAndCharts!$A96+$A$11,IF($C$5,8,0),1,1)) -> 5202 | E96: =IF(A96>$A$8,"",OFFSET(InputPriceData!D$15,CalculationsAndCharts!$A96+$A$11,IF($C$5,8,0),1,1)) -> 5257.5 | F96: =IF(A96>$A$8,"",OFFSET(InputPriceData!E$15,CalculationsAndCharts!$A96+$A$11,IF($C$5,8,0),1,1)) -> 5173.5 | G96: =IF(A96>$A$8,"",OFFSET(InputPriceData!F$15,CalculationsAndCharts!$A96+$A$11,IF($C$5,8,0),1,1)) -> 5243.25 | H96: 35.5 | I96: 0 | J96: =IF($A96>$J$30,NA(),AVERAGE(H96:H99)) -> 10.6875 | K96: 13.125 | N96: =IF($A96>$J$30,NA(),IF($A96>$N$30,0,(1-$M$35)*J96+(2*$M$35-$M$36)*J97-($M$35+$M$37)*J98+$M$36*N97+$M$37*N98)) -> 15.91064866 | O96: 14.14099388 | P96: 0.05888712329 | Q96: 0.0835795183 | T96: 9.980136154 | U96: 18.26696017 | V96: -0.2933690573 | W96: -0.426840759 | BC96: 1762470
A97: 65 | B97: =IF(A97>$A$8,"",OFFSET(InputPriceData!B$15,$A97+$A$11,0,1,1)) -> 2024-04-10T04:00:00 | C97: =IF(A97>$A$8,"",OFFSET(InputPriceData!G$15,CalculationsAndCharts!$A97+$A$11,IF($C$5,8,0),1,1)) -> 2369864 | D97: =IF(A97>$A$8,"",OFFSET(InputPriceData!C$15,CalculationsAndCharts!$A97+$A$11,IF($C$5,8,0),1,1)) -> 5264.25 | E97: =IF(A97>$A$8,"",OFFSET(InputPriceData!D$15,CalculationsAndCharts!$A97+$A$11,IF($C$5,8,0),1,1)) -> 5285 | F97: =IF(A97>$A$8,"",OFFSET(InputPriceData!E$15,CalculationsAndCharts!$A97+$A$11,IF($C$5,8,0),1,1)) -> 5176.5 | G97: =IF(A97>$A$8,"",OFFSET(InputPriceData!F$15,CalculationsAndCharts!$A97+$A$11,IF($C$5,8,0),1,1)) -> 5207.75 | H97: 0 | I97: 52.5 | J97: =IF($A97>$J$30,NA(),AVERAGE(H97:H100)) -> 15.75 | K97: 13.125 | N97: =IF($A97>$J$30,NA(),IF($A97>$N$30,0,(1-$M$35)*J97+(2*$M$35-$M$36)*J98-($M$35+$M$37)*J99+$M$36*N98+$M$37*N99)) -> 16.25007987 | O97: 14.09489858 | P97: 0.07102266652 | Q97: 0.1035050973 | T97: =IF($A97>$J$30,NA(),IF($A97>$N$30,0,(1-S$35)*$J97+(2*S$35-S$36)*$J98-(S$35+S$37)*$J99+S$36*T98+S$37*T99)) -> 9.358279592 | U97: =IF($A97>$J$30,NA(),IF($A97>$N$30,0,(1-S$35)*$K97+(2*S$35-S$36)*$K98-(S$35+S$37)*$K99+S$36*U98+S$37*U99)) -> 19.27236417 | V97: =IF($A97>$N$30,NA(),(T97-U97)/(T97+U97)) -> -0.3462752936 | W97: =IF($A97>$N$30,NA(),OFFSET(V97,$C$18,0,1,1)) -> -0.5012072626 | BD97: 2369864
A98: 66 | B98: =IF(A98>$A$8,"",OFFSET(InputPriceData!B$15,$A98+$A$11,0,1,1)) -> 2024-04-09T04:00:00 | C98: =IF(A98>$A$8,"",OFFSET(InputPriceData!G$15,CalculationsAndCharts!$A98+$A$11,IF($C$5,8,0),1,1)) -> 1651973 | D98: =IF(A98>$A$8,"",OFFSET(InputPriceData!C$15,CalculationsAndCharts!$A98+$A$11,IF($C$5,8,0),1,1)) -> 5258 | E98: =IF(A98>$A$8,"",OFFSET(InputPriceData!D$15,CalculationsAndCharts!$A98+$A$11,IF($C$5,8,0),1,1)) -> 5274.25 | F98: =IF(A98>$A$8,"",OFFSET(InputPriceData!E$15,CalculationsAndCharts!$A98+$A$11,IF($C$5,8,0),1,1)) -> 5208.25 | G98: =IF(A98>$A$8,"",OFFSET(InputPriceData!F$15,CalculationsAndCharts!$A98+$A$11,IF($C$5,8,0),1,1)) -> 5260.25 | H98: =IF($A98>$H$30,NA(),IF($G98>$G99,$G98-$G99,0)) -> 7 | I98: =IF($A98>$H$30,NA(),IF(G98<G99,G99-G98,0)) -> 0 | J98: =IF($A98>$J$30,NA(),AVERAGE(H98:H101)) -> 15.75 | K98: 17.3125 | N98: =IF($A98>$J$30,NA(),IF($A98>$N$30,0,(1-$M$35)*J98+(2*$M$35-$M$36)*J99-($M$35+$M$37)*J100+$M$36*N99+$M$37*N100)) -> 16.40278245 | O98: 13.8723975 | P98: =IF($A98>$N$30,NA(),(N98-O98)/(N98+O98)) -> 0.0835795183 | Q98: =IF($A98>$N$30,NA(),OFFSET(P98,$C$17,0,1,1)) -> 0.1386554669 | T98: 7.861416842 | U98: 19.57045995 | V98: -0.426840759 | W98: -0.5526316025 | BC98: 1651973
A99: 67 | B99: =IF(A99>$A$8,"",OFFSET(InputPriceData!B$15,$A99+$A$11,0,1,1)) -> 2024-04-08T04:00:00 | C99: =IF(A99>$A$8,"",OFFSET(InputPriceData!G$15,CalculationsAndCharts!$A99+$A$11,IF($C$5,8,0),1,1)) -> 1167648 | D99: =IF(A99>$A$8,"",OFFSET(InputPriceData!C$15,CalculationsAndCharts!$A99+$A$11,IF($C$5,8,0),1,1)) -> 5263.25 | E99: =IF(A99>$A$8,"",OFFSET(InputPriceData!D$15,CalculationsAndCharts!$A99+$A$11,IF($C$5,8,0),1,1)) -> 5269.25 | F99: =IF(A99>$A$8,"",OFFSET(InputPriceData!E$15,CalculationsAndCharts!$A99+$A$11,IF($C$5,8,0),1,1)) -> 5236.5 | G99: =IF(A99>$A$8,"",OFFSET(InputPriceData!F$15,CalculationsAndCharts!$A99+$A$11,IF($C$5,8,0),1,1)) -> 5253.25 | H99: 0.25 | I99: 0 | J99: =IF($A99>$J$30,NA(),AVERAGE(H99:H102)) -> 15.5 | K99: 17.3125 | N99: =IF($A99>$J$30,NA(),IF($A99>$N$30,0,(1-$M$35)*J99+(2*$M$35-$M$36)*J100-($M$35+$M$37)*J101+$M$36*N100+$M$37*N101)) -> 16.57606964 | O99: 13.46650955 | P99: 0.1035050973 | Q99: 0.2128415787 | T99: 6.313977763 | U99: 19.00306192 | V99: -0.5012072626 | W99: -0.338230566 | BC99: 1167648
A100: 68 | B100: =IF(A100>$A$8,"",OFFSET(InputPriceData!B$15,$A100+$A$11,0,1,1)) -> 2024-04-05T04:00:00 | C100: =IF(A100>$A$8,"",OFFSET(InputPriceData!G$15,CalculationsAndCharts!$A100+$A$11,IF($C$5,8,0),1,1)) -> 1908306 | D100: =IF(A100>$A$8,"",OFFSET(InputPriceData!C$15,CalculationsAndCharts!$A100+$A$11,IF($C$5,8,0),1,1)) -> 5199.75 | E100: =IF(A100>$A$8,"",OFFSET(InputPriceData!D$15,CalculationsAndCharts!$A100+$A$11,IF($C$5,8,0),1,1)) -> 5272.5 | F100: =IF(A100>$A$8,"",OFFSET(InputPriceData!E$15,CalculationsAndCharts!$A100+$A$11,IF($C$5,8,0),1,1)) -> 5191.5 | G100: =IF(A100>$A$8,"",OFFSET(InputPriceData!F$15,CalculationsAndCharts!$A100+$A$11,IF($C$5,8,0),1,1)) -> 5253 | H100: 55.75 | I100: 0 | J100: =IF($A100>$J$30,NA(),AVERAGE(H100:H103)) -> 15.4375 | K100: 26 | N100: =IF($A100>$J$30,NA(),IF($A100>$N$30,0,(1-$M$35)*J100+(2*$M$35-$M$36)*J101-($M$35+$M$37)*J102+$M$36*N101+$M$37*N102)) -> 16.77319309 | O100: 12.68820867 | P100: 0.1386554669 | Q100: 0.2817018581 | T100: 4.791740419 | U100: 16.63015905 | V100: -0.5526316025 | W100: 0.08671131623 | BC100: 1908306
A101: 69 | B101: =IF(A101>$A$8,"",OFFSET(InputPriceData!B$15,$A101+$A$11,0,1,1)) -> 2024-04-04T04:00:00 | C101: =IF(A101>$A$8,"",OFFSET(InputPriceData!G$15,CalculationsAndCharts!$A101+$A$11,IF($C$5,8,0),1,1)) -> 1941274 | D101: =IF(A101>$A$8,"",OFFSET(InputPriceData!C$15,CalculationsAndCharts!$A101+$A$11,IF($C$5,8,0),1,1)) -> 5270.75 | E101: =IF(A101>$A$8,"",OFFSET(InputPriceData!D$15,CalculationsAndCharts!$A101+$A$11,IF($C$5,8,0),1,1)) -> 5308.5 | F101: =IF(A101>$A$8,"",OFFSET(InputPriceData!E$15,CalculationsAndCharts!$A101+$A$11,IF($C$5,8,0),1,1)) -> 5192.5 | G101: =IF(A101>$A$8,"",OFFSET(InputPriceData!F$15,CalculationsAndCharts!$A101+$A$11,IF($C$5,8,0),1,1)) -> 5197.25 | H101: 0 | I101: 69.25 | J101: =IF($A101>$J$30,NA(),AVERAGE(H101:H104)) -> 1.5 | K101: 29.3125 | N101: =IF($A101>$J$30,NA(),IF($A101>$N$30,0,(1-$M$35)*J101+(2*$M$35-$M$36)*J102-($M$35+$M$37)*J103+$M$36*N102+$M$37*N103)) -> 17.54875709 | O101: 11.38949404 | P101: 0.2128415787 | Q101: 0.3114401687 | T101: 5.738392488 | U101: 11.6041809 | V101: -0.338230566 | W101: 0.2990438066 | BD101: 1941274
A102: 70 | B102: =IF(A102>$A$8,"",OFFSET(InputPriceData!B$15,$A102+$A$11,0,1,1)) -> 2024-04-03T04:00:00 | C102: =IF(A102>$A$8,"",OFFSET(InputPriceData!G$15,CalculationsAndCharts!$A102+$A$11,IF($C$5,8,0),1,1)) -> 1402981 | D102: =IF(A102>$A$8,"",OFFSET(InputPriceData!C$15,CalculationsAndCharts!$A102+$A$11,IF($C$5,8,0),1,1)) -> 5262.5 | E102: =IF(A102>$A$8,"",OFFSET(InputPriceData!D$15,CalculationsAndCharts!$A102+$A$11,IF($C$5,8,0),1,1)) -> 5280.75 | F102: =IF(A102>$A$8,"",OFFSET(InputPriceData!E$15,CalculationsAndCharts!$A102+$A$11,IF($C$5,8,0),1,1)) -> 5244.5 | G102: =IF(A102>$A$8,"",OFFSET(InputPriceData!F$15,CalculationsAndCharts!$A102+$A$11,IF($C$5,8,0),1,1)) -> 5266.5 | H102: 6 | I102: 0 | J102: =IF($A102>$J$30,NA(),AVERAGE(H102:H105)) -> 1.5625 | K102: 12 | N102: =IF($A102>$J$30,NA(),IF($A102>$N$30,0,(1-$M$35)*J102+(2*$M$35-$M$36)*J103-($M$35+$M$37)*J104+$M$36*N103+$M$37*N104)) -> 18.92000446 | O102: 10.60324908 | P102: 0.2817018581 | Q102: 0.3231654833 | T102: 9.585549451 | U102: 8.055841244 | V102: 0.08671131623 | W102: 0.3978486749 | BC102: 1402981
A103: 71 | B103: =IF(A103>$A$8,"",OFFSET(InputPriceData!B$15,$A103+$A$11,0,1,1)) -> 2024-04-02T04:00:00 | C103: =IF(A103>$A$8,"",OFFSET(InputPriceData!G$15,CalculationsAndCharts!$A103+$A$11,IF($C$5,8,0),1,1)) -> 1426691 | D103: =IF(A103>$A$8,"",OFFSET(InputPriceData!C$15,CalculationsAndCharts!$A103+$A$11,IF($C$5,8,0),1,1)) -> 5294.5 | E103: =IF(A103>$A$8,"",OFFSET(InputPriceData!D$15,CalculationsAndCharts!$A103+$A$11,IF($C$5,8,0),1,1)) -> 5296 | F103: =IF(A103>$A$8,"",OFFSET(InputPriceData!E$15,CalculationsAndCharts!$A103+$A$11,IF($C$5,8,0),1,1)) -> 5235 | G103: =IF(A103>$A$8,"",OFFSET(InputPriceData!F$15,CalculationsAndCharts!$A103+$A$11,IF($C$5,8,0),1,1)) -> 5260.5 | H103: 0 | I103: 34.75 | J103: =IF($A103>$J$30,NA(),AVERAGE(H103:H106)) -> 10.8125 | K103: 12 | N103: =IF($A103>$J$30,NA(),IF($A103>$N$30,0,(1-$M$35)*J103+(2*$M$35-$M$36)*J104-($M$35+$M$37)*J105+$M$36*N104+$M$37*N105)) -> 19.97075248 | O103: 10.48546345 | P103: 0.3114401687 | Q103: 0.3263421436 | T103: 12.79276343 | U103: 6.902897894 | V103: 0.2990438066 | W103: 0.4407689896 | BD103: 1426691
A104: 72 | B104: =IF(A104>$A$8,"",OFFSET(InputPriceData!B$15,$A104+$A$11,0,1,1)) -> 2024-04-01T04:00:00 | C104: =IF(A104>$A$8,"",OFFSET(InputPriceData!G$15,CalculationsAndCharts!$A104+$A$11,IF($C$5,8,0),1,1)) -> 1125234 | D104: =IF(A104>$A$8,"",OFFSET(InputPriceData!C$15,CalculationsAndCharts!$A104+$A$11,IF($C$5,8,0),1,1)) -> 5314.25 | E104: =IF(A104>$A$8,"",OFFSET(InputPriceData!D$15,CalculationsAndCharts!$A104+$A$11,IF($C$5,8,0),1,1)) -> 5333.5 | F104: =IF(A104>$A$8,"",OFFSET(InputPriceData!E$15,CalculationsAndCharts!$A104+$A$11,IF($C$5,8,0),1,1)) -> 5282.25 | G104: =IF(A104>$A$8,"",OFFSET(InputPriceData!F$15,CalculationsAndCharts!$A104+$A$11,IF($C$5,8,0),1,1)) -> 5295.25 | H104: 0 | I104: 13.25 | J104: =IF($A104>$J$30,NA(),AVERAGE(H104:H107)) -> 10.8125 | K104: 6.5625 | N104: =IF($A104>$J$30,NA(),IF($A104>$N$30,0,(1-$M$35)*J104+(2*$M$35-$M$36)*J105-($M$35+$M$37)*J106+$M$36*N105+$M$37*N106)) -> 20.68887341 | O104: 10.58291182 | P104: 0.3231654833 | Q104: 0.333886608 | T104: 15.2173028 | U104: 6.555158085 | V104: 0.3978486749 | W104: 0.5002774513 | BD104: 1125234
A105: 73 | B105: =IF(A105>$A$8,"",OFFSET(InputPriceData!B$15,$A105+$A$11,0,1,1)) -> 2024-03-28T04:00:00 | C105: =IF(A105>$A$8,"",OFFSET(InputPriceData!G$15,CalculationsAndCharts!$A105+$A$11,IF($C$5,8,0),1,1)) -> 1317836 | D105: =IF(A105>$A$8,"",OFFSET(InputPriceData!C$15,CalculationsAndCharts!$A105+$A$11,IF($C$5,8,0),1,1)) -> 5308 | E105: =IF(A105>$A$8,"",OFFSET(InputPriceData!D$15,CalculationsAndCharts!$A105+$A$11,IF($C$5,8,0),1,1)) -> 5321 | F105: =IF(A105>$A$8,"",OFFSET(InputPriceData!E$15,CalculationsAndCharts!$A105+$A$11,IF($C$5,8,0),1,1)) -> 5301 | G105: =IF(A105>$A$8,"",OFFSET(InputPriceData!F$15,CalculationsAndCharts!$A105+$A$11,IF($C$5,8,0),1,1)) -> 5308.5 | H105: 0.25 | I105: 0 | J105: =IF($A105>$J$30,NA(),AVERAGE(H105:H108)) -> 10.8125 | K105: 7 | N105: =IF($A105>$J$30,NA(),IF($A105>$N$30,0,(1-$M$35)*J105+(2*$M$35-$M$36)*J106-($M$35+$M$37)*J107+$M$36*N106+$M$37*N107)) -> 21.43394906 | O105: 10.88644303 | P105: 0.3263421436 | Q105: 0.3501774133 | T105: 18.28734248 | U105: 7.098187904 | V105: 0.4407689896 | W105: 0.5816091922 | BC105: 1317836
A106: 74 | B106: =IF(A106>$A$8,"",OFFSET(InputPriceData!B$15,$A106+$A$11,0,1,1)) -> 2024-03-27T04:00:00 | C106: =IF(A106>$A$8,"",OFFSET(InputPriceData!G$15,CalculationsAndCharts!$A106+$A$11,IF($C$5,8,0),1,1)) -> 1487671 | D106: =IF(A106>$A$8,"",OFFSET(InputPriceData!C$15,CalculationsAndCharts!$A106+$A$11,IF($C$5,8,0),1,1)) -> 5273.25 | E106: =IF(A106>$A$8,"",OFFSET(InputPriceData!D$15,CalculationsAndCharts!$A106+$A$11,IF($C$5,8,0),1,1)) -> 5313.75 | F106: =IF(A106>$A$8,"",OFFSET(InputPriceData!E$15,CalculationsAndCharts!$A106+$A$11,IF($C$5,8,0),1,1)) -> 5270.75 | G106: =IF(A106>$A$8,"",OFFSET(InputPriceData!F$15,CalculationsAndCharts!$A106+$A$11,IF($C$5,8,0),1,1)) -> 5308.25 | H106: 43 | I106: 0 | J106: =IF($A106>$J$30,NA(),AVERAGE(H106:H109)) -> 10.75 | K106: 9.3125 | N106: =IF($A106>$J$30,NA(),IF($A106>$N$30,0,(1-$M$35)*J106+(2*$M$35-$M$36)*J107-($M$35+$M$37)*J108+$M$36*N107+$M$37*N108)) -> 22.20829441 | O106: 11.09032974 | P106: 0.333886608 | Q106: 0.3576736583 | T106: 22.07355329 | U106: 7.352408249 | V106: 0.5002774513 | W106: 0.6150931105 | BC106: 1487671
A107: 75 | B107: =IF(A107>$A$8,"",OFFSET(InputPriceData!B$15,$A107+$A$11,0,1,1)) -> 2024-03-26T04:00:00 | C107: =IF(A107>$A$8,"",OFFSET(InputPriceData!G$15,CalculationsAndCharts!$A107+$A$11,IF($C$5,8,0),1,1)) -> 1092706 | D107: =IF(A107>$A$8,"",OFFSET(InputPriceData!C$15,CalculationsAndCharts!$A107+$A$11,IF($C$5,8,0),1,1)) -> 5280.75 | E107: =IF(A107>$A$8,"",OFFSET(InputPriceData!D$15,CalculationsAndCharts!$A107+$A$11,IF($C$5,8,0),1,1)) -> 5300.5 | F107: =IF(A107>$A$8,"",OFFSET(InputPriceData!E$15,CalculationsAndCharts!$A107+$A$11,IF($C$5,8,0),1,1)) -> 5263 | G107: =IF(A107>$A$8,"",OFFSET(InputPriceData!F$15,CalculationsAndCharts!$A107+$A$11,IF($C$5,8,0),1,1)) -> 5265.25 | H107: 0 | I107: 13 | J107: =IF($A107>$J$30,NA(),AVERAGE(H107:H110)) -> 3.9375 | K107: 9.3125 | N107: =IF($A107>$J$30,NA(),IF($A107>$N$30,0,(1-$M$35)*J107+(2*$M$35-$M$36)*J108-($M$35+$M$37)*J109+$M$36*N108+$M$37*N109)) -> 23.28732094 | O107: 11.20788052 | P107: 0.3501774133 | Q107: 0.3415918391 | T107: 27.78962579 | U107: 7.351325499 | V107: 0.5816091922 | W107: 0.5721316954 | BD107: 1092706
A108: 76 | B108: =IF(A108>$A$8,"",OFFSET(InputPriceData!B$15,$A108+$A$11,0,1,1)) -> 2024-03-25T04:00:00 | C108: =IF(A108>$A$8,"",OFFSET(InputPriceData!G$15,CalculationsAndCharts!$A108+$A$11,IF($C$5,8,0),1,1)) -> 920608 | D108: =IF(A108>$A$8,"",OFFSET(InputPriceData!C$15,CalculationsAndCharts!$A108+$A$11,IF($C$5,8,0),1,1)) -> 5290.5 | E108: =IF(A108>$A$8,"",OFFSET(InputPriceData!D$15,CalculationsAndCharts!$A108+$A$11,IF($C$5,8,0),1,1)) -> 5295 | F108: =IF(A108>$A$8,"",OFFSET(InputPriceData!E$15,CalculationsAndCharts!$A108+$A$11,IF($C$5,8,0),1,1)) -> 5272.5 | G108: =IF(A108>$A$8,"",OFFSET(InputPriceData!F$15,CalculationsAndCharts!$A108+$A$11,IF($C$5,8,0),1,1)) -> 5278.25 | H108: 0 | I108: 15 | J108: =IF($A108>$J$30,NA(),AVERAGE(H108:H111)) -> 15.1875 | K108: 6.0625 | N108: =IF($A108>$J$30,NA(),IF($A108>$N$30,0,(1-$M$35)*J108+(2*$M$35-$M$36)*J109-($M$35+$M$37)*J110+$M$36*N109+$M$37*N110)) -> 24.22369574 | O108: 11.46042554 | P108: 0.3576736583 | Q108: 0.2900175393 | T108: 33.67089907 | U108: 8.024404873 | V108: 0.6150931105 | W108: 0.4367448551 | BD108: 920608
A109: 77 | B109: =IF(A109>$A$8,"",OFFSET(InputPriceData!B$15,$A109+$A$11,0,1,1)) -> 2024-03-22T04:00:00 | C109: =IF(A109>$A$8,"",OFFSET(InputPriceData!G$15,CalculationsAndCharts!$A109+$A$11,IF($C$5,8,0),1,1)) -> 1162606 | D109: =IF(A109>$A$8,"",OFFSET(InputPriceData!C$15,CalculationsAndCharts!$A109+$A$11,IF($C$5,8,0),1,1)) -> 5306.75 | E109: =IF(A109>$A$8,"",OFFSET(InputPriceData!D$15,CalculationsAndCharts!$A109+$A$11,IF($C$5,8,0),1,1)) -> 5311.75 | F109: =IF(A109>$A$8,"",OFFSET(InputPriceData!E$15,CalculationsAndCharts!$A109+$A$11,IF($C$5,8,0),1,1)) -> 5287.75 | G109: =IF(A109>$A$8,"",OFFSET(InputPriceData!F$15,CalculationsAndCharts!$A109+$A$11,IF($C$5,8,0),1,1)) -> 5293.25 | H109: 0 | I109: 9.25 | J109: =IF($A109>$J$30,NA(),AVERAGE(H109:H112)) -> 21.9375 | K109: 2.3125 | N109: =IF($A109>$J$30,NA(),IF($A109>$N$30,0,(1-$M$35)*J109+(2*$M$35-$M$36)*J110-($M$35+$M$37)*J111+$M$36*N110+$M$37*N111)) -> 24.46110417 | O109: 12.00468738 | P109: 0.3415918391 | Q109: 0.2288427204 | T109: 37.23079577 | U109: 10.13266097 | V109: 0.5721316954 | W109: 0.2676711836 | BC109: =IF(G109>=G110,C109,NA()) ->  | BD109: =IF(G109<G110,C109,NA()) -> 1162606
A110: 78 | B110: =IF(A110>$A$8,"",OFFSET(InputPriceData!B$15,$A110+$A$11,0,1,1)) -> 2024-03-21T04:00:00 | C110: =IF(A110>$A$8,"",OFFSET(InputPriceData!G$15,CalculationsAndCharts!$A110+$A$11,IF($C$5,8,0),1,1)) -> 1326994 | D110: =IF(A110>$A$8,"",OFFSET(InputPriceData!C$15,CalculationsAndCharts!$A110+$A$11,IF($C$5,8,0),1,1)) -> 5294.75 | E110: =IF(A110>$A$8,"",OFFSET(InputPriceData!D$15,CalculationsAndCharts!$A110+$A$11,IF($C$5,8,0),1,1)) -> 5322.75 | F110: =IF(A110>$A$8,"",OFFSET(InputPriceData!E$15,CalculationsAndCharts!$A110+$A$11,IF($C$5,8,0),1,1)) -> 5293.5 | G110: =IF(A110>$A$8,"",OFFSET(InputPriceData!F$15,CalculationsAndCharts!$A110+$A$11,IF($C$5,8,0),1,1)) -> 5302.5 | H110: 15.75 | I110: 0 | J110: =IF($A110>$J$30,NA(),AVERAGE(H110:H113)) -> 50.2075 | K110: 0 | N110: =IF($A110>$J$30,NA(),IF($A110>$N$30,0,(1-$M$35)*J110+(2*$M$35-$M$36)*J111-($M$35+$M$37)*J112+$M$36*N111+$M$37*N112)) -> 23.2819014 | O110: 12.81357899 | P110: 0.2900175393 | Q110: 0.1980159618 | T110: 34.99667109 | U110: 13.71994128 | V110: 0.4367448551 | W110: 0.156351656 | BC110: 1326994
A111: 79 | B111: =IF(A111>$A$8,"",OFFSET(InputPriceData!B$15,$A111+$A$11,0,1,1)) -> 2024-03-20T04:00:00 | C111: =IF(A111>$A$8,"",OFFSET(InputPriceData!G$15,CalculationsAndCharts!$A111+$A$11,IF($C$5,8,0),1,1)) -> 1404974 | D111: =IF(A111>$A$8,"",OFFSET(InputPriceData!C$15,CalculationsAndCharts!$A111+$A$11,IF($C$5,8,0),1,1)) -> 5239.75 | E111: =IF(A111>$A$8,"",OFFSET(InputPriceData!D$15,CalculationsAndCharts!$A111+$A$11,IF($C$5,8,0),1,1)) -> 5297.75 | F111: =IF(A111>$A$8,"",OFFSET(InputPriceData!E$15,CalculationsAndCharts!$A111+$A$11,IF($C$5,8,0),1,1)) -> 5233 | G111: =IF(A111>$A$8,"",OFFSET(InputPriceData!F$15,CalculationsAndCharts!$A111+$A$11,IF($C$5,8,0),1,1)) -> 5286.75 | H111: 45 | I111: 0 | J111: =IF($A111>$J$30,NA(),AVERAGE(H111:H114)) -> 46.27 | K111: 13.02 | N111: =IF($A111>$J$30,NA(),IF($A111>$N$30,0,(1-$M$35)*J111+(2*$M$35-$M$36)*J112-($M$35+$M$37)*J113+$M$36*N112+$M$37*N113)) -> 21.06273095 | O111: 13.21786591 | P111: 0.2288427204 | Q111: 0.1906564047 | T111: 27.80756181 | U111: 16.06432259 | V111: 0.2676711836 | W111: 0.09683208396 | BC111: 1404974
A112: 80 | B112: =IF(A112>$A$8,"",OFFSET(InputPriceData!B$15,$A112+$A$11,0,1,1)) -> 2024-03-19T04:00:00 | C112: =IF(A112>$A$8,"",OFFSET(InputPriceData!G$15,CalculationsAndCharts!$A112+$A$11,IF($C$5,8,0),1,1)) -> 1440289 | D112: =IF(A112>$A$8,"",OFFSET(InputPriceData!C$15,CalculationsAndCharts!$A112+$A$11,IF($C$5,8,0),1,1)) -> 5215.25 | E112: =IF(A112>$A$8,"",OFFSET(InputPriceData!D$15,CalculationsAndCharts!$A112+$A$11,IF($C$5,8,0),1,1)) -> 5244.75 | F112: =IF(A112>$A$8,"",OFFSET(InputPriceData!E$15,CalculationsAndCharts!$A112+$A$11,IF($C$5,8,0),1,1)) -> 5186 | G112: =IF(A112>$A$8,"",OFFSET(InputPriceData!F$15,CalculationsAndCharts!$A112+$A$11,IF($C$5,8,0),1,1)) -> 5241.75 | H112: 27 | I112: 0 | J112: =IF($A112>$J$30,NA(),AVERAGE(H112:H115)) -> 35.02 | K112: 16.5825 | N112: =IF($A112>$J$30,NA(),IF($A112>$N$30,0,(1-$M$35)*J112+(2*$M$35-$M$36)*J113-($M$35+$M$37)*J114+$M$36*N113+$M$37*N114)) -> 19.36379864 | O112: 12.96264652 | P112: 0.1980159618 | Q112: 0.20973729 | T112: 21.75089091 | U112: 15.86896426 | V112: 0.156351656 | W112: 0.1393165331 | BC112: 1440289
A113: 81 | B113: =IF(A113>$A$8,"",OFFSET(InputPriceData!B$15,$A113+$A$11,0,1,1)) -> 2024-03-18T04:00:00 | C113: =IF(A113>$A$8,"",OFFSET(InputPriceData!G$15,CalculationsAndCharts!$A113+$A$11,IF($C$5,8,0),1,1)) -> 1377276 | D113: =IF(A113>$A$8,"",OFFSET(InputPriceData!C$15,CalculationsAndCharts!$A113+$A$11,IF($C$5,8,0),1,1)) -> 5185.75 | E113: =IF(A113>$A$8,"",OFFSET(InputPriceData!D$15,CalculationsAndCharts!$A113+$A$11,IF($C$5,8,0),1,1)) -> 5240.25 | F113: =IF(A113>$A$8,"",OFFSET(InputPriceData!E$15,CalculationsAndCharts!$A113+$A$11,IF($C$5,8,0),1,1)) -> 5181.75 | G113: =IF(A113>$A$8,"",OFFSET(InputPriceData!F$15,CalculationsAndCharts!$A113+$A$11,IF($C$5,8,0),1,1)) -> 5214.75 | H113: 113.08 | I113: 0 | J113: =IF($A113>$J$30,NA(),AVERAGE(H113:H116)) -> 28.27 | K113: 18.895 | N113: =IF($A113>$J$30,NA(),IF($A113>$N$30,0,(1-$M$35)*J113+(2*$M$35-$M$36)*J114-($M$35+$M$37)*J115+$M$36*N114+$M$37*N115)) -> 18.32254962 | O113: 12.45467469 | P113: 0.1906564047 | Q113: 0.2270499272 | T113: 17.64248398 | U113: 14.52740645 | V113: 0.09683208396 | W113: 0.1926767625 | BC113: 1377276
A114: 82 | B114: =IF(A114>$A$8,"",OFFSET(InputPriceData!B$15,$A114+$A$11,0,1,1)) -> 2024-03-15T04:00:00 | C114: =IF(A114>$A$8,"",OFFSET(InputPriceData!G$15,CalculationsAndCharts!$A114+$A$11,IF($C$5,8,0),1,1)) -> 1927775 | D114: =IF(A114>$A$8,"",OFFSET(InputPriceData!C$15,CalculationsAndCharts!$A114+$A$11,IF($C$5,8,0),1,1)) -> 5152.25 | E114: =IF(A114>$A$8,"",OFFSET(InputPriceData!D$15,CalculationsAndCharts!$A114+$A$11,IF($C$5,8,0),1,1)) -> 5167 | F114: =IF(A114>$A$8,"",OFFSET(InputPriceData!E$15,CalculationsAndCharts!$A114+$A$11,IF($C$5,8,0),1,1)) -> 5101.67 | G114: =IF(A114>$A$8,"",OFFSET(InputPriceData!F$15,CalculationsAndCharts!$A114+$A$11,IF($C$5,8,0),1,1)) -> 5101.67 | H114: 0 | I114: 52.08 | J114: =IF($A114>$J$30,NA(),AVERAGE(H114:H117)) -> 13.5625 | K114: 18.895 | N114: =IF($A114>$J$30,NA(),IF($A114>$N$30,0,(1-$M$35)*J114+(2*$M$35-$M$36)*J115-($M$35+$M$37)*J116+$M$36*N115+$M$37*N116)) -> 18.10711619 | O114: 11.82850097 | P114: 0.20973729 | Q114: 0.2335991493 | T114: 16.51582321 | U114: 12.47668718 | V114: 0.1393165331 | W114: 0.2062488262 | BD114: 1927775
A115: 83 | B115: =IF(A115>$A$8,"",OFFSET(InputPriceData!B$15,$A115+$A$11,0,1,1)) -> 2024-03-14T04:00:00 | C115: =IF(A115>$A$8,"",OFFSET(InputPriceData!G$15,CalculationsAndCharts!$A115+$A$11,IF($C$5,8,0),1,1)) -> 476074 | D115: =IF(A115>$A$8,"",OFFSET(InputPriceData!C$15,CalculationsAndCharts!$A115+$A$11,IF($C$5,8,0),1,1)) -> 5171.5 | E115: =IF(A115>$A$8,"",OFFSET(InputPriceData!D$15,CalculationsAndCharts!$A115+$A$11,IF($C$5,8,0),1,1)) -> 5189.5 | F115: =IF(A115>$A$8,"",OFFSET(InputPriceData!E$15,CalculationsAndCharts!$A115+$A$11,IF($C$5,8,0),1,1)) -> 5124.25 | G115: =IF(A115>$A$8,"",OFFSET(InputPriceData!F$15,CalculationsAndCharts!$A115+$A$11,IF($C$5,8,0),1,1)) -> 5153.75 | H115: 0 | I115: 14.25 | J115: =IF($A115>$J$30,NA(),AVERAGE(H115:H118)) -> 13.5625 | K115: 7.375 | N115: =IF($A115>$J$30,NA(),IF($A115>$N$30,0,(1-$M$35)*J115+(2*$M$35-$M$36)*J116-($M$35+$M$37)*J117+$M$36*N116+$M$37*N117)) -> 18.47815538 | O115: 11.63986178 | P115: 0.2270499272 | Q115: 0.2315066167 | T115: 17.75714124 | U115: 12.01981392 | V115: 0.1926767625 | W115: 0.1833274105 | BD115: 476074
A116: 84 | B116: =IF(A116>$A$8,"",OFFSET(InputPriceData!B$15,$A116+$A$11,0,1,1)) -> 2024-03-13T04:00:00 | C116: =IF(A116>$A$8,"",OFFSET(InputPriceData!G$15,CalculationsAndCharts!$A116+$A$11,IF($C$5,8,0),1,1)) -> 540170 | D116: =IF(A116>$A$8,"",OFFSET(InputPriceData!C$15,CalculationsAndCharts!$A116+$A$11,IF($C$5,8,0),1,1)) -> 5176 | E116: =IF(A116>$A$8,"",OFFSET(InputPriceData!D$15,CalculationsAndCharts!$A116+$A$11,IF($C$5,8,0),1,1)) -> 5183.75 | F116: =IF(A116>$A$8,"",OFFSET(InputPriceData!E$15,CalculationsAndCharts!$A116+$A$11,IF($C$5,8,0),1,1)) -> 5153 | G116: =IF(A116>$A$8,"",OFFSET(InputPriceData!F$15,CalculationsAndCharts!$A116+$A$11,IF($C$5,8,0),1,1)) -> 5168 | H116: 0 | I116: 9.25 | J116: =IF($A116>$J$30,NA(),AVERAGE(H116:H119)) -> 13.5625 | K116: 12 | N116: =IF($A116>$J$30,NA(),IF($A116>$N$30,0,(1-$M$35)*J116+(2*$M$35-$M$36)*J117-($M$35+$M$37)*J118+$M$36*N117+$M$37*N118)) -> 18.8637346 | O116: 11.71951379 | P116: 0.2335991493 | Q116: 0.2200049335 | T116: 19.21452461 | U116: 12.64378554 | V116: 0.2062488262 | W116: 0.1170988221 | BD116: 540170
A117: 85 | B117: =IF(A117>$A$8,"",OFFSET(InputPriceData!B$15,$A117+$A$11,0,1,1)) -> 2024-03-12T04:00:00 | C117: =IF(A117>$A$8,"",OFFSET(InputPriceData!G$15,CalculationsAndCharts!$A117+$A$11,IF($C$5,8,0),1,1)) -> 1211911 | D117: =IF(A117>$A$8,"",OFFSET(InputPriceData!C$15,CalculationsAndCharts!$A117+$A$11,IF($C$5,8,0),1,1)) -> 5129 | E117: =IF(A117>$A$8,"",OFFSET(InputPriceData!D$15,CalculationsAndCharts!$A117+$A$11,IF($C$5,8,0),1,1)) -> 5183 | F117: =IF(A117>$A$8,"",OFFSET(InputPriceData!E$15,CalculationsAndCharts!$A117+$A$11,IF($C$5,8,0),1,1)) -> 5112.75 | G117: =IF(A117>$A$8,"",OFFSET(InputPriceData!F$15,CalculationsAndCharts!$A117+$A$11,IF($C$5,8,0),1,1)) -> 5177.25 | H117: 54.25 | I117: 0 | J117: =IF($A117>$J$30,NA(),AVERAGE(H117:H120)) -> 26.0625 | K117: 9.6875 | N117: =IF($A117>$J$30,NA(),IF($A117>$N$30,0,(1-$M$35)*J117+(2*$M$35-$M$36)*J118-($M$35+$M$37)*J119+$M$36*N118+$M$37*N119)) -> 18.75804478 | O117: 11.70552647 | P117: 0.2315066167 | Q117: 0.2346665041 | T117: 18.73318813 | U117: 12.92869676 | V117: 0.1833274105 | W117: 0.1503304484 | BC117: 1211911
A118: 86 | B118: =IF(A118>$A$8,"",OFFSET(InputPriceData!B$15,$A118+$A$11,0,1,1)) -> 2024-03-11T04:00:00 | C118: =IF(A118>$A$8,"",OFFSET(InputPriceData!G$15,CalculationsAndCharts!$A118+$A$11,IF($C$5,8,0),1,1)) -> 1840000 | D118: =IF(A118>$A$8,"",OFFSET(InputPriceData!C$15,CalculationsAndCharts!$A118+$A$11,IF($C$5,8,0),1,1)) -> 5132.5 | E118: =IF(A118>$A$8,"",OFFSET(InputPriceData!D$15,CalculationsAndCharts!$A118+$A$11,IF($C$5,8,0),1,1)) -> 5133.25 | F118: =IF(A118>$A$8,"",OFFSET(InputPriceData!E$15,CalculationsAndCharts!$A118+$A$11,IF($C$5,8,0),1,1)) -> 5094.75 | G118: =IF(A118>$A$8,"",OFFSET(InputPriceData!F$15,CalculationsAndCharts!$A118+$A$11,IF($C$5,8,0),1,1)) -> 5123 | H118: 0 | I118: 6 | J118: =IF($A118>$J$30,NA(),AVERAGE(H118:H121)) -> 19 | K118: 9.6875 | N118: =IF($A118>$J$30,NA(),IF($A118>$N$30,0,(1-$M$35)*J118+(2*$M$35-$M$36)*J119-($M$35+$M$37)*J120+$M$36*N119+$M$37*N120)) -> 18.42708136 | O118: 11.78112658 | P118: 0.2200049335 | Q118: 0.2598876859 | T118: 17.20075909 | U118: 13.59465265 | V118: 0.1170988221 | W118: 0.2424696837 | BD118: 1840000
A119: 87 | B119: =IF(A119>$A$8,"",OFFSET(InputPriceData!B$15,$A119+$A$11,0,1,1)) -> 2024-03-08T05:00:00 | C119: =IF(A119>$A$8,"",OFFSET(InputPriceData!G$15,CalculationsAndCharts!$A119+$A$11,IF($C$5,8,0),1,1)) -> 2786680 | D119: =IF(A119>$A$8,"",OFFSET(InputPriceData!C$15,CalculationsAndCharts!$A119+$A$11,IF($C$5,8,0),1,1)) -> 5159.25 | E119: =IF(A119>$A$8,"",OFFSET(InputPriceData!D$15,CalculationsAndCharts!$A119+$A$11,IF($C$5,8,0),1,1)) -> 5193 | F119: =IF(A119>$A$8,"",OFFSET(InputPriceData!E$15,CalculationsAndCharts!$A119+$A$11,IF($C$5,8,0),1,1)) -> 5121.75 | G119: =IF(A119>$A$8,"",OFFSET(InputPriceData!F$15,CalculationsAndCharts!$A119+$A$11,IF($C$5,8,0),1,1)) -> 5129 | H119: 0 | I119: 32.75 | J119: =IF($A119>$J$30,NA(),AVERAGE(H119:H122)) -> 19 | K119: 21.3125 | N119: =IF($A119>$J$30,NA(),IF($A119>$N$30,0,(1-$M$35)*J119+(2*$M$35-$M$36)*J120-($M$35+$M$37)*J121+$M$36*N120+$M$37*N121)) -> 18.36797716 | O119: 11.38576946 | P119: 0.2346665041 | Q119: 0.2781258719 | T119: 16.62503002 | U119: 12.27975998 | V119: 0.1503304484 | W119: 0.3317574479 | BD119: 2786680
A120: 88 | B120: =IF(A120>$A$8,"",OFFSET(InputPriceData!B$15,$A120+$A$11,0,1,1)) -> 2024-03-07T05:00:00 | C120: =IF(A120>$A$8,"",OFFSET(InputPriceData!G$15,CalculationsAndCharts!$A120+$A$11,IF($C$5,8,0),1,1)) -> 1791666 | D120: =IF(A120>$A$8,"",OFFSET(InputPriceData!C$15,CalculationsAndCharts!$A120+$A$11,IF($C$5,8,0),1,1)) -> 5114.25 | E120: =IF(A120>$A$8,"",OFFSET(InputPriceData!D$15,CalculationsAndCharts!$A120+$A$11,IF($C$5,8,0),1,1)) -> 5170.5 | F120: =IF(A120>$A$8,"",OFFSET(InputPriceData!E$15,CalculationsAndCharts!$A120+$A$11,IF($C$5,8,0),1,1)) -> 5086.5 | G120: =IF(A120>$A$8,"",OFFSET(InputPriceData!F$15,CalculationsAndCharts!$A120+$A$11,IF($C$5,8,0),1,1)) -> 5161.75 | H120: 50 | I120: 0 | J120: =IF($A120>$J$30,NA(),AVERAGE(H120:H123)) -> 19 | K120: 15.0625 | N120: =IF($A120>$J$30,NA(),IF($A120>$N$30,0,(1-$M$35)*J120+(2*$M$35-$M$36)*J121-($M$35+$M$37)*J122+$M$36*N121+$M$37*N122)) -> 18.30606249 | O120: 10.7537699 | P120: 0.2598876859 | Q120: 0.3004642334 | T120: 15.97442572 | U120: 9.739563006 | V120: 0.2424696837 | W120: 0.4724164841 | BC120: 1791666
A121: 89 | B121: =IF(A121>$A$8,"",OFFSET(InputPriceData!B$15,$A121+$A$11,0,1,1)) -> 2024-03-06T05:00:00 | C121: =IF(A121>$A$8,"",OFFSET(InputPriceData!G$15,CalculationsAndCharts!$A121+$A$11,IF($C$5,8,0),1,1)) -> 1996223 | D121: =IF(A121>$A$8,"",OFFSET(InputPriceData!C$15,CalculationsAndCharts!$A121+$A$11,IF($C$5,8,0),1,1)) -> 5091 | E121: =IF(A121>$A$8,"",OFFSET(InputPriceData!D$15,CalculationsAndCharts!$A121+$A$11,IF($C$5,8,0),1,1)) -> 5134.5 | F121: =IF(A121>$A$8,"",OFFSET(InputPriceData!E$15,CalculationsAndCharts!$A121+$A$11,IF($C$5,8,0),1,1)) -> 5083.75 | G121: =IF(A121>$A$8,"",OFFSET(InputPriceData!F$15,CalculationsAndCharts!$A121+$A$11,IF($C$5,8,0),1,1)) -> 5111.75 | H121: 26 | I121: 0 | J121: =IF($A121>$J$30,NA(),AVERAGE(H121:H124)) -> 17.0625 | K121: 15.0625 | N121: =IF($A121>$J$30,NA(),IF($A121>$N$30,0,(1-$M$35)*J121+(2*$M$35-$M$36)*J122-($M$35+$M$37)*J123+$M$36*N122+$M$37*N123)) -> 18.31969882 | O121: 10.34680301 | P121: 0.2781258719 | Q121: 0.304602278 | T121: 15.59253975 | U121: 7.823946149 | V121: 0.3317574479 | W121: 0.5225334934 | BC121: 1996223
A122: 90 | B122: =IF(A122>$A$8,"",OFFSET(InputPriceData!B$15,$A122+$A$11,0,1,1)) -> 2024-03-05T05:00:00 | C122: =IF(A122>$A$8,"",OFFSET(InputPriceData!G$15,CalculationsAndCharts!$A122+$A$11,IF($C$5,8,0),1,1)) -> 1885769 | D122: =IF(A122>$A$8,"",OFFSET(InputPriceData!C$15,CalculationsAndCharts!$A122+$A$11,IF($C$5,8,0),1,1)) -> 5133.75 | E122: =IF(A122>$A$8,"",OFFSET(InputPriceData!D$15,CalculationsAndCharts!$A122+$A$11,IF($C$5,8,0),1,1)) -> 5135.5 | F122: =IF(A122>$A$8,"",OFFSET(InputPriceData!E$15,CalculationsAndCharts!$A122+$A$11,IF($C$5,8,0),1,1)) -> 5063 | G122: =IF(A122>$A$8,"",OFFSET(InputPriceData!F$15,CalculationsAndCharts!$A122+$A$11,IF($C$5,8,0),1,1)) -> 5085.75 | H122: 0 | I122: 52.5 | J122: =IF($A122>$J$30,NA(),AVERAGE(H122:H125)) -> 16.25 | K122: 15.0625 | N122: =IF($A122>$J$30,NA(),IF($A122>$N$30,0,(1-$M$35)*J122+(2*$M$35-$M$36)*J123-($M$35+$M$37)*J124+$M$36*N123+$M$37*N124)) -> 18.44478107 | O122: 9.921675455 | P122: 0.3004642334 | Q122: 0.2832370196 | T122: 15.68481059 | U122: 5.620045419 | V122: 0.4724164841 | W122: 0.4127183046 | BD122: 1885769
A123: 91 | B123: =IF(A123>$A$8,"",OFFSET(InputPriceData!B$15,$A123+$A$11,0,1,1)) -> 2024-03-04T05:00:00 | C123: =IF(A123>$A$8,"",OFFSET(InputPriceData!G$15,CalculationsAndCharts!$A123+$A$11,IF($C$5,8,0),1,1)) -> 1208040 | D123: =IF(A123>$A$8,"",OFFSET(InputPriceData!C$15,CalculationsAndCharts!$A123+$A$11,IF($C$5,8,0),1,1)) -> 5142 | E123: =IF(A123>$A$8,"",OFFSET(InputPriceData!D$15,CalculationsAndCharts!$A123+$A$11,IF($C$5,8,0),1,1)) -> 5157.75 | F123: =IF(A123>$A$8,"",OFFSET(InputPriceData!E$15,CalculationsAndCharts!$A123+$A$11,IF($C$5,8,0),1,1)) -> 5132 | G123: =IF(A123>$A$8,"",OFFSET(InputPriceData!F$15,CalculationsAndCharts!$A123+$A$11,IF($C$5,8,0),1,1)) -> 5138.25 | H123: 0 | I123: 7.75 | J123: =IF($A123>$J$30,NA(),AVERAGE(H123:H126)) -> 16.25 | K123: 4.1875 | N123: =IF($A123>$J$30,NA(),IF($A123>$N$30,0,(1-$M$35)*J123+(2*$M$35-$M$36)*J124-($M$35+$M$37)*J125+$M$36*N124+$M$37*N125)) -> 18.60720838 | O123: 9.918279724 | P123: 0.304602278 | Q123: 0.2758319074 | T123: 16.00856355 | U123: 5.020285561 | V123: 0.5225334934 | W123: 0.3663209831 | BD123: 1208040
A124: 92 | B124: =IF(A124>$A$8,"",OFFSET(InputPriceData!B$15,$A124+$A$11,0,1,1)) -> 2024-03-01T05:00:00 | C124: =IF(A124>$A$8,"",OFFSET(InputPriceData!G$15,CalculationsAndCharts!$A124+$A$11,IF($C$5,8,0),1,1)) -> 1597331 | D124: =IF(A124>$A$8,"",OFFSET(InputPriceData!C$15,CalculationsAndCharts!$A124+$A$11,IF($C$5,8,0),1,1)) -> 5101.5 | E124: =IF(A124>$A$8,"",OFFSET(InputPriceData!D$15,CalculationsAndCharts!$A124+$A$11,IF($C$5,8,0),1,1)) -> 5149.25 | F124: =IF(A124>$A$8,"",OFFSET(InputPriceData!E$15,CalculationsAndCharts!$A124+$A$11,IF($C$5,8,0),1,1)) -> 5089.25 | G124: =IF(A124>$A$8,"",OFFSET(InputPriceData!F$15,CalculationsAndCharts!$A124+$A$11,IF($C$5,8,0),1,1)) -> 5146 | H124: 42.25 | I124: 0 | J124: =IF($A124>$J$30,NA(),AVERAGE(H124:H127)) -> 18.6875 | K124: 2.25 | N124: =IF($A124>$J$30,NA(),IF($A124>$N$30,0,(1-$M$35)*J124+(2*$M$35-$M$36)*J125-($M$35+$M$37)*J126+$M$36*N125+$M$37*N126)) -> 18.67670797 | O124: 10.43203451 | P124: 0.2832370196 | Q124: 0.2919183928 | T124: 16.04830407 | U124: 6.671446949 | V124: 0.4127183046 | W124: 0.4168445361 | BC124: 1597331
A125: 93 | B125: =IF(A125>$A$8,"",OFFSET(InputPriceData!B$15,$A125+$A$11,0,1,1)) -> 2024-02-29T05:00:00 | C125: =IF(A125>$A$8,"",OFFSET(InputPriceData!G$15,CalculationsAndCharts!$A125+$A$11,IF($C$5,8,0),1,1)) -> 1790702 | D125: =IF(A125>$A$8,"",OFFSET(InputPriceData!C$15,CalculationsAndCharts!$A125+$A$11,IF($C$5,8,0),1,1)) -> 5072 | E125: =IF(A125>$A$8,"",OFFSET(InputPriceData!D$15,CalculationsAndCharts!$A125+$A$11,IF($C$5,8,0),1,1)) -> 5114.5 | F125: =IF(A125>$A$8,"",OFFSET(InputPriceData!E$15,CalculationsAndCharts!$A125+$A$11,IF($C$5,8,0),1,1)) -> 5060 | G125: =IF(A125>$A$8,"",OFFSET(InputPriceData!F$15,CalculationsAndCharts!$A125+$A$11,IF($C$5,8,0),1,1)) -> 5103.75 | H125: 22.75 | I125: 0 | J125: =IF($A125>$J$30,NA(),AVERAGE(H125:H128)) -> 8.125 | K125: 7.5625 | N125: =IF($A125>$J$30,NA(),IF($A125>$N$30,0,(1-$M$35)*J125+(2*$M$35-$M$36)*J126-($M$35+$M$37)*J127+$M$36*N126+$M$37*N127)) -> 19.07672659 | O125: 10.82803826 | P125: 0.2758319074 | Q125: 0.2854003564 | T125: 17.58385135 | U125: 8.155124436 | V125: 0.3663209831 | W125: 0.3800890397 | BC125: 1790702
A126: 94 | B126: =IF(A126>$A$8,"",OFFSET(InputPriceData!B$15,$A126+$A$11,0,1,1)) -> 2024-02-28T05:00:00 | C126: =IF(A126>$A$8,"",OFFSET(InputPriceData!G$15,CalculationsAndCharts!$A126+$A$11,IF($C$5,8,0),1,1)) -> 1201011 | D126: =IF(A126>$A$8,"",OFFSET(InputPriceData!C$15,CalculationsAndCharts!$A126+$A$11,IF($C$5,8,0),1,1)) -> 5090.75 | E126: =IF(A126>$A$8,"",OFFSET(InputPriceData!D$15,CalculationsAndCharts!$A126+$A$11,IF($C$5,8,0),1,1)) -> 5091.25 | F126: =IF(A126>$A$8,"",OFFSET(InputPriceData!E$15,CalculationsAndCharts!$A126+$A$11,IF($C$5,8,0),1,1)) -> 5063.25 | G126: =IF(A126>$A$8,"",OFFSET(InputPriceData!F$15,CalculationsAndCharts!$A126+$A$11,IF($C$5,8,0),1,1)) -> 5081 | H126: 0 | I126: 9 | J126: =IF($A126>$J$30,NA(),AVERAGE(H126:H129)) -> 3.375 | K126: 7.5625 | N126: =IF($A126>$J$30,NA(),IF($A126>$N$30,0,(1-$M$35)*J126+(2*$M$35-$M$36)*J127-($M$35+$M$37)*J128+$M$36*N127+$M$37*N128)) -> 20.1107471 | O126: 11.02240684 | P126: 0.2919183928 | Q126: 0.2527120319 | T126: 22.07946336 | U126: 9.087630553 | V126: 0.4168445361 | W126: 0.2459016706 | BD126: 1201011
A127: 95 | B127: =IF(A127>$A$8,"",OFFSET(InputPriceData!B$15,$A127+$A$11,0,1,1)) -> 2024-02-27T05:00:00 | C127: =IF(A127>$A$8,"",OFFSET(InputPriceData!G$15,CalculationsAndCharts!$A127+$A$11,IF($C$5,8,0),1,1)) -> 1026819 | D127: =IF(A127>$A$8,"",OFFSET(InputPriceData!C$15,CalculationsAndCharts!$A127+$A$11,IF($C$5,8,0),1,1)) -> 5077.5 | E127: =IF(A127>$A$8,"",OFFSET(InputPriceData!D$15,CalculationsAndCharts!$A127+$A$11,IF($C$5,8,0),1,1)) -> 5093 | F127: =IF(A127>$A$8,"",OFFSET(InputPriceData!E$15,CalculationsAndCharts!$A127+$A$11,IF($C$5,8,0),1,1)) -> 5067 | G127: =IF(A127>$A$8,"",OFFSET(InputPriceData!F$15,CalculationsAndCharts!$A127+$A$11,IF($C$5,8,0),1,1)) -> 5090 | H127: 9.75 | I127: 0 | J127: =IF($A127>$J$30,NA(),AVERAGE(H127:H130)) -> 28.75 | K127: 5.3125 | N127: =IF($A127>$J$30,NA(),IF($A127>$N$30,0,(1-$M$35)*J127+(2*$M$35-$M$36)*J128-($M$35+$M$37)*J129+$M$36*N128+$M$37*N129)) -> 20.34863913 | O127: 11.31253013 | P127: 0.2854003564 | Q127: 0.2221008565 | T127: 23.74379569 | U127: 10.66528229 | V127: 0.3800890397 | W127: 0.1015147538 | BC127: 1026819
A128: 96 | B128: =IF(A128>$A$8,"",OFFSET(InputPriceData!B$15,$A128+$A$11,0,1,1)) -> 2024-02-26T05:00:00 | C128: =IF(A128>$A$8,"",OFFSET(InputPriceData!G$15,CalculationsAndCharts!$A128+$A$11,IF($C$5,8,0),1,1)) -> 1094682 | D128: =IF(A128>$A$8,"",OFFSET(InputPriceData!C$15,CalculationsAndCharts!$A128+$A$11,IF($C$5,8,0),1,1)) -> 5095 | E128: =IF(A128>$A$8,"",OFFSET(InputPriceData!D$15,CalculationsAndCharts!$A128+$A$11,IF($C$5,8,0),1,1)) -> 5108 | F128: =IF(A128>$A$8,"",OFFSET(InputPriceData!E$15,CalculationsAndCharts!$A128+$A$11,IF($C$5,8,0),1,1)) -> 5076.25 | G128: =IF(A128>$A$8,"",OFFSET(InputPriceData!F$15,CalculationsAndCharts!$A128+$A$11,IF($C$5,8,0),1,1)) -> 5080.25 | H128: 0 | I128: 21.25 | J128: =IF($A128>$J$30,NA(),AVERAGE(H128:H131)) -> 27.5 | K128: 5.3125 | N128: =IF($A128>$J$30,NA(),IF($A128>$N$30,0,(1-$M$35)*J128+(2*$M$35-$M$36)*J129-($M$35+$M$37)*J130+$M$36*N129+$M$37*N130)) -> 19.61604763 | O128: 11.70168083 | P128: 0.2527120319 | Q128: 0.2040395857 | T128: 21.42794459 | U128: 12.96954455 | V128: 0.2459016706 | W128: -0.02150170115 | BD128: 1094682
A129: 97 | B129: =IF(A129>$A$8,"",OFFSET(InputPriceData!B$15,$A129+$A$11,0,1,1)) -> 2024-02-23T05:00:00 | C129: =IF(A129>$A$8,"",OFFSET(InputPriceData!G$15,CalculationsAndCharts!$A129+$A$11,IF($C$5,8,0),1,1)) -> 1340050 | D129: =IF(A129>$A$8,"",OFFSET(InputPriceData!C$15,CalculationsAndCharts!$A129+$A$11,IF($C$5,8,0),1,1)) -> 5094.25 | E129: =IF(A129>$A$8,"",OFFSET(InputPriceData!D$15,CalculationsAndCharts!$A129+$A$11,IF($C$5,8,0),1,1)) -> 5123.5 | F129: =IF(A129>$A$8,"",OFFSET(InputPriceData!E$15,CalculationsAndCharts!$A129+$A$11,IF($C$5,8,0),1,1)) -> 5092 | G129: =IF(A129>$A$8,"",OFFSET(InputPriceData!F$15,CalculationsAndCharts!$A129+$A$11,IF($C$5,8,0),1,1)) -> 5101.5 | H129: 3.75 | I129: 0 | J129: =IF($A129>$J$30,NA(),AVERAGE(H129:H132)) -> 27.5 | K129: 7.0625 | N129: =IF($A129>$J$30,NA(),IF($A129>$N$30,0,(1-$M$35)*J129+(2*$M$35-$M$36)*J130-($M$35+$M$37)*J131+$M$36*N130+$M$37*N131)) -> 18.90140519 | O129: 12.03123853 | P129: 0.2221008565 | Q129: 0.2163246838 | T129: 18.85735917 | U129: 15.38159969 | V129: 0.1015147538 | W129: -0.02940240929 | BC129: 1340050
A130: 98 | B130: =IF(A130>$A$8,"",OFFSET(InputPriceData!B$15,$A130+$A$11,0,1,1)) -> 2024-02-22T05:00:00 | C130: =IF(A130>$A$8,"",OFFSET(InputPriceData!G$15,CalculationsAndCharts!$A130+$A$11,IF($C$5,8,0),1,1)) -> 1738869 | D130: =IF(A130>$A$8,"",OFFSET(InputPriceData!C$15,CalculationsAndCharts!$A130+$A$11,IF($C$5,8,0),1,1)) -> 5016 | E130: =IF(A130>$A$8,"",OFFSET(InputPriceData!D$15,CalculationsAndCharts!$A130+$A$11,IF($C$5,8,0),1,1)) -> 5107.75 | F130: =IF(A130>$A$8,"",OFFSET(InputPriceData!E$15,CalculationsAndCharts!$A130+$A$11,IF($C$5,8,0),1,1)) -> 5015.25 | G130: =IF(A130>$A$8,"",OFFSET(InputPriceData!F$15,CalculationsAndCharts!$A130+$A$11,IF($C$5,8,0),1,1)) -> 5097.75 | H130: 101.5 | I130: 0 | J130: =IF($A130>$J$30,NA(),AVERAGE(H130:H133)) -> 26.5625 | K130: 13.75 | N130: =IF($A130>$J$30,NA(),IF($A130>$N$30,0,(1-$M$35)*J130+(2*$M$35-$M$36)*J131-($M$35+$M$37)*J132+$M$36*N131+$M$37*N132)) -> 18.19384339 | O130: 12.02749419 | P130: 0.2040395857 | Q130: 0.2375527184 | T130: 15.99795993 | U130: 16.70104415 | V130: -0.02150170115 | W130: 0.007768571641 | BC130: 1738869
A131: 99 | B131: =IF(A131>$A$8,"",OFFSET(InputPriceData!B$15,$A131+$A$11,0,1,1)) -> 2024-02-21T05:00:00 | C131: =IF(A131>$A$8,"",OFFSET(InputPriceData!G$15,CalculationsAndCharts!$A131+$A$11,IF($C$5,8,0),1,1)) -> 1485687 | D131: =IF(A131>$A$8,"",OFFSET(InputPriceData!C$15,CalculationsAndCharts!$A131+$A$11,IF($C$5,8,0),1,1)) -> 4990 | E131: =IF(A131>$A$8,"",OFFSET(InputPriceData!D$15,CalculationsAndCharts!$A131+$A$11,IF($C$5,8,0),1,1)) -> 5020.5 | F131: =IF(A131>$A$8,"",OFFSET(InputPriceData!E$15,CalculationsAndCharts!$A131+$A$11,IF($C$5,8,0),1,1)) -> 4959 | G131: =IF(A131>$A$8,"",OFFSET(InputPriceData!F$15,CalculationsAndCharts!$A131+$A$11,IF($C$5,8,0),1,1)) -> 4996.25 | H131: 4.75 | I131: 0 | J131: =IF($A131>$J$30,NA(),AVERAGE(H131:H134)) -> 8.3125 | K131: 13.75 | N131: =IF($A131>$J$30,NA(),IF($A131>$N$30,0,(1-$M$35)*J131+(2*$M$35-$M$36)*J132-($M$35+$M$37)*J133+$M$36*N132+$M$37*N133)) -> 18.23311951 | O131: 11.74755876 | P131: 0.2163246838 | Q131: 0.2671604396 | T131: 16.02118961 | U131: 16.99185258 | V131: -0.02940240929 | W131: 0.0587869421 | BC131: 1485687
A132: 100 | B132: =IF(A132>$A$8,"",OFFSET(InputPriceData!B$15,$A132+$A$11,0,1,1)) -> 2024-02-20T05:00:00 | C132: =IF(A132>$A$8,"",OFFSET(InputPriceData!G$15,CalculationsAndCharts!$A132+$A$11,IF($C$5,8,0),1,1)) -> 1609827 | D132: =IF(A132>$A$8,"",OFFSET(InputPriceData!C$15,CalculationsAndCharts!$A132+$A$11,IF($C$5,8,0),1,1)) -> 5016.5 | E132: =IF(A132>$A$8,"",OFFSET(InputPriceData!D$15,CalculationsAndCharts!$A132+$A$11,IF($C$5,8,0),1,1)) -> 5029.5 | F132: =IF(A132>$A$8,"",OFFSET(InputPriceData!E$15,CalculationsAndCharts!$A132+$A$11,IF($C$5,8,0),1,1)) -> 4968.25 | G132: =IF(A132>$A$8,"",OFFSET(InputPriceData!F$15,CalculationsAndCharts!$A132+$A$11,IF($C$5,8,0),1,1)) -> 4991.5 | H132: 0 | I132: 28.25 | J132: =IF($A132>$J$30,NA(),AVERAGE(H132:H135)) -> 18.8125 | K132: 13.75 | N132: =IF($A132>$J$30,NA(),IF($A132>$N$30,0,(1-$M$35)*J132+(2*$M$35-$M$36)*J133-($M$35+$M$37)*J134+$M$36*N133+$M$37*N134)) -> 18.58659691 | O132: 11.45106796 | P132: 0.2375527184 | Q132: 0.3081327329 | T132: 17.46933198 | U132: 17.20000078 | V132: 0.007768571641 | W132: 0.1619587029 | BD132: 1609827
A133: 101 | B133: =IF(A133>$A$8,"",OFFSET(InputPriceData!B$15,$A133+$A$11,0,1,1)) -> 2024-02-16T05:00:00 | C133: =IF(A133>$A$8,"",OFFSET(InputPriceData!G$15,CalculationsAndCharts!$A133+$A$11,IF($C$5,8,0),1,1)) -> 1527729 | D133: =IF(A133>$A$8,"",OFFSET(InputPriceData!C$15,CalculationsAndCharts!$A133+$A$11,IF($C$5,8,0),1,1)) -> 5049.5 | E133: =IF(A133>$A$8,"",OFFSET(InputPriceData!D$15,CalculationsAndCharts!$A133+$A$11,IF($C$5,8,0),1,1)) -> 5059.25 | F133: =IF(A133>$A$8,"",OFFSET(InputPriceData!E$15,CalculationsAndCharts!$A133+$A$11,IF($C$5,8,0),1,1)) -> 5012.75 | G133: =IF(A133>$A$8,"",OFFSET(InputPriceData!F$15,CalculationsAndCharts!$A133+$A$11,IF($C$5,8,0),1,1)) -> 5019.75 | H133: 0 | I133: 26.75 | J133: =IF($A133>$J$30,NA(),AVERAGE(H133:H136)) -> 18.8125 | K133: 24.1875 | N133: =IF($A133>$J$30,NA(),IF($A133>$N$30,0,(1-$M$35)*J133+(2*$M$35-$M$36)*J134-($M$35+$M$37)*J135+$M$36*N134+$M$37*N135)) -> 18.52798184 | O133: 10.71532668 | P133: 0.2671604396 | Q133: 0.3426486821 | T133: 17.42217945 | U133: 15.48751892 | V133: 0.0587869421 | W133: 0.2708521858 | BD133: 1527729
A134: 102 | B134: =IF(A134>$A$8,"",OFFSET(InputPriceData!B$15,$A134+$A$11,0,1,1)) -> 2024-02-15T05:00:00 | C134: =IF(A134>$A$8,"",OFFSET(InputPriceData!G$15,CalculationsAndCharts!$A134+$A$11,IF($C$5,8,0),1,1)) -> 1361757 | D134: =IF(A134>$A$8,"",OFFSET(InputPriceData!C$15,CalculationsAndCharts!$A134+$A$11,IF($C$5,8,0),1,1)) -> 5017.5 | E134: =IF(A134>$A$8,"",OFFSET(InputPriceData!D$15,CalculationsAndCharts!$A134+$A$11,IF($C$5,8,0),1,1)) -> 5051.75 | F134: =IF(A134>$A$8,"",OFFSET(InputPriceData!E$15,CalculationsAndCharts!$A134+$A$11,IF($C$5,8,0),1,1)) -> 5011 | G134: =IF(A134>$A$8,"",OFFSET(InputPriceData!F$15,CalculationsAndCharts!$A134+$A$11,IF($C$5,8,0),1,1)) -> 5046.5 | H134: 28.5 | I134: 0 | J134: =IF($A134>$J$30,NA(),AVERAGE(H134:H137)) -> 18.8125 | K134: 18.1875 | N134: =IF($A134>$J$30,NA(),IF($A134>$N$30,0,(1-$M$35)*J134+(2*$M$35-$M$36)*J135-($M$35+$M$37)*J136+$M$36*N135+$M$37*N136)) -> 18.4654591 | O134: 9.766322947 | P134: 0.3081327329 | Q134: 0.3915319702 | T134: 17.43944122 | U134: 12.57787554 | V134: 0.1619587029 | W134: 0.4687152295 | BC134: 1361757
A135: 103 | B135: =IF(A135>$A$8,"",OFFSET(InputPriceData!B$15,$A135+$A$11,0,1,1)) -> 2024-02-14T05:00:00 | C135: =IF(A135>$A$8,"",OFFSET(InputPriceData!G$15,CalculationsAndCharts!$A135+$A$11,IF($C$5,8,0),1,1)) -> 1632071 | D135: =IF(A135>$A$8,"",OFFSET(InputPriceData!C$15,CalculationsAndCharts!$A135+$A$11,IF($C$5,8,0),1,1)) -> 4974.25 | E135: =IF(A135>$A$8,"",OFFSET(InputPriceData!D$15,CalculationsAndCharts!$A135+$A$11,IF($C$5,8,0),1,1)) -> 5022.5 | F135: =IF(A135>$A$8,"",OFFSET(InputPriceData!E$15,CalculationsAndCharts!$A135+$A$11,IF($C$5,8,0),1,1)) -> 4968.75 | G135: =IF(A135>$A$8,"",OFFSET(InputPriceData!F$15,CalculationsAndCharts!$A135+$A$11,IF($C$5,8,0),1,1)) -> 5018 | H135: 46.75 | I135: 0 | J135: =IF($A135>$J$30,NA(),AVERAGE(H135:H138)) -> 18.25 | K135: 18.1875 | N135: =IF($A135>$J$30,NA(),IF($A135>$N$30,0,(1-$M$35)*J135+(2*$M$35-$M$36)*J136-($M$35+$M$37)*J137+$M$36*N136+$M$37*N137)) -> 18.4216694 | O135: 9.019119315 | P135: 0.3426486821 | Q135: 0.4072804263 | T135: 17.64087925 | U135: 10.12140412 | V135: 0.2708521858 | W135: 0.5369364523 | BC135: 1632071
A136: 104 | B136: =IF(A136>$A$8,"",OFFSET(InputPriceData!B$15,$A136+$A$11,0,1,1)) -> 2024-02-13T05:00:00 | C136: =IF(A136>$A$8,"",OFFSET(InputPriceData!G$15,CalculationsAndCharts!$A136+$A$11,IF($C$5,8,0),1,1)) -> 2112726 | D136: =IF(A136>$A$8,"",OFFSET(InputPriceData!C$15,CalculationsAndCharts!$A136+$A$11,IF($C$5,8,0),1,1)) -> 5034 | E136: =IF(A136>$A$8,"",OFFSET(InputPriceData!D$15,CalculationsAndCharts!$A136+$A$11,IF($C$5,8,0),1,1)) -> 5040 | F136: =IF(A136>$A$8,"",OFFSET(InputPriceData!E$15,CalculationsAndCharts!$A136+$A$11,IF($C$5,8,0),1,1)) -> 4936.5 | G136: =IF(A136>$A$8,"",OFFSET(InputPriceData!F$15,CalculationsAndCharts!$A136+$A$11,IF($C$5,8,0),1,1)) -> 4971.25 | H136: 0 | I136: 70 | J136: =IF($A136>$J$30,NA(),AVERAGE(H136:H139)) -> 7.1875 | K136: 18.1875 | N136: =IF($A136>$J$30,NA(),IF($A136>$N$30,0,(1-$M$35)*J136+(2*$M$35-$M$36)*J137-($M$35+$M$37)*J138+$M$36*N137+$M$37*N138)) -> 18.84496823 | O136: 8.240242363 | P136: 0.3915319702 | Q136: 0.3747301406 | T136: 19.9690897 | U136: 7.223505975 | V136: 0.4687152295 | W136: 0.4231242112 | BD136: 2112726
A137: 105 | B137: =IF(A137>$A$8,"",OFFSET(InputPriceData!B$15,$A137+$A$11,0,1,1)) -> 2024-02-12T05:00:00 | C137: =IF(A137>$A$8,"",OFFSET(InputPriceData!G$15,CalculationsAndCharts!$A137+$A$11,IF($C$5,8,0),1,1)) -> 1141487 | D137: =IF(A137>$A$8,"",OFFSET(InputPriceData!C$15,CalculationsAndCharts!$A137+$A$11,IF($C$5,8,0),1,1)) -> 5042.5 | E137: =IF(A137>$A$8,"",OFFSET(InputPriceData!D$15,CalculationsAndCharts!$A137+$A$11,IF($C$5,8,0),1,1)) -> 5066.5 | F137: =IF(A137>$A$8,"",OFFSET(InputPriceData!E$15,CalculationsAndCharts!$A137+$A$11,IF($C$5,8,0),1,1)) -> 5031.5 | G137: =IF(A137>$A$8,"",OFFSET(InputPriceData!F$15,CalculationsAndCharts!$A137+$A$11,IF($C$5,8,0),1,1)) -> 5041.25 | H137: 0 | I137: 2.75 | J137: =IF($A137>$J$30,NA(),AVERAGE(H137:H140)) -> 17.3125 | K137: 0.6875 | N137: =IF($A137>$J$30,NA(),IF($A137>$N$30,0,(1-$M$35)*J137+(2*$M$35-$M$36)*J138-($M$35+$M$37)*J139+$M$36*N138+$M$37*N139)) -> 19.32108967 | O137: 8.137673073 | P137: 0.4072804263 | Q137: 0.3527371378 | T137: 22.90016933 | U137: 6.899591482 | V137: 0.5369364523 | W137: 0.3508839082 | BD137: 1141487
A138: 106 | B138: =IF(A138>$A$8,"",OFFSET(InputPriceData!B$15,$A138+$A$11,0,1,1)) -> 2024-02-09T05:00:00 | C138: =IF(A138>$A$8,"",OFFSET(InputPriceData!G$15,CalculationsAndCharts!$A138+$A$11,IF($C$5,8,0),1,1)) -> 1212336 | D138: =IF(A138>$A$8,"",OFFSET(InputPriceData!C$15,CalculationsAndCharts!$A138+$A$11,IF($C$5,8,0),1,1)) -> 5014.5 | E138: =IF(A138>$A$8,"",OFFSET(InputPriceData!D$15,CalculationsAndCharts!$A138+$A$11,IF($C$5,8,0),1,1)) -> 5048.5 | F138: =IF(A138>$A$8,"",OFFSET(InputPriceData!E$15,CalculationsAndCharts!$A138+$A$11,IF($C$5,8,0),1,1)) -> 5013 | G138: =IF(A138>$A$8,"",OFFSET(InputPriceData!F$15,CalculationsAndCharts!$A138+$A$11,IF($C$5,8,0),1,1)) -> 5044 | H138: 26.25 | I138: 0 | J138: =IF($A138>$J$30,NA(),AVERAGE(H138:H141)) -> 20.5 | K138: 0 | N138: =IF($A138>$J$30,NA(),IF($A138>$N$30,0,(1-$M$35)*J138+(2*$M$35-$M$36)*J139-($M$35+$M$37)*J140+$M$36*N139+$M$37*N140)) -> 19.27474964 | O138: 8.766753301 | P138: 0.3747301406 | Q138: 0.333917579 | T138: 24.00824874 | U138: 9.731952644 | V138: 0.4231242112 | W138: 0.2917644773 | BC138: 1212336
A139: 107 | B139: =IF(A139>$A$8,"",OFFSET(InputPriceData!B$15,$A139+$A$11,0,1,1)) -> 2024-02-08T05:00:00 | C139: =IF(A139>$A$8,"",OFFSET(InputPriceData!G$15,CalculationsAndCharts!$A139+$A$11,IF($C$5,8,0),1,1)) -> 997431 | D139: =IF(A139>$A$8,"",OFFSET(InputPriceData!C$15,CalculationsAndCharts!$A139+$A$11,IF($C$5,8,0),1,1)) -> 5015.75 | E139: =IF(A139>$A$8,"",OFFSET(InputPriceData!D$15,CalculationsAndCharts!$A139+$A$11,IF($C$5,8,0),1,1)) -> 5020 | F139: =IF(A139>$A$8,"",OFFSET(InputPriceData!E$15,CalculationsAndCharts!$A139+$A$11,IF($C$5,8,0),1,1)) -> 5003.75 | G139: =IF(A139>$A$8,"",OFFSET(InputPriceData!F$15,CalculationsAndCharts!$A139+$A$11,IF($C$5,8,0),1,1)) -> 5017.75 | H139: 2.5 | I139: 0 | J139: =IF($A139>$J$30,NA(),AVERAGE(H139:H142)) -> 13.9375 | K139: 4.5625 | N139: =IF($A139>$J$30,NA(),IF($A139>$N$30,0,(1-$M$35)*J139+(2*$M$35-$M$36)*J140-($M$35+$M$37)*J141+$M$36*N140+$M$37*N141)) -> 19.35992941 | O139: 9.263413394 | P139: 0.3527371378 | Q139: 0.2982837264 | T139: 25.80947275 | U139: 12.40176449 | V139: 0.3508839082 | W139: 0.181464871 | BC139: 997431
A140: 108 | B140: =IF(A140>$A$8,"",OFFSET(InputPriceData!B$15,$A140+$A$11,0,1,1)) -> 2024-02-07T05:00:00 | C140: =IF(A140>$A$8,"",OFFSET(InputPriceData!G$15,CalculationsAndCharts!$A140+$A$11,IF($C$5,8,0),1,1)) -> 1336172 | D140: =IF(A140>$A$8,"",OFFSET(InputPriceData!C$15,CalculationsAndCharts!$A140+$A$11,IF($C$5,8,0),1,1)) -> 4971.5 | E140: =IF(A140>$A$8,"",OFFSET(InputPriceData!D$15,CalculationsAndCharts!$A140+$A$11,IF($C$5,8,0),1,1)) -> 5020 | F140: =IF(A140>$A$8,"",OFFSET(InputPriceData!E$15,CalculationsAndCharts!$A140+$A$11,IF($C$5,8,0),1,1)) -> 4970 | G140: =IF(A140>$A$8,"",OFFSET(InputPriceData!F$15,CalculationsAndCharts!$A140+$A$11,IF($C$5,8,0),1,1)) -> 5015.25 | H140: 40.5 | I140: 0 | J140: =IF($A140>$J$30,NA(),AVERAGE(H140:H143)) -> 26.25 | K140: 4.5625 | N140: =IF($A140>$J$30,NA(),IF($A140>$N$30,0,(1-$M$35)*J140+(2*$M$35-$M$36)*J141-($M$35+$M$37)*J142+$M$36*N141+$M$37*N142)) -> 19.21248833 | O140: 9.593621783 | P140: 0.333917579 | Q140: 0.2967295512 | T140: 26.78772846 | U140: 14.686904 | V140: 0.2917644773 | W140: 0.1477541175 | BC140: 1336172
A141: 109 | B141: =IF(A141>$A$8,"",OFFSET(InputPriceData!B$15,$A141+$A$11,0,1,1)) -> 2024-02-06T05:00:00 | C141: =IF(A141>$A$8,"",OFFSET(InputPriceData!G$15,CalculationsAndCharts!$A141+$A$11,IF($C$5,8,0),1,1)) -> 1267419 | D141: =IF(A141>$A$8,"",OFFSET(InputPriceData!C$15,CalculationsAndCharts!$A141+$A$11,IF($C$5,8,0),1,1)) -> 4959.5 | E141: =IF(A141>$A$8,"",OFFSET(InputPriceData!D$15,CalculationsAndCharts!$A141+$A$11,IF($C$5,8,0),1,1)) -> 4978.25 | F141: =IF(A141>$A$8,"",OFFSET(InputPriceData!E$15,CalculationsAndCharts!$A141+$A$11,IF($C$5,8,0),1,1)) -> 4954.5 | G141: =IF(A141>$A$8,"",OFFSET(InputPriceData!F$15,CalculationsAndCharts!$A141+$A$11,IF($C$5,8,0),1,1)) -> 4974.75 | H141: 12.75 | I141: 0 | J141: =IF($A141>$J$30,NA(),AVERAGE(H141:H144)) -> 30.625 | K141: 4.5625 | N141: =IF($A141>$J$30,NA(),IF($A141>$N$30,0,(1-$M$35)*J141+(2*$M$35-$M$36)*J142-($M$35+$M$37)*J143+$M$36*N142+$M$37*N143)) -> 18.38058736 | O141: 9.934621381 | P141: 0.2982837264 | Q141: 0.333191575 | T141: 24.86680169 | U141: 17.22806258 | V141: 0.181464871 | W141: 0.2171579353 | BC141: 1267419
A142: 110 | B142: =IF(A142>$A$8,"",OFFSET(InputPriceData!B$15,$A142+$A$11,0,1,1)) -> 2024-02-05T05:00:00 | C142: =IF(A142>$A$8,"",OFFSET(InputPriceData!G$15,CalculationsAndCharts!$A142+$A$11,IF($C$5,8,0),1,1)) -> 1504676 | D142: =IF(A142>$A$8,"",OFFSET(InputPriceData!C$15,CalculationsAndCharts!$A142+$A$11,IF($C$5,8,0),1,1)) -> 4976 | E142: =IF(A142>$A$8,"",OFFSET(InputPriceData!D$15,CalculationsAndCharts!$A142+$A$11,IF($C$5,8,0),1,1)) -> 4980.75 | F142: =IF(A142>$A$8,"",OFFSET(InputPriceData!E$15,CalculationsAndCharts!$A142+$A$11,IF($C$5,8,0),1,1)) -> 4937.75 | G142: =IF(A142>$A$8,"",OFFSET(InputPriceData!F$15,CalculationsAndCharts!$A142+$A$11,IF($C$5,8,0),1,1)) -> 4962 | H142: 0 | I142: 18.25 | J142: =IF($A142>$J$30,NA(),AVERAGE(H142:H145)) -> 27.4375 | K142: 24.6875 | N142: =IF($A142>$J$30,NA(),IF($A142>$N$30,0,(1-$M$35)*J142+(2*$M$35-$M$36)*J143-($M$35+$M$37)*J144+$M$36*N143+$M$37*N144)) -> 17.46488342 | O142: 9.471933748 | P142: 0.2967295512 | Q142: 0.3726648094 | T142: 22.23502211 | U142: 16.5102488 | V142: 0.1477541175 | W142: 0.3354152179 | BD142: 1504676
A143: 111 | B143: =IF(A143>$A$8,"",OFFSET(InputPriceData!B$15,$A143+$A$11,0,1,1)) -> 2024-02-02T05:00:00 | C143: =IF(A143>$A$8,"",OFFSET(InputPriceData!G$15,CalculationsAndCharts!$A143+$A$11,IF($C$5,8,0),1,1)) -> 1957796 | D143: =IF(A143>$A$8,"",OFFSET(InputPriceData!C$15,CalculationsAndCharts!$A143+$A$11,IF($C$5,8,0),1,1)) -> 4952.75 | E143: =IF(A143>$A$8,"",OFFSET(InputPriceData!D$15,CalculationsAndCharts!$A143+$A$11,IF($C$5,8,0),1,1)) -> 4997.75 | F143: =IF(A143>$A$8,"",OFFSET(InputPriceData!E$15,CalculationsAndCharts!$A143+$A$11,IF($C$5,8,0),1,1)) -> 4925.75 | G143: =IF(A143>$A$8,"",OFFSET(InputPriceData!F$15,CalculationsAndCharts!$A143+$A$11,IF($C$5,8,0),1,1)) -> 4980.25 | H143: 51.75 | I143: 0 | J143: =IF($A143>$J$30,NA(),AVERAGE(H143:H146)) -> 27.4375 | K143: 21 | N143: =IF($A143>$J$30,NA(),IF($A143>$N$30,0,(1-$M$35)*J143+(2*$M$35-$M$36)*J144-($M$35+$M$37)*J145+$M$36*N144+$M$37*N145)) -> 16.64041084 | O143: 8.322859484 | P143: 0.333191575 | Q143: 0.4442712279 | T143: 19.56955703 | U143: 12.58659372 | V143: 0.2171579353 | W143: 0.6842555391 | BC143: 1957796
A144: 112 | B144: =IF(A144>$A$8,"",OFFSET(InputPriceData!B$15,$A144+$A$11,0,1,1)) -> 2024-02-01T05:00:00 | C144: =IF(A144>$A$8,"",OFFSET(InputPriceData!G$15,CalculationsAndCharts!$A144+$A$11,IF($C$5,8,0),1,1)) -> 1835510 | D144: =IF(A144>$A$8,"",OFFSET(InputPriceData!C$15,CalculationsAndCharts!$A144+$A$11,IF($C$5,8,0),1,1)) -> 4874.5 | E144: =IF(A144>$A$8,"",OFFSET(InputPriceData!D$15,CalculationsAndCharts!$A144+$A$11,IF($C$5,8,0),1,1)) -> 4963.75 | F144: =IF(A144>$A$8,"",OFFSET(InputPriceData!E$15,CalculationsAndCharts!$A144+$A$11,IF($C$5,8,0),1,1)) -> 4872.5 | G144: =IF(A144>$A$8,"",OFFSET(InputPriceData!F$15,CalculationsAndCharts!$A144+$A$11,IF($C$5,8,0),1,1)) -> 4928.5 | H144: 58 | I144: 0 | J144: =IF($A144>$J$30,NA(),AVERAGE(H144:H147)) -> 24.0625 | K144: 21 | N144: =IF($A144>$J$30,NA(),IF($A144>$N$30,0,(1-$M$35)*J144+(2*$M$35-$M$36)*J145-($M$35+$M$37)*J146+$M$36*N145+$M$37*N146)) -> 15.9197693 | O144: 7.275652031 | P144: 0.3726648094 | Q144: 0.4824980408 | T144: 16.95329578 | U144: 8.437003138 | V144: 0.3354152179 | W144: 0.9764951435 | BC144: 1835510
A145: 113 | B145: =IF(A145>$A$8,"",OFFSET(InputPriceData!B$15,$A145+$A$11,0,1,1)) -> 2024-01-31T05:00:00 | C145: =IF(A145>$A$8,"",OFFSET(InputPriceData!G$15,CalculationsAndCharts!$A145+$A$11,IF($C$5,8,0),1,1)) -> 2285993 | D145: =IF(A145>$A$8,"",OFFSET(InputPriceData!C$15,CalculationsAndCharts!$A145+$A$11,IF($C$5,8,0),1,1)) -> 4930.25 | E145: =IF(A145>$A$8,"",OFFSET(InputPriceData!D$15,CalculationsAndCharts!$A145+$A$11,IF($C$5,8,0),1,1)) -> 4938 | F145: =IF(A145>$A$8,"",OFFSET(InputPriceData!E$15,CalculationsAndCharts!$A145+$A$11,IF($C$5,8,0),1,1)) -> 4866 | G145: =IF(A145>$A$8,"",OFFSET(InputPriceData!F$15,CalculationsAndCharts!$A145+$A$11,IF($C$5,8,0),1,1)) -> 4870.5 | H145: 0 | I145: 80.5 | J145: =IF($A145>$J$30,NA(),AVERAGE(H145:H148)) -> 9.5625 | K145: 22.75 | N145: =IF($A145>$J$30,NA(),IF($A145>$N$30,0,(1-$M$35)*J145+(2*$M$35-$M$36)*J146-($M$35+$M$37)*J147+$M$36*N146+$M$37*N147)) -> 15.89503245 | O145: 6.116113577 | P145: 0.4442712279 | Q145: 0.4583998122 | T145: 16.95281152 | U145: 3.178114135 | V145: 0.6842555391 | W145: 0.9480009386 | BD145: 2285993
A146: 114 | B146: =IF(A146>$A$8,"",OFFSET(InputPriceData!B$15,$A146+$A$11,0,1,1)) -> 2024-01-30T05:00:00 | C146: =IF(A146>$A$8,"",OFFSET(InputPriceData!G$15,CalculationsAndCharts!$A146+$A$11,IF($C$5,8,0),1,1)) -> 1157425 | D146: =IF(A146>$A$8,"",OFFSET(InputPriceData!C$15,CalculationsAndCharts!$A146+$A$11,IF($C$5,8,0),1,1)) -> 4950.25 | E146: =IF(A146>$A$8,"",OFFSET(InputPriceData!D$15,CalculationsAndCharts!$A146+$A$11,IF($C$5,8,0),1,1)) -> 4957.25 | F146: =IF(A146>$A$8,"",OFFSET(InputPriceData!E$15,CalculationsAndCharts!$A146+$A$11,IF($C$5,8,0),1,1)) -> 4933 | G146: =IF(A146>$A$8,"",OFFSET(InputPriceData!F$15,CalculationsAndCharts!$A146+$A$11,IF($C$5,8,0),1,1)) -> 4951 | H146: 0 | I146: 3.5 | J146: =IF($A146>$J$30,NA(),AVERAGE(H146:H149)) -> 15.875 | K146: 2.625 | N146: =IF($A146>$J$30,NA(),IF($A146>$N$30,0,(1-$M$35)*J146+(2*$M$35-$M$36)*J147-($M$35+$M$37)*J148+$M$36*N147+$M$37*N148)) -> 16.20252122 | O146: 5.65588368 | P146: 0.4824980408 | Q146: 0.4371764021 | T146: 18.35178422 | U146: 0.2182429118 | V146: 0.9764951435 | W146: 0.8924855955 | BD146: 1157425
A147: 115 | B147: =IF(A147>$A$8,"",OFFSET(InputPriceData!B$15,$A147+$A$11,0,1,1)) -> 2024-01-29T05:00:00 | C147: =IF(A147>$A$8,"",OFFSET(InputPriceData!G$15,CalculationsAndCharts!$A147+$A$11,IF($C$5,8,0),1,1)) -> 1197989 | D147: =IF(A147>$A$8,"",OFFSET(InputPriceData!C$15,CalculationsAndCharts!$A147+$A$11,IF($C$5,8,0),1,1)) -> 4908.75 | E147: =IF(A147>$A$8,"",OFFSET(InputPriceData!D$15,CalculationsAndCharts!$A147+$A$11,IF($C$5,8,0),1,1)) -> 4956 | F147: =IF(A147>$A$8,"",OFFSET(InputPriceData!E$15,CalculationsAndCharts!$A147+$A$11,IF($C$5,8,0),1,1)) -> 4901.75 | G147: =IF(A147>$A$8,"",OFFSET(InputPriceData!F$15,CalculationsAndCharts!$A147+$A$11,IF($C$5,8,0),1,1)) -> 4954.5 | H147: 38.25 | I147: 0 | J147: =IF($A147>$J$30,NA(),AVERAGE(H147:H150)) -> 16.625 | K147: 1.75 | N147: =IF($A147>$J$30,NA(),IF($A147>$N$30,0,(1-$M$35)*J147+(2*$M$35-$M$36)*J148-($M$35+$M$37)*J149+$M$36*N148+$M$37*N149)) -> 16.23824368 | O147: 6.030332529 | P147: 0.4583998122 | Q147: 0.4152183488 | T147: 18.72637375 | U147: 0.499873403 | V147: 0.9480009386 | W147: 0.8066104323 | BC147: 1197989
A148: 116 | B148: =IF(A148>$A$8,"",OFFSET(InputPriceData!B$15,$A148+$A$11,0,1,1)) -> 2024-01-26T05:00:00 | C148: =IF(A148>$A$8,"",OFFSET(InputPriceData!G$15,CalculationsAndCharts!$A148+$A$11,IF($C$5,8,0),1,1)) -> 1363612 | D148: =IF(A148>$A$8,"",OFFSET(InputPriceData!C$15,CalculationsAndCharts!$A148+$A$11,IF($C$5,8,0),1,1)) -> 4919.25 | E148: =IF(A148>$A$8,"",OFFSET(InputPriceData!D$15,CalculationsAndCharts!$A148+$A$11,IF($C$5,8,0),1,1)) -> 4934.25 | F148: =IF(A148>$A$8,"",OFFSET(InputPriceData!E$15,CalculationsAndCharts!$A148+$A$11,IF($C$5,8,0),1,1)) -> 4898.5 | G148: =IF(A148>$A$8,"",OFFSET(InputPriceData!F$15,CalculationsAndCharts!$A148+$A$11,IF($C$5,8,0),1,1)) -> 4916.25 | H148: 0 | I148: 7 | J148: =IF($A148>$J$30,NA(),AVERAGE(H148:H151)) -> 10.5625 | K148: 1.75 | N148: =IF($A148>$J$30,NA(),IF($A148>$N$30,0,(1-$M$35)*J148+(2*$M$35-$M$36)*J149-($M$35+$M$37)*J150+$M$36*N149+$M$37*N150)) -> 16.49189631 | O148: 6.458517136 | P148: 0.4371764021 | Q148: 0.3787951539 | T148: 20.00828047 | U148: 1.136694707 | V148: 0.8924855955 | W148: 0.6787892208 | BD148: 1363612
A149: 117 | B149: =IF(A149>$A$8,"",OFFSET(InputPriceData!B$15,$A149+$A$11,0,1,1)) -> 2024-01-25T05:00:00 | C149: =IF(A149>$A$8,"",OFFSET(InputPriceData!G$15,CalculationsAndCharts!$A149+$A$11,IF($C$5,8,0),1,1)) -> 1532026 | D149: =IF(A149>$A$8,"",OFFSET(InputPriceData!C$15,CalculationsAndCharts!$A149+$A$11,IF($C$5,8,0),1,1)) -> 4899.5 | E149: =IF(A149>$A$8,"",OFFSET(InputPriceData!D$15,CalculationsAndCharts!$A149+$A$11,IF($C$5,8,0),1,1)) -> 4926.5 | F149: =IF(A149>$A$8,"",OFFSET(InputPriceData!E$15,CalculationsAndCharts!$A149+$A$11,IF($C$5,8,0),1,1)) -> 4893.25 | G149: =IF(A149>$A$8,"",OFFSET(InputPriceData!F$15,CalculationsAndCharts!$A149+$A$11,IF($C$5,8,0),1,1)) -> 4923.25 | H149: 25.25 | I149: 0 | J149: =IF($A149>$J$30,NA(),AVERAGE(H149:H152)) -> 13.4375 | K149: 0 | N149: =IF($A149>$J$30,NA(),IF($A149>$N$30,0,(1-$M$35)*J149+(2*$M$35-$M$36)*J150-($M$35+$M$37)*J151+$M$36*N150+$M$37*N151)) -> 16.88596792 | O149: 6.977442182 | P149: 0.4152183488 | Q149: 0.3235026153 | T149: 21.93856665 | U149: 2.348425452 | V149: 0.8066104323 | W149: 0.487327074 | BC149: 1532026
A150: 118 | B150: =IF(A150>$A$8,"",OFFSET(InputPriceData!B$15,$A150+$A$11,0,1,1)) -> 2024-01-24T05:00:00 | C150: =IF(A150>$A$8,"",OFFSET(InputPriceData!G$15,CalculationsAndCharts!$A150+$A$11,IF($C$5,8,0),1,1)) -> 1586824 | D150: =IF(A150>$A$8,"",OFFSET(InputPriceData!C$15,CalculationsAndCharts!$A150+$A$11,IF($C$5,8,0),1,1)) -> 4900.25 | E150: =IF(A150>$A$8,"",OFFSET(InputPriceData!D$15,CalculationsAndCharts!$A150+$A$11,IF($C$5,8,0),1,1)) -> 4933.25 | F150: =IF(A150>$A$8,"",OFFSET(InputPriceData!E$15,CalculationsAndCharts!$A150+$A$11,IF($C$5,8,0),1,1)) -> 4889 | G150: =IF(A150>$A$8,"",OFFSET(InputPriceData!F$15,CalculationsAndCharts!$A150+$A$11,IF($C$5,8,0),1,1)) -> 4898 | H150: 3 | I150: 0 | J150: =IF($A150>$J$30,NA(),AVERAGE(H150:H153)) -> 21.6875 | K150: 0 | N150: =IF($A150>$J$30,NA(),IF($A150>$N$30,0,(1-$M$35)*J150+(2*$M$35-$M$36)*J151-($M$35+$M$37)*J152+$M$36*N151+$M$37*N152)) -> 16.84646318 | O150: 7.590035792 | P150: 0.3787951539 | Q150: 0.2730070108 | T150: 22.09028213 | U150: 4.226639441 | V150: 0.6787892208 | W150: 0.2695449496 | BC150: 1586824
A151: 119 | B151: =IF(A151>$A$8,"",OFFSET(InputPriceData!B$15,$A151+$A$11,0,1,1)) -> 2024-01-23T05:00:00 | C151: =IF(A151>$A$8,"",OFFSET(InputPriceData!G$15,CalculationsAndCharts!$A151+$A$11,IF($C$5,8,0),1,1)) -> 1130749 | D151: =IF(A151>$A$8,"",OFFSET(InputPriceData!C$15,CalculationsAndCharts!$A151+$A$11,IF($C$5,8,0),1,1)) -> 4881.75 | E151: =IF(A151>$A$8,"",OFFSET(InputPriceData!D$15,CalculationsAndCharts!$A151+$A$11,IF($C$5,8,0),1,1)) -> 4902 | F151: =IF(A151>$A$8,"",OFFSET(InputPriceData!E$15,CalculationsAndCharts!$A151+$A$11,IF($C$5,8,0),1,1)) -> 4874.25 | G151: =IF(A151>$A$8,"",OFFSET(InputPriceData!F$15,CalculationsAndCharts!$A151+$A$11,IF($C$5,8,0),1,1)) -> 4895 | H151: 14 | I151: 0 | J151: =IF($A151>$J$30,NA(),AVERAGE(H151:H154)) -> 30.9375 | K151: 0 | N151: =IF($A151>$J$30,NA(),IF($A151>$N$30,0,(1-$M$35)*J151+(2*$M$35-$M$36)*J152-($M$35+$M$37)*J153+$M$36*N152+$M$37*N153)) -> 16.09799492 | O151: 8.228356589 | P151: 0.3235026153 | Q151: 0.2509469307 | T151: 19.0222497 | U151: 6.556857992 | V151: 0.487327074 | W151: 0.08083109195 | BC151: 1130749
A152: 120 | B152: =IF(A152>$A$8,"",OFFSET(InputPriceData!B$15,$A152+$A$11,0,1,1)) -> 2024-01-22T05:00:00 | C152: =IF(A152>$A$8,"",OFFSET(InputPriceData!G$15,CalculationsAndCharts!$A152+$A$11,IF($C$5,8,0),1,1)) -> 1356050 | D152: =IF(A152>$A$8,"",OFFSET(InputPriceData!C$15,CalculationsAndCharts!$A152+$A$11,IF($C$5,8,0),1,1)) -> 4872.5 | E152: =IF(A152>$A$8,"",OFFSET(InputPriceData!D$15,CalculationsAndCharts!$A152+$A$11,IF($C$5,8,0),1,1)) -> 4898.25 | F152: =IF(A152>$A$8,"",OFFSET(InputPriceData!E$15,CalculationsAndCharts!$A152+$A$11,IF($C$5,8,0),1,1)) -> 4872.5 | G152: =IF(A152>$A$8,"",OFFSET(InputPriceData!F$15,CalculationsAndCharts!$A152+$A$11,IF($C$5,8,0),1,1)) -> 4881 | H152: 11.5 | I152: 0 | J152: =IF($A152>$J$30,NA(),AVERAGE(H152:H155)) -> 27.4375 | K152: 6.8125 | N152: =IF($A152>$J$30,NA(),IF($A152>$N$30,0,(1-$M$35)*J152+(2*$M$35-$M$36)*J153-($M$35+$M$37)*J154+$M$36*N153+$M$37*N154)) -> 15.08852975 | O152: 8.616806703 | P152: 0.2730070108 | Q152: 0.2602425614 | T152: 14.24988809 | U152: 8.198924132 | V152: 0.2695449496 | W152: -0.01572235098 | BC152: 1356050
A153: 121 | B153: =IF(A153>$A$8,"",OFFSET(InputPriceData!B$15,$A153+$A$11,0,1,1)) -> 2024-01-19T05:00:00 | C153: =IF(A153>$A$8,"",OFFSET(InputPriceData!G$15,CalculationsAndCharts!$A153+$A$11,IF($C$5,8,0),1,1)) -> 1876757 | D153: =IF(A153>$A$8,"",OFFSET(InputPriceData!C$15,CalculationsAndCharts!$A153+$A$11,IF($C$5,8,0),1,1)) -> 4811.25 | E153: =IF(A153>$A$8,"",OFFSET(InputPriceData!D$15,CalculationsAndCharts!$A153+$A$11,IF($C$5,8,0),1,1)) -> 4874.25 | F153: =IF(A153>$A$8,"",OFFSET(InputPriceData!E$15,CalculationsAndCharts!$A153+$A$11,IF($C$5,8,0),1,1)) -> 4808.5 | G153: =IF(A153>$A$8,"",OFFSET(InputPriceData!F$15,CalculationsAndCharts!$A153+$A$11,IF($C$5,8,0),1,1)) -> 4869.5 | H153: 58.25 | I153: 0 | J153: =IF($A153>$J$30,NA(),AVERAGE(H153:H156)) -> 24.5625 | K153: 11.3125 | N153: =IF($A153>$J$30,NA(),IF($A153>$N$30,0,(1-$M$35)*J153+(2*$M$35-$M$36)*J154-($M$35+$M$37)*J155+$M$36*N154+$M$37*N155)) -> 14.29981148 | O153: 8.562567615 | P153: 0.2509469307 | Q153: 0.304185954 | T153: 9.672933694 | U153: 8.226132619 | V153: 0.08083109195 | W153: 0.1435588037 | BC153: 1876757
A154: 122 | B154: =IF(A154>$A$8,"",OFFSET(InputPriceData!B$15,$A154+$A$11,0,1,1)) -> 2024-01-18T05:00:00 | C154: =IF(A154>$A$8,"",OFFSET(InputPriceData!G$15,CalculationsAndCharts!$A154+$A$11,IF($C$5,8,0),1,1)) -> 1746936 | D154: =IF(A154>$A$8,"",OFFSET(InputPriceData!C$15,CalculationsAndCharts!$A154+$A$11,IF($C$5,8,0),1,1)) -> 4768 | E154: =IF(A154>$A$8,"",OFFSET(InputPriceData!D$15,CalculationsAndCharts!$A154+$A$11,IF($C$5,8,0),1,1)) -> 4817 | F154: =IF(A154>$A$8,"",OFFSET(InputPriceData!E$15,CalculationsAndCharts!$A154+$A$11,IF($C$5,8,0),1,1)) -> 4763.5 | G154: =IF(A154>$A$8,"",OFFSET(InputPriceData!F$15,CalculationsAndCharts!$A154+$A$11,IF($C$5,8,0),1,1)) -> 4811.25 | H154: 40 | I154: 0 | J154: =IF($A154>$J$30,NA(),AVERAGE(H154:H157)) -> 10.25 | K154: 11.3125 | N154: =IF($A154>$J$30,NA(),IF($A154>$N$30,0,(1-$M$35)*J154+(2*$M$35-$M$36)*J155-($M$35+$M$37)*J156+$M$36*N155+$M$37*N156)) -> 14.17968301 | O154: 8.323418292 | P154: 0.2602425614 | Q154: 0.3384421567 | T154: 7.305633494 | U154: 7.539026447 | V154: -0.01572235098 | W154: 0.2590035012 | BC154: 1746936
A155: 123 | B155: =IF(A155>$A$8,"",OFFSET(InputPriceData!B$15,$A155+$A$11,0,1,1)) -> 2024-01-17T05:00:00 | C155: =IF(A155>$A$8,"",OFFSET(InputPriceData!G$15,CalculationsAndCharts!$A155+$A$11,IF($C$5,8,0),1,1)) -> 1663328 | D155: =IF(A155>$A$8,"",OFFSET(InputPriceData!C$15,CalculationsAndCharts!$A155+$A$11,IF($C$5,8,0),1,1)) -> 4799.75 | E155: =IF(A155>$A$8,"",OFFSET(InputPriceData!D$15,CalculationsAndCharts!$A155+$A$11,IF($C$5,8,0),1,1)) -> 4800.75 | F155: =IF(A155>$A$8,"",OFFSET(InputPriceData!E$15,CalculationsAndCharts!$A155+$A$11,IF($C$5,8,0),1,1)) -> 4746.25 | G155: =IF(A155>$A$8,"",OFFSET(InputPriceData!F$15,CalculationsAndCharts!$A155+$A$11,IF($C$5,8,0),1,1)) -> 4771.25 | H155: 0 | I155: 27.25 | J155: =IF($A155>$J$30,NA(),AVERAGE(H155:H158)) -> 0.25 | K155: 12.5 | N155: =IF($A155>$J$30,NA(),IF($A155>$N$30,0,(1-$M$35)*J155+(2*$M$35-$M$36)*J156-($M$35+$M$37)*J157+$M$36*N156+$M$37*N157)) -> 15.04387786 | O155: 8.026264573 | P155: 0.304185954 | Q155: 0.3441042143 | T155: 8.830987335 | U155: 6.613758149 | V155: 0.1435588037 | W155: 0.2153358435 | BD155: 1663328
A156: 124 | B156: =IF(A156>$A$8,"",OFFSET(InputPriceData!B$15,$A156+$A$11,0,1,1)) -> 2024-01-16T05:00:00 | C156: =IF(A156>$A$8,"",OFFSET(InputPriceData!G$15,CalculationsAndCharts!$A156+$A$11,IF($C$5,8,0),1,1)) -> 1905532 | D156: =IF(A156>$A$8,"",OFFSET(InputPriceData!C$15,CalculationsAndCharts!$A156+$A$11,IF($C$5,8,0),1,1)) -> 4812 | E156: =IF(A156>$A$8,"",OFFSET(InputPriceData!D$15,CalculationsAndCharts!$A156+$A$11,IF($C$5,8,0),1,1)) -> 4823 | F156: =IF(A156>$A$8,"",OFFSET(InputPriceData!E$15,CalculationsAndCharts!$A156+$A$11,IF($C$5,8,0),1,1)) -> 4779.5 | G156: =IF(A156>$A$8,"",OFFSET(InputPriceData!F$15,CalculationsAndCharts!$A156+$A$11,IF($C$5,8,0),1,1)) -> 4798.5 | H156: 0 | I156: 18 | J156: =IF($A156>$J$30,NA(),AVERAGE(H156:H159)) -> 7.125 | K156: 5.6875 | N156: =IF($A156>$J$30,NA(),IF($A156>$N$30,0,(1-$M$35)*J156+(2*$M$35-$M$36)*J157-($M$35+$M$37)*J158+$M$36*N157+$M$37*N158)) -> 16.0737936 | O156: 7.94486648 | P156: 0.3384421567 | Q156: 0.327700906 | T156: 11.25204468 | U156: 6.622480165 | V156: 0.2590035012 | W156: 0.05172714253 | BD156: 1905532
A157: 125 | B157: =IF(A157>$A$8,"",OFFSET(InputPriceData!B$15,$A157+$A$11,0,1,1)) -> 2024-01-12T05:00:00 | C157: =IF(A157>$A$8,"",OFFSET(InputPriceData!G$15,CalculationsAndCharts!$A157+$A$11,IF($C$5,8,0),1,1)) -> 1519899 | D157: =IF(A157>$A$8,"",OFFSET(InputPriceData!C$15,CalculationsAndCharts!$A157+$A$11,IF($C$5,8,0),1,1)) -> 4811.25 | E157: =IF(A157>$A$8,"",OFFSET(InputPriceData!D$15,CalculationsAndCharts!$A157+$A$11,IF($C$5,8,0),1,1)) -> 4836.5 | F157: =IF(A157>$A$8,"",OFFSET(InputPriceData!E$15,CalculationsAndCharts!$A157+$A$11,IF($C$5,8,0),1,1)) -> 4791.5 | G157: =IF(A157>$A$8,"",OFFSET(InputPriceData!F$15,CalculationsAndCharts!$A157+$A$11,IF($C$5,8,0),1,1)) -> 4816.5 | H157: 1 | I157: 0 | J157: =IF($A157>$J$30,NA(),AVERAGE(H157:H160)) -> 7.125 | K157: 3.3125 | N157: =IF($A157>$J$30,NA(),IF($A157>$N$30,0,(1-$M$35)*J157+(2*$M$35-$M$36)*J158-($M$35+$M$37)*J159+$M$36*N158+$M$37*N159)) -> 16.87002739 | O157: 8.232233594 | P157: 0.3441042143 | Q157: 0.2897320332 | T157: 12.94867446 | U157: 8.360125951 | V157: 0.2153358435 | W157: -0.2722413164 | BC157: 1519899
A158: 126 | B158: =IF(A158>$A$8,"",OFFSET(InputPriceData!B$15,$A158+$A$11,0,1,1)) -> 2024-01-11T05:00:00 | C158: =IF(A158>$A$8,"",OFFSET(InputPriceData!G$15,CalculationsAndCharts!$A158+$A$11,IF($C$5,8,0),1,1)) -> 1795564 | D158: =IF(A158>$A$8,"",OFFSET(InputPriceData!C$15,CalculationsAndCharts!$A158+$A$11,IF($C$5,8,0),1,1)) -> 4820.5 | E158: =IF(A158>$A$8,"",OFFSET(InputPriceData!D$15,CalculationsAndCharts!$A158+$A$11,IF($C$5,8,0),1,1)) -> 4838 | F158: =IF(A158>$A$8,"",OFFSET(InputPriceData!E$15,CalculationsAndCharts!$A158+$A$11,IF($C$5,8,0),1,1)) -> 4772.75 | G158: =IF(A158>$A$8,"",OFFSET(InputPriceData!F$15,CalculationsAndCharts!$A158+$A$11,IF($C$5,8,0),1,1)) -> 4815.5 | H158: 0 | I158: 4.75 | J158: =IF($A158>$J$30,NA(),AVERAGE(H158:H161)) -> 23.5 | K158: 3.3125 | N158: =IF($A158>$J$30,NA(),IF($A158>$N$30,0,(1-$M$35)*J158+(2*$M$35-$M$36)*J159-($M$35+$M$37)*J160+$M$36*N159+$M$37*N160)) -> 17.03756569 | O158: 8.627199036 | P158: 0.327700906 | Q158: 0.2627569026 | T158: 12.11945464 | U158: 10.92731129 | V158: 0.05172714253 | W158: -0.5877045274 | BD158: 1795564
A159: 127 | B159: =IF(A159>$A$8,"",OFFSET(InputPriceData!B$15,$A159+$A$11,0,1,1)) -> 2024-01-10T05:00:00 | C159: =IF(A159>$A$8,"",OFFSET(InputPriceData!G$15,CalculationsAndCharts!$A159+$A$11,IF($C$5,8,0),1,1)) -> 1377780 | D159: =IF(A159>$A$8,"",OFFSET(InputPriceData!C$15,CalculationsAndCharts!$A159+$A$11,IF($C$5,8,0),1,1)) -> 4790.75 | E159: =IF(A159>$A$8,"",OFFSET(InputPriceData!D$15,CalculationsAndCharts!$A159+$A$11,IF($C$5,8,0),1,1)) -> 4828.5 | F159: =IF(A159>$A$8,"",OFFSET(InputPriceData!E$15,CalculationsAndCharts!$A159+$A$11,IF($C$5,8,0),1,1)) -> 4786 | G159: =IF(A159>$A$8,"",OFFSET(InputPriceData!F$15,CalculationsAndCharts!$A159+$A$11,IF($C$5,8,0),1,1)) -> 4820.25 | H159: 27.5 | I159: 0 | J159: =IF($A159>$J$30,NA(),AVERAGE(H159:H162)) -> 24.8125 | K159: 2.125 | N159: =IF($A159>$J$30,NA(),IF($A159>$N$30,0,(1-$M$35)*J159+(2*$M$35-$M$36)*J160-($M$35+$M$37)*J161+$M$36*N160+$M$37*N161)) -> 16.49765593 | O159: 9.085419478 | P159: 0.2897320332 | Q159: 0.2675236197 | T159: 8.127437147 | U159: 14.20809063 | V159: -0.2722413164 | W159: -0.8277423989 | BC159: 1377780
A160: 128 | B160: =IF(A160>$A$8,"",OFFSET(InputPriceData!B$15,$A160+$A$11,0,1,1)) -> 2024-01-09T05:00:00 | C160: =IF(A160>$A$8,"",OFFSET(InputPriceData!G$15,CalculationsAndCharts!$A160+$A$11,IF($C$5,8,0),1,1)) -> 1369103 | D160: =IF(A160>$A$8,"",OFFSET(InputPriceData!C$15,CalculationsAndCharts!$A160+$A$11,IF($C$5,8,0),1,1)) -> 4797.75 | E160: =IF(A160>$A$8,"",OFFSET(InputPriceData!D$15,CalculationsAndCharts!$A160+$A$11,IF($C$5,8,0),1,1)) -> 4804 | F160: =IF(A160>$A$8,"",OFFSET(InputPriceData!E$15,CalculationsAndCharts!$A160+$A$11,IF($C$5,8,0),1,1)) -> 4767.5 | G160: =IF(A160>$A$8,"",OFFSET(InputPriceData!F$15,CalculationsAndCharts!$A160+$A$11,IF($C$5,8,0),1,1)) -> 4792.75 | H160: 0 | I160: 8.5 | J160: =IF($A160>$J$30,NA(),AVERAGE(H160:H163)) -> 17.9375 | K160: 6.375 | N160: =IF($A160>$J$30,NA(),IF($A160>$N$30,0,(1-$M$35)*J160+(2*$M$35-$M$36)*J161-($M$35+$M$37)*J162+$M$36*N161+$M$37*N162)) -> 16.16330145 | O160: 9.436719291 | P160: 0.2627569026 | Q160: 0.3253687967 | T160: 4.546878077 | U160: 17.50952748 | V160: -0.5877045274 | W160: -0.8145165544 | BD160: 1369103
A161: 129 | B161: =IF(A161>$A$8,"",OFFSET(InputPriceData!B$15,$A161+$A$11,0,1,1)) -> 2024-01-08T05:00:00 | C161: =IF(A161>$A$8,"",OFFSET(InputPriceData!G$15,CalculationsAndCharts!$A161+$A$11,IF($C$5,8,0),1,1)) -> 1417728 | D161: =IF(A161>$A$8,"",OFFSET(InputPriceData!C$15,CalculationsAndCharts!$A161+$A$11,IF($C$5,8,0),1,1)) -> 4735.75 | E161: =IF(A161>$A$8,"",OFFSET(InputPriceData!D$15,CalculationsAndCharts!$A161+$A$11,IF($C$5,8,0),1,1)) -> 4803.25 | F161: =IF(A161>$A$8,"",OFFSET(InputPriceData!E$15,CalculationsAndCharts!$A161+$A$11,IF($C$5,8,0),1,1)) -> 4715.25 | G161: =IF(A161>$A$8,"",OFFSET(InputPriceData!F$15,CalculationsAndCharts!$A161+$A$11,IF($C$5,8,0),1,1)) -> 4801.25 | H161: 66.5 | I161: 0 | J161: =IF($A161>$J$30,NA(),AVERAGE(H161:H164)) -> 17.9375 | K161: 14.4375 | N161: =IF($A161>$J$30,NA(),IF($A161>$N$30,0,(1-$M$35)*J161+(2*$M$35-$M$36)*J162-($M$35+$M$37)*J163+$M$36*N162+$M$37*N163)) -> 16.09656557 | O161: 9.301881164 | P161: 0.2675236197 | Q161: 0.4291912104 | T161: =IF($A161>$J$30,NA(),IF($A161>$N$30,0,(1-S$35)*$J161+(2*S$35-S$36)*$J162-(S$35+S$37)*$J163+S$36*T162+S$37*T163)) -> 1.804273973 | U161: =IF($A161>$J$30,NA(),IF($A161>$N$30,0,(1-S$35)*$K161+(2*S$35-S$36)*$K162-(S$35+S$37)*$K163+S$36*U162+S$37*U163)) -> 19.1442817 | V161: =IF($A161>$N$30,NA(),(T161-U161)/(T161+U161)) -> -0.8277423989 | W161: =IF($A161>$N$30,NA(),OFFSET(V161,$C$18,0,1,1)) -> -0.459191109 | BC161: 1417728
A162: 130 | B162: =IF(A162>$A$8,"",OFFSET(InputPriceData!B$15,$A162+$A$11,0,1,1)) -> 2024-01-05T05:00:00 | C162: =IF(A162>$A$8,"",OFFSET(InputPriceData!G$15,CalculationsAndCharts!$A162+$A$11,IF($C$5,8,0),1,1)) -> 1767245 | D162: =IF(A162>$A$8,"",OFFSET(InputPriceData!C$15,CalculationsAndCharts!$A162+$A$11,IF($C$5,8,0),1,1)) -> 4732.75 | E162: =IF(A162>$A$8,"",OFFSET(InputPriceData!D$15,CalculationsAndCharts!$A162+$A$11,IF($C$5,8,0),1,1)) -> 4760.25 | F162: =IF(A162>$A$8,"",OFFSET(InputPriceData!E$15,CalculationsAndCharts!$A162+$A$11,IF($C$5,8,0),1,1)) -> 4702 | G162: =IF(A162>$A$8,"",OFFSET(InputPriceData!F$15,CalculationsAndCharts!$A162+$A$11,IF($C$5,8,0),1,1)) -> 4734.75 | H162: =IF($A162>$H$30,NA(),IF($G162>$G163,$G162-$G163,0)) -> 5.25 | I162: =IF($A162>$H$30,NA(),IF(G162<G163,G163-G162,0)) -> 0 | J162: =IF($A162>$J$30,NA(),AVERAGE(H162:H165)) -> 1.3125 | K162: 22.625 | N162: =IF($A162>$J$30,NA(),IF($A162>$N$30,0,(1-$M$35)*J162+(2*$M$35-$M$36)*J163-($M$35+$M$37)*J164+$M$36*N163+$M$37*N164)) -> 16.70299042 | O162: 8.50205509 | P162: =IF($A162>$N$30,NA(),(N162-O162)/(N162+O162)) -> 0.3253687967 | Q162: =IF($A162>$N$30,NA(),OFFSET(P162,$C$17,0,1,1)) -> 0.5353567939 | T162: 1.848136692 | U162: 18.07964376 | V162: -0.8145165544 | W162: -0.02106409575 | BC162: 1767245
A163: 131 | B163: =IF(A163>$A$8,"",OFFSET(InputPriceData!B$15,$A163+$A$11,0,1,1)) -> 2024-01-04T05:00:00 | C163: =IF(A163>$A$8,"",OFFSET(InputPriceData!G$15,CalculationsAndCharts!$A163+$A$11,IF($C$5,8,0),1,1)) -> 1395366 | D163: =IF(A163>$A$8,"",OFFSET(InputPriceData!C$15,CalculationsAndCharts!$A163+$A$11,IF($C$5,8,0),1,1)) -> 4750 | E163: =IF(A163>$A$8,"",OFFSET(InputPriceData!D$15,CalculationsAndCharts!$A163+$A$11,IF($C$5,8,0),1,1)) -> 4766.5 | F163: =IF(A163>$A$8,"",OFFSET(InputPriceData!E$15,CalculationsAndCharts!$A163+$A$11,IF($C$5,8,0),1,1)) -> 4727 | G163: =IF(A163>$A$8,"",OFFSET(InputPriceData!F$15,CalculationsAndCharts!$A163+$A$11,IF($C$5,8,0),1,1)) -> 4729.5 | H163: 0 | I163: 17 | J163: =IF($A163>$J$30,NA(),AVERAGE(H163:H166)) -> 0 | K163: 25.6875 | N163: =IF($A163>$J$30,NA(),IF($A163>$N$30,0,(1-$M$35)*J163+(2*$M$35-$M$36)*J164-($M$35+$M$37)*J165+$M$36*N164+$M$37*N165)) -> 18.06205667 | O163: 7.21385678 | P163: 0.4291912104 | Q163: 0.6069503803 | T163: 5.451690541 | U163: 14.70955544 | V163: -0.459191109 | W163: 0.3034972934 | BD163: 1395366
A164: 132 | B164: =IF(A164>$A$8,"",OFFSET(InputPriceData!B$15,$A164+$A$11,0,1,1)) -> 2024-01-03T05:00:00 | C164: =IF(A164>$A$8,"",OFFSET(InputPriceData!G$15,CalculationsAndCharts!$A164+$A$11,IF($C$5,8,0),1,1)) -> 1707174 | D164: =IF(A164>$A$8,"",OFFSET(InputPriceData!C$15,CalculationsAndCharts!$A164+$A$11,IF($C$5,8,0),1,1)) -> 4790.75 | E164: =IF(A164>$A$8,"",OFFSET(InputPriceData!D$15,CalculationsAndCharts!$A164+$A$11,IF($C$5,8,0),1,1)) -> 4790.75 | F164: =IF(A164>$A$8,"",OFFSET(InputPriceData!E$15,CalculationsAndCharts!$A164+$A$11,IF($C$5,8,0),1,1)) -> 4741 | G164: =IF(A164>$A$8,"",OFFSET(InputPriceData!F$15,CalculationsAndCharts!$A164+$A$11,IF($C$5,8,0),1,1)) -> 4746.5 | H164: 0 | I164: 40.75 | J164: =IF($A164>$J$30,NA(),AVERAGE(H164:H167)) -> 0 | K164: 21.75 | N164: =IF($A164>$J$30,NA(),IF($A164>$N$30,0,(1-$M$35)*J164+(2*$M$35-$M$36)*J165-($M$35+$M$37)*J166+$M$36*N165+$M$37*N166)) -> 19.52944727 | O164: 5.910173472 | P164: 0.5353567939 | Q164: 0.6281860711 | T164: 10.34365799 | U164: 10.78879398 | V164: -0.02106409575 | W164: 0.4069999818 | BD164: 1707174
A165: 133 | B165: =IF(A165>$A$8,"",OFFSET(InputPriceData!B$15,$A165+$A$11,0,1,1)) -> 2024-01-02T05:00:00 | C165: =IF(A165>$A$8,"",OFFSET(InputPriceData!G$15,CalculationsAndCharts!$A165+$A$11,IF($C$5,8,0),1,1)) -> 1678142 | D165: =IF(A165>$A$8,"",OFFSET(InputPriceData!C$15,CalculationsAndCharts!$A165+$A$11,IF($C$5,8,0),1,1)) -> 4818 | E165: =IF(A165>$A$8,"",OFFSET(InputPriceData!D$15,CalculationsAndCharts!$A165+$A$11,IF($C$5,8,0),1,1)) -> 4828 | F165: =IF(A165>$A$8,"",OFFSET(InputPriceData!E$15,CalculationsAndCharts!$A165+$A$11,IF($C$5,8,0),1,1)) -> 4765.5 | G165: =IF(A165>$A$8,"",OFFSET(InputPriceData!F$15,CalculationsAndCharts!$A165+$A$11,IF($C$5,8,0),1,1)) -> 4787.25 | H165: 0 | I165: 32.75 | J165: =IF($A165>$J$30,NA(),AVERAGE(H165:H168)) -> 2.125 | K165: 11.5625 | N165: =IF($A165>$J$30,NA(),IF($A165>$N$30,0,(1-$M$35)*J165+(2*$M$35-$M$36)*J166-($M$35+$M$37)*J167+$M$36*N166+$M$37*N167)) -> 20.96807278 | O165: 5.128654335 | P165: 0.6069503803 | Q165: 0.6183366656 | T165: 16.08672699 | U165: 8.59568251 | V165: 0.3034972934 | W165: 0.3970576757 | BD165: 1678142
A166: 134 | B166: =IF(A166>$A$8,"",OFFSET(InputPriceData!B$15,$A166+$A$11,0,1,1)) -> 2023-12-29T05:00:00 | C166: =IF(A166>$A$8,"",OFFSET(InputPriceData!G$15,CalculationsAndCharts!$A166+$A$11,IF($C$5,8,0),1,1)) -> 1281733 | D166: =IF(A166>$A$8,"",OFFSET(InputPriceData!C$15,CalculationsAndCharts!$A166+$A$11,IF($C$5,8,0),1,1)) -> 4834.75 | E166: =IF(A166>$A$8,"",OFFSET(InputPriceData!D$15,CalculationsAndCharts!$A166+$A$11,IF($C$5,8,0),1,1)) -> 4841 | F166: =IF(A166>$A$8,"",OFFSET(InputPriceData!E$15,CalculationsAndCharts!$A166+$A$11,IF($C$5,8,0),1,1)) -> 4796.75 | G166: =IF(A166>$A$8,"",OFFSET(InputPriceData!F$15,CalculationsAndCharts!$A166+$A$11,IF($C$5,8,0),1,1)) -> 4820 | H166: 0 | I166: 12.25 | J166: =IF($A166>$J$30,NA(),AVERAGE(H166:H169)) -> 7.0625 | K166: 3.375 | N166: =IF($A166>$J$30,NA(),IF($A166>$N$30,0,(1-$M$35)*J166+(2*$M$35-$M$36)*J167-($M$35+$M$37)*J168+$M$36*N167+$M$37*N168)) -> 22.17455704 | O166: 5.063800337 | P166: 0.6281860711 | Q166: 0.5938134823 | T166: 21.87353442 | U166: 9.218910078 | V166: 0.4069999818 | W166: 0.343631666 | BD166: 1281733
A167: 135 | B167: =IF(A167>$A$8,"",OFFSET(InputPriceData!B$15,$A167+$A$11,0,1,1)) -> 2023-12-28T05:00:00 | C167: =IF(A167>$A$8,"",OFFSET(InputPriceData!G$15,CalculationsAndCharts!$A167+$A$11,IF($C$5,8,0),1,1)) -> 927035 | D167: =IF(A167>$A$8,"",OFFSET(InputPriceData!C$15,CalculationsAndCharts!$A167+$A$11,IF($C$5,8,0),1,1)) -> 4834.5 | E167: =IF(A167>$A$8,"",OFFSET(InputPriceData!D$15,CalculationsAndCharts!$A167+$A$11,IF($C$5,8,0),1,1)) -> 4841.5 | F167: =IF(A167>$A$8,"",OFFSET(InputPriceData!E$15,CalculationsAndCharts!$A167+$A$11,IF($C$5,8,0),1,1)) -> 4828 | G167: =IF(A167>$A$8,"",OFFSET(InputPriceData!F$15,CalculationsAndCharts!$A167+$A$11,IF($C$5,8,0),1,1)) -> 4832.25 | H167: 0 | I167: 1.25 | J167: =IF($A167>$J$30,NA(),AVERAGE(H167:H170)) -> 9.1875 | K167: 0.3125 | N167: =IF($A167>$J$30,NA(),IF($A167>$N$30,0,(1-$M$35)*J167+(2*$M$35-$M$36)*J168-($M$35+$M$37)*J169+$M$36*N168+$M$37*N169)) -> 23.13734553 | O167: 5.456637443 | P167: 0.6183366656 | Q167: 0.6012141155 | T167: 27.58734659 | U167: 11.90615045 | V167: 0.3970576757 | W167: 0.3549306442 | BD167: 927035
A168: 136 | B168: =IF(A168>$A$8,"",OFFSET(InputPriceData!B$15,$A168+$A$11,0,1,1)) -> 2023-12-27T05:00:00 | C168: =IF(A168>$A$8,"",OFFSET(InputPriceData!G$15,CalculationsAndCharts!$A168+$A$11,IF($C$5,8,0),1,1)) -> 1042284 | D168: =IF(A168>$A$8,"",OFFSET(InputPriceData!C$15,CalculationsAndCharts!$A168+$A$11,IF($C$5,8,0),1,1)) -> 4827.75 | E168: =IF(A168>$A$8,"",OFFSET(InputPriceData!D$15,CalculationsAndCharts!$A168+$A$11,IF($C$5,8,0),1,1)) -> 4836.5 | F168: =IF(A168>$A$8,"",OFFSET(InputPriceData!E$15,CalculationsAndCharts!$A168+$A$11,IF($C$5,8,0),1,1)) -> 4816.5 | G168: =IF(A168>$A$8,"",OFFSET(InputPriceData!F$15,CalculationsAndCharts!$A168+$A$11,IF($C$5,8,0),1,1)) -> 4833.5 | H168: 8.5 | I168: 0 | J168: =IF($A168>$J$30,NA(),AVERAGE(H168:H171)) -> 20.9375 | K168: 0 | N168: =IF($A168>$J$30,NA(),IF($A168>$N$30,0,(1-$M$35)*J168+(2*$M$35-$M$36)*J169-($M$35+$M$37)*J170+$M$36*N169+$M$37*N170)) -> 23.56909535 | O168: 6.006630556 | P168: 0.5938134823 | Q168: 0.648664272 | T168: 31.9006743 | U168: 15.58358066 | V168: 0.343631666 | W168: 0.446673574 | BC168: 1042284
A169: 137 | B169: =IF(A169>$A$8,"",OFFSET(InputPriceData!B$15,$A169+$A$11,0,1,1)) -> 2023-12-26T05:00:00 | C169: =IF(A169>$A$8,"",OFFSET(InputPriceData!G$15,CalculationsAndCharts!$A169+$A$11,IF($C$5,8,0),1,1)) -> 688201 | D169: =IF(A169>$A$8,"",OFFSET(InputPriceData!C$15,CalculationsAndCharts!$A169+$A$11,IF($C$5,8,0),1,1)) -> 4800.25 | E169: =IF(A169>$A$8,"",OFFSET(InputPriceData!D$15,CalculationsAndCharts!$A169+$A$11,IF($C$5,8,0),1,1)) -> 4834.5 | F169: =IF(A169>$A$8,"",OFFSET(InputPriceData!E$15,CalculationsAndCharts!$A169+$A$11,IF($C$5,8,0),1,1)) -> 4800.25 | G169: =IF(A169>$A$8,"",OFFSET(InputPriceData!F$15,CalculationsAndCharts!$A169+$A$11,IF($C$5,8,0),1,1)) -> 4825 | H169: 19.75 | I169: 0 | J169: =IF($A169>$J$30,NA(),AVERAGE(H169:H172)) -> 18.8125 | K169: 17.625 | N169: =IF($A169>$J$30,NA(),IF($A169>$N$30,0,(1-$M$35)*J169+(2*$M$35-$M$36)*J170-($M$35+$M$37)*J171+$M$36*N170+$M$37*N171)) -> 23.61921678 | O169: 5.882417702 | P169: 0.6012141155 | Q169: 0.6893896573 | T169: 35.17619369 | U169: 16.7470451 | V169: 0.3549306442 | W169: 0.5126666937 | BC169: 688201
A170: 138 | B170: =IF(A170>$A$8,"",OFFSET(InputPriceData!B$15,$A170+$A$11,0,1,1)) -> 2023-12-22T05:00:00 | C170: =IF(A170>$A$8,"",OFFSET(InputPriceData!G$15,CalculationsAndCharts!$A170+$A$11,IF($C$5,8,0),1,1)) -> 1326697 | D170: =IF(A170>$A$8,"",OFFSET(InputPriceData!C$15,CalculationsAndCharts!$A170+$A$11,IF($C$5,8,0),1,1)) -> 4795.75 | E170: =IF(A170>$A$8,"",OFFSET(InputPriceData!D$15,CalculationsAndCharts!$A170+$A$11,IF($C$5,8,0),1,1)) -> 4821.75 | F170: =IF(A170>$A$8,"",OFFSET(InputPriceData!E$15,CalculationsAndCharts!$A170+$A$11,IF($C$5,8,0),1,1)) -> 4784.75 | G170: =IF(A170>$A$8,"",OFFSET(InputPriceData!F$15,CalculationsAndCharts!$A170+$A$11,IF($C$5,8,0),1,1)) -> 4805.25 | H170: 8.5 | I170: 0 | J170: =IF($A170>$J$30,NA(),AVERAGE(H170:H173)) -> 20.6875 | K170: 17.625 | N170: =IF($A170>$J$30,NA(),IF($A170>$N$30,0,(1-$M$35)*J170+(2*$M$35-$M$36)*J171-($M$35+$M$37)*J172+$M$36*N171+$M$37*N172)) -> 23.67133416 | O170: 5.044438435 | P170: 0.648664272 | Q170: 0.7525411537 | T170: 38.81514131 | U170: 14.84608816 | V170: 0.446673574 | W170: 0.6284842835 | BC170: 1326697
A171: 139 | B171: =IF(A171>$A$8,"",OFFSET(InputPriceData!B$15,$A171+$A$11,0,1,1)) -> 2023-12-21T05:00:00 | C171: =IF(A171>$A$8,"",OFFSET(InputPriceData!G$15,CalculationsAndCharts!$A171+$A$11,IF($C$5,8,0),1,1)) -> 1687065 | D171: =IF(A171>$A$8,"",OFFSET(InputPriceData!C$15,CalculationsAndCharts!$A171+$A$11,IF($C$5,8,0),1,1)) -> 4751 | E171: =IF(A171>$A$8,"",OFFSET(InputPriceData!D$15,CalculationsAndCharts!$A171+$A$11,IF($C$5,8,0),1,1)) -> 4798.25 | F171: =IF(A171>$A$8,"",OFFSET(InputPriceData!E$15,CalculationsAndCharts!$A171+$A$11,IF($C$5,8,0),1,1)) -> 4751 | G171: =IF(A171>$A$8,"",OFFSET(InputPriceData!F$15,CalculationsAndCharts!$A171+$A$11,IF($C$5,8,0),1,1)) -> 4796.75 | H171: 47 | I171: 0 | J171: =IF($A171>$J$30,NA(),AVERAGE(H171:H174)) -> 43.245 | K171: 17.625 | N171: =IF($A171>$J$30,NA(),IF($A171>$N$30,0,(1-$M$35)*J171+(2*$M$35-$M$36)*J172-($M$35+$M$37)*J173+$M$36*N172+$M$37*N173)) -> 22.72638397 | O171: 4.17846166 | P171: 0.6893896573 | Q171: 0.8003686092 | T171: 38.48679192 | U171: 12.39922558 | V171: 0.5126666937 | W171: 0.7428565954 | BC171: 1687065
A172: 140 | B172: =IF(A172>$A$8,"",OFFSET(InputPriceData!B$15,$A172+$A$11,0,1,1)) -> 2023-12-20T05:00:00 | C172: =IF(A172>$A$8,"",OFFSET(InputPriceData!G$15,CalculationsAndCharts!$A172+$A$11,IF($C$5,8,0),1,1)) -> 1749145 | D172: =IF(A172>$A$8,"",OFFSET(InputPriceData!C$15,CalculationsAndCharts!$A172+$A$11,IF($C$5,8,0),1,1)) -> 4818.5 | E172: =IF(A172>$A$8,"",OFFSET(InputPriceData!D$15,CalculationsAndCharts!$A172+$A$11,IF($C$5,8,0),1,1)) -> 4830.75 | F172: =IF(A172>$A$8,"",OFFSET(InputPriceData!E$15,CalculationsAndCharts!$A172+$A$11,IF($C$5,8,0),1,1)) -> 4743.25 | G172: =IF(A172>$A$8,"",OFFSET(InputPriceData!F$15,CalculationsAndCharts!$A172+$A$11,IF($C$5,8,0),1,1)) -> 4749.75 | H172: 0 | I172: 70.5 | J172: =IF($A172>$J$30,NA(),AVERAGE(H172:H175)) -> 31.495 | K172: 24.495 | N172: =IF($A172>$J$30,NA(),IF($A172>$N$30,0,(1-$M$35)*J172+(2*$M$35-$M$36)*J173-($M$35+$M$37)*J174+$M$36*N173+$M$37*N174)) -> 21.29640018 | O172: 3.007052135 | P172: 0.7525411537 | Q172: 0.7909127146 | T172: 35.79270478 | U172: 8.165600674 | V172: 0.6284842835 | W172: 0.7420869836 | BD172: 1749145
A173: 141 | B173: =IF(A173>$A$8,"",OFFSET(InputPriceData!B$15,$A173+$A$11,0,1,1)) -> 2023-12-19T05:00:00 | C173: =IF(A173>$A$8,"",OFFSET(InputPriceData!G$15,CalculationsAndCharts!$A173+$A$11,IF($C$5,8,0),1,1)) -> 1122973 | D173: =IF(A173>$A$8,"",OFFSET(InputPriceData!C$15,CalculationsAndCharts!$A173+$A$11,IF($C$5,8,0),1,1)) -> 4790.5 | E173: =IF(A173>$A$8,"",OFFSET(InputPriceData!D$15,CalculationsAndCharts!$A173+$A$11,IF($C$5,8,0),1,1)) -> 4821.5 | F173: =IF(A173>$A$8,"",OFFSET(InputPriceData!E$15,CalculationsAndCharts!$A173+$A$11,IF($C$5,8,0),1,1)) -> 4787.75 | G173: =IF(A173>$A$8,"",OFFSET(InputPriceData!F$15,CalculationsAndCharts!$A173+$A$11,IF($C$5,8,0),1,1)) -> 4820.25 | H173: 27.25 | I173: 0 | J173: =IF($A173>$J$30,NA(),AVERAGE(H173:H176)) -> 34.87 | K173: 6.87 | N173: =IF($A173>$J$30,NA(),IF($A173>$N$30,0,(1-$M$35)*J173+(2*$M$35-$M$36)*J174-($M$35+$M$37)*J175+$M$36*N174+$M$37*N175)) -> 20.13983041 | O173: 2.233177325 | P173: 0.8003686092 | Q173: 0.7830979651 | T173: 33.62581328 | U173: 4.961197688 | V173: 0.7428565954 | W173: 0.7543330911 | BC173: =IF(G173>=G174,C173,NA()) -> 1122973 | BD173: =IF(G173<G174,C173,NA()) -> 
A174: 142 | B174: =IF(A174>$A$8,"",OFFSET(InputPriceData!B$15,$A174+$A$11,0,1,1)) -> 2023-12-18T05:00:00 | C174: =IF(A174>$A$8,"",OFFSET(InputPriceData!G$15,CalculationsAndCharts!$A174+$A$11,IF($C$5,8,0),1,1)) -> 1139029 | D174: =IF(A174>$A$8,"",OFFSET(InputPriceData!C$15,CalculationsAndCharts!$A174+$A$11,IF($C$5,8,0),1,1)) -> 4770.5 | E174: =IF(A174>$A$8,"",OFFSET(InputPriceData!D$15,CalculationsAndCharts!$A174+$A$11,IF($C$5,8,0),1,1)) -> 4802.25 | F174: =IF(A174>$A$8,"",OFFSET(InputPriceData!E$15,CalculationsAndCharts!$A174+$A$11,IF($C$5,8,0),1,1)) -> 4769.5 | G174: =IF(A174>$A$8,"",OFFSET(InputPriceData!F$15,CalculationsAndCharts!$A174+$A$11,IF($C$5,8,0),1,1)) -> 4793 | H174: 98.73 | I174: 0 | J174: =IF($A174>$J$30,NA(),AVERAGE(H174:H177)) -> 43.6825 | K174: 6.87 | N174: =IF($A174>$J$30,NA(),IF($A174>$N$30,0,(1-$M$35)*J174+(2*$M$35-$M$36)*J175-($M$35+$M$37)*J176+$M$36*N175+$M$37*N176)) -> 18.43737064 | O174: 2.15254476 | P174: 0.7909127146 | Q174: 0.7533955531 | T174: 28.52786525 | U174: 4.223501952 | V174: 0.7420869836 | W174: 0.7095143641 | BC174: 1139029
A175: 143 | B175: =IF(A175>$A$8,"",OFFSET(InputPriceData!B$15,$A175+$A$11,0,1,1)) -> 2023-12-15T05:00:00 | C175: =IF(A175>$A$8,"",OFFSET(InputPriceData!G$15,CalculationsAndCharts!$A175+$A$11,IF($C$5,8,0),1,1)) -> 1801823 | D175: =IF(A175>$A$8,"",OFFSET(InputPriceData!C$15,CalculationsAndCharts!$A175+$A$11,IF($C$5,8,0),1,1)) -> 4716 | E175: =IF(A175>$A$8,"",OFFSET(InputPriceData!D$15,CalculationsAndCharts!$A175+$A$11,IF($C$5,8,0),1,1)) -> 4736.5 | F175: =IF(A175>$A$8,"",OFFSET(InputPriceData!E$15,CalculationsAndCharts!$A175+$A$11,IF($C$5,8,0),1,1)) -> 4694.27 | G175: =IF(A175>$A$8,"",OFFSET(InputPriceData!F$15,CalculationsAndCharts!$A175+$A$11,IF($C$5,8,0),1,1)) -> 4694.27 | H175: 0 | I175: 27.48 | J175: =IF($A175>$J$30,NA(),AVERAGE(H175:H178)) -> 23.9375 | K175: 6.87 | N175: =IF($A175>$J$30,NA(),IF($A175>$N$30,0,(1-$M$35)*J175+(2*$M$35-$M$36)*J176-($M$35+$M$37)*J177+$M$36*N176+$M$37*N177)) -> 17.10490551 | O175: 2.080698248 | P175: 0.7830979651 | Q175: 0.6892995279 | T175: 24.04030618 | U175: 3.366468852 | V175: 0.7543330911 | W175: 0.5269463424 | BD175: 1801823
A176: 144 | B176: =IF(A176>$A$8,"",OFFSET(InputPriceData!B$15,$A176+$A$11,0,1,1)) -> 2023-12-14T05:00:00 | C176: =IF(A176>$A$8,"",OFFSET(InputPriceData!G$15,CalculationsAndCharts!$A176+$A$11,IF($C$5,8,0),1,1)) -> 560819 | D176: =IF(A176>$A$8,"",OFFSET(InputPriceData!C$15,CalculationsAndCharts!$A176+$A$11,IF($C$5,8,0),1,1)) -> 4708 | E176: =IF(A176>$A$8,"",OFFSET(InputPriceData!D$15,CalculationsAndCharts!$A176+$A$11,IF($C$5,8,0),1,1)) -> 4739.25 | F176: =IF(A176>$A$8,"",OFFSET(InputPriceData!E$15,CalculationsAndCharts!$A176+$A$11,IF($C$5,8,0),1,1)) -> 4694.25 | G176: =IF(A176>$A$8,"",OFFSET(InputPriceData!F$15,CalculationsAndCharts!$A176+$A$11,IF($C$5,8,0),1,1)) -> 4721.75 | H176: 13.5 | I176: 0 | J176: =IF($A176>$J$30,NA(),AVERAGE(H176:H179)) -> 28.5625 | K176: 0 | N176: =IF($A176>$J$30,NA(),IF($A176>$N$30,0,(1-$M$35)*J176+(2*$M$35-$M$36)*J177-($M$35+$M$37)*J178+$M$36*N177+$M$37*N178)) -> 16.32887361 | O176: 2.296557007 | P176: 0.7533955531 | Q176: 0.6227447261 | T176: 21.05340605 | U176: 3.577455781 | V176: 0.7095143641 | W176: 0.2605410231 | BC176: 560819
A177: 145 | B177: =IF(A177>$A$8,"",OFFSET(InputPriceData!B$15,$A177+$A$11,0,1,1)) -> 2023-12-13T05:00:00 | C177: =IF(A177>$A$8,"",OFFSET(InputPriceData!G$15,CalculationsAndCharts!$A177+$A$11,IF($C$5,8,0),1,1)) -> 739684 | D177: =IF(A177>$A$8,"",OFFSET(InputPriceData!C$15,CalculationsAndCharts!$A177+$A$11,IF($C$5,8,0),1,1)) -> 4649 | E177: =IF(A177>$A$8,"",OFFSET(InputPriceData!D$15,CalculationsAndCharts!$A177+$A$11,IF($C$5,8,0),1,1)) -> 4711.75 | F177: =IF(A177>$A$8,"",OFFSET(InputPriceData!E$15,CalculationsAndCharts!$A177+$A$11,IF($C$5,8,0),1,1)) -> 4645 | G177: =IF(A177>$A$8,"",OFFSET(InputPriceData!F$15,CalculationsAndCharts!$A177+$A$11,IF($C$5,8,0),1,1)) -> 4708.25 | H177: 62.5 | I177: 0 | J177: =IF($A177>$J$30,NA(),AVERAGE(H177:H180)) -> 29.6875 | K177: 0 | N177: =IF($A177>$J$30,NA(),IF($A177>$N$30,0,(1-$M$35)*J177+(2*$M$35-$M$36)*J178-($M$35+$M$37)*J179+$M$36*N178+$M$37*N179)) -> 15.28860885 | O177: 2.811921692 | P177: 0.6892995279 | Q177: 0.5793471174 | T177: 16.26895784 | U177: 5.040183663 | V177: 0.5269463424 | W177: 0.002528032245 | BC177: 739684
A178: 146 | B178: =IF(A178>$A$8,"",OFFSET(InputPriceData!B$15,$A178+$A$11,0,1,1)) -> 2023-12-12T05:00:00 | C178: =IF(A178>$A$8,"",OFFSET(InputPriceData!G$15,CalculationsAndCharts!$A178+$A$11,IF($C$5,8,0),1,1)) -> 1052077 | D178: =IF(A178>$A$8,"",OFFSET(InputPriceData!C$15,CalculationsAndCharts!$A178+$A$11,IF($C$5,8,0),1,1)) -> 4625 | E178: =IF(A178>$A$8,"",OFFSET(InputPriceData!D$15,CalculationsAndCharts!$A178+$A$11,IF($C$5,8,0),1,1)) -> 4649.75 | F178: =IF(A178>$A$8,"",OFFSET(InputPriceData!E$15,CalculationsAndCharts!$A178+$A$11,IF($C$5,8,0),1,1)) -> 4610.5 | G178: =IF(A178>$A$8,"",OFFSET(InputPriceData!F$15,CalculationsAndCharts!$A178+$A$11,IF($C$5,8,0),1,1)) -> 4645.75 | H178: 19.75 | I178: 0 | J178: =IF($A178>$J$30,NA(),AVERAGE(H178:H181)) -> 22.4375 | K178: 0 | N178: =IF($A178>$J$30,NA(),IF($A178>$N$30,0,(1-$M$35)*J178+(2*$M$35-$M$36)*J179-($M$35+$M$37)*J180+$M$36*N179+$M$37*N180)) -> 14.45557379 | O178: 3.360628052 | P178: 0.6227447261 | Q178: 0.5609807843 | T178: 11.50961177 | U178: 6.751772127 | V178: 0.2605410231 | W178: -0.2116032204 | BC178: 1052077
A179: 147 | B179: =IF(A179>$A$8,"",OFFSET(InputPriceData!B$15,$A179+$A$11,0,1,1)) -> 2023-12-11T05:00:00 | C179: =IF(A179>$A$8,"",OFFSET(InputPriceData!G$15,CalculationsAndCharts!$A179+$A$11,IF($C$5,8,0),1,1)) -> 1663229 | D179: =IF(A179>$A$8,"",OFFSET(InputPriceData!C$15,CalculationsAndCharts!$A179+$A$11,IF($C$5,8,0),1,1)) -> 4607.75 | E179: =IF(A179>$A$8,"",OFFSET(InputPriceData!D$15,CalculationsAndCharts!$A179+$A$11,IF($C$5,8,0),1,1)) -> 4627.25 | F179: =IF(A179>$A$8,"",OFFSET(InputPriceData!E$15,CalculationsAndCharts!$A179+$A$11,IF($C$5,8,0),1,1)) -> 4599.5 | G179: =IF(A179>$A$8,"",OFFSET(InputPriceData!F$15,CalculationsAndCharts!$A179+$A$11,IF($C$5,8,0),1,1)) -> 4626 | H179: 18.5 | I179: 0 | J179: =IF($A179>$J$30,NA(),AVERAGE(H179:H182)) -> 17.5 | K179: 4.75 | N179: =IF($A179>$J$30,NA(),IF($A179>$N$30,0,(1-$M$35)*J179+(2*$M$35-$M$36)*J180-($M$35+$M$37)*J181+$M$36*N180+$M$37*N181)) -> 14.08486571 | O179: 3.751448493 | P179: 0.5793471174 | Q179: 0.5724264493 | T179: 7.92734889 | U179: 7.887368774 | V179: 0.002528032245 | W179: -0.3010860318 | BC179: 1663229
A180: 148 | B180: =IF(A180>$A$8,"",OFFSET(InputPriceData!B$15,$A180+$A$11,0,1,1)) -> 2023-12-08T05:00:00 | C180: =IF(A180>$A$8,"",OFFSET(InputPriceData!G$15,CalculationsAndCharts!$A180+$A$11,IF($C$5,8,0),1,1)) -> 2289425 | D180: =IF(A180>$A$8,"",OFFSET(InputPriceData!C$15,CalculationsAndCharts!$A180+$A$11,IF($C$5,8,0),1,1)) -> 4586.5 | E180: =IF(A180>$A$8,"",OFFSET(InputPriceData!D$15,CalculationsAndCharts!$A180+$A$11,IF($C$5,8,0),1,1)) -> 4613.75 | F180: =IF(A180>$A$8,"",OFFSET(InputPriceData!E$15,CalculationsAndCharts!$A180+$A$11,IF($C$5,8,0),1,1)) -> 4561.75 | G180: =IF(A180>$A$8,"",OFFSET(InputPriceData!F$15,CalculationsAndCharts!$A180+$A$11,IF($C$5,8,0),1,1)) -> 4607.5 | H180: 18 | I180: 0 | J180: =IF($A180>$J$30,NA(),AVERAGE(H180:H183)) -> 12.875 | K180: 5.125 | N180: =IF($A180>$J$30,NA(),IF($A180>$N$30,0,(1-$M$35)*J180+(2*$M$35-$M$36)*J181-($M$35+$M$37)*J182+$M$36*N181+$M$37*N182)) -> 14.08971111 | O180: 3.962671407 | P180: 0.5609807843 | Q180: 0.6096960789 | T180: 5.362152945 | U180: 8.240522976 | V180: -0.2116032204 | W180: -0.1814090923 | BC180: 2289425
A181: 149 | B181: =IF(A181>$A$8,"",OFFSET(InputPriceData!B$15,$A181+$A$11,0,1,1)) -> 2023-12-07T05:00:00 | C181: =IF(A181>$A$8,"",OFFSET(InputPriceData!G$15,CalculationsAndCharts!$A181+$A$11,IF($C$5,8,0),1,1)) -> 1832361 | D181: =IF(A181>$A$8,"",OFFSET(InputPriceData!C$15,CalculationsAndCharts!$A181+$A$11,IF($C$5,8,0),1,1)) -> 4556 | E181: =IF(A181>$A$8,"",OFFSET(InputPriceData!D$15,CalculationsAndCharts!$A181+$A$11,IF($C$5,8,0),1,1)) -> 4596 | F181: =IF(A181>$A$8,"",OFFSET(InputPriceData!E$15,CalculationsAndCharts!$A181+$A$11,IF($C$5,8,0),1,1)) -> 4548.75 | G181: =IF(A181>$A$8,"",OFFSET(InputPriceData!F$15,CalculationsAndCharts!$A181+$A$11,IF($C$5,8,0),1,1)) -> 4589.5 | H181: 33.5 | I181: 0 | J181: =IF($A181>$J$30,NA(),AVERAGE(H181:H184)) -> 8.375 | K181: 11.1875 | N181: =IF($A181>$J$30,NA(),IF($A181>$N$30,0,(1-$M$35)*J181+(2*$M$35-$M$36)*J182-($M$35+$M$37)*J183+$M$36*N182+$M$37*N183)) -> 14.46774566 | O181: 3.934063425 | P181: 0.5724264493 | Q181: 0.6278546018 | T181: 3.987844762 | U181: 7.423702133 | V181: -0.3010860318 | W181: -0.06708355896 | BC181: 1832361
A182: 150 | B182: =IF(A182>$A$8,"",OFFSET(InputPriceData!B$15,$A182+$A$11,0,1,1)) -> 2023-12-06T05:00:00 | C182: =IF(A182>$A$8,"",OFFSET(InputPriceData!G$15,CalculationsAndCharts!$A182+$A$11,IF($C$5,8,0),1,1)) -> 1837961 | D182: =IF(A182>$A$8,"",OFFSET(InputPriceData!C$15,CalculationsAndCharts!$A182+$A$11,IF($C$5,8,0),1,1)) -> 4573.25 | E182: =IF(A182>$A$8,"",OFFSET(InputPriceData!D$15,CalculationsAndCharts!$A182+$A$11,IF($C$5,8,0),1,1)) -> 4598.5 | F182: =IF(A182>$A$8,"",OFFSET(InputPriceData!E$15,CalculationsAndCharts!$A182+$A$11,IF($C$5,8,0),1,1)) -> 4552 | G182: =IF(A182>$A$8,"",OFFSET(InputPriceData!F$15,CalculationsAndCharts!$A182+$A$11,IF($C$5,8,0),1,1)) -> 4556 | H182: 0 | I182: 19 | J182: =IF($A182>$J$30,NA(),AVERAGE(H182:H185)) -> 6 | K182: 11.1875 | N182: =IF($A182>$J$30,NA(),IF($A182>$N$30,0,(1-$M$35)*J182+(2*$M$35-$M$36)*J183-($M$35+$M$37)*J184+$M$36*N183+$M$37*N184)) -> 15.14257095 | O182: 3.671627766 | P182: 0.6096960789 | Q182: 0.6274127798 | T182: 3.674125512 | U182: 5.302581845 | V182: -0.1814090923 | W182: -0.07563020541 | BD182: 1837961
A183: 151 | B183: =IF(A183>$A$8,"",OFFSET(InputPriceData!B$15,$A183+$A$11,0,1,1)) -> 2023-12-05T05:00:00 | C183: =IF(A183>$A$8,"",OFFSET(InputPriceData!G$15,CalculationsAndCharts!$A183+$A$11,IF($C$5,8,0),1,1)) -> 1890825 | D183: =IF(A183>$A$8,"",OFFSET(InputPriceData!C$15,CalculationsAndCharts!$A183+$A$11,IF($C$5,8,0),1,1)) -> 4573 | E183: =IF(A183>$A$8,"",OFFSET(InputPriceData!D$15,CalculationsAndCharts!$A183+$A$11,IF($C$5,8,0),1,1)) -> 4585.5 | F183: =IF(A183>$A$8,"",OFFSET(InputPriceData!E$15,CalculationsAndCharts!$A183+$A$11,IF($C$5,8,0),1,1)) -> 4555.5 | G183: =IF(A183>$A$8,"",OFFSET(InputPriceData!F$15,CalculationsAndCharts!$A183+$A$11,IF($C$5,8,0),1,1)) -> 4575 | H183: 0 | I183: 1.5 | J183: =IF($A183>$J$30,NA(),AVERAGE(H183:H186)) -> 10.375 | K183: 6.4375 | N183: =IF($A183>$J$30,NA(),IF($A183>$N$30,0,(1-$M$35)*J183+(2*$M$35-$M$36)*J184-($M$35+$M$37)*J185+$M$36*N184+$M$37*N185)) -> 15.76614653 | O183: 3.604313846 | P183: 0.6278546018 | Q183: 0.6080681626 | T183: 3.106611368 | U183: 3.553387816 | V183: -0.06708355896 | W183: -0.432726896 | BD183: 1890825
A184: 152 | B184: =IF(A184>$A$8,"",OFFSET(InputPriceData!B$15,$A184+$A$11,0,1,1)) -> 2023-12-04T05:00:00 | C184: =IF(A184>$A$8,"",OFFSET(InputPriceData!G$15,CalculationsAndCharts!$A184+$A$11,IF($C$5,8,0),1,1)) -> 1818991 | D184: =IF(A184>$A$8,"",OFFSET(InputPriceData!C$15,CalculationsAndCharts!$A184+$A$11,IF($C$5,8,0),1,1)) -> 4603.25 | E184: =IF(A184>$A$8,"",OFFSET(InputPriceData!D$15,CalculationsAndCharts!$A184+$A$11,IF($C$5,8,0),1,1)) -> 4604.5 | F184: =IF(A184>$A$8,"",OFFSET(InputPriceData!E$15,CalculationsAndCharts!$A184+$A$11,IF($C$5,8,0),1,1)) -> 4553.5 | G184: =IF(A184>$A$8,"",OFFSET(InputPriceData!F$15,CalculationsAndCharts!$A184+$A$11,IF($C$5,8,0),1,1)) -> 4576.5 | H184: 0 | I184: 24.25 | J184: =IF($A184>$J$30,NA(),AVERAGE(H184:H187)) -> 10.375 | K184: 7 | N184: =IF($A184>$J$30,NA(),IF($A184>$N$30,0,(1-$M$35)*J184+(2*$M$35-$M$36)*J185-($M$35+$M$37)*J186+$M$36*N185+$M$37*N186)) -> 16.23938168 | O184: 3.71791727 | P184: 0.6274127798 | Q184: 0.5802078278 | T184: 1.874603673 | U184: 2.181356797 | V184: -0.07563020541 | W184: -0.5862271754 | BD184: 1818991
A185: 153 | B185: =IF(A185>$A$8,"",OFFSET(InputPriceData!B$15,$A185+$A$11,0,1,1)) -> 2023-12-01T05:00:00 | C185: =IF(A185>$A$8,"",OFFSET(InputPriceData!G$15,CalculationsAndCharts!$A185+$A$11,IF($C$5,8,0),1,1)) -> 1914151 | D185: =IF(A185>$A$8,"",OFFSET(InputPriceData!C$15,CalculationsAndCharts!$A185+$A$11,IF($C$5,8,0),1,1)) -> 4571.75 | E185: =IF(A185>$A$8,"",OFFSET(InputPriceData!D$15,CalculationsAndCharts!$A185+$A$11,IF($C$5,8,0),1,1)) -> 4607.75 | F185: =IF(A185>$A$8,"",OFFSET(InputPriceData!E$15,CalculationsAndCharts!$A185+$A$11,IF($C$5,8,0),1,1)) -> 4562.5 | G185: =IF(A185>$A$8,"",OFFSET(InputPriceData!F$15,CalculationsAndCharts!$A185+$A$11,IF($C$5,8,0),1,1)) -> 4600.75 | H185: 24 | I185: 0 | J185: =IF($A185>$J$30,NA(),AVERAGE(H185:H188)) -> 10.875 | K185: 0.9375 | N185: =IF($A185>$J$30,NA(),IF($A185>$N$30,0,(1-$M$35)*J185+(2*$M$35-$M$36)*J186-($M$35+$M$37)*J187+$M$36*N186+$M$37*N187)) -> 16.71225821 | O185: 4.073251506 | P185: 0.6080681626 | Q185: 0.5669926085 | T185: 0.5980451757 | U185: 1.510446031 | V185: -0.432726896 | W185: 0.3715600249 | BC185: 1914151
A186: 154 | B186: =IF(A186>$A$8,"",OFFSET(InputPriceData!B$15,$A186+$A$11,0,1,1)) -> 2023-11-30T05:00:00 | C186: =IF(A186>$A$8,"",OFFSET(InputPriceData!G$15,CalculationsAndCharts!$A186+$A$11,IF($C$5,8,0),1,1)) -> 2056268 | D186: =IF(A186>$A$8,"",OFFSET(InputPriceData!C$15,CalculationsAndCharts!$A186+$A$11,IF($C$5,8,0),1,1)) -> 4562.25 | E186: =IF(A186>$A$8,"",OFFSET(InputPriceData!D$15,CalculationsAndCharts!$A186+$A$11,IF($C$5,8,0),1,1)) -> 4579.5 | F186: =IF(A186>$A$8,"",OFFSET(InputPriceData!E$15,CalculationsAndCharts!$A186+$A$11,IF($C$5,8,0),1,1)) -> 4544.75 | G186: =IF(A186>$A$8,"",OFFSET(InputPriceData!F$15,CalculationsAndCharts!$A186+$A$11,IF($C$5,8,0),1,1)) -> 4576.75 | H186: 17.5 | I186: 0 | J186: =IF($A186>$J$30,NA(),AVERAGE(H186:H189)) -> 4.875 | K186: 2.75 | N186: =IF($A186>$J$30,NA(),IF($A186>$N$30,0,(1-$M$35)*J186+(2*$M$35-$M$36)*J187-($M$35+$M$37)*J188+$M$36*N187+$M$37*N188)) -> 17.42677557 | O186: 4.629532802 | P186: 0.5802078278 | Q186: 0.5553183831 | T186: 0.3821138595 | U186: 1.46486031 | V186: -0.5862271754 | W186: 0.7739913321 | BC186: 2056268
A187: 155 | B187: =IF(A187>$A$8,"",OFFSET(InputPriceData!B$15,$A187+$A$11,0,1,1)) -> 2023-11-29T05:00:00 | C187: =IF(A187>$A$8,"",OFFSET(InputPriceData!G$15,CalculationsAndCharts!$A187+$A$11,IF($C$5,8,0),1,1)) -> 1592398 | D187: =IF(A187>$A$8,"",OFFSET(InputPriceData!C$15,CalculationsAndCharts!$A187+$A$11,IF($C$5,8,0),1,1)) -> 4564 | E187: =IF(A187>$A$8,"",OFFSET(InputPriceData!D$15,CalculationsAndCharts!$A187+$A$11,IF($C$5,8,0),1,1)) -> 4597 | F187: =IF(A187>$A$8,"",OFFSET(InputPriceData!E$15,CalculationsAndCharts!$A187+$A$11,IF($C$5,8,0),1,1)) -> 4555.5 | G187: =IF(A187>$A$8,"",OFFSET(InputPriceData!F$15,CalculationsAndCharts!$A187+$A$11,IF($C$5,8,0),1,1)) -> 4559.25 | H187: 0 | I187: 3.75 | J187: =IF($A187>$J$30,NA(),AVERAGE(H187:H190)) -> 0.5 | K187: 3.0625 | N187: =IF($A187>$J$30,NA(),IF($A187>$N$30,0,(1-$M$35)*J187+(2*$M$35-$M$36)*J188-($M$35+$M$37)*J189+$M$36*N188+$M$37*N189)) -> 18.58878295 | O187: 5.136642235 | P187: 0.5669926085 | Q187: 0.5391961144 | T187: 2.31166832 | U187: 1.059191545 | V187: 0.3715600249 | W187: 0.8928131513 | BD187: 1592398
A188: 156 | B188: =IF(A188>$A$8,"",OFFSET(InputPriceData!B$15,$A188+$A$11,0,1,1)) -> 2023-11-28T05:00:00 | C188: =IF(A188>$A$8,"",OFFSET(InputPriceData!G$15,CalculationsAndCharts!$A188+$A$11,IF($C$5,8,0),1,1)) -> 1441119 | D188: =IF(A188>$A$8,"",OFFSET(InputPriceData!C$15,CalculationsAndCharts!$A188+$A$11,IF($C$5,8,0),1,1)) -> 4561.5 | E188: =IF(A188>$A$8,"",OFFSET(InputPriceData!D$15,CalculationsAndCharts!$A188+$A$11,IF($C$5,8,0),1,1)) -> 4577.25 | F188: =IF(A188>$A$8,"",OFFSET(InputPriceData!E$15,CalculationsAndCharts!$A188+$A$11,IF($C$5,8,0),1,1)) -> 4547 | G188: =IF(A188>$A$8,"",OFFSET(InputPriceData!F$15,CalculationsAndCharts!$A188+$A$11,IF($C$5,8,0),1,1)) -> 4563 | H188: 2 | I188: 0 | J188: =IF($A188>$J$30,NA(),AVERAGE(H188:H191)) -> 1.0625 | K188: 2.125 | N188: =IF($A188>$J$30,NA(),IF($A188>$N$30,0,(1-$M$35)*J188+(2*$M$35-$M$36)*J189-($M$35+$M$37)*J190+$M$36*N189+$M$37*N190)) -> 19.94892079 | O188: 5.703602842 | P188: 0.5553183831 | Q188: 0.5234756801 | T188: 5.639515092 | U188: 0.718481128 | V188: 0.7739913321 | W188: 0.9720854395 | BC188: 1441119
A189: 157 | B189: =IF(A189>$A$8,"",OFFSET(InputPriceData!B$15,$A189+$A$11,0,1,1)) -> 2023-11-27T05:00:00 | C189: =IF(A189>$A$8,"",OFFSET(InputPriceData!G$15,CalculationsAndCharts!$A189+$A$11,IF($C$5,8,0),1,1)) -> 1124213 | D189: =IF(A189>$A$8,"",OFFSET(InputPriceData!C$15,CalculationsAndCharts!$A189+$A$11,IF($C$5,8,0),1,1)) -> 4568.5 | E189: =IF(A189>$A$8,"",OFFSET(InputPriceData!D$15,CalculationsAndCharts!$A189+$A$11,IF($C$5,8,0),1,1)) -> 4570 | F189: =IF(A189>$A$8,"",OFFSET(InputPriceData!E$15,CalculationsAndCharts!$A189+$A$11,IF($C$5,8,0),1,1)) -> 4552 | G189: =IF(A189>$A$8,"",OFFSET(InputPriceData!F$15,CalculationsAndCharts!$A189+$A$11,IF($C$5,8,0),1,1)) -> 4561 | H189: 0 | I189: 7.25 | J189: =IF($A189>$J$30,NA(),AVERAGE(H189:H192)) -> 4.5625 | K189: 2.125 | N189: =IF($A189>$J$30,NA(),IF($A189>$N$30,0,(1-$M$35)*J189+(2*$M$35-$M$36)*J190-($M$35+$M$37)*J191+$M$36*N190+$M$37*N191)) -> 21.19423261 | O189: 6.345120448 | P189: 0.5391961144 | Q189: 0.5038928566 | T189: 9.224835409 | U189: 0.5223870285 | V189: 0.8928131513 | W189: 1.029430435 | BD189: 1124213
A190: 158 | B190: =IF(A190>$A$8,"",OFFSET(InputPriceData!B$15,$A190+$A$11,0,1,1)) -> 2023-11-24T14:30:00 | C190: =IF(A190>$A$8,"",OFFSET(InputPriceData!G$15,CalculationsAndCharts!$A190+$A$11,IF($C$5,8,0),1,1)) -> 572702 | D190: =IF(A190>$A$8,"",OFFSET(InputPriceData!C$15,CalculationsAndCharts!$A190+$A$11,IF($C$5,8,0),1,1)) -> 4564 | E190: =IF(A190>$A$8,"",OFFSET(InputPriceData!D$15,CalculationsAndCharts!$A190+$A$11,IF($C$5,8,0),1,1)) -> 4574 | F190: =IF(A190>$A$8,"",OFFSET(InputPriceData!E$15,CalculationsAndCharts!$A190+$A$11,IF($C$5,8,0),1,1)) -> 4562 | G190: =IF(A190>$A$8,"",OFFSET(InputPriceData!F$15,CalculationsAndCharts!$A190+$A$11,IF($C$5,8,0),1,1)) -> 4568.25 | H190: 0 | I190: 1.25 | J190: =IF($A190>$J$30,NA(),AVERAGE(H190:H193)) -> 4.5625 | K190: 3.0625 | N190: =IF($A190>$J$30,NA(),IF($A190>$N$30,0,(1-$M$35)*J190+(2*$M$35-$M$36)*J191-($M$35+$M$37)*J192+$M$36*N191+$M$37*N192)) -> 22.34057022 | O190: 6.987853611 | P190: 0.5234756801 | Q190: 0.4781147522 | T190: 13.16881877 | U190: 0.186402567 | V190: 0.9720854395 | W190: 1.062981392 | BD190: 572702
A191: 159 | B191: =IF(A191>$A$8,"",OFFSET(InputPriceData!B$15,$A191+$A$11,0,1,1)) -> 2023-11-23T05:00:00 | C191: =IF(A191>$A$8,"",OFFSET(InputPriceData!G$15,CalculationsAndCharts!$A191+$A$11,IF($C$5,8,0),1,1)) -> 1403636 | D191: =IF(A191>$A$8,"",OFFSET(InputPriceData!C$15,CalculationsAndCharts!$A191+$A$11,IF($C$5,8,0),1,1)) -> 4564 | E191: =IF(A191>$A$8,"",OFFSET(InputPriceData!D$15,CalculationsAndCharts!$A191+$A$11,IF($C$5,8,0),1,1)) -> 4572.75 | F191: =IF(A191>$A$8,"",OFFSET(InputPriceData!E$15,CalculationsAndCharts!$A191+$A$11,IF($C$5,8,0),1,1)) -> 4562 | G191: =IF(A191>$A$8,"",OFFSET(InputPriceData!F$15,CalculationsAndCharts!$A191+$A$11,IF($C$5,8,0),1,1)) -> 4569.5 | H191: 2.25 | I191: 0 | J191: =IF($A191>$J$30,NA(),AVERAGE(H191:H194)) -> 13.25 | K191: 2.75 | N191: =IF($A191>$J$30,NA(),IF($A191>$N$30,0,(1-$M$35)*J191+(2*$M$35-$M$36)*J192-($M$35+$M$37)*J193+$M$36*N192+$M$37*N193)) -> 23.17185369 | O191: 7.643976825 | P191: 0.5038928566 | Q191: 0.4541982694 | T191: 16.5839238 | U191: -0.2404970782 | V191: 1.029430435 | W191: 1.078408103 | BC191: 1403636
A192: 160 | B192: =IF(A192>$A$8,"",OFFSET(InputPriceData!B$15,$A192+$A$11,0,1,1)) -> 2023-11-22T05:00:00 | C192: =IF(A192>$A$8,"",OFFSET(InputPriceData!G$15,CalculationsAndCharts!$A192+$A$11,IF($C$5,8,0),1,1)) -> 1403636 | D192: =IF(A192>$A$8,"",OFFSET(InputPriceData!C$15,CalculationsAndCharts!$A192+$A$11,IF($C$5,8,0),1,1)) -> 4547.75 | E192: =IF(A192>$A$8,"",OFFSET(InputPriceData!D$15,CalculationsAndCharts!$A192+$A$11,IF($C$5,8,0),1,1)) -> 4580.5 | F192: =IF(A192>$A$8,"",OFFSET(InputPriceData!E$15,CalculationsAndCharts!$A192+$A$11,IF($C$5,8,0),1,1)) -> 4543 | G192: =IF(A192>$A$8,"",OFFSET(InputPriceData!F$15,CalculationsAndCharts!$A192+$A$11,IF($C$5,8,0),1,1)) -> 4567.25 | H192: 16 | I192: 0 | J192: =IF($A192>$J$30,NA(),AVERAGE(H192:H195)) -> 13.75 | K192: 2.75 | N192: =IF($A192>$J$30,NA(),IF($A192>$N$30,0,(1-$M$35)*J192+(2*$M$35-$M$36)*J193-($M$35+$M$37)*J194+$M$36*N193+$M$37*N194)) -> 23.65334162 | O192: 8.351401701 | P192: 0.4781147522 | Q192: 0.4266465898 | T192: 19.24146474 | U192: -0.5874285852 | V192: 1.062981392 | W192: 1.04170286 | BC192: 1403636
A193: 161 | B193: =IF(A193>$A$8,"",OFFSET(InputPriceData!B$15,$A193+$A$11,0,1,1)) -> 2023-11-21T05:00:00 | C193: =IF(A193>$A$8,"",OFFSET(InputPriceData!G$15,CalculationsAndCharts!$A193+$A$11,IF($C$5,8,0),1,1)) -> 1101669 | D193: =IF(A193>$A$8,"",OFFSET(InputPriceData!C$15,CalculationsAndCharts!$A193+$A$11,IF($C$5,8,0),1,1)) -> 4561.75 | E193: =IF(A193>$A$8,"",OFFSET(InputPriceData!D$15,CalculationsAndCharts!$A193+$A$11,IF($C$5,8,0),1,1)) -> 4567 | F193: =IF(A193>$A$8,"",OFFSET(InputPriceData!E$15,CalculationsAndCharts!$A193+$A$11,IF($C$5,8,0),1,1)) -> 4536.75 | G193: =IF(A193>$A$8,"",OFFSET(InputPriceData!F$15,CalculationsAndCharts!$A193+$A$11,IF($C$5,8,0),1,1)) -> 4551.25 | H193: 0 | I193: 11 | J193: =IF($A193>$J$30,NA(),AVERAGE(H193:H196)) -> 10.75 | K193: 2.75 | N193: =IF($A193>$J$30,NA(),IF($A193>$N$30,0,(1-$M$35)*J193+(2*$M$35-$M$36)*J194-($M$35+$M$37)*J195+$M$36*N194+$M$37*N195)) -> 24.24249149 | O193: 9.098892558 | P193: 0.4541982694 | Q193: 0.3854833254 | T193: 22.98255409 | U193: -0.867018594 | V193: 1.078408103 | W193: 0.9717693874 | BD193: 1101669
A194: 162 | B194: =IF(A194>$A$8,"",OFFSET(InputPriceData!B$15,$A194+$A$11,0,1,1)) -> 2023-11-20T05:00:00 | C194: =IF(A194>$A$8,"",OFFSET(InputPriceData!G$15,CalculationsAndCharts!$A194+$A$11,IF($C$5,8,0),1,1)) -> 1220790 | D194: =IF(A194>$A$8,"",OFFSET(InputPriceData!C$15,CalculationsAndCharts!$A194+$A$11,IF($C$5,8,0),1,1)) -> 4526.75 | E194: =IF(A194>$A$8,"",OFFSET(InputPriceData!D$15,CalculationsAndCharts!$A194+$A$11,IF($C$5,8,0),1,1)) -> 4571 | F194: =IF(A194>$A$8,"",OFFSET(InputPriceData!E$15,CalculationsAndCharts!$A194+$A$11,IF($C$5,8,0),1,1)) -> 4520 | G194: =IF(A194>$A$8,"",OFFSET(InputPriceData!F$15,CalculationsAndCharts!$A194+$A$11,IF($C$5,8,0),1,1)) -> 4562.25 | H194: 34.75 | I194: 0 | J194: =IF($A194>$J$30,NA(),AVERAGE(H194:H197)) -> 12.8125 | K194: 0 | N194: =IF($A194>$J$30,NA(),IF($A194>$N$30,0,(1-$M$35)*J194+(2*$M$35-$M$36)*J195-($M$35+$M$37)*J196+$M$36*N195+$M$37*N196)) -> 24.87895255 | O194: 9.998574549 | P194: 0.4266465898 | Q194: 0.3381381168 | T194: 27.64867102 | U194: -0.5647387238 | V194: 1.04170286 | W194: 0.9066092871 | BC194: 1220790
A195: 163 | B195: =IF(A195>$A$8,"",OFFSET(InputPriceData!B$15,$A195+$A$11,0,1,1)) -> 2023-11-17T05:00:00 | C195: =IF(A195>$A$8,"",OFFSET(InputPriceData!G$15,CalculationsAndCharts!$A195+$A$11,IF($C$5,8,0),1,1)) -> 1331912 | D195: =IF(A195>$A$8,"",OFFSET(InputPriceData!C$15,CalculationsAndCharts!$A195+$A$11,IF($C$5,8,0),1,1)) -> 4527.75 | E195: =IF(A195>$A$8,"",OFFSET(InputPriceData!D$15,CalculationsAndCharts!$A195+$A$11,IF($C$5,8,0),1,1)) -> 4539.5 | F195: =IF(A195>$A$8,"",OFFSET(InputPriceData!E$15,CalculationsAndCharts!$A195+$A$11,IF($C$5,8,0),1,1)) -> 4512.75 | G195: =IF(A195>$A$8,"",OFFSET(InputPriceData!F$15,CalculationsAndCharts!$A195+$A$11,IF($C$5,8,0),1,1)) -> 4527.5 | H195: 4.25 | I195: 0 | J195: =IF($A195>$J$30,NA(),AVERAGE(H195:H198)) -> 25.5625 | K195: 0 | N195: =IF($A195>$J$30,NA(),IF($A195>$N$30,0,(1-$M$35)*J195+(2*$M$35-$M$36)*J196-($M$35+$M$37)*J197+$M$36*N196+$M$37*N197)) -> 24.92577115 | O195: 11.05556575 | P195: 0.3854833254 | Q195: 0.2800638133 | T195: 30.57394811 | U195: 0.4377394687 | V195: 0.9717693874 | W195: 0.8315324119 | BC195: 1331912
A196: 164 | B196: =IF(A196>$A$8,"",OFFSET(InputPriceData!B$15,$A196+$A$11,0,1,1)) -> 2023-11-16T05:00:00 | C196: =IF(A196>$A$8,"",OFFSET(InputPriceData!G$15,CalculationsAndCharts!$A196+$A$11,IF($C$5,8,0),1,1)) -> 1491734 | D196: =IF(A196>$A$8,"",OFFSET(InputPriceData!C$15,CalculationsAndCharts!$A196+$A$11,IF($C$5,8,0),1,1)) -> 4514.25 | E196: =IF(A196>$A$8,"",OFFSET(InputPriceData!D$15,CalculationsAndCharts!$A196+$A$11,IF($C$5,8,0),1,1)) -> 4529.5 | F196: =IF(A196>$A$8,"",OFFSET(InputPriceData!E$15,CalculationsAndCharts!$A196+$A$11,IF($C$5,8,0),1,1)) -> 4501.75 | G196: =IF(A196>$A$8,"",OFFSET(InputPriceData!F$15,CalculationsAndCharts!$A196+$A$11,IF($C$5,8,0),1,1)) -> 4523.25 | H196: 4 | I196: 0 | J196: =IF($A196>$J$30,NA(),AVERAGE(H196:H199)) -> 24.5 | K196: 1.3125 | N196: =IF($A196>$J$30,NA(),IF($A196>$N$30,0,(1-$M$35)*J196+(2*$M$35-$M$36)*J197-($M$35+$M$37)*J198+$M$36*N197+$M$37*N198)) -> 24.48479679 | O196: 12.11052395 | P196: 0.3381381168 | Q196: 0.2194928934 | T196: 31.91005514 | U196: 1.563038017 | V196: 0.9066092871 | W196: 0.8065758696 | BC196: 1491734
A197: 165 | B197: =IF(A197>$A$8,"",OFFSET(InputPriceData!B$15,$A197+$A$11,0,1,1)) -> 2023-11-15T05:00:00 | C197: =IF(A197>$A$8,"",OFFSET(InputPriceData!G$15,CalculationsAndCharts!$A197+$A$11,IF($C$5,8,0),1,1)) -> 1573452 | D197: =IF(A197>$A$8,"",OFFSET(InputPriceData!C$15,CalculationsAndCharts!$A197+$A$11,IF($C$5,8,0),1,1)) -> 4515.5 | E197: =IF(A197>$A$8,"",OFFSET(InputPriceData!D$15,CalculationsAndCharts!$A197+$A$11,IF($C$5,8,0),1,1)) -> 4541.25 | F197: =IF(A197>$A$8,"",OFFSET(InputPriceData!E$15,CalculationsAndCharts!$A197+$A$11,IF($C$5,8,0),1,1)) -> 4510.75 | G197: =IF(A197>$A$8,"",OFFSET(InputPriceData!F$15,CalculationsAndCharts!$A197+$A$11,IF($C$5,8,0),1,1)) -> 4519.25 | H197: 8.25 | I197: 0 | J197: =IF($A197>$J$30,NA(),AVERAGE(H197:H200)) -> 40.5625 | K197: 1.3125 | N197: =IF($A197>$J$30,NA(),IF($A197>$N$30,0,(1-$M$35)*J197+(2*$M$35-$M$36)*J198-($M$35+$M$37)*J199+$M$36*N198+$M$37*N199)) -> 23.40230937 | O197: 13.16197614 | P197: 0.2800638133 | Q197: 0.1868146587 | T197: 30.75988423 | U197: 2.829348512 | V197: 0.8315324119 | W197: 0.8899188344 | BC197: 1573452
A198: 166 | B198: =IF(A198>$A$8,"",OFFSET(InputPriceData!B$15,$A198+$A$11,0,1,1)) -> 2023-11-14T05:00:00 | C198: =IF(A198>$A$8,"",OFFSET(InputPriceData!G$15,CalculationsAndCharts!$A198+$A$11,IF($C$5,8,0),1,1)) -> 1901847 | D198: =IF(A198>$A$8,"",OFFSET(InputPriceData!C$15,CalculationsAndCharts!$A198+$A$11,IF($C$5,8,0),1,1)) -> 4427.25 | E198: =IF(A198>$A$8,"",OFFSET(InputPriceData!D$15,CalculationsAndCharts!$A198+$A$11,IF($C$5,8,0),1,1)) -> 4524.25 | F198: =IF(A198>$A$8,"",OFFSET(InputPriceData!E$15,CalculationsAndCharts!$A198+$A$11,IF($C$5,8,0),1,1)) -> 4420.25 | G198: =IF(A198>$A$8,"",OFFSET(InputPriceData!F$15,CalculationsAndCharts!$A198+$A$11,IF($C$5,8,0),1,1)) -> 4511 | H198: 85.75 | I198: 0 | J198: =IF($A198>$J$30,NA(),AVERAGE(H198:H201)) -> 38.5 | K198: 10.625 | N198: =IF($A198>$J$30,NA(),IF($A198>$N$30,0,(1-$M$35)*J198+(2*$M$35-$M$36)*J199-($M$35+$M$37)*J200+$M$36*N199+$M$37*N200)) -> 21.69390282 | O198: 13.88466093 | P198: 0.2194928934 | Q198: 0.1667737501 | T198: 26.87729498 | U198: 2.877663484 | V198: 0.8065758696 | W198: 0.9701607648 | BC198: 1901847
A199: 167 | B199: =IF(A199>$A$8,"",OFFSET(InputPriceData!B$15,$A199+$A$11,0,1,1)) -> 2023-11-13T05:00:00 | C199: =IF(A199>$A$8,"",OFFSET(InputPriceData!G$15,CalculationsAndCharts!$A199+$A$11,IF($C$5,8,0),1,1)) -> 1276182 | D199: =IF(A199>$A$8,"",OFFSET(InputPriceData!C$15,CalculationsAndCharts!$A199+$A$11,IF($C$5,8,0),1,1)) -> 4425.75 | E199: =IF(A199>$A$8,"",OFFSET(InputPriceData!D$15,CalculationsAndCharts!$A199+$A$11,IF($C$5,8,0),1,1)) -> 4436.75 | F199: =IF(A199>$A$8,"",OFFSET(InputPriceData!E$15,CalculationsAndCharts!$A199+$A$11,IF($C$5,8,0),1,1)) -> 4407.25 | G199: =IF(A199>$A$8,"",OFFSET(InputPriceData!F$15,CalculationsAndCharts!$A199+$A$11,IF($C$5,8,0),1,1)) -> 4425.25 | H199: 0 | I199: 5.25 | J199: =IF($A199>$J$30,NA(),AVERAGE(H199:H202)) -> 17.9375 | K199: 10.625 | N199: =IF($A199>$J$30,NA(),IF($A199>$N$30,0,(1-$M$35)*J199+(2*$M$35-$M$36)*J200-($M$35+$M$37)*J201+$M$36*N200+$M$37*N201)) -> 20.81825028 | O199: 14.26431316 | P199: 0.1868146587 | Q199: 0.155651891 | T199: 26.18197988 | U199: 1.525008805 | V199: 0.8899188344 | W199: 1.017513221 | BD199: 1276182
A200: 168 | B200: =IF(A200>$A$8,"",OFFSET(InputPriceData!B$15,$A200+$A$11,0,1,1)) -> 2023-11-10T05:00:00 | C200: =IF(A200>$A$8,"",OFFSET(InputPriceData!G$15,CalculationsAndCharts!$A200+$A$11,IF($C$5,8,0),1,1)) -> 1752002 | D200: =IF(A200>$A$8,"",OFFSET(InputPriceData!C$15,CalculationsAndCharts!$A200+$A$11,IF($C$5,8,0),1,1)) -> 4364.5 | E200: =IF(A200>$A$8,"",OFFSET(InputPriceData!D$15,CalculationsAndCharts!$A200+$A$11,IF($C$5,8,0),1,1)) -> 4435.5 | F200: =IF(A200>$A$8,"",OFFSET(InputPriceData!E$15,CalculationsAndCharts!$A200+$A$11,IF($C$5,8,0),1,1)) -> 4354.25 | G200: =IF(A200>$A$8,"",OFFSET(InputPriceData!F$15,CalculationsAndCharts!$A200+$A$11,IF($C$5,8,0),1,1)) -> 4430.5 | H200: 68.25 | I200: 0 | J200: =IF($A200>$J$30,NA(),AVERAGE(H200:H203)) -> 20.875 | K200: 9.3125 | N200: =IF($A200>$J$30,NA(),IF($A200>$N$30,0,(1-$M$35)*J200+(2*$M$35-$M$36)*J201-($M$35+$M$37)*J202+$M$36*N201+$M$37*N202)) -> 20.60763652 | O200: 14.71649812 | P200: 0.1667737501 | Q200: 0.1372374125 | T200: 28.37796199 | U200: 0.4298008041 | V200: 0.9701607648 | W200: 0.9548352247 | BC200: 1752002
A201: 169 | B201: =IF(A201>$A$8,"",OFFSET(InputPriceData!B$15,$A201+$A$11,0,1,1)) -> 2023-11-09T05:00:00 | C201: =IF(A201>$A$8,"",OFFSET(InputPriceData!G$15,CalculationsAndCharts!$A201+$A$11,IF($C$5,8,0),1,1)) -> 1972630 | D201: =IF(A201>$A$8,"",OFFSET(InputPriceData!C$15,CalculationsAndCharts!$A201+$A$11,IF($C$5,8,0),1,1)) -> 4393.25 | E201: =IF(A201>$A$8,"",OFFSET(InputPriceData!D$15,CalculationsAndCharts!$A201+$A$11,IF($C$5,8,0),1,1)) -> 4413 | F201: =IF(A201>$A$8,"",OFFSET(InputPriceData!E$15,CalculationsAndCharts!$A201+$A$11,IF($C$5,8,0),1,1)) -> 4357.75 | G201: =IF(A201>$A$8,"",OFFSET(InputPriceData!F$15,CalculationsAndCharts!$A201+$A$11,IF($C$5,8,0),1,1)) -> 4362.25 | H201: 0 | I201: 37.25 | J201: =IF($A201>$J$30,NA(),AVERAGE(H201:H204)) -> 5.875 | K201: 9.3125 | N201: =IF($A201>$J$30,NA(),IF($A201>$N$30,0,(1-$M$35)*J201+(2*$M$35-$M$36)*J202-($M$35+$M$37)*J203+$M$36*N202+$M$37*N203)) -> 20.86374855 | O201: 15.24357531 | P201: 0.155651891 | Q201: 0.08078115053 | T201: 32.93893043 | U201: -0.2859296113 | V201: 1.017513221 | W201: 0.8057346455 | BD201: 1972630
A202: 170 | B202: =IF(A202>$A$8,"",OFFSET(InputPriceData!B$15,$A202+$A$11,0,1,1)) -> 2023-11-08T05:00:00 | C202: =IF(A202>$A$8,"",OFFSET(InputPriceData!G$15,CalculationsAndCharts!$A202+$A$11,IF($C$5,8,0),1,1)) -> 1390288 | D202: =IF(A202>$A$8,"",OFFSET(InputPriceData!C$15,CalculationsAndCharts!$A202+$A$11,IF($C$5,8,0),1,1)) -> 4397.5 | E202: =IF(A202>$A$8,"",OFFSET(InputPriceData!D$15,CalculationsAndCharts!$A202+$A$11,IF($C$5,8,0),1,1)) -> 4407.75 | F202: =IF(A202>$A$8,"",OFFSET(InputPriceData!E$15,CalculationsAndCharts!$A202+$A$11,IF($C$5,8,0),1,1)) -> 4375 | G202: =IF(A202>$A$8,"",OFFSET(InputPriceData!F$15,CalculationsAndCharts!$A202+$A$11,IF($C$5,8,0),1,1)) -> 4399.5 | H202: 3.5 | I202: 0 | J202: =IF($A202>$J$30,NA(),AVERAGE(H202:H205)) -> 15.9375 | K202: 0 | N202: =IF($A202>$J$30,NA(),IF($A202>$N$30,0,(1-$M$35)*J202+(2*$M$35-$M$36)*J203-($M$35+$M$37)*J204+$M$36*N203+$M$37*N204)) -> 21.31625969 | O202: 16.17153214 | P202: 0.1372374125 | Q202: -0.004781651057 | T202: 38.89791282 | U202: 0.8987025972 | V202: 0.9548352247 | W202: 0.6144788755 | BC202: 1390288
A203: 171 | B203: =IF(A203>$A$8,"",OFFSET(InputPriceData!B$15,$A203+$A$11,0,1,1)) -> 2023-11-07T05:00:00 | C203: =IF(A203>$A$8,"",OFFSET(InputPriceData!G$15,CalculationsAndCharts!$A203+$A$11,IF($C$5,8,0),1,1)) -> 1371257 | D203: =IF(A203>$A$8,"",OFFSET(InputPriceData!C$15,CalculationsAndCharts!$A203+$A$11,IF($C$5,8,0),1,1)) -> 4380 | E203: =IF(A203>$A$8,"",OFFSET(InputPriceData!D$15,CalculationsAndCharts!$A203+$A$11,IF($C$5,8,0),1,1)) -> 4403.25 | F203: =IF(A203>$A$8,"",OFFSET(InputPriceData!E$15,CalculationsAndCharts!$A203+$A$11,IF($C$5,8,0),1,1)) -> 4366 | G203: =IF(A203>$A$8,"",OFFSET(InputPriceData!F$15,CalculationsAndCharts!$A203+$A$11,IF($C$5,8,0),1,1)) -> 4396 | H203: 11.75 | I203: 0 | J203: =IF($A203>$J$30,NA(),AVERAGE(H203:H206)) -> 35 | K203: 0 | N203: =IF($A203>$J$30,NA(),IF($A203>$N$30,0,(1-$M$35)*J203+(2*$M$35-$M$36)*J204-($M$35+$M$37)*J205+$M$36*N204+$M$37*N205)) -> 20.59365983 | O203: 17.51518361 | P203: 0.08078115053 | Q203: -0.1115626845 | T203: 40.42239837 | U203: 4.348740592 | V203: 0.8057346455 | W203: 0.3524631469 | BC203: 1371257
A204: 172 | B204: =IF(A204>$A$8,"",OFFSET(InputPriceData!B$15,$A204+$A$11,0,1,1)) -> 2023-11-06T05:00:00 | C204: =IF(A204>$A$8,"",OFFSET(InputPriceData!G$15,CalculationsAndCharts!$A204+$A$11,IF($C$5,8,0),1,1)) -> 1348878 | D204: =IF(A204>$A$8,"",OFFSET(InputPriceData!C$15,CalculationsAndCharts!$A204+$A$11,IF($C$5,8,0),1,1)) -> 4379.25 | E204: =IF(A204>$A$8,"",OFFSET(InputPriceData!D$15,CalculationsAndCharts!$A204+$A$11,IF($C$5,8,0),1,1)) -> 4389.5 | F204: =IF(A204>$A$8,"",OFFSET(InputPriceData!E$15,CalculationsAndCharts!$A204+$A$11,IF($C$5,8,0),1,1)) -> 4364.25 | G204: =IF(A204>$A$8,"",OFFSET(InputPriceData!F$15,CalculationsAndCharts!$A204+$A$11,IF($C$5,8,0),1,1)) -> 4384.25 | H204: 8.25 | I204: 0 | J204: =IF($A204>$J$30,NA(),AVERAGE(H204:H207)) -> 43 | K204: 0 | N204: =IF($A204>$J$30,NA(),IF($A204>$N$30,0,(1-$M$35)*J204+(2*$M$35-$M$36)*J205-($M$35+$M$37)*J206+$M$36*N205+$M$37*N206)) -> 18.73242083 | O204: 18.91242535 | P204: -0.004781651057 | Q204: -0.238398265 | T204: 36.98031803 | U204: 8.830523587 | V204: 0.6144788755 | W204: -0.01576645405 | BC204: 1348878
A205: 173 | B205: =IF(A205>$A$8,"",OFFSET(InputPriceData!B$15,$A205+$A$11,0,1,1)) -> 2023-11-03T04:00:00 | C205: =IF(A205>$A$8,"",OFFSET(InputPriceData!G$15,CalculationsAndCharts!$A205+$A$11,IF($C$5,8,0),1,1)) -> 1803552 | D205: =IF(A205>$A$8,"",OFFSET(InputPriceData!C$15,CalculationsAndCharts!$A205+$A$11,IF($C$5,8,0),1,1)) -> 4327.5 | E205: =IF(A205>$A$8,"",OFFSET(InputPriceData!D$15,CalculationsAndCharts!$A205+$A$11,IF($C$5,8,0),1,1)) -> 4391.75 | F205: =IF(A205>$A$8,"",OFFSET(InputPriceData!E$15,CalculationsAndCharts!$A205+$A$11,IF($C$5,8,0),1,1)) -> 4325.5 | G205: =IF(A205>$A$8,"",OFFSET(InputPriceData!F$15,CalculationsAndCharts!$A205+$A$11,IF($C$5,8,0),1,1)) -> 4376 | H205: 40.25 | I205: 0 | J205: =IF($A205>$J$30,NA(),AVERAGE(H205:H208)) -> 47.5625 | K205: 0 | N205: =IF($A205>$J$30,NA(),IF($A205>$N$30,0,(1-$M$35)*J205+(2*$M$35-$M$36)*J206-($M$35+$M$37)*J207+$M$36*N206+$M$37*N207)) -> 16.27559555 | O205: 20.36310763 | P205: -0.1115626845 | Q205: -0.3483017557 | T205: 30.211825 | U205: 14.46491916 | V205: 0.3524631469 | W205: -0.3990980991 | BC205: 1803552
A206: 174 | B206: =IF(A206>$A$8,"",OFFSET(InputPriceData!B$15,$A206+$A$11,0,1,1)) -> 2023-11-02T04:00:00 | C206: =IF(A206>$A$8,"",OFFSET(InputPriceData!G$15,CalculationsAndCharts!$A206+$A$11,IF($C$5,8,0),1,1)) -> 1819596 | D206: =IF(A206>$A$8,"",OFFSET(InputPriceData!C$15,CalculationsAndCharts!$A206+$A$11,IF($C$5,8,0),1,1)) -> 4258.5 | E206: =IF(A206>$A$8,"",OFFSET(InputPriceData!D$15,CalculationsAndCharts!$A206+$A$11,IF($C$5,8,0),1,1)) -> 4339.75 | F206: =IF(A206>$A$8,"",OFFSET(InputPriceData!E$15,CalculationsAndCharts!$A206+$A$11,IF($C$5,8,0),1,1)) -> 4257.75 | G206: =IF(A206>$A$8,"",OFFSET(InputPriceData!F$15,CalculationsAndCharts!$A206+$A$11,IF($C$5,8,0),1,1)) -> 4335.75 | H206: 79.75 | I206: 0 | J206: =IF($A206>$J$30,NA(),AVERAGE(H206:H209)) -> 49.5 | K206: 0 | N206: =IF($A206>$J$30,NA(),IF($A206>$N$30,0,(1-$M$35)*J206+(2*$M$35-$M$36)*J207-($M$35+$M$37)*J208+$M$36*N207+$M$37*N208)) -> 13.44790643 | O206: 21.86689346 | P206: -0.238398265 | Q206: -0.4032566176 | T206: 20.68715474 | U206: 21.34993051 | V206: -0.01576645405 | W206: -0.6289858382 | BC206: 1819596
A207: 175 | B207: =IF(A207>$A$8,"",OFFSET(InputPriceData!B$15,$A207+$A$11,0,1,1)) -> 2023-11-01T04:00:00 | C207: =IF(A207>$A$8,"",OFFSET(InputPriceData!G$15,CalculationsAndCharts!$A207+$A$11,IF($C$5,8,0),1,1)) -> 2027080 | D207: =IF(A207>$A$8,"",OFFSET(InputPriceData!C$15,CalculationsAndCharts!$A207+$A$11,IF($C$5,8,0),1,1)) -> 4205 | E207: =IF(A207>$A$8,"",OFFSET(InputPriceData!D$15,CalculationsAndCharts!$A207+$A$11,IF($C$5,8,0),1,1)) -> 4264.75 | F207: =IF(A207>$A$8,"",OFFSET(InputPriceData!E$15,CalculationsAndCharts!$A207+$A$11,IF($C$5,8,0),1,1)) -> 4191.25 | G207: =IF(A207>$A$8,"",OFFSET(InputPriceData!F$15,CalculationsAndCharts!$A207+$A$11,IF($C$5,8,0),1,1)) -> 4256 | H207: 43.75 | I207: 0 | J207: =IF($A207>$J$30,NA(),AVERAGE(H207:H210)) -> 29.5625 | K207: 4.6875 | N207: =IF($A207>$J$30,NA(),IF($A207>$N$30,0,(1-$M$35)*J207+(2*$M$35-$M$36)*J208-($M$35+$M$37)*J209+$M$36*N208+$M$37*N209)) -> 11.22989646 | O207: 23.23358893 | P207: -0.3483017557 | Q207: -0.4114416882 | T207: 12.34374628 | U207: 28.74031839 | V207: -0.3990980991 | W207: -0.7302156927 | BC207: 2027080
... 1075 more rows

Sheet Follow
A1: Stocks and Indexes I wish to follow
A3: To ease following a stock, enter a Yahoo Finance acceptable symbol in column "A" anywhere below cell "A9".
A4: Thereafter you may doubleclick the cell containing a symbol of interest to initiate data retrieval and charting for that symbol.
A6: =COUNTA(A10:A109) -> 98
A7: Symbol
A8: To | B8: Description | C8: Last Trade as of most recent check
A9: Follow | B9: Name (Symbol) -Market Where Traded (Data Interval) | C9: Date | D9: Time | E9: Open | F9: High | G9: Low | H9: Close | I9: Volume | J9: Change | K9: Retrieved @
A10: A | B10: Agilent Technologies, Inc. (A) -NYSE (Daily) | C10: 2022-10-07 | D10: 16:03:00 | E10: 130.449997 | F10: 130.929993 | G10: 126.959999 | H10: 127.440002 | I10: 1154700 | J10: -4.739991 | K10: 2022-10-08T20:06:52.050
A11: AA | B11: Alcoa Corporation (AA) -NYSE (Daily) | C11: 2023-06-16 | D11: 16:00:00 | E11: 35.970001 | F11: 36.040001 | G11: 34.790001 | H11: 35.619999 | I11: 5811700 | J11: -0.350002 | K11: 2023-06-17T11:43:27
A12: AAL | B12: American Airlines Group Inc. (AAL) -NasdaqGS (Daily) | C12: 2023-06-16 | D12: 16:00:00 | E12: 16.67 | F12: 16.719999 | G12: 16.43 | H12: 16.48 | I12: 22635600 | J12: -0.17 | K12: 2023-06-17T10:36:27.890
A13: AAPL | B13: Apple Inc. (AAPL) -NasdaqGS (Daily) | C13: 2022-10-07 | D13: 16:00:00 | E13: 142.539993 | F13: 143.100006 | G13: 139.449997 | H13: 140.089996 | I13: 85859100 | J13: -5.339997 | K13: 2022-10-08T20:07:45.780
A14: ADM | B14: Archer-Daniels-Midland Company (ADM) -NYSE (Daily) | C14: 2023-06-16 | D14: 16:00:00 | E14: 74.900002 | F14: 76 | G14: 74.470001 | H14: 75.480003 | I14: 5529600 | J14: 0.920005 | K14: 2023-06-17T11:43:58.380
A15: ADBE | B15: Adobe Inc. (ADBE) -NasdaqGS (Daily) | C15: 2023-06-16 | D15: 16:00:00 | E15: 518.22998 | F15: 518.73999 | G15: 494.619995 | H15: 495.179993 | I15: 13335800 | J15: 4.269989 | K15: 2023-06-17T11:42:39.820 | L15: [X]
A16: ALGN | B16: Align Technology, Inc. (ALGN) -NasdaqGS (Daily) | C16: 2023-06-16 | D16: 16:00:00 | E16: 334.950012 | F16: 335.869995 | G16: 326.519989 | H16: 330.290009 | I16: 1258300 | J16: -2.899993 | K16: 2023-06-17T10:47:06.620
A17: AMC | B17: AMC Entertainment Holdings, Inc. (AMC) -NYSE (Daily) | C17: 2023-06-16 | D17: 16:00:00 | E17: 4.82 | F17: 4.83 | G17: 4.67 | H17: 4.7 | I17: 18483600 | J17: -0.06 | K17: 2023-06-17T10:46:36.020
A18: AMD | B18: Advanced Micro Devices, Inc. (AMD) -NasdaqGS (Daily) | C18: 2023-06-16 | D18: 16:00:00 | E18: 125.82 | F18: 125.849998 | G18: 119.900002 | H18: 120.080002 | I18: 81846900 | J18: -4.159996 | K18: 2023-06-17T10:42:05.850
A19: AR | B19: Antero Resources Corporation (AR) -NYSE (Daily) | C19: 2024-09-20T20:00:03 | D19: 4:00 PM EDT | E19: 27.25 | F19: 27.57999992 | G19: 26.79000092 | H19: 27.44000053 | I19: 4412950 | J19: 0.1900005341 | K19: 2024-09-21T18:18:55.870 | L19: [X]
A20: BA | B20: The Boeing Company (BA) -NYSE (Daily) | C20: 2023-06-16 | D20: 16:00:00 | E20: 220.720001 | F20: 223.869995 | G20: 218.979996 | H20: 219.990005 | I20: 7799500 | J20: 0.580001 | K20: 2023-06-17T10:43:22.080
A21: BSX | B21: Boston Scientific Corporation (BSX) -NYSE (Daily) | C21: 2023-06-16 | D21: 16:00:00 | E21: 54.509998 | F21: 54.689999 | G21: 54.049999 | H21: 54.32 | I21: 13022800 | J21: 0.34 | K21: 2023-06-17T10:45:23.450
A22: CASY | B22: Casey's General Stores, Inc. (CASY) -NasdaqGS (Daily) | C22: 2023-06-16 | D22: 16:00:00 | E22: 223.339996 | F22: 223.449997 | G22: 219.070007 | H22: 219.619995 | I22: 388500 | J22: -2.960007 | K22: 2023-06-17T10:46:01.080
A23: CAT | B23: Caterpillar Inc. (CAT) -NYSE (Daily) | C23: 2023-09-15 | D23: 11:10:00 | E23: 281.869995 | F23: 281.869995 | G23: 277.769989 | H23: 278.117493 | I23: 1524594 | J23: -4.442505 | K23: 2023-09-15T11:10:38.830
A24: COST | B24: Costco Wholesale Corporation (COST) -NasdaqGS (Daily) | C24: 2023-03-06 | D24: 16:00:00 | E24: 476.519989 | F24: 488.817413 | G24: 475.609985 | H24: 483.079987 | I24: 3005250 | J24: 7.819977 | K24: 2023-03-06T21:04:51.590
A25: CSCO | B25: Cisco Systems, Inc. (CSCO) -NasdaqGS (Daily) | C25: 2023-06-16 | D25: 16:00:00 | E25: 52.200001 | F25: 52.41 | G25: 51.93 | H25: 52.07 | I25: 37133300 | J25: 0.14 | K25: 2023-06-17T10:48:11.650
A26: CVS | B26: CVS Health Corporation (CVS) -NYSE (Daily) | C26: 2023-06-16 | D26: 16:00:00 | E26: 69.290001 | F26: 69.589996 | G26: 67.489998 | H26: 67.720001 | I26: 18202800 | J26: -1.779999 | K26: 2023-06-17T11:41:13.330
A27: DELL | B27: Dell Technologies Inc. (DELL) -NYSE (Daily) | C27: 2024-07-05 | D27: 2:41 PM EDT | E27: 142.199997 | F27: 142.759995 | G27: 138.309998 | H27: 139.410004 | I27: 6329713 | J27: -3.259994 | K27: 2024-07-05T14:41:21.880
A28: DG | B28: Dollar General Corporation (DG) -NYSE (Daily) | C28: 2023-06-16 | D28: 16:03:00 | E28: 163.210007 | F28: 164.649994 | G28: 161.759995 | H28: 164.320007 | I28: 4781100 | J28: 0.640014 | K28: 2023-06-17T10:49:14.920
A29: DIS | B29: The Walt Disney Company (DIS) -NYSE (Daily) | C29: 2023-06-16 | D29: 16:03:00 | E29: 92.879997 | F29: 92.970001 | G29: 90.860001 | H29: 91.32 | I29: 22665000 | J29: -1.620002 | K29: 2023-06-17T10:49:55.860
A30: DLTR | B30: Dollar Tree, Inc. (DLTR) -NasdaqGS (Daily) | C30: 2023-06-16 | D30: 16:00:00 | E30: 139.070007 | F30: 139.070007 | G30: 136.089996 | H30: 136.220001 | I30: 2592600 | J30: -2.220001 | K30: 2023-06-17T10:50:23.460
A31: EPD | B31: Enterprise Products Partners L.P. (EPD) -NYSE (Daily) | C31: 2023-06-16 | D31: 16:00:00 | E31: 26.389999 | F31: 26.48 | G31: 26.23 | H31: 26.389999 | I31: 3749200 | J31: 0.069999 | K31: 2023-06-17T10:51:07.130
A32: F | B32: Ford Motor Company (F) -NYSE (Daily) | C32: 2024-09-20T20:00:49 | D32: 4:00 PM EDT | E32: 10.85999966 | F32: 10.88000011 | G32: 10.68999958 | H32: 10.88000011 | I32: 66856379 | J32: -0.03999996185 | K32: 2024-09-21T18:10:03.770 | L32: [X]
A33: FAS | B33: Direxion Daily Financial Bull 3X Shares (FAS) -NYSEArca (Daily) | C33: 2022-10-07 | D33: 16:00:00 | E33: 59.529999 | F33: 59.849998 | G33: 55.689999 | H33: 56.790001 | I33: 1488400 | J33: -4.290001 | K33: 2022-10-08T20:13:13.080
A34: GSK | B34: GSK plc (GSK) -NYSE (Daily) | C34: 2022-10-07 | D34: 16:00:00 | E34: 30.190001 | F34: 30.42 | G34: 30.040001 | H34: 30.110001 | I34: 5486300 | J34: 0.110001 | K34: 2022-10-08T20:13:33.450
A35: GDX | B35: VanEck Gold Miners ETF (GDX) -NYSEArca (Daily) | C35: 2023-06-16 | D35: 16:00:00 | E35: 31.200001 | F35: 31.74 | G35: 30.9 | H35: 31.389999 | I35: 19283100 | J35: 0.389999 | K35: 2023-06-17T10:52:54.260
A36: GILD | B36: Gilead Sciences, Inc. (GILD) -NasdaqGS (Daily) | C36: 2022-10-07 | D36: 16:00:00 | E36: 64.639999 | F36: 65.099998 | G36: 63.959999 | H36: 64.290001 | I36: 6722600 | J36: -0.659996 | K36: 2022-10-08T20:14:12.060
A37: GOOG | B37: Alphabet Inc. (GOOG) -NasdaqGS (Daily) | C37: 2023-06-05 | D37: 14:47:00 | E37: 124.610001 | F37: 127.987701 | G37: 124.389999 | H37: 126.32 | I37: 17012908 | J37: 1.089997 | K37: 2023-06-05T14:47:20.460
A38: HD | B38: The Home Depot, Inc. (HD) -NYSE (Daily) | C38: 2023-06-16 | D38: 16:00:00 | E38: 304.339996 | F38: 305.980011 | G38: 300.140015 | H38: 300.380005 | I38: 10808400 | J38: -1.639984 | K38: 2023-06-17T11:36:54.610
A39: HSY | B39: The Hershey Company (HSY) -NYSE (Daily) | C39: 2023-06-16 | D39: 16:00:00 | E39: 262 | F39: 263.290009 | G39: 260.269989 | H39: 260.720001 | I39: 1577100 | J39: -0.139984 | K39: 2023-06-17T10:54:48.190
A40: HTLD | B40: Heartland Express, Inc. (HTLD) -NasdaqGS (Daily) | C40: 2023-06-16 | D40: 16:00:00 | E40: 16.440001 | F40: 16.440001 | G40: 16.139999 | H40: 16.290001 | I40: 738100 | J40: -0.039999 | K40: 2023-06-17T11:04:51.680
A41: IBM | B41: International Business Machines Corporation (IBM) -NYSE (Daily) | C41: 2023-06-16 | D41: 16:00:00 | E41: 139.229996 | F41: 139.470001 | G41: 137.470001 | H41: 137.479996 | I41: 7473100 | J41: -0.919998 | K41: 2023-06-17T11:05:53.630 | L41: [X]
A42: ILMN | B42: Illumina, Inc. (ILMN) -NasdaqGS (Daily) | C42: 2023-06-16 | D42: 16:00:00 | E42: 212.100006 | F42: 212.490005 | G42: 205 | H42: 205.869995 | I42: 2443300 | J42: -4.070007 | K42: 2023-06-17T10:19:57.970
A43: INTC | B43: Intel Corporation (INTC) -NasdaqGS (Daily) | C43: 2024-09-20T20:00:02 | D43: 4:00 PM EDT | E43: 20.89999962 | F43: 23.12000084 | G43: 20.35000038 | H43: 21.84000015 | I43: 251729835 | J43: 0.7000007629 | K43: 2024-09-21T18:20:05.610 | L43: [X]
A44: JNJ | B44: Johnson & Johnson (JNJ) -NYSE (Daily) | C44: 2022-10-07 | D44: 16:00:00 | E44: 161.770004 | F44: 162.220001 | G44: 159.169998 | H44: 160.199997 | I44: 6363000 | J44: -1.710007 | K44: 2022-10-08T20:16:52.840
A45: KO | B45: The Coca-Cola Company (KO) -NYSE (Daily) | C45: 2023-06-16 | D45: 16:00:00 | E45: 61.599998 | F45: 62.169998 | G45: 61.48 | H45: 61.669998 | I45: 26735800 | J45: 0.439998 | K45: 2023-06-17T11:20:04.690
A46: LOW | B46: Lowe's Companies, Inc. (LOW) -NYSE (Daily) | C46: 2023-06-16 | D46: 16:02:00 | E46: 219.339996 | F46: 219.490005 | G46: 216.850006 | H46: 217.080002 | I46: 6874300 | J46: -1.849991 | K46: 2023-06-17T11:20:37.350 | L46: [X]
A47: LMT | B47: Lockheed Martin Corporation (LMT) -NYSE (Daily) | C47: 2023-06-16 | D47: 16:01:00 | E47: 457.730011 | F47: 461.769989 | G47: 456.600006 | H47: 459.170013 | I47: 1642800 | J47: 3.220001 | K47: 2023-06-17T11:23:13.320
A48: M | B48: Macy's, Inc. (M) -NYSE (Daily) | C48: 2023-06-16 | D48: 16:00:00 | E48: 16.17 | F48: 16.34 | G48: 15.8 | H48: 15.85 | I48: 17840800 | J48: -0.14 | K48: 2023-06-17T11:24:02.180
A49: MCD | B49: McDonald's Corporation (MCD) -NYSE (Daily) | C49: 2023-06-16 | D49: 16:00:00 | E49: 294.51001 | F49: 296.570007 | G49: 293.140015 | H49: 293.700012 | I49: 4890400 | J49: 1.090027 | K49: 2023-06-17T10:18:27.960
A50: MDT | B50: Medtronic plc (MDT) -NYSE (Daily) | C50: 2023-06-16 | D50: 16:00:00 | E50: 88.279999 | F50: 89.720001 | G50: 88.279999 | H50: 89.150002 | I50: 9108400 | J50: 0.900002 | K50: 2023-06-17T11:37:39.300
A51: META | B51: Meta Platforms, Inc. (META) -NasdaqGS (Daily) | C51: 2022-10-07 | D51: 16:00:00 | E51: 136.759995 | F51: 138.289993 | G51: 132.440002 | H51: 133.449997 | I51: 33179700 | J51: -5.62001 | K51: 2022-10-08T20:19:13.140
A52: MGM | B52: MGM Resorts International (MGM) -NYSE (Daily) | C52: 2023-06-16 | D52: 16:00:00 | E52: 43.68 | F52: 43.75 | G52: 42.43 | H52: 42.639999 | I52: 7929700 | J52: -1.080002 | K52: 2023-06-17T11:24:42.990
A53: MO | B53: Altria Group, Inc. (MO) -NYSE (Daily) | C53: 2023-06-16 | D53: 16:03:00 | E53: 44.220001 | F53: 44.27 | G53: 43.919998 | H53: 44.07 | I53: 13661200 | J53: -0.080002 | K53: 2023-06-17T11:25:41.960
A54: MRNA | B54: Moderna, Inc. (MRNA) -NasdaqGS (Daily) | C54: 2022-10-07 | D54: 16:00:00 | E54: 121.5 | F54: 123.360001 | G54: 118.459999 | H54: 119.32 | I54: 3149000 | J54: -5.830002 | K54: 2022-10-08T20:20:13.090
A55: MSFT | B55: Microsoft Corporation (MSFT) -NasdaqGS (Daily) | C55: 2023-06-16 | D55: 16:00:00 | E55: 351.320007 | F55: 351.470001 | G55: 341.950012 | H55: 342.329987 | I55: 46533600 | J55: -5.770019 | K55: 2023-06-17T11:26:05.540 | L55: [X]
A56: MU | B56: Micron Technology, Inc. (MU) -NasdaqGS (Daily) | C56: 2024-09-20T20:00:03 | D56: 4:00 PM EDT | E56: 88.36000061 | F56: 90.97000122 | G56: 88.34999847 | H56: 90.90000153 | I56: 28346012 | J56: 1.650001526 | K56: 2024-09-21T18:20:38.040
A57: NFLX | B57: Netflix, Inc. (NFLX) -NasdaqGS (Daily) | C57: 2022-10-07 | D57: 16:00:00 | E57: 235.770004 | F57: 237.330002 | G57: 224.279999 | H57: 224.75 | I57: 9784800 | J57: -15.270004 | K57: 2022-10-08T20:20:51.730
A58: NUGT | B58: Direxion Daily Gold Miners Index Bull 2X Shares (NUGT) -NYSEArca (Daily) | C58: 2023-04-18 | D58: 11:15:00 | E58: 47.110001 | F58: 49.1688 | G58: 47 | H58: 48.517601 | I58: 939091 | J58: 1.647602 | K58: 2023-04-18T11:16:03.120
A59: NVS | B59: Novartis AG (NVS) -NYSE (Daily) | C59: 2023-06-16 | D59: 16:00:00 | E59: 102.43 | F59: 102.730003 | G59: 101.540001 | H59: 101.830002 | I59: 2683400 | J59: 0.440003 | K59: 2023-06-17T11:40:12.900
A60: NVDA | B60: NVIDIA Corporation (NVDA) -NasdaqGS (Daily) | C60: 2024-06-20 | D60: 4:00 PM EDT | E60: 139.850006 | F60: 140.759995 | G60: 129.529999 | H60: 130.779999 | I60: 504887012 | J60: -4.800003 | K60: 2024-06-20T18:09:20.250
A61: NWL | B61: Newell Brands Inc. (NWL) -NasdaqGS (Daily) | C61: 2022-10-07 | D61: 16:00:00 | E61: 14.18 | F61: 14.25 | G61: 13.89 | H61: 13.96 | I61: 2832700 | J61: -0.42 | K61: 2022-10-08T20:22:10.460
A62: PEP | B62: PepsiCo, Inc. (PEP) -NasdaqGS (Daily) | C62: 2023-09-15 | D62: 11:05:00 | E62: 181.410004 | F62: 181.820007 | G62: 180.210007 | H62: 180.289993 | I62: 2715164 | J62: -0.940003 | K62: 2023-09-15T11:06:06.970
A63: PFE | B63: Pfizer Inc. (PFE) -NYSE (Daily) | C63: 2022-10-07 | D63: 16:03:00 | E63: 43.049999 | F63: 43.049999 | G63: 41.919998 | H63: 42.32 | I63: 20093100 | J63: -0.77 | K63: 2022-10-08T20:22:31.070
A64: PRU | B64: Prudential Financial, Inc. (PRU) -NYSE (Daily) | C64: 2023-06-16 | D64: 16:00:00 | E64: 86.809998 | F64: 87.470001 | G64: 86.309998 | H64: 87.029999 | I64: 3976700 | J64: 0.269997 | K64: 2023-06-17T11:27:17.570
A65: PSA | B65: Public Storage (PSA) -NYSE (Daily) | C65: 2023-03-08 | D65: 13:52:00 | E65: 301.850006 | F65: 305.119995 | G65: 300.910004 | H65: 302.279999 | I65: 329019 | J65: -0.070007 | K65: 2023-03-08T13:53:27.260
A66: PSEC | B66: Prospect Capital Corporation (PSEC) -NasdaqGS (Daily) | C66: 2023-06-16 | D66: 16:00:00 | E66: 6.28 | F66: 6.3 | G66: 6.22 | H66: 6.23 | I66: 1790300 | J66: -0.05 | K66: 2023-06-17T11:34:40.180
A67: RPM | B67: RPM International Inc. (RPM) -NYSE (Daily) | C67: 2023-05-19 | D67: 16:00:00 | E67: 81.349998 | F67: 81.449997 | G67: 79.650002 | H67: 80.080002 | I67: 569600 | J67: -0.720001 | K67: 2023-05-19T21:39:10.650
A68: RY | B68: Royal Bank of Canada (RY) -NYSE (Daily) | C68: 2024-09-20T20:00:02 | D68: 4:00 PM EDT | E68: 123.1999969 | F68: 123.1600037 | G68: 121.7050018 | H68: 121.9199982 | I68: 1270260 | J68: -1.13999939 | K68: 2024-09-21T18:21:06.320 | L68: [X]
A69: SCHW | B69: The Charles Schwab Corporation (SCHW) -NYSE (Daily) | C69: 2023-06-16 | D69: 16:00:00 | E69: 55.889999 | F69: 55.889999 | G69: 54.27 | H69: 54.400002 | I69: 19691000 | J69: -1.109996 | K69: 2023-06-17T11:34:11.580
A70: SPR | B70: Spirit AeroSystems Holdings, Inc. (SPR) -NYSE (Daily) | C70: 2022-10-07 | D70: 16:00:00 | E70: 24.26 | F70: 24.700001 | G70: 23.559999 | H70: 24.68 | I70: 1823200 | J70: -0.06 | K70: 2022-10-08T20:24:37.430
A71: SQ | B71: Block, Inc. (SQ) -NYSE (Daily) | C71: 2024-02-02 | D71: 16:00:00 | E71: 66.419998 | F71: 68.43 | G71: 65.290001 | H71: 67.879997 | I71: 9372100 | J71: 1.209999 | K71: 2024-02-04T17:44:52.090
A72: SWKS | B72: Skyworks Solutions, Inc. (SWKS) -NasdaqGS (Daily) | C72: 2022-10-07 | D72: 16:00:00 | E72: 90.18 | F72: 90.400002 | G72: 86.949997 | H72: 87.199997 | I72: 2592400 | J72: -5.410004 | K72: 2022-10-08T20:25:16.990
A73: TOL | B73: Toll Brothers, Inc. (TOL) -NYSE (Daily) | C73: 2023-06-08 | D73: 14:21:00 | E73: 73.739998 | F73: 74.809998 | G73: 73.379997 | H73: 74.334999 | I73: 1031567 | J73: 0.394997 | K73: 2023-06-08T14:22:29.470
A74: TSLA | B74: Tesla, Inc. (TSLA) -NasdaqGS (Daily) | C74: 2022-10-07 | D74: 16:00:00 | E74: 233.940002 | F74: 234.570007 | G74: 222.020004 | H74: 223.070007 | I74: 83592300 | J74: -15.059998 | K74: 2022-10-08T20:25:55.990
A75: TSN | B75: Tyson Foods, Inc. (TSN) -NYSE (Daily) | C75: 2023-06-16 | D75: 16:00:00 | E75: 50.360001 | F75: 50.490002 | G75: 49.959999 | H75: 50.389999 | I75: 4116300 | J75: 0.18 | K75: 2023-06-17T11:30:51.590
A76: TXN | B76: Texas Instruments Incorporated (TXN) -NasdaqGS (Daily) | C76: 2024-08-09 | D76: 4:00 PM EDT | E76: 191.020004 | F76: 193.445007 | G76: 190 | H76: 192.210007 | I76: 3064139 | J76: -1.089996 | K76: 2024-08-09T21:10:52.010
A77: UNP | B77: Union Pacific Corporation (UNP) -NYSE (Daily) | C77: 2023-06-16 | D77: 16:00:00 | E77: 206.369995 | F77: 206.899994 | G77: 204.479996 | H77: 204.669998 | I77: 4139800 | J77: -1.25 | K77: 2023-06-17T11:30:02.020
A78: VZ | B78: Verizon Communications Inc. (VZ) -NYSE (Daily) | C78: 2024-02-02 | D78: 16:00:00 | E78: 42.200001 | F78: 42.470001 | G78: 41.830002 | H78: 42.130001 | I78: 21546500 | J78: -0.360001 | K78: 2024-02-04T17:45:25.020
A79: VVV | B79: Valvoline Inc. (VVV) -NYSE (Daily) | C79: 2024-07-19 | D79: 4:00 PM EDT | E79: 46.669998 | F79: 46.669998 | G79: 45.98 | H79: 46.02 | I79: 768700 | J79: -0.720002 | K79: 2024-07-20T14:09:21.240
A80: WBA | B80: Walgreens Boots Alliance, Inc. (WBA) -NasdaqGS (Daily) | C80: 2023-06-16 | D80: 16:00:00 | E80: 31.83 | F80: 32.810001 | G80: 31.73 | H80: 32.669998 | I80: 16018300 | J80: 0.649998 | K80: 2023-06-17T11:29:06.980
A81: WMT | B81: Walmart Inc. (WMT) -NYSE (Daily) | C81: 2023-06-16 | D81: 16:00:00 | E81: 158.080002 | F81: 158.149994 | G81: 155.279999 | H81: 155.529999 | I81: 11556700 | J81: -2.199997 | K81: 2023-06-17T11:28:37.380
A83: ^AEX | B83: AEX-Index (^AEX) -Amsterdam (Daily) | C83: 2024-09-20T16:05:02 | D83: 6:05 PM CEST | E83: 903.6699829 | F83: 906.4199829 | G83: 895.5999756 | H83: 897.5499878 | I83: 0 | J83: -10.86999512 | K83: 2024-09-21T18:21:35.670
A84: ^AORD | B84: ALL ORDINARIES (^AORD) -ASX (Daily) | C84: 2024-09-20T07:16:45 | D84: 5:16 PM AEST | E84: 8417 | F84: 8474.099609 | G84: 8415.799805 | H84: 8437.200195 | I84: 0 | J84: 20.20019531 | K84: 2024-09-21T21:39:30.340
A85: ^AXJO | B85: S&P/ASX 200 (^AXJO) -ASX (Daily) | C85: 2023-03-15 | D85: 16:44:00 | E85: 7008.899902 | F85: 7068.899902 | G85: 7008.899902 | H85: 7068.899902 | I85: 0 | J85: 60 | K85: 2023-03-15T11:43:59.040
A86: DIA | B86: SPDR Dow Jones Industrial Average ETF Trust (DIA) -NYSEArca (Daily) | C86: 2022-10-07 | D86: 16:00:00 | E86: 296.730011 | F86: 296.890015 | G86: 291.440002 | H86: 292.970001 | I86: 3026900 | J86: -6.26001 | K86: 2022-10-08T20:28:35.330
A87: ^DJI | B87: Dow Jones Industrial Average (^DJI) -DJI (Daily) | C87: 2022-10-07 | D87: 17:28:00 | E87: 29685.26953 | F87: 29685.26953 | G87: 29142.66016 | H87: 29296.78906 | I87: 367950000 | J87: -630.15039 | K87: 2022-10-08T20:28:54.910
A88: ^FTSE | B88: FTSE 100 (^FTSE) -FTSE Index (Daily) | C88: 2022-10-07 | D88: 16:35:00 | E88: 6997.299805 | F88: 7022.399902 | G88: 6960.399902 | H88: 6991.100098 | I88: 807923600 | J88: -6.199707 | K88: 2022-10-08T20:29:14.340
A89: ^GSPC | B89: S&P 500 (^GSPC) -SNP (Daily) | C89: 2023-02-10 | D89: 17:04:00 | E89: 4068.919922 | F89: 4094.360107 | G89: 4060.790039 | H89: 4090.459961 | I89: 3891520000 | J89: 8.959961 | K89: 2023-02-12T10:01:40.360
A90: ^HSI | B90: HANG SENG INDEX (^HSI) -HKSE (Daily) | C90: 2024-06-18 | D90: 4:08 PM HKT | E90: 17961.89062 | F90: 18043.48047 | G90: 17854.78906 | H90: 17915.55078 | I90: 0 | J90: -20.56836 | K90: 2024-06-18T10:22:28.410
A91: ^MID | B91: S&P MID CAP 400 INDEX (^MID) -NYSE (Daily) | C91: 2022-10-07 | D91: 16:04:00 | E91: 2325.449951 | F91: 2325.449951 | G91: 2255.810059 | H91: 2266.889893 | I91: 0 | J91: -58.560058 | K91: 2022-10-08T20:30:12.560
A92: ^NDX | B92: NASDAQ 100 (^NDX) -Nasdaq GIDS (Daily) | C92: 2023-09-15 | D92: 12:10:00 | E92: 15425.90039 | F92: 15435.45019 | G92: 15227.21777 | H92: 15258.62207 | I92: 507836217 | J92: -215.267578 | K92: 2023-09-15T12:11:00.300
A93: ^NYA | B93: NYSE COMPOSITE (DJ) (^NYA) -NYSE (Daily) | C93: 2022-10-07 | D93: 16:20:00 | E93: 14087.37988 | F93: 14087.37988 | G93: 13727.79004 | H93: 13798.25977 | I93: 4449660000 | J93: -289.120117 | K93: 2022-10-08T20:30:51.020
A94: ^OEX | B94: S&P 100 INDEX (^OEX) -Chicago Options (Daily) | C94: 2022-10-07 | D94: 17:28:00 | E94: 1674.359985 | F94: 1674.359985 | G94: 1634.599976 | H94: 1642.890015 | I94: 4449660000 | J94: -51.380005 | K94: 2022-10-08T20:31:10.140
A95: RSP | B95: Invesco S&P 500 Equal Weight ETF (RSP) -NYSEArca (Daily) | C95: 2022-10-07 | D95: 16:00:00 | E95: 132.009995 | F95: 132.199997 | G95: 129.389999 | H95: 130.149994 | I95: 3197700 | J95: -3.160004 | K95: 2022-10-08T20:31:31.900
A96: ^RUT | B96: Russell 2000 (^RUT) -Chicago Options (Daily) | C96: 2022-10-07 | D96: 16:30:00 | E96: 1734.650024 | F96: 1734.920044 | G96: 1694.959961 | H96: 1702.150024 | I96: 4449660000 | J96: -50.359986 | K96: 2022-10-08T20:31:50.530
A97: ^VIX | B97: CBOE Volatility Index (^VIX) -Chicago Options (Daily) | C97: 2022-10-07 | D97: 16:15:00 | E97: 30.370001 | F97: 32.02 | G97: 29.879999 | H97: 31.360001 | I97: 0 | J97: 0.840001 | K97: 2022-10-08T20:32:09.750
A98: IWM | B98: iShares Russell 2000 ETF (IWM) -NYSEArca (Daily) | C98: 2022-10-07 | D98: 16:00:00 | E98: 171.929993 | F98: 172.470001 | G98: 167.919998 | H98: 168.610001 | I98: 26504500 | J98: -5.11 | K98: 2022-10-08T20:32:29.720
A99: QQQ | B99: Invesco QQQ Trust (QQQ) -NasdaqGM (Daily) | C99: 2024-02-02 | D99: 16:00:00 | E99: 423.799988 | F99: 430.23999 | G99: 422.790009 | H99: 429.01001 | I99: 59582300 | J99: 7.130005 | K99: 2024-02-04T13:47:12.870
A100: XLE | B100: Energy Select Sector SPDR Fund (XLE) -NYSEArca (Daily) | C100: 2022-10-07 | D100: 16:00:00 | E100: 82.610001 | F100: 83.540001 | G100: 81.209999 | H100: 81.800003 | I100: 28449900 | J100: -0.639999 | K100: 2022-10-08T20:33:10.770
A101: SOXL | B101: Direxion Daily Semiconductor Bull 3X Shares (SOXL) -NYSEArca (Daily) | C101: 2022-10-07 | D101: 16:00:00 | E101: 10.18 | F101: 10.28 | G101: 9 | H101: 9.21 | I101: 134291600 | J101: -1.98 | K101: 2022-10-08T20:33:31.210
A102: SPY | B102: SPDR S&P 500 ETF Trust (SPY) -NYSEArca (Daily) | C102: 2024-06-04 | D102: 4:00 PM EDT | E102: 526.460022 | F102: 529.150024 | G102: 524.960022 | H102: 528.390015 | I102: 31377520 | J102: 0.590027 | K102: 2024-06-04T17:07:50.990
A104: ACAD | B104: ACADIA Pharmaceuticals Inc. (ACAD) -NasdaqGS (Daily) | C104: 2022-10-07 | D104: 16:00:00 | E104: 18.219999 | F104: 18.27 | G104: 16.030001 | H104: 16.290001 | I104: 2891100 | J104: -2.339998 | K104: 2022-10-08T20:34:10.690
A105: CLDX | B105: Celldex Therapeutics, Inc. (CLDX) -NasdaqCM (Daily) | C105: 2022-10-07 | D105: 16:00:00 | E105: 28.530001 | F105: 29.16 | G105: 28.01 | H105: 28.07 | I105: 426400 | J105: -0.91 | K105: 2022-10-08T20:34:27.670
A106: ICPT | B106: Intercept Pharmaceuticals, Inc. (ICPT) -NasdaqGS (Daily) | C106: 2022-10-07 | D106: 16:00:00 | E106: 13.97 | F106: 14.06 | G106: 13.64 | H106: 13.66 | I106: 691500 | J106: -0.28 | K106: 2022-10-08T20:34:46.490
A107: INO | B107: Inovio Pharmaceuticals, Inc. (INO) -NasdaqGS (Daily) | C107: 2022-10-07 | D107: 16:00:00 | E107: 1.69 | F107: 1.7 | G107: 1.6 | H107: 1.61 | I107: 4513100 | J107: -0.13 | K107: 2022-10-08T20:35:05.980
A108: LCI | B108: Lannett Company, Inc. (LCI) -NYSE (Daily) | C108: 2022-10-07 | D108: 16:00:00 | E108: 0.48 | F108: 0.493 | G108: 0.471 | H108: 0.471 | I108: 105400 | J108: -0.011 | K108: 2022-10-08T20:35:25.780
A109: PBYI | B109: Puma Biotechnology, Inc. (PBYI) -NasdaqGS (Daily) | C109: 2022-10-07 | D109: 16:00:00 | E109: 2.47 | F109: 2.5 | G109: 2.32 | H109: 2.37 | I109: 123700 | J109: -0.15 | K109: 2022-10-08T20:35:44.300

Sheet REPAIRS!
A1: Attention T-Tips Spreadsheet Users!
A2: Cumulative Repairs Are Now Available for Recent Problems in Some Older T-Tips Spreadsheets!
A3: Please! Before You do Anything! Read this ENTIRE page!
A5: This spreadsheet incorporates Visual Basic (VBA) code that is capable of automatically restoring functionality to any of the Traders Tip
A6: spreadsheets from May of 2021 (RateOfChangeWithBands.xlsm), to September of 2024 (PrecisionTrendAnalysis.xlsm).
A7: Note: Attempting to use this on Traders Tips from before May of 2021 will most likely fail with a message of one sort or another.
A9: The enclosed corrections include, but are not limited to, failures in recent Traders Tip spreadsheets that look like this:
A26: Or, more recently, like THIS!
A43: This most recent failure is again due to the folks at Yahoo Finance changing the entire design of, and the HTML coding for, their Stock History web page.
A44: Yahoo Finance is certainly free to make any changes they would like. After all, it is their web page!
A46: It just takes a bit of time for me to catch up to their changes.
A48: The current design for the Yahoo Finance "Stock History " web page came online on overnight into the morning of September 7, 2024.
A50: Note: The necessary adjustments have already been made to the spreadsheet you have open before you.
A51: This a normal, fully functional, Traders Tip spreadsheet. (See the other tabs)
A52: It just happens to include the capability to restore functionality to a subset of relatively recent Traders Tip spreadsheets.
A54: Steps to repair other Traders Tips spreadsheets:
A55: Again, Before you do anything!!
A57: Please! Read this entire page!
A59: Check that your EXCEL options conform to the requirements section near the bottom of this page!
A61: 1. Select a TARGET spreadsheet to repair. Please Do Not open it yet.
A63: 2. Backup your Target? -- Yes you can download a fresh copy from the web site if something goes wrong.
A64: But… You should ask yourself:
A65: "Have I have made any changes to my target spreadsheet that I would not like to loose?"
A66: If so, you should make a backup copy now in case this fix process breaks your target in the process of making the necessary changes.
A68: 3. When you click the "Repairs" button below, a file explorer window will open and prompt you to
A69: navigate to, select, and then click "Open" for your target spreadsheet.
A71: 4. Click this "Repairs" button to start the process.
A77: 5. When repairs have been completed, A message will be displayed that lets you choose:
A78: A. " OK" - To automatically save your repaired spreadsheet back to the same directory, using the same target name appended with a suffix of "_CorrectionsThru_2024SEP07_Problem".
A79: Note: The "OK" choice will overwrite a previously fixed version of the same spreadsheet with out any warnings.
A80: or
A81: B. "Cancel" - To do nothing. With this choice, you should:
A82: Alt-Tab to the corrected spread sheet and then:
A83: manually "Save" the corrected spreadsheet back to the original directory and name,
A84: or
A85: manually "Save As" to your choice of directory and name.
A87: 6. Close the now "Repaired" and "Saved" spreadsheet
A89: 7. Repeat steps 1 thru 6 for as many spreadsheets as you wish.
A91: 8. Close this spreadsheet.
A92: Or
A93: Select one of the other tabs on this spreadsheet to use this spreadsheet as originally designed. That is, to demonstrate stuff from the corresponding Traders Tip article.
A95: 9. When all EXCEL spreadsheets have been closed, you may open any of the "Repaired" target spreadsheets to
A96: test them as you see fit.
A98: Two Requirements:
A100: 1. The repair process provided here requires that the VBA environment have a reference to
A101: "Microsoft Visual Basic for Applications Extensibility 5.3"
A102: This reference provides access to the VBA Project Object Model which contains the
A103: routines that may be called by VBA code to modify other VBA code.
A105: References are generally set for, and are kept track of, by each individual workbook.
A106: So this reference should already be set for this workbook.
A108: If this reference was not inherited, then when you click the "April 15 Repair" button
A109: the VBA Editor window will open and display the following error.
A126: Click "OK" to close the message.
A128: You will need to add the reference:
A129: At the top of the screen click on "Tools". Then in the Tools dropdown click on "References".
A138: The References dialog will display.
A139: Mine looks like this. Note the a check next to the entry for:
A140: "Microsoft Visual Basic for Applications Extensibility 5.3"
A157: If you do not have this entry in the list of checked entries, you will need to scroll down to
A158: find it and then check the box next to it. Then click "OK" to close the dialog.
A175: Then close the VBA Editor window.
A177: Save this workbook to lock in the newly added Reference
A179: 2. You will also need to get into the EXCEL OPTIONS dialog to grant the EXCEL VBA engine specific permission to use
A180: these VBA code modifying routines.
A182: Allowing EXCEL to use VBA macros is a security concern in many circles. But that is what all of my spreadsheets do.
A184: This next level, allowing VBA code to modify VBA code "On The Fly" is even more of a concern in those same circles.
A185: Particularly as both of these permissions are maintained globally at the EXCEL application level.
A186: Once set, these permissions apply to every workbook you open.
A188: If you get the following error when you click the "Start Repairs" button, you will need to adjust your EXCEL Trust Center Options.
A205: Click "End" to close the error message and then close the VBA editor window.
A207: Steps to adjust your Trust Center options
A208: a. In the upper left of an EXCEL worksheet window, click "File".
A209: b. at the bottom left click Options
A210: c. at the bottom left click Trust Center
A211: d. at the far right click Trust Center Settings
A212: e. at the left, near the middle, click Macro Settings
A213: f. In the Macros Settings form:
A215: - Under the heading "Macro Settings" I have the selected the radio button next to
A216: Disable VBA macros with notification
A217: You may have selected something else. If VBA macros work OK for you, no change should be necessary.
A219: - Under the heading "Developer Macro Settings", check the box next to
A220: "Trust access to the VBA project object model"
A221: Depending on your comfort level, you may want to turn this off (Uncheck) after you have fixed your workbooks.
A223: g. Click OK a couple of times to get back to the main EXCEL window showing this tab.
